Workbook

Sheet Instructions
A1: Instructions
A2: 1 | B2: Click the "Begin Button" below
A3: 2 | B3: Enter the Community using the pull-down menu in cell B2
A4: 3 | B4: Enter the information in cells B3-B11
A5: 4 | B5: Select Yes in cell B14 to use the default borrowing rate* or No and then enter the known borrowing rate for the Community
A6: 5 | B6: Click on the "Run Model" button to view the results on the Drinking Water Outputs page
A7: 6 | B7: Navigate through the results using the "Go To Outputs" buttons to view the results on for Wastewater or Combined Household Bills
A8: 7 | B8: Click on the "New Model" button from any page to return to the Inputs page and repeat steps 2-6
B13: * The default borrowing rate is the average of the most recent National A-rated municipal bond yield curve rates at various maturities.

Sheet Inputs
A1: Model Inputs
A2: Community | B2: Achille town, Oklahoma
A3: Current Average Household Monthly Drinking Water Bill ($) | B3: 0
A4: Current Annual Growth Rate in Drinking Water Bills* | B4: 0
A5: Current Average Household Monthly Wastewater Bill ($) | B5: 0
A6: Current Annual Growth Rate in Wastewater Bills* | B6: 0
A8: Planned Expenditure on Drinking Water Infrastructure | B8: 0
A9: Number of Years that the Infrastructure Will be Financed | B9: 0
A10: Planned Expenditure on Wastewater Infrastructure | B10: 0
A11: Number of Years that the Infrastructure Will be Financed | B11: 0
A13: Annual Interest Rate
A14: Use Default Rate? | B14: No
A15: If not, Enter Annual Interest Rate for Financing | B15: 0
A19: * - Note: The current annual growth rate in bills should
A20: incorporate all projected cost increases
A21: EXCEPT for those associated with the debt
A22: payments on infrastructure.

Sheet Drinking Water Output
A1: Model Outputs - Drinking Water
A2: Community | B2: =city -> Achille town, Oklahoma
A3: Community Population (2021) | B3: ='Drinking Water Analysis Sheet'!M6 -> 549.0909091
A4: Increase in Average Monthly Drinking Water Bill | B4: =IF(drinkprincipal>0,((PMT(rate,drinkyears,-drinkprincipal))/('Drinking Water Analysis Sheet'!N6/2.5))/12,0) -> 0
A5: Probability that Monthly Drinking Water Bill
A6: Exceeds 2.5% of Median Household Income | B6: =drinkmaxprob -> 0.0005989317284
A7: Sustainability Risk | B7: =IF(B6<0.33,"Low",IF(B6<0.67,"Moderate","High")) -> Low
A9: Current MHI (2021) | B9: =+B24 -> 36813.94776
A10: Current Drinking Water Bill | B10: =+drinkbill -> 0
A11: Projected Average Drinking Water Bill | B11: =+B10+B4 -> 0
A17: Note: The graph shows the typical sustainable threshold
A18: for the community (blue line), forecast into the future,
A19: along with a range of estimates developed in a
A20: statistical model. It also shows the projected drinking water
A21: bills using the inputs you provided.
A23: Projections | B23: 2021 | C23: 2022 | D23: 2023 | E23: 2024 | F23: 2025 | G23: 2026 | H23: 2027 | I23: 2028 | J23: 2029 | K23: 2030 | L23: 2031 | M23: 2032 | N23: 2033
A24: Median Household Income | B24: ='Drinking Water Analysis Sheet'!M2*12 -> 36813.94776 | C24: ='Drinking Water Analysis Sheet'!N2*12 -> 37518.87582 | D24: ='Drinking Water Analysis Sheet'!O2*12 -> 37972.69697 | E24: ='Drinking Water Analysis Sheet'!P2*12 -> 38396.3012 | F24: ='Drinking Water Analysis Sheet'!Q2*12 -> 38779.44174 | G24: ='Drinking Water Analysis Sheet'!R2*12 -> 39123.95602 | H24: ='Drinking Water Analysis Sheet'!S2*12 -> 39468.02651 | I24: ='Drinking Water Analysis Sheet'!T2*12 -> 39804.45935 | J24: ='Drinking Water Analysis Sheet'!U2*12 -> 40135.21998 | K24: ='Drinking Water Analysis Sheet'!V2*12 -> 40155.59047 | L24: ='Drinking Water Analysis Sheet'!W2*12 -> 40218.69645 | M24: ='Drinking Water Analysis Sheet'!X2*12 -> 40269.68452 | N24: ='Drinking Water Analysis Sheet'!Y2*12 -> 40268.83682
A25: Monthly Drinking Water Bill | B25: ='Drinking Water Analysis Sheet'!M7 -> 0 | C25: ='Drinking Water Analysis Sheet'!N7 -> 0 | D25: ='Drinking Water Analysis Sheet'!O7 -> 0 | E25: ='Drinking Water Analysis Sheet'!P7 -> 0 | F25: ='Drinking Water Analysis Sheet'!Q7 -> 0 | G25: ='Drinking Water Analysis Sheet'!R7 -> 0 | H25: ='Drinking Water Analysis Sheet'!S7 -> 0 | I25: ='Drinking Water Analysis Sheet'!T7 -> 0 | J25: ='Drinking Water Analysis Sheet'!U7 -> 0 | K25: ='Drinking Water Analysis Sheet'!V7 -> 0 | L25: ='Drinking Water Analysis Sheet'!W7 -> 0 | M25: ='Drinking Water Analysis Sheet'!X7 -> 0 | N25: ='Drinking Water Analysis Sheet'!Y7 -> 0
A26: % MHI | B26: =+(B25/B24)*12 -> 0 | C26: =+(C25/C24)*12 -> 0 | D26: 0 | E26: 0 | F26: 0 | G26: 0 | H26: 0 | I26: 0 | J26: 0 | K26: 0 | L26: 0 | M26: 0 | N26: 0
A27: Population | B27: =VLOOKUP(city,poptable,B23-2008,FALSE) -> 549.0909091 | C27: 554.3818182 | D27: 559.6727273 | E27: 564.9636364 | F27: 570.2545455 | G27: 575.5454545 | H27: 580.8363636 | I27: 586.1272727 | J27: 591.4181818 | K27: 596.7090909 | L27: 602 | M27: 607.2909091 | N27: 612.5818182
A29: Projections | B29: 2034 | C29: 2035 | D29: 2036 | E29: 2037 | F29: 2038 | G29: 2039 | H29: 2040 | I29: 2041 | J29: 2042 | K29: 2043 | L29: 2044 | M29: 2045 | N29: 2046
A30: Median Household Income | B30: =+'Drinking Water Analysis Sheet'!Z2*12 -> 40282.63733 | C30: =+'Drinking Water Analysis Sheet'!AA2*12 -> 40291.39284 | D30: =+'Drinking Water Analysis Sheet'!AB2*12 -> 40292.04365 | E30: =+'Drinking Water Analysis Sheet'!AC2*12 -> 40296.32603 | F30: =+'Drinking Water Analysis Sheet'!AD2*12 -> 40299.07811 | G30: =+'Drinking Water Analysis Sheet'!AE2*12 -> 40300.6903 | H30: =+'Drinking Water Analysis Sheet'!AF2*12 -> 40303.07457 | I30: =+'Drinking Water Analysis Sheet'!AG2*12 -> 40305.06297 | J30: =+'Drinking Water Analysis Sheet'!AH2*12 -> 40306.921 | K30: =+'Drinking Water Analysis Sheet'!AI2*12 -> 40308.9261 | L30: =+'Drinking Water Analysis Sheet'!AJ2*12 -> 40310.83896 | M30: =+'Drinking Water Analysis Sheet'!AK2*12 -> 40312.74455 | N30: =+'Drinking Water Analysis Sheet'!AL2*12 -> 40314.67538
A31: Monthly Drinking Water Bill | B31: =+'Drinking Water Analysis Sheet'!Z7 -> 0 | C31: =+'Drinking Water Analysis Sheet'!AA7 -> 0 | D31: =+'Drinking Water Analysis Sheet'!AB7 -> 0 | E31: =+'Drinking Water Analysis Sheet'!AC7 -> 0 | F31: =+'Drinking Water Analysis Sheet'!AD7 -> 0 | G31: =+'Drinking Water Analysis Sheet'!AE7 -> 0 | H31: =+'Drinking Water Analysis Sheet'!AF7 -> 0 | I31: =+'Drinking Water Analysis Sheet'!AG7 -> 0 | J31: =+'Drinking Water Analysis Sheet'!AH7 -> 0 | K31: =+'Drinking Water Analysis Sheet'!AI7 -> 0 | L31: =+'Drinking Water Analysis Sheet'!AJ7 -> 0 | M31: =+'Drinking Water Analysis Sheet'!AK7 -> 0 | N31: =+'Drinking Water Analysis Sheet'!AL7 -> 0
A32: % MHI | B32: =+(B31/B30)*12 -> 0 | C32: =+(C31/C30)*12 -> 0 | D32: 0 | E32: 0 | F32: 0 | G32: 0 | H32: 0 | I32: 0 | J32: 0 | K32: 0 | L32: 0 | M32: 0 | N32: 0
A33: Population | B33: =VLOOKUP(city,poptable,B29-2008,FALSE) -> 617.8727273 | C33: 623.1636364 | D33: 628.4545455 | E33: 633.7454545 | F33: 639.0363636 | G33: 644.3272727 | H33: 649.6181818 | I33: 654.9090909 | J33: 660.2 | K33: 665.4909091 | L33: 670.7818182 | M33: 676.0727273 | N33: 681.3636364
A35: Projections | B35: 2047 | C35: 2048 | D35: 2049 | E35: 2050 | F35: 2051
A36: Median Household Income | B36: =+'Drinking Water Analysis Sheet'!AM2*12 -> 40316.58637 | C36: =+'Drinking Water Analysis Sheet'!AN2*12 -> 40318.49933 | D36: =+'Drinking Water Analysis Sheet'!AO2*12 -> 40320.4161 | E36: =+'Drinking Water Analysis Sheet'!AP2*12 -> 40322.32889 | F36: =+'Drinking Water Analysis Sheet'!AQ2*12 -> 40324.24265
A37: Monthly Drinking Water Bill | B37: =+'Drinking Water Analysis Sheet'!AM7 -> 0 | C37: =+'Drinking Water Analysis Sheet'!AN7 -> 0 | D37: =+'Drinking Water Analysis Sheet'!AO7 -> 0 | E37: =+'Drinking Water Analysis Sheet'!AP7 -> 0 | F37: =+'Drinking Water Analysis Sheet'!AQ7 -> 0
A38: % MHI | B38: =+B37/B36*12 -> 0 | C38: =+C37/C36*12 -> 0 | D38: 0 | E38: 0 | F38: 0
A39: Population | B39: =VLOOKUP(city,poptable,B35-2008,FALSE) -> 686.6545455 | C39: =VLOOKUP(city,poptable,C35-2008,FALSE) -> 691.9454545 | D39: =VLOOKUP(city,poptable,D35-2008,FALSE) -> 697.2363636 | E39: =VLOOKUP(city,poptable,E35-2008,FALSE) -> 702.5272727 | F39: =VLOOKUP(city,poptable,F35-2008,FALSE) -> 707.8181818

Sheet Drinking Water Analysis Sheet (hidden)
A1: City | B1: 2010 | C1: 2011 | D1: 2012 | E1: 2013 | F1: 2014 | G1: 2015 | H1: 2016 | I1: 2017 | J1: 2018 | K1: 2019 | L1: 2020 | M1: 2021 | N1: 2022 | O1: 2023 | P1: 2024 | Q1: 2025 | R1: 2026 | S1: 2027 | T1: 2028 | U1: 2029 | V1: 2030 | W1: 2031 | X1: 2032 | Y1: 2033 | Z1: 2034 | AA1: 2035 | AB1: 2036 | AC1: 2037 | AD1: 2038 | AE1: 2039 | AF1: 2040 | AG1: 2041 | AH1: 2042 | AI1: 2043 | AJ1: 2044 | AK1: 2045 | AL1: 2046 | AM1: 2047 | AN1: 2048 | AO1: 2049 | AP1: 2050 | AQ1: 2051 | AT1: rate | AU1: =IF(Inputs!B14="Yes",VLOOKUP(drinkyears,yieldcurve,2),userrate) -> 0 | AW1: 0 | AX1: 0.0218 | AZ1: Yes
A2: Income | B2: =VLOOKUP(city,incometable,'Drinking Water Analysis Sheet'!B1-2008,FALSE)/12 -> 2548.583333 | C2: =VLOOKUP(city,incometable,'Drinking Water Analysis Sheet'!C1-2008,FALSE)/12 -> 2361.083333 | D2: =VLOOKUP(city,incometable,'Drinking Water Analysis Sheet'!D1-2008,FALSE)/12 -> 2695.333333 | E2: =VLOOKUP(city,incometable,'Drinking Water Analysis Sheet'!E1-2008,FALSE)/12 -> 2964.75 | F2: =VLOOKUP(city,incometable,'Drinking Water Analysis Sheet'!F1-2008,FALSE)/12 -> 2767.833333 | G2: =VLOOKUP(city,incometable,'Drinking Water Analysis Sheet'!G1-2008,FALSE)/12 -> 3032.416667 | H2: =VLOOKUP(city,incometable,'Drinking Water Analysis Sheet'!H1-2008,FALSE)/12 -> 2838.583333 | I2: =VLOOKUP(city,incometable,'Drinking Water Analysis Sheet'!I1-2008,FALSE)/12 -> 3095.25 | J2: =VLOOKUP(city,incometable,'Drinking Water Analysis Sheet'!J1-2008,FALSE)/12 -> 2986.083333 | K2: =VLOOKUP(city,incometable,'Drinking Water Analysis Sheet'!K1-2008,FALSE)/12 -> 2881.916667 | L2: =VLOOKUP(city,incometable,'Drinking Water Analysis Sheet'!L1-2008,FALSE)/12 -> 2989.690463 | M2: =VLOOKUP(city,incometable,'Drinking Water Analysis Sheet'!M1-2008,FALSE)/12 -> 3067.82898 | N2: =VLOOKUP(city,incometable,'Drinking Water Analysis Sheet'!N1-2008,FALSE)/12 -> 3126.572985 | O2: =VLOOKUP(city,incometable,'Drinking Water Analysis Sheet'!O1-2008,FALSE)/12 -> 3164.391414 | P2: =VLOOKUP(city,incometable,'Drinking Water Analysis Sheet'!P1-2008,FALSE)/12 -> 3199.691767 | Q2: =VLOOKUP(city,incometable,'Drinking Water Analysis Sheet'!Q1-2008,FALSE)/12 -> 3231.620145 | R2: =VLOOKUP(city,incometable,'Drinking Water Analysis Sheet'!R1-2008,FALSE)/12 -> 3260.329668 | S2: =VLOOKUP(city,incometable,'Drinking Water Analysis Sheet'!S1-2008,FALSE)/12 -> 3289.002209 | T2: =VLOOKUP(city,incometable,'Drinking Water Analysis Sheet'!T1-2008,FALSE)/12 -> 3317.038279 | U2: =VLOOKUP(city,incometable,'Drinking Water Analysis Sheet'!U1-2008,FALSE)/12 -> 3344.601665 | V2: =VLOOKUP(city,incometable,'Drinking Water Analysis Sheet'!V1-2008,FALSE)/12 -> 3346.299206 | W2: =VLOOKUP(city,incometable,'Drinking Water Analysis Sheet'!W1-2008,FALSE)/12 -> 3351.558038 | X2: =VLOOKUP(city,incometable,'Drinking Water Analysis Sheet'!X1-2008,FALSE)/12 -> 3355.807044 | Y2: =VLOOKUP(city,incometable,'Drinking Water Analysis Sheet'!Y1-2008,FALSE)/12 -> 3355.736401 | Z2: =VLOOKUP(city,incometable,'Drinking Water Analysis Sheet'!Z1-2008,FALSE)/12 -> 3356.886444 | AA2: =VLOOKUP(city,incometable,'Drinking Water Analysis Sheet'!AA1-2008,FALSE)/12 -> 3357.61607 | AB2: =VLOOKUP(city,incometable,'Drinking Water Analysis Sheet'!AB1-2008,FALSE)/12 -> 3357.670304 | AC2: =VLOOKUP(city,incometable,'Drinking Water Analysis Sheet'!AC1-2008,FALSE)/12 -> 3358.027169 | AD2: =VLOOKUP(city,incometable,'Drinking Water Analysis Sheet'!AD1-2008,FALSE)/12 -> 3358.256509 | AE2: =VLOOKUP(city,incometable,'Drinking Water Analysis Sheet'!AE1-2008,FALSE)/12 -> 3358.390858 | AF2: =VLOOKUP(city,incometable,'Drinking Water Analysis Sheet'!AF1-2008,FALSE)/12 -> 3358.589548 | AG2: =VLOOKUP(city,incometable,'Drinking Water Analysis Sheet'!AG1-2008,FALSE)/12 -> 3358.755248 | AH2: =VLOOKUP(city,incometable,'Drinking Water Analysis Sheet'!AH1-2008,FALSE)/12 -> 3358.910084 | AI2: =VLOOKUP(city,incometable,'Drinking Water Analysis Sheet'!AI1-2008,FALSE)/12 -> 3359.077175 | AJ2: =VLOOKUP(city,incometable,'Drinking Water Analysis Sheet'!AJ1-2008,FALSE)/12 -> 3359.23658 | AK2: =VLOOKUP(city,incometable,'Drinking Water Analysis Sheet'!AK1-2008,FALSE)/12 -> 3359.395379 | AL2: =VLOOKUP(city,incometable,'Drinking Water Analysis Sheet'!AL1-2008,FALSE)/12 -> 3359.556282 | AM2: =VLOOKUP(city,incometable,'Drinking Water Analysis Sheet'!AM1-2008,FALSE)/12 -> 3359.715531 | AN2: =VLOOKUP(city,incometable,'Drinking Water Analysis Sheet'!AN1-2008,FALSE)/12 -> 3359.874944 | AO2: =VLOOKUP(city,incometable,'Drinking Water Analysis Sheet'!AO1-2008,FALSE)/12 -> 3360.034675 | AP2: =VLOOKUP(city,incometable,'Drinking Water Analysis Sheet'!AP1-2008,FALSE)/12 -> 3360.194074 | AQ2: =VLOOKUP(city,incometable,'Drinking Water Analysis Sheet'!AQ1-2008,FALSE)/12 -> 3360.353554 | AT2: =MAX(M8:AQ8) -> 0.0005989317284 | AW2: 10 | AX2: 0.036 | AZ2: No
A3: SE | B3: =VLOOKUP(city,setable,B1-2008,FALSE)/12 -> 0 | C3: 0 | D3: 0 | E3: 0 | F3: 0 | G3: 0 | H3: 0 | I3: 0 | J3: 0 | K3: 0 | L3: 183.3778876 | M3: 259.3354957 | N3: 317.6198183 | O3: 366.7557752 | P3: 410.0454223 | Q3: 449.1822547 | R3: 485.1722866 | S3: 518.6709914 | T3: 550.1336628 | U3: 579.8917974 | V3: 608.195648 | W3: 635.2396366 | X3: 661.1783766 | Y3: 686.1372277 | Z3: 710.2195048 | AA3: 733.5115504 | AB3: 756.0864 | AC3: 778.0064871 | AD3: 799.3256806 | AE3: 820.0908445 | AF3: 840.3430507 | AG3: 860.118534 | AH3: 879.4494541 | AI3: 898.3645095 | AJ3: 916.889438 | AK3: 935.0474273 | AL3: 952.859455 | AM3: 970.3445731 | AN3: 987.5201468 | AO3: 1004.402056 | AP3: 1021.004868 | AQ3: 1037.341983 | AW3: 20 | AX3: 0.041
A4: 2.5% Income | B4: =B2*0.025 -> 63.71458333 | C4: =C2*0.025 -> 59.02708333 | D4: 67.38333333 | E4: 74.11875 | F4: 69.19583333 | G4: 75.81041667 | H4: 70.96458333 | I4: 77.38125 | J4: 74.65208333 | K4: 72.04791667 | L4: 74.74226157 | M4: 76.69572451 | N4: 78.16432463 | O4: 79.10978535 | P4: 79.99229417 | Q4: 80.79050362 | R4: 81.5082417 | S4: 82.22505523 | T4: 82.92595697 | U4: 83.61504163 | V4: 83.65748014 | W4: 83.78895094 | X4: 83.89517609 | Y4: 83.89341004 | Z4: 83.92216111 | AA4: 83.94040175 | AB4: 83.94175761 | AC4: 83.95067923 | AD4: 83.95641273 | AE4: 83.95977145 | AF4: 83.96473869 | AG4: 83.96888119 | AH4: 83.97275209 | AI4: 83.97692938 | AJ4: 83.98091451 | AK4: 83.98488448 | AL4: 83.98890704 | AM4: 83.99288828 | AN4: 83.99687361 | AO4: 84.00086687 | AP4: 84.00485185 | AQ4: 84.00883886
A5: 2.5% SE | B5: =B3*0.025 -> 0 | C5: =C3*0.025 -> 0 | D5: 0 | E5: 0 | F5: 0 | G5: 0 | H5: 0 | I5: 0 | J5: 0 | K5: 0 | L5: 4.58444719 | M5: 6.483387392 | N5: 7.940495458 | O5: 9.16889438 | P5: 10.25113556 | Q5: 11.22955637 | R5: 12.12930716 | S5: 12.96677478 | T5: 13.75334157 | U5: 14.49729493 | V5: 15.2048912 | W5: 15.88099092 | X5: 16.52945941 | Y5: 17.15343069 | Z5: 17.75548762 | AA5: 18.33778876 | AB5: 18.90216 | AC5: 19.45016218 | AD5: 19.98314201 | AE5: 20.50227111 | AF5: 21.00857627 | AG5: 21.50296335 | AH5: 21.98623635 | AI5: 22.45911274 | AJ5: 22.92223595 | AK5: 23.37618568 | AL5: 23.82148637 | AM5: 24.25861433 | AN5: 24.68800367 | AO5: 25.1100514 | AP5: 25.52512169 | AQ5: 25.93354957
A6: Population | B6: =VLOOKUP(city,poptable,B1-2008,FALSE) -> 493 | C6: 499 | D6: 500 | E6: 507 | F6: 509 | G6: 513 | H6: 521 | I6: 529 | J6: 536 | K6: 540 | L6: 543.8 | M6: =VLOOKUP(city,poptable,M1-2008,FALSE) -> 549.0909091 | N6: 554.3818182 | O6: 559.6727273 | P6: 564.9636364 | Q6: 570.2545455 | R6: 575.5454545 | S6: 580.8363636 | T6: 586.1272727 | U6: 591.4181818 | V6: 596.7090909 | W6: 602 | X6: 607.2909091 | Y6: 612.5818182 | Z6: 617.8727273 | AA6: 623.1636364 | AB6: 628.4545455 | AC6: 633.7454545 | AD6: 639.0363636 | AE6: 644.3272727 | AF6: 649.6181818 | AG6: 654.9090909 | AH6: 660.2 | AI6: 665.4909091 | AJ6: 670.7818182 | AK6: 676.0727273 | AL6: 681.3636364 | AM6: 686.6545455 | AN6: 691.9454545 | AO6: 697.2363636 | AP6: 702.5272727 | AQ6: 707.8181818
A7: Water Cost | M7: =drinkbill -> 0 | N7: =M7*(1+drinkbillgrowth)+IF(drinkprincipal>0,((PMT(rate,drinkyears,-drinkprincipal))/(N6/2.5))/12,0) -> 0 | O7: =IF(O1<$M$1+drinkyears+1,N7*(1+drinkbillgrowth)-IF(drinkprincipal>0,O14*(PMT(rate,drinkyears,-drinkprincipal)/(N6/2.5)/12),0),O16) -> 0 | P7: 0 | Q7: 0 | R7: 0 | S7: 0 | T7: 0 | U7: 0 | V7: 0 | W7: 0 | X7: 0 | Y7: 0 | Z7: 0 | AA7: 0 | AB7: 0 | AC7: 0 | AD7: 0 | AE7: 0 | AF7: 0 | AG7: 0 | AH7: 0 | AI7: 0 | AJ7: 0 | AK7: 0 | AL7: 0 | AM7: 0 | AN7: 0 | AO7: 0 | AP7: 0 | AQ7: 0
A8: Probability Unafforable | M8: =_xlfn.NORM.DIST(M7,M4,M5,TRUE) -> 1.372623278e-32 | N8: 3.646682063e-23 | O8: 3.120024057e-18 | P8: 3.016361628e-15 | Q8: 3.135607511e-13 | R8: 9.089840072e-12 | S8: 1.139830145e-10 | T8: 8.222705259e-10 | U8: 4.019689417e-09 | V8: =_xlfn.NORM.DIST(V7,V4,V5,TRUE) -> 1.877416557e-08 | W8: 6.59979372e-08 | X8: 1.932450299e-07 | Y8: 5.022224195e-07 | Z8: 1.141845212e-06 | AA8: 2.353335651e-06 | AB8: 4.480101403e-06 | AC8: 7.937112962e-06 | AD8: 1.326570002e-05 | AE8: 2.109521951e-05 | AF8: 3.211734529e-05 | AG8: 4.711442027e-05 | AH8: 6.690658209e-05 | AI8: 9.233913153e-05 | AJ8: 0.0001242837472 | AK8: 0.0001636007315 | AL8: 0.0002111326104 | AM8: 0.0002676960699 | AN8: 0.0003340627024 | AO8: 0.0004109555627 | AP8: =_xlfn.NORM.DIST(AP7,AP4,AP5,TRUE) -> 0.0004990430427 | AQ8: 0.0005989317284
A10: Chart Inputs
A11: 2.5% High Income | L11: =_xlfn.NORM.INV(0.95,L4,L5) -> 82.28300616 | M11: =_xlfn.NORM.INV(0.95,M4,M5) -> 87.35994778 | N11: 91.22527738 | O11: 94.19127453 | P11: 96.85391167 | Q11: 99.26148015 | R11: 101.4591766 | S11: 103.5535018 | T11: 105.5481907 | U11: 107.4609698 | V11: =_xlfn.NORM.INV(0.95,V4,V5) -> 108.6673006 | W11: 109.9108564 | X11: 111.0837174 | Y11: 112.1082927 | Z11: 113.1273393 | AA11: 114.1033801 | AB11: 115.033044 | AC11: 115.943349 | AD11: 116.8257563 | AE11: 117.6830065 | AF11: 118.5207716 | AG11: 119.3381084 | AH11: 120.1368927 | AI11: 120.9188824 | AJ11: 121.6846374 | AK11: 122.4352883 | AL11: 123.1717653 | AM11: 123.894758 | AN11: 124.605026 | AO11: 125.303226 | AP11: =_xlfn.NORM.INV(0.95,AP4,AP5) -> 125.9899408 | AQ11: 126.6657319
A12: 2.5% Low Income | L12: =_xlfn.NORM.INV(0.05,L4,L5) -> 67.20151698 | M12: =_xlfn.NORM.INV(0.05,M4,M5) -> 66.03150124 | N12: 65.10337188 | O12: 64.02829617 | P12: 63.13067667 | Q12: 62.3195271 | R12: 61.55730682 | S12: 60.89660869 | T12: 60.30372321 | U12: 59.76911348 | V12: =_xlfn.NORM.INV(0.05,V4,V5) -> 58.6476597 | W12: 57.66704543 | X12: 56.70663482 | Y12: 55.67852734 | Z12: 54.7169829 | AA12: 53.7774234 | AB12: 52.85047117 | AC12: 51.95800943 | AD12: 51.08706911 | AE12: 50.23653645 | AF12: 49.40870582 | AG12: 48.59965393 | AH12: 47.80861148 | AI12: 47.03497634 | AJ12: 46.27719156 | AK12: 45.53448067 | AL12: 44.80604878 | AM12: 44.09101852 | AN12: 43.38872123 | AO12: 42.69850776 | AP12: =_xlfn.NORM.INV(0.05,AP4,AP5) -> 42.01976287 | AQ12: 41.35194579
A14: Payoff Counter | M14: =IF(M1=$M$1+drinkyears+1,1,0) -> 0 | N14: 1 | O14: 0 | P14: 0 | Q14: 0 | R14: 0 | S14: 0 | T14: 0 | U14: 0 | V14: 0 | W14: 0 | X14: 0 | Y14: 0 | Z14: 0 | AA14: 0 | AB14: 0 | AC14: 0 | AD14: 0 | AE14: 0 | AF14: 0 | AG14: 0 | AH14: 0 | AI14: 0 | AJ14: 0 | AK14: 0 | AL14: 0 | AM14: 0 | AN14: 0 | AO14: 0 | AP14: 0 | AQ14: 0
A16: Growthrate | M16: =drinkbill -> 0 | N16: =M16*(1+drinkbillgrowth) -> 0 | O16: 0 | P16: 0 | Q16: 0 | R16: 0 | S16: 0 | T16: 0 | U16: 0 | V16: 0 | W16: 0 | X16: 0 | Y16: 0 | Z16: 0 | AA16: 0 | AB16: 0 | AC16: 0 | AD16: 0 | AE16: 0 | AF16: 0 | AG16: 0 | AH16: 0 | AI16: 0 | AJ16: 0 | AK16: 0 | AL16: 0 | AM16: 0 | AN16: 0 | AO16: 0 | AP16: 0 | AQ16: 0

Sheet Wastewater Output
A1: Model Outputs - Wastewater
A2: Community | B2: =city -> Achille town, Oklahoma
A3: Community Population (2021) | B3: ='Wastewater Analysis Sheet'!M6 -> 549.0909091
A4: Increase in Average Monthly Wastewater Bill | B4: =IF(wasteprincipal>0,((PMT(wasterate,wasteyears,-wasteprincipal))/('Wastewater Analysis Sheet'!N6/2.5))/12,0) -> 0
A5: Probability that Monthly Wastewater Bill
A6: Exceeds 2.0% of Median Household Income | B6: =wastemaxprob -> 0.0005989317284
A7: Sustainability Risk | B7: =IF(B6<0.33,"Low",IF(B6<0.67,"Moderate","High")) -> Low
A9: Current MHI (2021) | B9: =+B24 -> 36813.94776
A10: Current Wastewater Bill | B10: =+wastebill -> 0
A11: Projected Average Wastewater Bill | B11: =+B10+B4 -> 0
A17: Note: The graph shows the typical sustainable threshold
A18: for the community (blue line), forecast into the future,
A19: along with a range of estimates developed in a
A20: statistical model. It also shows the projected wastewater
A21: bills using the inputs you provided.
A23: Projections | B23: 2021 | C23: 2022 | D23: 2023 | E23: 2024 | F23: 2025 | G23: 2026 | H23: 2027 | I23: 2028 | J23: 2029 | K23: 2030 | L23: 2031 | M23: 2032 | N23: 2033
A24: Median Household Income | B24: ='Wastewater Analysis Sheet'!M2*12 -> 36813.94776 | C24: ='Wastewater Analysis Sheet'!N2*12 -> 37518.87582 | D24: ='Wastewater Analysis Sheet'!O2*12 -> 37972.69697 | E24: ='Wastewater Analysis Sheet'!P2*12 -> 38396.3012 | F24: ='Wastewater Analysis Sheet'!Q2*12 -> 38779.44174 | G24: ='Wastewater Analysis Sheet'!R2*12 -> 39123.95602 | H24: ='Wastewater Analysis Sheet'!S2*12 -> 39468.02651 | I24: ='Wastewater Analysis Sheet'!T2*12 -> 39804.45935 | J24: ='Wastewater Analysis Sheet'!U2*12 -> 40135.21998 | K24: ='Wastewater Analysis Sheet'!V2*12 -> 40155.59047 | L24: ='Wastewater Analysis Sheet'!W2*12 -> 40218.69645 | M24: ='Wastewater Analysis Sheet'!X2*12 -> 40269.68452 | N24: ='Wastewater Analysis Sheet'!Y2*12 -> 40268.83682
A25: Monthly Wastewater Bill | B25: ='Wastewater Analysis Sheet'!M7 -> 0 | C25: ='Wastewater Analysis Sheet'!N7 -> 0 | D25: ='Wastewater Analysis Sheet'!O7 -> 0 | E25: ='Wastewater Analysis Sheet'!P7 -> 0 | F25: ='Wastewater Analysis Sheet'!Q7 -> 0 | G25: ='Wastewater Analysis Sheet'!R7 -> 0 | H25: ='Wastewater Analysis Sheet'!S7 -> 0 | I25: ='Wastewater Analysis Sheet'!T7 -> 0 | J25: ='Wastewater Analysis Sheet'!U7 -> 0 | K25: ='Wastewater Analysis Sheet'!V7 -> 0 | L25: ='Wastewater Analysis Sheet'!W7 -> 0 | M25: ='Wastewater Analysis Sheet'!X7 -> 0 | N25: ='Wastewater Analysis Sheet'!Y7 -> 0
A26: %MHI | B26: =+B25*12/B24 -> 0 | C26: =+C25*12/C24 -> 0 | D26: 0 | E26: 0 | F26: 0 | G26: 0 | H26: 0 | I26: 0 | J26: 0 | K26: 0 | L26: 0 | M26: 0 | N26: 0
A27: Population | B27: =VLOOKUP(city,poptable,B23-2008,FALSE) -> 549.0909091 | C27: 554.3818182 | D27: 559.6727273 | E27: 564.9636364 | F27: 570.2545455 | G27: 575.5454545 | H27: 580.8363636 | I27: 586.1272727 | J27: 591.4181818 | K27: 596.7090909 | L27: 602 | M27: 607.2909091 | N27: 612.5818182
A29: Projections | B29: 2034 | C29: 2035 | D29: 2036 | E29: 2037 | F29: 2038 | G29: 2039 | H29: 2040 | I29: 2041 | J29: 2042 | K29: 2043 | L29: 2044 | M29: 2045 | N29: 2046
A30: Median Household Income | B30: =+'Wastewater Analysis Sheet'!Z2*12 -> 40282.63733 | C30: =+'Wastewater Analysis Sheet'!AA2*12 -> 40291.39284 | D30: =+'Wastewater Analysis Sheet'!AB2*12 -> 40292.04365 | E30: =+'Wastewater Analysis Sheet'!AC2*12 -> 40296.32603 | F30: =+'Wastewater Analysis Sheet'!AD2*12 -> 40299.07811 | G30: =+'Wastewater Analysis Sheet'!AE2*12 -> 40300.6903 | H30: =+'Wastewater Analysis Sheet'!AF2*12 -> 40303.07457 | I30: =+'Wastewater Analysis Sheet'!AG2*12 -> 40305.06297 | J30: =+'Wastewater Analysis Sheet'!AH2*12 -> 40306.921 | K30: =+'Wastewater Analysis Sheet'!AI2*12 -> 40308.9261 | L30: =+'Wastewater Analysis Sheet'!AJ2*12 -> 40310.83896 | M30: =+'Wastewater Analysis Sheet'!AK2*12 -> 40312.74455 | N30: =+'Wastewater Analysis Sheet'!AL2*12 -> 40314.67538
A31: Monthly Wastewater Bill | B31: ='Wastewater Analysis Sheet'!Z7 -> 0 | C31: ='Wastewater Analysis Sheet'!AA7 -> 0 | D31: ='Wastewater Analysis Sheet'!AB7 -> 0 | E31: ='Wastewater Analysis Sheet'!AC7 -> 0 | F31: ='Wastewater Analysis Sheet'!AD7 -> 0 | G31: ='Wastewater Analysis Sheet'!AE7 -> 0 | H31: ='Wastewater Analysis Sheet'!AF7 -> 0 | I31: ='Wastewater Analysis Sheet'!AG7 -> 0 | J31: ='Wastewater Analysis Sheet'!AH7 -> 0 | K31: ='Wastewater Analysis Sheet'!AI7 -> 0 | L31: ='Wastewater Analysis Sheet'!AJ7 -> 0 | M31: ='Wastewater Analysis Sheet'!AK7 -> 0 | N31: ='Wastewater Analysis Sheet'!AL7 -> 0
A32: % MHI | B32: =+(B31/B30)*12 -> 0 | C32: =+(C31/C30)*12 -> 0 | D32: 0 | E32: 0 | F32: 0 | G32: 0 | H32: 0 | I32: 0 | J32: 0 | K32: 0 | L32: 0 | M32: 0 | N32: 0
A33: Population | B33: =VLOOKUP(city,poptable,B29-2008,FALSE) -> 617.8727273 | C33: 623.1636364 | D33: 628.4545455 | E33: 633.7454545 | F33: 639.0363636 | G33: 644.3272727 | H33: 649.6181818 | I33: 654.9090909 | J33: 660.2 | K33: 665.4909091 | L33: 670.7818182 | M33: 676.0727273 | N33: 681.3636364
A35: Projections | B35: 2047 | C35: 2048 | D35: 2049 | E35: 2050 | F35: 2051
A36: Median Household Income | B36: =+'Wastewater Analysis Sheet'!AM2*12 -> 40316.58637 | C36: =+'Wastewater Analysis Sheet'!AN2*12 -> 40318.49933 | D36: =+'Wastewater Analysis Sheet'!AO2*12 -> 40320.4161 | E36: =+'Wastewater Analysis Sheet'!AP2*12 -> 40322.32889 | F36: =+'Wastewater Analysis Sheet'!AQ2*12 -> 40324.24265
A37: Monthly Wastewater Bill | B37: =+'Wastewater Analysis Sheet'!AM7 -> 0 | C37: =+'Wastewater Analysis Sheet'!AN7 -> 0 | D37: =+'Wastewater Analysis Sheet'!AO7 -> 0 | E37: =+'Wastewater Analysis Sheet'!AP7 -> 0 | F37: =+'Wastewater Analysis Sheet'!AQ7 -> 0
A38: % MHI | B38: =+B37/B36*12 -> 0 | C38: =+C37/C36*12 -> 0 | D38: 0 | E38: 0 | F38: 0
A39: Population | B39: =VLOOKUP(city,poptable,B35-2008,FALSE) -> 686.6545455 | C39: =VLOOKUP(city,poptable,C35-2008,FALSE) -> 691.9454545 | D39: =VLOOKUP(city,poptable,D35-2008,FALSE) -> 697.2363636 | E39: =VLOOKUP(city,poptable,E35-2008,FALSE) -> 702.5272727 | F39: =VLOOKUP(city,poptable,F35-2008,FALSE) -> 707.8181818

Sheet Combined Bill Output
A1: Model Outputs - Combined Bill
A2: Community | B2: =city -> Achille town, Oklahoma
A3: Community Population (2021) | B3: ='Wastewater Analysis Sheet'!M6 -> 549.0909091
A4: Increase in Average Monthly Combined Bill | B4: =C25-B25 -> 0
A5: Probability that Monthly Combined Bill
A6: Exceeds 2.0% of Median Household Income | B6: ='Combined Bill Analysis Sheet'!combinedmaxprob -> 0.0005989317284
A7: Sustainability Risk | B7: =IF(B6<0.33,"Low",IF(B6<0.67,"Moderate","High")) -> Low
A9: Current MHI (2021) | B9: =+B24 -> 36813.94776
A10: Current Combined Bill | B10: =+wastebill+drinkbill -> 0
A11: Projected Combined Bill | B11: =+B10+B4 -> 0
A17: Note: The graph shows the typical sustainable threshold
A18: for the community (blue line), forecast into the future,
A19: along with a range of estimates developed in a
A20: statistical model. It also shows the projected combined
A21: bills using the inputs you provided.
A23: Projections | B23: 2021 | C23: 2022 | D23: 2023 | E23: 2024 | F23: 2025 | G23: 2026 | H23: 2027 | I23: 2028 | J23: 2029 | K23: 2030 | L23: 2031 | M23: 2032 | N23: 2033
A24: Median Household Income | B24: ='Wastewater Analysis Sheet'!M2*12 -> 36813.94776 | C24: ='Wastewater Analysis Sheet'!N2*12 -> 37518.87582 | D24: ='Wastewater Analysis Sheet'!O2*12 -> 37972.69697 | E24: ='Wastewater Analysis Sheet'!P2*12 -> 38396.3012 | F24: ='Wastewater Analysis Sheet'!Q2*12 -> 38779.44174 | G24: ='Wastewater Analysis Sheet'!R2*12 -> 39123.95602 | H24: ='Wastewater Analysis Sheet'!S2*12 -> 39468.02651 | I24: ='Wastewater Analysis Sheet'!T2*12 -> 39804.45935 | J24: ='Wastewater Analysis Sheet'!U2*12 -> 40135.21998 | K24: ='Wastewater Analysis Sheet'!V2*12 -> 40155.59047 | L24: ='Wastewater Analysis Sheet'!W2*12 -> 40218.69645 | M24: ='Wastewater Analysis Sheet'!X2*12 -> 40269.68452 | N24: ='Wastewater Analysis Sheet'!Y2*12 -> 40268.83682
A25: Monthly Combined Bill | B25: ='Wastewater Analysis Sheet'!M7+'Drinking Water Analysis Sheet'!M7 -> 0 | C25: ='Wastewater Analysis Sheet'!N7+'Drinking Water Analysis Sheet'!N7 -> 0 | D25: ='Wastewater Analysis Sheet'!O7+'Drinking Water Analysis Sheet'!O7 -> 0 | E25: ='Wastewater Analysis Sheet'!P7+'Drinking Water Analysis Sheet'!P7 -> 0 | F25: ='Wastewater Analysis Sheet'!Q7+'Drinking Water Analysis Sheet'!Q7 -> 0 | G25: ='Wastewater Analysis Sheet'!R7+'Drinking Water Analysis Sheet'!R7 -> 0 | H25: ='Wastewater Analysis Sheet'!S7+'Drinking Water Analysis Sheet'!S7 -> 0 | I25: ='Wastewater Analysis Sheet'!T7+'Drinking Water Analysis Sheet'!T7 -> 0 | J25: ='Wastewater Analysis Sheet'!U7+'Drinking Water Analysis Sheet'!U7 -> 0 | K25: ='Wastewater Analysis Sheet'!V7+'Drinking Water Analysis Sheet'!V7 -> 0 | L25: ='Wastewater Analysis Sheet'!W7+'Drinking Water Analysis Sheet'!W7 -> 0 | M25: ='Wastewater Analysis Sheet'!X7+'Drinking Water Analysis Sheet'!X7 -> 0 | N25: ='Wastewater Analysis Sheet'!Y7+'Drinking Water Analysis Sheet'!Y7 -> 0
A26: %MHI | B26: =+B25*12/B24 -> 0 | C26: =+C25*12/C24 -> 0 | D26: 0 | E26: 0 | F26: 0 | G26: 0 | H26: 0 | I26: 0 | J26: 0 | K26: 0 | L26: 0 | M26: 0 | N26: 0
A27: Population | B27: =VLOOKUP(city,poptable,B23-2008,FALSE) -> 549.0909091 | C27: 554.3818182 | D27: 559.6727273 | E27: 564.9636364 | F27: 570.2545455 | G27: 575.5454545 | H27: 580.8363636 | I27: 586.1272727 | J27: 591.4181818 | K27: 596.7090909 | L27: 602 | M27: 607.2909091 | N27: 612.5818182
A29: Projections | B29: 2034 | C29: 2035 | D29: 2036 | E29: 2037 | F29: 2038 | G29: 2039 | H29: 2040 | I29: 2041 | J29: 2042 | K29: 2043 | L29: 2044 | M29: 2045 | N29: 2046
A30: Median Household Income | B30: =+'Wastewater Analysis Sheet'!Z2*12 -> 40282.63733 | C30: =+'Wastewater Analysis Sheet'!AA2*12 -> 40291.39284 | D30: =+'Wastewater Analysis Sheet'!AB2*12 -> 40292.04365 | E30: =+'Wastewater Analysis Sheet'!AC2*12 -> 40296.32603 | F30: =+'Wastewater Analysis Sheet'!AD2*12 -> 40299.07811 | G30: =+'Wastewater Analysis Sheet'!AE2*12 -> 40300.6903 | H30: =+'Wastewater Analysis Sheet'!AF2*12 -> 40303.07457 | I30: =+'Wastewater Analysis Sheet'!AG2*12 -> 40305.06297 | J30: =+'Wastewater Analysis Sheet'!AH2*12 -> 40306.921 | K30: =+'Wastewater Analysis Sheet'!AI2*12 -> 40308.9261 | L30: =+'Wastewater Analysis Sheet'!AJ2*12 -> 40310.83896 | M30: =+'Wastewater Analysis Sheet'!AK2*12 -> 40312.74455 | N30: =+'Wastewater Analysis Sheet'!AL2*12 -> 40314.67538
A31: Monthly Combined Bill | B31: ='Wastewater Analysis Sheet'!Z7+'Drinking Water Analysis Sheet'!Z7 -> 0 | C31: ='Wastewater Analysis Sheet'!AA7+'Drinking Water Analysis Sheet'!AA7 -> 0 | D31: ='Wastewater Analysis Sheet'!AB7+'Drinking Water Analysis Sheet'!AB7 -> 0 | E31: ='Wastewater Analysis Sheet'!AC7+'Drinking Water Analysis Sheet'!AC7 -> 0 | F31: ='Wastewater Analysis Sheet'!AD7+'Drinking Water Analysis Sheet'!AD7 -> 0 | G31: ='Wastewater Analysis Sheet'!AE7+'Drinking Water Analysis Sheet'!AE7 -> 0 | H31: ='Wastewater Analysis Sheet'!AF7+'Drinking Water Analysis Sheet'!AF7 -> 0 | I31: ='Wastewater Analysis Sheet'!AG7+'Drinking Water Analysis Sheet'!AG7 -> 0 | J31: ='Wastewater Analysis Sheet'!AH7+'Drinking Water Analysis Sheet'!AH7 -> 0 | K31: ='Wastewater Analysis Sheet'!AI7+'Drinking Water Analysis Sheet'!AI7 -> 0 | L31: ='Wastewater Analysis Sheet'!AJ7+'Drinking Water Analysis Sheet'!AJ7 -> 0 | M31: ='Wastewater Analysis Sheet'!AK7+'Drinking Water Analysis Sheet'!AK7 -> 0 | N31: ='Wastewater Analysis Sheet'!AL7+'Drinking Water Analysis Sheet'!AL7 -> 0
A32: % MHI | B32: =+(B31/B30)*12 -> 0 | C32: =+(C31/C30)*12 -> 0 | D32: 0 | E32: 0 | F32: 0 | G32: 0 | H32: 0 | I32: 0 | J32: 0 | K32: 0 | L32: 0 | M32: 0 | N32: 0
A33: Population | B33: =VLOOKUP(city,poptable,B29-2008,FALSE) -> 617.8727273 | C33: 623.1636364 | D33: 628.4545455 | E33: 633.7454545 | F33: 639.0363636 | G33: 644.3272727 | H33: 649.6181818 | I33: 654.9090909 | J33: 660.2 | K33: 665.4909091 | L33: 670.7818182 | M33: 676.0727273 | N33: 681.3636364
A35: Projections | B35: 2047 | C35: 2048 | D35: 2049 | E35: 2050 | F35: 2051
A36: Monthly Household Income | B36: =+'Wastewater Analysis Sheet'!AM2*12 -> 40316.58637 | C36: =+'Wastewater Analysis Sheet'!AN2*12 -> 40318.49933 | D36: =+'Wastewater Analysis Sheet'!AO2*12 -> 40320.4161 | E36: =+'Wastewater Analysis Sheet'!AP2*12 -> 40322.32889 | F36: =+'Wastewater Analysis Sheet'!AQ2*12 -> 40324.24265
A37: Monthly Combined Bill | B37: =+'Wastewater Analysis Sheet'!AM7+'Drinking Water Analysis Sheet'!AM7 -> 0 | C37: =+'Wastewater Analysis Sheet'!AN7+'Drinking Water Analysis Sheet'!AN7 -> 0 | D37: =+'Wastewater Analysis Sheet'!AO7+'Drinking Water Analysis Sheet'!AO7 -> 0 | E37: =+'Wastewater Analysis Sheet'!AP7+'Drinking Water Analysis Sheet'!AP7 -> 0 | F37: =+'Wastewater Analysis Sheet'!AQ7+'Drinking Water Analysis Sheet'!AQ7 -> 0
A38: % MHI | B38: =+B37/B36*12 -> 0 | C38: =+C37/C36*12 -> 0 | D38: 0 | E38: 0 | F38: 0
A39: Population | B39: =VLOOKUP(city,poptable,B35-2008,FALSE) -> 686.6545455 | C39: =VLOOKUP(city,poptable,C35-2008,FALSE) -> 691.9454545 | D39: =VLOOKUP(city,poptable,D35-2008,FALSE) -> 697.2363636 | E39: =VLOOKUP(city,poptable,E35-2008,FALSE) -> 702.5272727 | F39: =VLOOKUP(city,poptable,F35-2008,FALSE) -> 707.8181818

Sheet Coefficients (hidden)
A1: Population | B1: Ed_HS | C1: Ed_BACH | D1: MANU_ | E1: Inc_LAG
A2: 0.172029 | B2: 180.5128 | C2: 205.1391 | D2: 19.3527 | E2: 0.524385

Sheet Unit Specific Constants (hidden)
A1: City
A2: Achille town, Oklahoma | B2: 739.992
A3: Ada city, Oklahoma | B3: -7212.561
A4: Adair town, Oklahoma | B4: 4264.833
A5: Addington town, Oklahoma | B5: 3953.465
A6: Afton town, Oklahoma | B6: -2515.074
A7: Agra town, Oklahoma | B7: -1466.328
A8: Albion town, Oklahoma | B8: -3209.233
A9: Alderson town, Oklahoma | B9: 2101.498
A10: Alex town, Oklahoma | B10: 288.9433
A11: Aline town, Oklahoma | B11: 4453.391
A12: Allen town, Oklahoma | B12: 1155.9983
A13: Altus city, Oklahoma | B13: -2027.308
A14: Alva city, Oklahoma | B14: -285.935
A15: Amber town, Oklahoma | B15: 4184.338
A16: Ames town, Oklahoma | B16: 5645.542
A17: Anadarko city, Oklahoma | B17: -3224.142
A18: Antlers city, Oklahoma | B18: -4513.373
A19: Apache town, Oklahoma | B19: -855.879
A20: Arapaho town, Oklahoma | B20: 7226.633
A21: Arcadia town, Oklahoma | B21: -1676.07
A22: Ardmore city, Oklahoma | B22: -3096.668
A23: Arkoma town, Oklahoma | B23: -3270.302
A24: Armstrong town, Oklahoma | B24: 5781.371
A25: Arnett town, Oklahoma | B25: -1008.088
A26: Asher town, Oklahoma | B26: -1831.755
A27: Ashland town, Oklahoma | B27: 381.0394
A28: Atoka city, Oklahoma | B28: -4198.426
A29: Atwood town, Oklahoma | B29: 4259.115
A30: Avant town, Oklahoma | B30: 1161.9345
A31: Barnsdall city, Oklahoma | B31: 224.9423
A32: Bartlesville city, Oklahoma | B32: -4538.421
A33: Bearden town, Oklahoma | B33: 4745.82
A34: Beaver town, Oklahoma | B34: 5001.487
A35: Beggs city, Oklahoma | B35: -219.7778
A36: Bennington town, Oklahoma | B36: -4309.148
A37: Bernice town, Oklahoma | B37: -884.965
A38: Bessie town, Oklahoma | B38: 1651.1299
A39: Bethany city, Oklahoma | B39: -2344.243
A40: Bethel Acres town, Oklahoma | B40: 10589.625
A41: Big Cabin town, Oklahoma | B41: 140.6875
A42: Billings town, Oklahoma | B42: -4952.524
A43: Binger town, Oklahoma | B43: 1084.5223
A44: Bixby city, Oklahoma | B44: 7222.176
A45: Blackburn town, Oklahoma | B45: -1734.823
A46: Blackwell city, Oklahoma | B46: 61.4365
A47: Blair town, Oklahoma | B47: 866.3687
A48: Blanchard city, Oklahoma | B48: 9578.825
A49: Bluejacket town, Oklahoma | B49: 360.789
A50: Boise City city, Oklahoma | B50: 954.1236
A51: Bokchito town, Oklahoma | B51: -1163.879
A52: Bokoshe town, Oklahoma | B52: -889.272
A53: Boley town, Oklahoma | B53: -2274.752
A54: Boswell town, Oklahoma | B54: -4510.697
A55: Bowlegs town, Oklahoma | B55: 3679.832
A56: Boynton town, Oklahoma | B56: 38.5356
A57: Bradley town, Oklahoma | B57: 5014.631
A58: Braggs town, Oklahoma | B58: -732.674
A59: Braman town, Oklahoma | B59: 606.3729
A60: Bray town, Oklahoma | B60: 8065.612
A61: Breckenridge town, Oklahoma | B61: 3518.336
A62: Bridge Creek town, Oklahoma | B62: 15733.802
A63: Bridgeport city, Oklahoma | B63: 1592.2305
A64: Bristow city, Oklahoma | B64: -3277.857
A65: Broken Arrow city, Oklahoma | B65: -8719.906
A66: Broken Bow city, Oklahoma | B66: -4079.782
A67: Bromide town, Oklahoma | B67: 3515.249
A68: Brooksville town, Oklahoma | B68: -5468.723
A69: Buffalo town, Oklahoma | B69: 1809.317
A70: Burbank town, Oklahoma | B70: 2591.552
A71: Burlington town, Oklahoma | B71: 1676.7438
A72: Burns Flat town, Oklahoma | B72: 5263.906
A73: Butler town, Oklahoma | B73: 1566.8254
A74: Byars town, Oklahoma | B74: -3640.827
A75: Byng town, Oklahoma | B75: 7305.104
A76: Cache city, Oklahoma | B76: 4786.918
A77: Caddo town, Oklahoma | B77: -3093.956
A78: Calera town, Oklahoma | B78: 927.2544
A79: Calumet town, Oklahoma | B79: 7566.129
A80: Calvin town, Oklahoma | B80: -1625.982
A81: Camargo town, Oklahoma | B81: 2600.864
A82: Cameron town, Oklahoma | B82: -3768.415
A83: Canadian town, Oklahoma | B83: 3143.321
A84: Caney town, Oklahoma | B84: -115.2655
A85: Canton town, Oklahoma | B85: 916.6824
A86: Canute town, Oklahoma | B86: 2812.781
A87: Carmen town, Oklahoma | B87: 3846.903
A88: Carnegie town, Oklahoma | B88: -2252.126
A89: Carney town, Oklahoma | B89: 2581.264
A90: Carrier town, Oklahoma | B90: 14125.922
A91: Carter town, Oklahoma | B91: 5607.163
A92: Cashion town, Oklahoma | B92: 6908.517
A93: Castle town, Oklahoma | B93: 883.5422
A94: Catoosa city, Oklahoma | B94: 4344.611
A95: Cedar Valley city, Oklahoma | B95: 16220.332
A96: Cement town, Oklahoma | B96: 1354.0392
A97: Centrahoma city, Oklahoma | B97: -5725.457
A98: Central High town, Oklahoma | B98: 6775.016
A99: Chandler city, Oklahoma | B99: 1315.3528
A100: Chattanooga town, Oklahoma | B100: -808.502
A101: Checotah city, Oklahoma | B101: -1391.251
A102: Chelsea town, Oklahoma | B102: -746.429
A103: Cherokee city, Oklahoma | B103: 1414.2031
A104: Cheyenne town, Oklahoma | B104: 3748.577
A105: Chickasha city, Oklahoma | B105: -2727.882
A106: Choctaw city, Oklahoma | B106: 9165.597
A107: Chouteau town, Oklahoma | B107: 3078.772
A108: Cimarron City town, Oklahoma | B108: 15977.402
A109: Claremore city, Oklahoma | B109: -3642.828
A110: Clayton town, Oklahoma | B110: -3895.855
A111: Cleo Springs town, Oklahoma | B111: 4167.232
A112: Cleveland city, Oklahoma | B112: 1031.776
A113: Clinton city, Oklahoma | B113: 2523.748
A114: Coalgate city, Oklahoma | B114: -3334.916
A115: Colbert town, Oklahoma | B115: -2056.483
A116: Colcord town, Oklahoma | B116: -1569.11
A117: Cole town, Oklahoma | B117: 7699.185
A118: Collinsville city, Oklahoma | B118: 5530.352
A119: Colony town, Oklahoma | B119: 9041.35
A120: Comanche city, Oklahoma | B120: -454.553
A121: Commerce city, Oklahoma | B121: -1314.801
A122: Copan town, Oklahoma | B122: 4000.581
A123: Corn town, Oklahoma | B123: 2334.051
A124: Cornish town, Oklahoma | B124: 3086.137
A125: Council Hill town, Oklahoma | B125: 1554.2273
A126: Covington town, Oklahoma | B126: 2873.195
A127: Coweta city, Oklahoma | B127: 3315.859
A128: Cowlington town, Oklahoma | B128: -3900.389
A129: Coyle town, Oklahoma | B129: -4015.123
A130: Crescent city, Oklahoma | B130: -1833.322
A131: Cromwell town, Oklahoma | B131: -579.436
A132: Crowder town, Oklahoma | B132: 4575.212
A133: Cushing city, Oklahoma | B133: -1.5056
A134: Custer City town, Oklahoma | B134: -1895.042
A135: Cyril town, Oklahoma | B135: 2782.789
A136: Dacoma town, Oklahoma | B136: -764.683
A137: Davenport town, Oklahoma | B137: 3540.679
A138: Davidson town, Oklahoma | B138: -785.588
A139: Davis city, Oklahoma | B139: 2902.96
A140: Deer Creek town, Oklahoma | B140: 4797.857
A141: Del City city, Oklahoma | B141: -1477.517
A142: Delaware town, Oklahoma | B142: 2203.593
A143: Depew town, Oklahoma | B143: -1811.669
A144: Devol town, Oklahoma | B144: 5391.153
A145: Dewar town, Oklahoma | B145: 1459.9332
A146: Dewey city, Oklahoma | B146: -243.0614
A147: Dibble town, Oklahoma | B147: 7085.092
A148: Dickson town, Oklahoma | B148: 8403.59
A149: Dill City town, Oklahoma | B149: 4430.929
A150: Disney town, Oklahoma | B150: -2422.548
A151: Dougherty town, Oklahoma | B151: 1400.4392
A152: Dover town, Oklahoma | B152: 5668.039
A153: Drummond town, Oklahoma | B153: 4438.472
A154: Drumright city, Oklahoma | B154: -1879.691
A155: Duncan city, Oklahoma | B155: -3593.855
A156: Durant city, Oklahoma | B156: -5609.102
A157: Dustin town, Oklahoma | B157: -2804.296
A158: Eakly town, Oklahoma | B158: 1773.567
A159: Earlsboro town, Oklahoma | B159: 3272.441
A160: East Duke town, Oklahoma | B160: 2089.931
A161: Edmond city, Oklahoma | B161: -7073.248
A162: El Reno city, Oklahoma | B162: 1909.067
A163: Eldorado town, Oklahoma | B163: -2106.858
A164: Elgin city, Oklahoma | B164: 9535.575
A165: Elk City city, Oklahoma | B165: 4574.179
A166: Elmer town, Oklahoma | B166: 3639.319
A167: Elmore City town, Oklahoma | B167: 450.3588
A168: Empire City town, Oklahoma | B168: 8447.158
A169: Enid city, Oklahoma | B169: -6131.506
A170: Erick city, Oklahoma | B170: -1267.418
A171: Etowah town, Oklahoma | B171: 7852.27
A172: Eufaula city, Oklahoma | B172: -3103.562
A173: Fair Oaks town, Oklahoma | B173: 10974.172
A174: Fairfax town, Oklahoma | B174: -1815.363
A175: Fairland town, Oklahoma | B175: -132.3739
A176: Fairmont town, Oklahoma | B176: 7712.316
A177: Fairview city, Oklahoma | B177: 3117.606
A178: Fanshawe town, Oklahoma | B178: 4512.871
A179: Fargo town, Oklahoma | B179: 2590.496
A180: Faxon town, Oklahoma | B180: 5167.152
A181: Fitzhugh town, Oklahoma | B181: 2736.19
A182: Fletcher town, Oklahoma | B182: 2850.043
A183: Forest Park town, Oklahoma | B183: 8062.017
A184: Forgan town, Oklahoma | B184: 3389.807
A185: Fort Cobb town, Oklahoma | B185: 167.8582
A186: Fort Coffee town, Oklahoma | B186: -4077.763
A187: Fort Gibson town, Oklahoma | B187: 1887.454
A188: Fort Supply town, Oklahoma | B188: 1002.5088
A189: Fort Towson town, Oklahoma | B189: -2529.843
A190: Foss town, Oklahoma | B190: -3412.062
A191: Foster town, Oklahoma | B191: 6299.122
A192: Foyil town, Oklahoma | B192: 1389.5879
A193: Francis town, Oklahoma | B193: 3623.709
A194: Frederick city, Oklahoma | B194: -768.475
A195: Freedom town, Oklahoma | B195: 7931.074
A196: Gage town, Oklahoma | B196: 1542.0169
A197: Gans town, Oklahoma | B197: 283.9747
A198: Garber city, Oklahoma | B198: -2899.245
A199: Garvin town, Oklahoma | B199: -3748.947
A200: Gate town, Oklahoma | B200: 3032.775
... 360 more rows

Sheet High School (hidden)
A1: GEO_ID | B1: NAME | C1: ED_HS_10 | D1: ED_HS_11 | E1: ED_HS_12 | F1: ED_HS_13 | G1: ED_HS_14 | H1: ED_HS_15 | I1: ED_HS_16 | J1: ED_HS_17 | K1: ED_HS_18 | L1: ED_HS_19 | M1: ED_HS_20 | N1: ED_HS_21 | O1: ED_HS_22 | P1: ED_HS_23 | Q1: ED_HS_24 | R1: ED_HS_25 | S1: ED_HS_26 | T1: ED_HS_27 | U1: ED_HS_28 | V1: ED_HS_29 | W1: ED_HS_30 | X1: ED_HS_31 | Y1: ED_HS_32 | Z1: ED_HS_33 | AA1: ED_HS_34 | AB1: ED_HS_35 | AC1: ED_HS_36 | AD1: ED_HS_37 | AE1: ED_HS_38 | AF1: ED_HS_39 | AG1: ED_HS_40 | AH1: ED_HS_41 | AI1: ED_HS_42 | AJ1: ED_HS_43 | AK1: ED_HS_44 | AL1: ED_HS_45 | AM1: ED_HS_46 | AN1: ED_HS_47 | AO1: ED_HS_48 | AP1: ED_HS_49 | AQ1: ED_HS_50 | AR1: ED_HS_51
A2: 1600000US4000100 | B2: Achille town, Oklahoma | C2: 71.5 | D2: 71.8 | E2: 74.3 | F2: 73 | G2: 70.5 | H2: 78.4 | I2: 78.5 | J2: 76.01351351 | K2: 78.72340426 | L2: 79.58477509 | M2: 80.37198173 | N2: 81.30649308 | O2: 82.24100443 | P2: 83.17551578 | Q2: 84.11002714 | R2: 85.04453849 | S2: 85.97904984 | T2: 86.91356119 | U2: 87.84807255 | V2: 88.7825839 | W2: 87.84807255 | X2: 88.15957633 | Y2: 88.26341093 | Z2: 88.09035327 | AA2: 88.17111351 | AB2: 88.17495923 | AC2: 88.14547534 | AD2: 88.16384936 | AE2: 88.16142798 | AF2: 88.15691756 | AG2: 88.16073163 | AH2: 88.15969239 | AI2: 88.15911386 | AJ2: 88.15984596 | AK2: 88.15955074 | AL2: 88.15950352 | AM2: 88.1596334 | AN2: 88.15956255 | AO2: 88.15956649 | AP2: 88.15958748 | AQ2: 88.15957218 | AR2: 88.15957538
A3: 1600000US4000200 | B3: Ada city, Oklahoma | C3: 85.2 | D3: 85.5 | E3: 84.7 | F3: 85.5 | G3: 86.3 | H3: 87.1 | I3: 87.2 | J3: 87.76962583 | K3: 87.86583118 | L3: 88.98104265 | M3: 89.00626101 | N3: 89.44164483 | O3: 89.87702866 | P3: 90.31241249 | Q3: 90.74779631 | R3: 91.18318014 | S3: 91.61856396 | T3: 92.05394779 | U3: 92.48933161 | V3: 92.92471544 | W3: 92.48933161 | X3: 92.63445956 | Y3: 92.68283554 | Z3: 92.6022089 | AA3: 92.63983467 | AB3: 92.64162637 | AC3: 92.62788998 | AD3: 92.63645034 | AE3: 92.63532223 | AF3: 92.63322085 | AG3: 92.6349978 | AH3: 92.63451363 | AI3: 92.63424409 | AJ3: 92.63458518 | AK3: 92.63444763 | AL3: 92.63442563 | AM3: 92.63448615 | AN3: 92.63445314 | AO3: 92.63445497 | AP3: 92.63446475 | AQ3: 92.63445762 | AR3: 92.63445912
A4: 1600000US4000250 | B4: Adair town, Oklahoma | C4: 82.3 | D4: 80.8 | E4: 81.5 | F4: 86 | G4: 86.9 | H4: 88.8 | I4: 88.3 | J4: 87.20136519 | K4: 87.39205527 | L4: 86.09022556 | M4: 89.44713936 | N4: 90.15964387 | O4: 90.87214837 | P4: 91.58465287 | Q4: 92.29715737 | R4: 93.00966188 | S4: 93.72216638 | T4: 94.43467088 | U4: 95.14717538 | V4: 95.85967989 | W4: 95.14717538 | X4: 95.38467688 | Y4: 95.46384405 | Z4: 95.33189877 | AA4: 95.39347324 | AB4: 95.39640535 | AC4: 95.37392579 | AD4: 95.38793479 | AE4: 95.38608864 | AF4: 95.38264974 | AG4: 95.38555773 | AH4: 95.38476537 | AI4: 95.38432428 | AJ4: 95.38488246 | AK4: 95.38465737 | AL4: 95.38462137 | AM4: 95.3847204 | AN4: 95.38466638 | AO4: 95.38466938 | AP4: 95.38468539 | AQ4: 95.38467372 | AR4: 95.38467616
A5: 1600000US4000450 | B5: Addington town, Oklahoma | C5: 85 | D5: 80.2 | E5: 81.2 | F5: 86.1 | G5: 86.6 | H5: 90.4 | I5: 92 | J5: 90.36144578 | K5: 90.82568807 | L5: 85.56701031 | M5: 91.71841902 | N5: 92.60805622 | O5: 93.49769342 | P5: 94.38733063 | Q5: 95.27696783 | R5: 96.16660503 | S5: 97.05624223 | T5: 97.94587943 | U5: 98.83551663 | V5: 99.72515383 | W5: 98.83551663 | X5: 99.13206236 | Y5: 99.23091094 | Z5: 99.06616331 | AA5: 99.14304554 | AB5: 99.1467066 | AC5: 99.11863848 | AD5: 99.13613021 | AE5: 99.1338251 | AF5: 99.12953126 | AG5: 99.13316219 | AH5: 99.13217285 | AI5: 99.1316221 | AJ5: 99.13231905 | AK5: 99.132038 | AL5: 99.13199305 | AM5: 99.1321167 | AN5: 99.13204925 | AO5: 99.132053 | AP5: 99.13207298 | AQ5: 99.13205841 | AR5: 99.13206146
A6: 1600000US4000600 | B6: Afton town, Oklahoma | C6: 76.4 | D6: 78.4 | E6: 70.9 | F6: 74.8 | G6: 77.4 | H6: 80.3 | I6: 81.7 | J6: 84.81675393 | K6: 81.18556701 | L6: 80.78431373 | M6: 83.74004888 | N6: 84.66211895 | O6: 85.58418903 | P6: 86.5062591 | Q6: 87.42832917 | R6: 88.35039925 | S6: 89.27246932 | T6: 90.1945394 | U6: 91.11660947 | V6: 92.03867955 | W6: 91.11660947 | X6: 91.42396616 | Y6: 91.52641839 | Z6: 91.35566468 | AA6: 91.43534975 | AB6: 91.43914427 | AC6: 91.4100529 | AD6: 91.42818231 | AE6: 91.42579316 | AF6: 91.42134279 | AG6: 91.42510608 | AH6: 91.42408068 | AI6: 91.42350985 | AJ6: 91.4242322 | AK6: 91.42394091 | AL6: 91.42389432 | AM6: 91.42402248 | AN6: 91.42395257 | AO6: 91.42395646 | AP6: 91.42397717 | AQ6: 91.42396206 | AR6: 91.42396523
A7: 1600000US4000700 | B7: Agra town, Oklahoma | C7: 83.5 | D7: 83 | E7: 86.7 | F7: 87.5 | G7: 83.5 | H7: 82.3 | I7: 86.3 | J7: 83.61344538 | K7: 85.04273504 | L7: 85.08064516 | M7: 84.93008851 | N7: 84.98034414 | O7: 85.03059977 | P7: 85.0808554 | Q7: 85.13111102 | R7: 85.18136665 | S7: 85.23162228 | T7: 85.28187791 | U7: 85.33213354 | V7: 85.38238916 | W7: 85.33213354 | X7: 85.34888541 | Y7: 85.35446937 | Z7: 85.34516277 | AA7: 85.34950585 | AB7: 85.34971267 | AC7: 85.3481271 | AD7: 85.3491152 | AE7: 85.34898499 | AF7: 85.34874243 | AG7: 85.34894754 | AH7: 85.34889165 | AI7: 85.34886054 | AJ7: 85.34889991 | AK7: 85.34888404 | AL7: 85.3488815 | AM7: 85.34888848 | AN7: 85.34888467 | AO7: 85.34888488 | AP7: 85.34888601 | AQ7: 85.34888519 | AR7: 85.34888536
A8: 1600000US4001050 | B8: Albion town, Oklahoma | C8: 76.5 | D8: 87.5 | E8: 83.1 | F8: 85.9 | G8: 98.4 | H8: 89.5 | I8: 88 | J8: 88.73239437 | K8: 91.54929577 | L8: 86.41975309 | M8: 92.33297166 | N8: 93.20075845 | O8: 94.06854523 | P8: 94.93633202 | Q8: 95.80411881 | R8: 96.6719056 | S8: 97.53969239 | T8: 98.40747918 | U8: 99.27526596 | V8: 100 | W8: 99.22758171 | X8: 99.50094923 | Y8: 99.57617698 | Z8: 99.43490264 | AA8: 99.50400961 | AB8: 99.50502974 | AC8: 99.481314 | AD8: 99.49678445 | AE8: 99.49437607 | AF8: 99.49082484 | AG8: 99.49399512 | AH8: 99.49306534 | AI8: 99.49262843 | AJ8: 99.49322963 | AK8: 99.49297447 | AL8: 99.49294418 | AM8: 99.49304943 | AN8: 99.49298936 | AO8: 99.49299432 | AP8: 99.49301103 | AQ8: 99.49299824 | AR8: 99.4930012
A9: 1600000US4001150 | B9: Alderson town, Oklahoma | C9: 85.1 | D9: 88.5 | E9: 84.7 | F9: 85.6 | G9: 87.7 | H9: 87 | I9: 85.9 | J9: 83.13253012 | K9: 85.25641026 | L9: 84.51612903 | M9: 84.55392973 | N9: 84.33818842 | O9: 84.12244711 | P9: 83.9067058 | Q9: 83.69096449 | R9: 83.47522318 | S9: 83.25948186 | T9: 83.04374055 | U9: 82.82799924 | V9: 82.61225793 | W9: 82.82799924 | X9: 82.75608547 | Y9: 82.73211422 | Z9: 82.77206631 | AA9: 82.753422 | AB9: 82.75253418 | AC9: 82.75934083 | AD9: 82.755099 | AE9: 82.755658 | AF9: 82.75669928 | AG9: 82.75581876 | AH9: 82.75605868 | AI9: 82.75619224 | AJ9: 82.75602323 | AK9: 82.75609138 | AL9: 82.75610228 | AM9: 82.7560723 | AN9: 82.75608865 | AO9: 82.75608774 | AP9: 82.7560829 | AQ9: 82.75608643 | AR9: 82.75608569
A10: 1600000US4001250 | B10: Alex town, Oklahoma | C10: 81.4 | D10: 83.6 | E10: 81 | F10: 79.4 | G10: 80.3 | H10: 82.5 | I10: 81.1 | J10: 81.2345679 | K10: 83.69304556 | L10: 84.68899522 | M10: 83.18249805 | N10: 83.41719572 | O10: 83.65189339 | P10: 83.88659106 | Q10: 84.12128872 | R10: 84.35598639 | S10: 84.59068406 | T10: 84.82538173 | U10: 85.0600794 | V10: 85.29477707 | W10: 85.0600794 | X10: 85.13831196 | Y10: 85.16438948 | Z10: 85.12092694 | AA10: 85.14120946 | AB10: 85.14217529 | AC10: 85.13477057 | AD10: 85.13938511 | AE10: 85.13877699 | AF10: 85.13764422 | AG10: 85.1386021 | AH10: 85.1383411 | AI10: 85.13819581 | AJ10: 85.13837967 | AK10: 85.13830553 | AL10: 85.13829367 | AM10: 85.13832629 | AN10: 85.1383085 | AO10: 85.13830949 | AP10: 85.13831476 | AQ10: 85.13831091 | AR10: 85.13831172
A11: 1600000US4001350 | B11: Aline town, Oklahoma | C11: 97.6 | D11: 96.1 | E11: 94.1 | F11: 89.2 | G11: 88.3 | H11: 88.6 | I11: 83.8 | J11: 73.68421053 | K11: 75.22123894 | L11: 70.19230769 | M11: 68.65312553 | N11: 65.55737095 | O11: 62.46161637 | P11: 59.36586179 | Q11: 56.27010721 | R11: 53.17435263 | S11: 50.07859806 | T11: 46.98284348 | U11: 43.8870889 | V11: 40.79133432 | W11: 43.8870889 | X11: 42.8551707 | Y11: 42.51119797 | Z11: 43.08448586 | AA11: 42.81695151 | AB11: 42.80421178 | AC11: 42.90188305 | AD11: 42.84101545 | AE11: 42.84903676 | AF11: 42.86397842 | AG11: 42.85134354 | AH11: 42.85478624 | AI11: 42.85670273 | AJ11: 42.85427751 | AK11: 42.85525549 | AL11: 42.85541191 | AM11: 42.85498164 | AN11: 42.85521635 | AO11: 42.8552033 | AP11: 42.85513376 | AQ11: 42.85518447 | AR11: 42.85517384
A12: 1600000US4001400 | B12: Allen town, Oklahoma | C12: 80.9 | D12: 77.5 | E12: 72.6 | F12: 76.5 | G12: 77.3 | H12: 84 | I12: 82.3 | J12: 83.57771261 | K12: 83.08823529 | L12: 86.56069364 | M12: 86.06774592 | N12: 87.09230624 | O12: 88.11686656 | P12: 89.14142688 | Q12: 90.1659872 | R12: 91.19054752 | S12: 92.21510784 | T12: 93.23966816 | U12: 94.26422848 | V12: 95.2887888 | W12: 94.26422848 | X12: 94.60574858 | Y12: 94.71958862 | Z12: 94.52985523 | AA12: 94.61839748 | AB12: 94.62261377 | AC12: 94.59028883 | AD12: 94.61043336 | AE12: 94.60777865 | AF12: 94.60283361 | AG12: 94.60701521 | AH12: 94.60587582 | AI12: 94.60524155 | AJ12: 94.60604419 | AK12: 94.60572052 | AL12: 94.60566876 | AM12: 94.60581116 | AN12: 94.60573348 | AO12: 94.6057378 | AP12: 94.60576081 | AQ12: 94.60574403 | AR12: 94.60574755
A13: 1600000US4001700 | B13: Altus city, Oklahoma | C13: 80 | D13: 80.2 | E13: 80.4 | F13: 82.4 | G13: 81.1 | H13: 79.8 | I13: 80.1 | J13: 81.73050042 | K13: 81.9407573 | L13: 83.84960479 | M13: 82.66156113 | N13: 82.93601111 | O13: 83.21046108 | P13: 83.48491106 | Q13: 83.75936104 | R13: 84.03381102 | S13: 84.30826099 | T13: 84.58271097 | U13: 84.85716095 | V13: 85.13161093 | W13: 84.85716095 | X13: 84.94864427 | Y13: 84.97913872 | Z13: 84.92831465 | AA13: 84.95203255 | AB13: 84.95316197 | AC13: 84.94450305 | AD13: 84.94989919 | AE13: 84.94918807 | AF13: 84.94786344 | AG13: 84.94898357 | AH13: 84.94867836 | AI13: 84.94850845 | AJ13: 84.94872346 | AK13: 84.94863676 | AL13: 84.94862289 | AM13: 84.94866104 | AN13: 84.94864023 | AO13: 84.94864139 | AP13: 84.94864755 | AQ13: 84.94864305 | AR13: 84.948644
A14: 1600000US4001800 | B14: Alva city, Oklahoma | C14: 89.8 | D14: 90.3 | E14: 89.3 | F14: 88.6 | G14: 89.1 | H14: 88 | I14: 87.5 | J14: 89.45008261 | K14: 89.60573477 | L14: 89.32720232 | M14: 88.67281455 | N14: 88.5954532 | O14: 88.51809185 | P14: 88.4407305 | Q14: 88.36336915 | R14: 88.2860078 | S14: 88.20864645 | T14: 88.1312851 | U14: 88.05392375 | V14: 87.9765624 | W14: 88.05392375 | X14: 88.02813663 | Y14: 88.01954093 | Z14: 88.0338671 | AA14: 88.02718156 | AB14: 88.0268632 | AC14: 88.02930395 | AD14: 88.0277829 | AE14: 88.02798335 | AF14: 88.02835673 | AG14: 88.028041 | AH14: 88.02812703 | AI14: 88.02817492 | AJ14: 88.02811431 | AK14: 88.02813875 | AL14: 88.02814266 | AM14: 88.02813191 | AN14: 88.02813777 | AO14: 88.02813745 | AP14: 88.02813571 | AQ14: 88.02813698 | AR14: 88.02813671
A15: 1600000US4001900 | B15: Amber town, Oklahoma | C15: 71.2 | D15: 73 | E15: 76.6 | F15: 78 | G15: 87.2 | H15: 88.1 | I15: 86.3 | J15: 87.41935484 | K15: 87.83783784 | L15: 84.91803279 | M15: 92.29832035 | N15: 94.16028359 | O15: 96.02224683 | P15: 97.88421007 | Q15: 99.7461733 | R15: 100 | S15: 100 | T15: 100 | U15: 100 | V15: 100 | W15: 100 | X15: 100 | Y15: 100 | Z15: 100 | AA15: 100 | AB15: 100 | AC15: 100 | AD15: 100 | AE15: 100 | AF15: 100 | AG15: 100 | AH15: 100 | AI15: 100 | AJ15: 100 | AK15: 100 | AL15: 100 | AM15: 100 | AN15: 100 | AO15: 100 | AP15: 100 | AQ15: 100 | AR15: 100
A16: 1600000US4001950 | B16: Ames town, Oklahoma | C16: 96.3 | D16: 97.5 | E16: 94.5 | F16: 90.4 | G16: 89.4 | H16: 85.7 | I16: 81.5 | J16: 81.62162162 | K16: 79.25531915 | L16: 73.74301676 | M16: 72.80807885 | N16: 70.22918487 | O16: 67.65029089 | P16: 65.07139691 | Q16: 62.49250293 | R16: 59.91360894 | S16: 57.33471496 | T16: 54.75582098 | U16: 52.176927 | V16: 49.59803302 | W16: 52.176927 | X16: 51.31729567 | Y16: 51.03075189 | Z16: 51.50832485 | AA16: 51.28545747 | AB16: 51.27484474 | AC16: 51.35620902 | AD16: 51.30550375 | AE16: 51.31218584 | AF16: 51.32463287 | AG16: 51.31410748 | AH16: 51.3169754 | AI16: 51.31857192 | AJ16: 51.3165516 | AK16: 51.3173663 | AL16: 51.31749661 | AM16: 51.31713817 | AN16: 51.31733369 | AO16: 51.31732282 | AP16: 51.31726489 | AQ16: 51.31730714 | AR16: 51.31729828
A17: 1600000US4002050 | B17: Anadarko city, Oklahoma | C17: 78.4 | D17: 79.5 | E17: 79.2 | F17: 80.7 | G17: 81.4 | H17: 82.7 | I17: 84.9 | J17: 84.76736775 | K17: 85.24590164 | L17: 87.91873784 | M17: 88.06076042 | N17: 89.07668036 | O17: 90.0926003 | P17: 91.10852025 | Q17: 92.12444019 | R17: 93.14036014 | S17: 94.15628008 | T17: 95.17220003 | U17: 96.18811997 | V17: 97.20403991 | W17: 96.18811997 | X17: 96.52675995 | Y17: 96.63963994 | Z17: 96.45150662 | AA17: 96.53930217 | AB17: 96.54348291 | AC17: 96.51143057 | AD17: 96.53140522 | AE17: 96.5287729 | AF17: 96.52386956 | AG17: 96.52801589 | AH17: 96.52688612 | AI17: 96.52625719 | AJ17: 96.52705307 | AK17: 96.52673213 | AL17: 96.5266808 | AM17: 96.526822 | AN17: 96.52674497 | AO17: 96.52674925 | AP17: 96.52677207 | AQ17: 96.52675543 | AR17: 96.52675892
A18: 1600000US4002250 | B18: Antlers city, Oklahoma | C18: 77.7 | D18: 80.3 | E18: 83.5 | F18: 81.7 | G18: 78.1 | H18: 79.3 | I18: 76.7 | J18: 74.0188773 | K18: 76.13168724 | L18: 79.67942089 | M18: 76.29403138 | N18: 75.85421917 | O18: 75.41440696 | P18: 74.97459475 | Q18: 74.53478254 | R18: 74.09497033 | S18: 73.65515812 | T18: 73.21534591 | U18: 72.77553369 | V18: 72.33572148 | W18: 72.77553369 | X18: 72.62892962 | Y18: 72.5800616 | Z18: 72.66150831 | AA18: 72.62349984 | AB18: 72.62168992 | AC18: 72.63556602 | AD18: 72.62691859 | AE18: 72.62805818 | AF18: 72.63018093 | AG18: 72.6283859 | AH18: 72.628875 | AI18: 72.62914728 | AJ18: 72.62880273 | AK18: 72.62894167 | AL18: 72.62896389 | AM18: 72.62890276 | AN18: 72.62893611 | AO18: 72.62893426 | AP18: 72.62892438 | AQ18: 72.62893158 | AR18: 72.62893007
A19: 1600000US4002300 | B19: Apache town, Oklahoma | C19: 86.4 | D19: 88.5 | E19: 87.3 | F19: 85 | G19: 83.9 | H19: 83.4 | I19: 86.2 | J19: 88.62602366 | K19: 90.71038251 | L19: 92.56272401 | M19: 89.94882342 | N19: 90.43771622 | O19: 90.92660902 | P19: 91.41550182 | Q19: 91.90439462 | R19: 92.39328742 | S19: 92.88218022 | T19: 93.37107301 | U19: 93.85996581 | V19: 94.34885861 | W19: 93.85996581 | X19: 94.02293008 | Y19: 94.0772515 | Z19: 93.9867158 | AA19: 94.02896579 | AB19: 94.0309777 | AC19: 94.0155531 | AD19: 94.02516553 | AE19: 94.02389878 | AF19: 94.02153913 | AG19: 94.02353448 | AH19: 94.0229908 | AI19: 94.02268814 | AJ19: 94.02307114 | AK19: 94.02291669 | AL19: 94.02289199 | AM19: 94.02295994 | AN19: 94.02292287 | AO19: 94.02292493 | AP19: 94.02293592 | AQ19: 94.02292791 | AR19: 94.02292959
A20: 1600000US4002500 | B20: Arapaho town, Oklahoma | C20: 87.9 | D20: 88.4 | E20: 87.4 | F20: 86.8 | G20: 86.1 | H20: 84.7 | I20: 89.3 | J20: 88.52459016 | K20: 88.98026316 | L20: 88.53118712 | M20: 88.37911994 | N20: 88.50921374 | O20: 88.63930754 | P20: 88.76940134 | Q20: 88.89949514 | R20: 89.02958894 | S20: 89.15968274 | T20: 89.28977654 | U20: 89.41987034 | V20: 89.54996414 | W20: 89.41987034 | X20: 89.46323494 | Y20: 89.47768981 | Z20: 89.45359837 | AA20: 89.46484104 | AB20: 89.46537641 | AC20: 89.46127194 | AD20: 89.46382979 | AE20: 89.46349271 | AF20: 89.46286481 | AG20: 89.46339577 | AH20: 89.4632511 | AI20: 89.46317056 | AJ20: 89.46327248 | AK20: 89.46323138 | AL20: 89.46322481 | AM20: 89.46324289 | AN20: 89.46323303 | AO20: 89.46323357 | AP20: 89.4632365 | AQ20: 89.46323437 | AR20: 89.46323481
A21: 1600000US4002550 | B21: Arcadia town, Oklahoma | C21: 73.3 | D21: 64.2 | E21: 70 | F21: 80.2 | G21: 90.9 | H21: 95 | I21: 94.6 | J21: 91.83673469 | K21: 90.61032864 | L21: 92.73743017 | M21: 100 | N21: 100 | O21: 100 | P21: 100 | Q21: 100 | R21: 100 | S21: 100 | T21: 100 | U21: 100 | V21: 100 | W21: 100 | X21: 100 | Y21: 100 | Z21: 100 | AA21: 100 | AB21: 100 | AC21: 100 | AD21: 100 | AE21: 100 | AF21: 100 | AG21: 100 | AH21: 100 | AI21: 100 | AJ21: 100 | AK21: 100 | AL21: 100 | AM21: 100 | AN21: 100 | AO21: 100 | AP21: 100 | AQ21: 100 | AR21: 100
A22: 1600000US4002600 | B22: Ardmore city, Oklahoma | C22: 81.7 | D22: 82.9 | E22: 83.2 | F22: 84.5 | G22: 84 | H22: 84.1 | I22: 84.6 | J22: 82.99967536 | K22: 84.42396313 | L22: 85.36228745 | M22: 85.21281612 | N22: 85.47358403 | O22: 85.73435195 | P22: 85.99511986 | Q22: 86.25588777 | R22: 86.51665569 | S22: 86.7774236 | T22: 87.03819152 | U22: 87.29895943 | V22: 87.55972734 | W22: 87.29895943 | X22: 87.38588207 | Y22: 87.41485628 | Z22: 87.36656593 | AA22: 87.38910142 | AB22: 87.39017454 | AC22: 87.3819473 | AD22: 87.38707442 | AE22: 87.38639875 | AF22: 87.38514016 | AG22: 87.38620444 | AH22: 87.38591445 | AI22: 87.38575302 | AJ22: 87.3859573 | AK22: 87.38587492 | AL22: 87.38586175 | AM22: 87.38589799 | AN22: 87.38587822 | AO22: 87.38587932 | AP22: 87.38588518 | AQ22: 87.38588091 | AR22: 87.3858818
A23: 1600000US4002650 | B23: Arkoma town, Oklahoma | C23: 61.8 | D23: 64.2 | E23: 67.7 | F23: 70.5 | G23: 72.3 | H23: 76.6 | I23: 77.3 | J23: 73.67303609 | K23: 73.99135447 | L23: 77.31277533 | M23: 80.29503791 | N23: 81.88727815 | O23: 83.47951839 | P23: 85.07175863 | Q23: 86.66399888 | R23: 88.25623912 | S23: 89.84847936 | T23: 91.4407196 | U23: 93.03295984 | V23: 94.62520008 | W23: 93.03295984 | X23: 93.56370658 | Y23: 93.74062217 | Z23: 93.44576286 | AA23: 93.58336387 | AB23: 93.5899163 | AC23: 93.53968101 | AD23: 93.57098706 | AE23: 93.56686146 | AF23: 93.55917651 | AG23: 93.56567501 | AH23: 93.56390433 | AI23: 93.56291862 | AJ23: 93.56416598 | AK23: 93.56366298 | AL23: 93.56358252 | AM23: 93.56380383 | AN23: 93.56368311 | AO23: 93.56368982 | AP23: 93.56372559 | AQ23: 93.56369951 | AR23: 93.56370497
A24: 1600000US4002750 | B24: Armstrong town, Oklahoma | C24: 94.1 | D24: 90.8 | E24: 91.3 | F24: 62.8 | G24: 66.9 | H24: 63.2 | I24: 58.9 | J24: 58.33333333 | K24: 88.04347826 | L24: 88.75 | M24: 68.05671497 | N24: 66.55563021 | O24: 65.05454545 | P24: 63.55346069 | Q24: 62.05237593 | R24: 60.55129117 | S24: 59.05020641 | T24: 57.54912165 | U24: 56.04803689 | V24: 54.54695213 | W24: 56.04803689 | X24: 55.5476753 | Y24: 55.38088811 | Z24: 55.65886677 | AA24: 55.52914339 | AB24: 55.52296609 | AC24: 55.57032541 | AD24: 55.54081163 | AE24: 55.54470104 | AF24: 55.55194603 | AG24: 55.54581957 | AH24: 55.54748888 | AI24: 55.54841816 | AJ24: 55.5472422 | AK24: 55.54771641 | AL24: 55.54779226 | AM24: 55.54758363 | AN24: 55.54769743 | AO24: 55.54769111 | AP24: 55.54765739 | AQ24: 55.54768198 | AR24: 55.54767682
A25: 1600000US4002800 | B25: Arnett town, Oklahoma | C25: 91.8 | D25: 90.1 | E25: 86.8 | F25: 88.8 | G25: 88.1 | H25: 88.3 | I25: 87.4 | J25: 90.77253219 | K25: 91.45833333 | L25: 90.57017544 | M25: 89.88685654 | N25: 89.9735388 | O25: 90.06022106 | P25: 90.14690332 | Q25: 90.23358558 | R25: 90.32026785 | S25: 90.40695011 | T25: 90.49363237 | U25: 90.58031463 | V25: 90.66699689 | W25: 90.58031463 | X25: 90.60920872 | Y25: 90.61884008 | Z25: 90.60278781 | AA25: 90.61027887 | AB25: 90.61063559 | AC25: 90.60790076 | AD25: 90.60960507 | AE25: 90.60938047 | AF25: 90.6089621 | AG25: 90.60931588 | AH25: 90.60921948 | AI25: 90.60916582 | AJ25: 90.60923373 | AK25: 90.60920635 | AL25: 90.60920197 | AM25: 90.60921401 | AN25: 90.60920744 | AO25: 90.60920781 | AP25: 90.60920975 | AQ25: 90.60920833 | AR25: 90.60920863
A26: 1600000US4003000 | B26: Asher town, Oklahoma | C26: 73.4 | D26: 77.4 | E26: 73.7 | F26: 72.2 | G26: 72.4 | H26: 76.5 | I26: 74 | J26: 75.33333333 | K26: 77.89855072 | L26: 81.84818482 | M26: 78.70767972 | N26: 79.29671115 | O26: 79.88574257 | P26: 80.474774 | Q26: 81.06380542 | R26: 81.65283685 | S26: 82.24186827 | T26: 82.8308997 | U26: 83.41993112 | V26: 84.00896254 | W26: 83.41993112 | X26: 83.61627493 | Y26: 83.68172286 | Z26: 83.57264297 | AA26: 83.62354692 | AB26: 83.62597092 | AC26: 83.60738694 | AD26: 83.61896826 | AE26: 83.61744204 | AF26: 83.61459908 | AG26: 83.61700313 | AH26: 83.61634808 | AI26: 83.61598343 | AJ26: 83.61644488 | AK26: 83.6162588 | AL26: 83.61622903 | AM26: 83.6163109 | AN26: 83.61626624 | AO26: 83.61626873 | AP26: 83.61628196 | AQ26: 83.61627231 | AR26: 83.61627433
A27: 1600000US4003050 | B27: Ashland town, Oklahoma | C27: 50 | D27: 52.9 | E27: 82.1 | F27: 91.7 | G27: 82.6 | H27: 88.2 | I27: 94.3 | J27: 82.35294118 | K27: 92.85714286 | L27: 92.59259259 | M27: 100 | N27: 100 | O27: 100 | P27: 100 | Q27: 100 | R27: 100 | S27: 100 | T27: 100 | U27: 100 | V27: 100 | W27: 100 | X27: 100 | Y27: 100 | Z27: 100 | AA27: 100 | AB27: 100 | AC27: 100 | AD27: 100 | AE27: 100 | AF27: 100 | AG27: 100 | AH27: 100 | AI27: 100 | AJ27: 100 | AK27: 100 | AL27: 100 | AM27: 100 | AN27: 100 | AO27: 100 | AP27: 100 | AQ27: 100 | AR27: 100
A28: 1600000US4003300 | B28: Atoka city, Oklahoma | C28: 77.6 | D28: 79.8 | E28: 79.5 | F28: 79.4 | G28: 82.7 | H28: 81 | I28: 77 | J28: 81.03764922 | K28: 81.13207547 | L28: 82.10080075 | M28: 81.74771858 | N28: 82.04238513 | O28: 82.33705169 | P28: 82.63171824 | Q28: 82.92638479 | R28: 83.22105134 | S28: 83.5157179 | T28: 83.81038445 | U28: 84.105051 | V28: 84.39971755 | W28: 84.105051 | X28: 84.20327319 | Y28: 84.23601391 | Z28: 84.18144603 | AA28: 84.20691104 | AB28: 84.20812366 | AC28: 84.19882691 | AD28: 84.20462054 | AE28: 84.20385704 | AF28: 84.20243483 | AG28: 84.20363747 | AH28: 84.20330978 | AI28: 84.20312736 | AJ28: 84.2033582 | AK28: 84.20326511 | AL28: 84.20325023 | AM28: 84.20329118 | AN28: 84.20326884 | AO28: 84.20327008 | AP28: 84.2032767 | AQ28: 84.20327187 | AR28: 84.20327289
A29: 1600000US4003350 | B29: Atwood town, Oklahoma | C29: 86.1 | D29: 80 | E29: 80.6 | F29: 78.1 | G29: 83.6 | H29: 86.8 | I29: 88.6 | J29: 91.30434783 | K29: 95 | L29: 94.44444444 | M29: 95.3989372 | N29: 97.02512956 | O29: 98.65132191 | P29: 100 | Q29: 100 | R29: 100 | S29: 100 | T29: 100 | U29: 100 | V29: 100 | W29: 100 | X29: 100 | Y29: 100 | Z29: 100 | AA29: 100 | AB29: 100 | AC29: 100 | AD29: 100 | AE29: 100 | AF29: 100 | AG29: 100 | AH29: 100 | AI29: 100 | AJ29: 100 | AK29: 100 | AL29: 100 | AM29: 100 | AN29: 100 | AO29: 100 | AP29: 100 | AQ29: 100 | AR29: 100
A30: 1600000US4003500 | B30: Avant town, Oklahoma | C30: 88 | D30: 87.3 | E30: 87.5 | F30: 85.7 | G30: 80.4 | H30: 82.3 | I30: 81.4 | J30: 79.14691943 | K30: 80.56872038 | L30: 81.01851852 | M30: 77.90949272 | N30: 76.92332488 | O30: 75.93715704 | P30: 74.9509892 | Q30: 73.96482136 | R30: 72.97865352 | S30: 71.99248568 | T30: 71.00631784 | U30: 70.02015 | V30: 69.03398216 | W30: 70.02015 | X30: 69.69142739 | Y30: 69.58185318 | Z30: 69.76447686 | AA30: 69.67925248 | AB30: 69.67519417 | AC30: 69.70630783 | AD30: 69.68691816 | AE30: 69.68947339 | AF30: 69.69423313 | AG30: 69.69020823 | AH30: 69.69130491 | AI30: 69.69191542 | AJ30: 69.69114285 | AK30: 69.6914544 | AL30: 69.69150422 | AM30: 69.69136716 | AN30: 69.69144193 | AO30: 69.69143777 | AP30: 69.69141562 | AQ30: 69.69143177 | AR30: 69.69142839
A31: 1600000US4004250 | B31: Barnsdall city, Oklahoma | C31: 84.5 | D31: 84.2 | E31: 88.7 | F31: 87.5 | G31: 87.4 | H31: 85.7 | I31: 88.5 | J31: 84.30884184 | K31: 86.57957245 | L31: 88.45671267 | M31: 87.63823371 | N31: 87.82981935 | O31: 88.02140499 | P31: 88.21299062 | Q31: 88.40457626 | R31: 88.5961619 | S31: 88.78774754 | T31: 88.97933318 | U31: 89.17091882 | V31: 89.36250446 | W31: 89.17091882 | X31: 89.2347807 | Y31: 89.25606799 | Z31: 89.22058917 | AA31: 89.23714595 | AB31: 89.23793437 | AC31: 89.23188983 | AD31: 89.23565672 | AE31: 89.23516031 | AF31: 89.23423562 | AG31: 89.23501755 | AH31: 89.23480449 | AI31: 89.23468589 | AJ31: 89.23483597 | AK31: 89.23477545 | AL31: 89.23476577 | AM31: 89.2347924 | AN31: 89.23477787 | AO31: 89.23477868 | AP31: 89.23478298 | AQ31: 89.23477985 | AR31: 89.2347805
A32: 1600000US4004450 | B32: Bartlesville city, Oklahoma | C32: 89.1 | D32: 89.1 | E32: 89.7 | F32: 90.1 | G32: 90.8 | H32: 91 | I32: 91.5 | J32: 90.43927649 | K32: 90.66010984 | L32: 90.34576953 | M32: 91.28215149 | N32: 91.46535802 | O32: 91.64856455 | P32: 91.83177107 | Q32: 92.0149776 | R32: 92.19818413 | S32: 92.38139066 | T32: 92.56459718 | U32: 92.74780371 | V32: 92.93101024 | W32: 92.74780371 | X32: 92.80887255 | Y32: 92.82922884 | Z32: 92.7953017 | AA32: 92.81113436 | AB32: 92.8118883 | AC32: 92.80610812 | AD32: 92.80971026 | AE32: 92.80923556 | AF32: 92.80835132 | AG32: 92.80909905 | AH32: 92.80889531 | AI32: 92.80878189 | AJ32: 92.80892541 | AK32: 92.80886754 | AL32: 92.80885828 | AM32: 92.80888374 | AN32: 92.80886985 | AO32: 92.80887063 | AP32: 92.80887474 | AQ32: 92.80887174 | AR32: 92.80887237
A33: 1600000US4004700 | B33: Bearden town, Oklahoma | C33: 85.2 | D33: 72.9 | E33: 74.3 | F33: 87.2 | G33: 86.1 | H33: 85.1 | I33: 91.1 | J33: 86.95652174 | K33: 84.7826087 | L33: 88.46153846 | M33: 90.42722408 | N33: 91.5576163 | O33: 92.68800851 | P33: 93.81840073 | Q33: 94.94879295 | R33: 96.07918516 | S33: 97.20957738 | T33: 98.3399696 | U33: 99.47036181 | V33: 100 | W33: 99.27011047 | X33: 99.58015743 | Y33: 99.61675597 | Z33: 99.48900796 | AA33: 99.56197378 | AB33: 99.55591257 | AC33: 99.53563144 | AD33: 99.5511726 | AE33: 99.5475722 | AF33: 99.54479208 | AG33: 99.54784562 | AH33: 99.54673663 | AI33: 99.54645811 | AJ33: 99.54701346 | AK33: 99.54673607 | AL33: 99.54673588 | AM33: 99.54682847 | AN33: 99.5467668 | AO33: 99.54677705 | AP33: 99.54679077 | AQ33: 99.54677821 | AR33: 99.54678201
A34: 1600000US4004750 | B34: Beaver town, Oklahoma | C34: 80.9 | D34: 77.7 | E34: 76.5 | F34: 80.6 | G34: 79.8 | H34: 76.9 | I34: 78.8 | J34: 76.37457045 | K34: 74.90421456 | L34: 74.88106565 | M34: 74.98038323 | N34: 74.47936472 | O34: 73.9783462 | P34: 73.47732769 | Q34: 72.97630917 | R34: 72.47529066 | S34: 71.97427214 | T34: 71.47325363 | U34: 70.97223511 | V34: 70.4712166 | W34: 70.97223511 | X34: 70.80522894 | Y34: 70.74956022 | Z34: 70.84234142 | AA34: 70.79904353 | AB34: 70.79698172 | AC34: 70.81278889 | AD34: 70.80293805 | AE34: 70.80423622 | AF34: 70.80665439 | AG34: 70.80460955 | AH34: 70.80516672 | AI34: 70.80547689 | AJ34: 70.80508439 | AK34: 70.80524266 | AL34: 70.80526798 | AM34: 70.80519834 | AN34: 70.80523633 | AO34: 70.80523422 | AP34: 70.80522296 | AQ34: 70.80523117 | AR34: 70.80522945
A35: 1600000US4005000 | B35: Beggs city, Oklahoma | C35: 66.5 | D35: 76.9 | E35: 77.3 | F35: 80.9 | G35: 83 | H35: 85.5 | I35: 87 | J35: 86.17463617 | K35: 83.14711359 | L35: 77.45716862 | M35: 87.30514162 | N35: 88.5628234 | O35: 89.82050518 | P35: 91.07818696 | Q35: 92.33586874 | R35: 93.59355052 | S35: 94.8512323 | T35: 96.10891408 | U35: 97.36659586 | V35: 98.62427764 | W35: 97.36659586 | X35: 97.78582312 | Y35: 97.92556554 | Z35: 97.6926615 | AA35: 97.80135005 | AB35: 97.8065257 | AC35: 97.76684575 | AD35: 97.79157383 | AE35: 97.78831509 | AF35: 97.78224489 | AG35: 97.78737794 | AH35: 97.78597931 | AI35: 97.78520071 | AJ35: 97.78618599 | AK35: 97.78578867 | AL35: 97.78572512 | AM35: 97.78589993 | AN35: 97.78580457 | AO35: 97.78580987 | AP35: 97.78583812 | AQ35: 97.78581752 | AR35: 97.78582184
A36: 1600000US4005400 | B36: Bennington town, Oklahoma | C36: 73.3 | D36: 70.1 | E36: 77.1 | F36: 77.4 | G36: 80.3 | H36: 83.3 | I36: 85.4 | J36: 85.99033816 | K36: 81.9047619 | L36: 84.21052632 | M36: 88.309888 | N36: 89.83885625 | O36: 91.3678245 | P36: 92.89679275 | Q36: 94.425761 | R36: 95.95472925 | S36: 97.48369749 | T36: 99.01266574 | U36: 100 | V36: 100 | W36: 99.67088858 | X36: 99.89029619 | Y36: 99.85372826 | Z36: 99.80497101 | AA36: 99.84966515 | AB36: 99.83612147 | AC36: 99.83025255 | AD36: 99.83867973 | AE36: 99.83501792 | AF36: 99.83465006 | AG36: 99.8361159 | AH36: 99.83526129 | AI36: 99.83534242 | AJ36: 99.8355732 | AK36: 99.83539231 | AL36: 99.83543598 | AM36: 99.83546716 | AN36: 99.83543181 | AO36: 99.83544498 | AP36: 99.83544799 | AQ36: 99.8354416 | AR36: 99.83544486
A37: 1600000US4005550 | B37: Bernice town, Oklahoma | C37: 88.3 | D37: 83.5 | E37: 84 | F37: 84.5 | G37: 85 | H37: 83.2 | I37: 84.7 | J37: 84.21052632 | K37: 82.68792711 | L37: 82.75862069 | M37: 82.42889766 | N37: 82.09129589 | O37: 81.75369412 | P37: 81.41609235 | Q37: 81.07849058 | R37: 80.7408888 | S37: 80.40328703 | T37: 80.06568526 | U37: 79.72808349 | V37: 79.39048171 | W37: 79.72808349 | X37: 79.61554956 | Y37: 79.57803825 | Z37: 79.6405571 | AA37: 79.61138164 | AB37: 79.60999233 | AC37: 79.62064369 | AD37: 79.61400589 | AE37: 79.61488064 | AF37: 79.61651007 | AG37: 79.6151322 | AH37: 79.61550764 | AI37: 79.61571664 | AJ37: 79.61545216 | AK37: 79.61555881 | AL37: 79.61557587 | AM37: 79.61552894 | AN37: 79.61555454 | AO37: 79.61555312 | AP37: 79.61554553 | AQ37: 79.61555106 | AR37: 79.6155499
A38: 1600000US4005650 | B38: Bessie town, Oklahoma | C38: 88.9 | D38: 86.3 | E38: 83.6 | F38: 80.4 | G38: 89 | H38: 83.5 | I38: 88.8 | J38: 89.07563025 | K38: 87.87878788 | L38: 88.23529412 | M38: 88.30721501 | N38: 88.62325933 | O38: 88.93930366 | P38: 89.25534798 | Q38: 89.5713923 | R38: 89.88743663 | S38: 90.20348095 | T38: 90.51952528 | U38: 90.8355696 | V38: 91.15161393 | W38: 90.8355696 | X38: 90.94091771 | Y38: 90.97603375 | Z38: 90.91750702 | AA38: 90.94481949 | AB38: 90.94612009 | AC38: 90.93614887 | AD38: 90.94236281 | AE38: 90.94154392 | AF38: 90.94001853 | AG38: 90.94130842 | AH38: 90.94095696 | AI38: 90.94076131 | AJ38: 90.9410089 | AK38: 90.94090905 | AL38: 90.94089308 | AM38: 90.94093701 | AN38: 90.94091305 | AO38: 90.94091438 | AP38: 90.94092148 | AQ38: 90.9409163 | AR38: 90.94091739
A39: 1600000US4005700 | B39: Bethany city, Oklahoma | C39: 86.1 | D39: 86.4 | E39: 87.2 | F39: 87.1 | G39: 86.9 | H39: 86.9 | I39: 88.5 | J39: 87.77603063 | K39: 88.67203778 | L39: 88.98381607 | M39: 89.08448052 | N39: 89.38107908 | O39: 89.67767764 | P39: 89.9742762 | Q39: 90.27087476 | R39: 90.56747332 | S39: 90.86407188 | T39: 91.16067044 | U39: 91.45726899 | V39: 91.75386755 | W39: 91.45726899 | X39: 91.55613518 | Y39: 91.58909058 | Z39: 91.53416492 | AA39: 91.55979689 | AB39: 91.56101746 | AC39: 91.55165976 | AD39: 91.55749137 | AE39: 91.55672286 | AF39: 91.55529133 | AG39: 91.55650185 | AH39: 91.55617202 | AI39: 91.5559884 | AJ39: 91.55622076 | AK39: 91.55612706 | AL39: 91.55611207 | AM39: 91.5561533 | AN39: 91.55613081 | AO39: 91.55613206 | AP39: 91.55613872 | AQ39: 91.55613386 | AR39: 91.55613488
A40: 1600000US4005800 | B40: Bethel Acres town, Oklahoma | C40: 90.2 | D40: 90.3 | E40: 93.1 | F40: 92.9 | G40: 93.2 | H40: 93.6 | I40: 92.7 | J40: 91.50779896 | K40: 92.40506329 | L40: 92.13339034 | M40: 93.00379029 | N40: 93.14909302 | O40: 93.29439575 | P40: 93.43969849 | Q40: 93.58500122 | R40: 93.73030395 | S40: 93.87560668 | T40: 94.02090942 | U40: 94.16621215 | V40: 94.31151488 | W40: 94.16621215 | X40: 94.21464639 | Y40: 94.23079114 | Z40: 94.20388323 | AA40: 94.21644026 | AB40: 94.21703821 | AC40: 94.2124539 | AD40: 94.21531079 | AE40: 94.2149343 | AF40: 94.21423299 | AG40: 94.21482603 | AH40: 94.21466444 | AI40: 94.21457449 | AJ40: 94.21468832 | AK40: 94.21464241 | AL40: 94.21463507 | AM40: 94.21465527 | AN40: 94.21464425 | AO40: 94.21464486 | AP40: 94.21464813 | AQ40: 94.21464575 | AR40: 94.21464625
A41: 1600000US4005900 | B41: Big Cabin town, Oklahoma | C41: 83 | D41: 83 | E41: 79.4 | F41: 76.8 | G41: 72.2 | H41: 80.5 | I41: 80.9 | J41: 86.62790698 | K41: 86.12716763 | L41: 87.19512195 | M41: 85.45454652 | N41: 86.15991504 | O41: 86.86528356 | P41: 87.57065208 | Q41: 88.2760206 | R41: 88.98138912 | S41: 89.68675764 | T41: 90.39212616 | U41: 91.09749468 | V41: 91.8028632 | W41: 91.09749468 | X41: 91.33261752 | Y41: 91.4109918 | Z41: 91.280368 | AA41: 91.34132577 | AB41: 91.34422853 | AC41: 91.3219741 | AD41: 91.3358428 | AE41: 91.33401514 | AF41: 91.33061068 | AG41: 91.33348954 | AH41: 91.33270512 | AI41: 91.33226845 | AJ41: 91.33282104 | AK41: 91.3325982 | AL41: 91.33256256 | AM41: 91.3326606 | AN41: 91.33260712 | AO41: 91.33261009 | AP41: 91.33262594 | AQ41: 91.33261438 | AR41: 91.33261681
A42: 1600000US4006100 | B42: Billings town, Oklahoma | C42: 88.9 | D42: 78.6 | E42: 79.9 | F42: 79.3 | G42: 80.1 | H42: 84.9 | I42: 86.5 | J42: 83.48623853 | K42: 88.20960699 | L42: 87.96498906 | M42: 87.22552823 | N42: 87.85088182 | O42: 88.47623542 | P42: 89.10158901 | Q42: 89.72694261 | R42: 90.3522962 | S42: 90.9776498 | T42: 91.60300339 | U42: 92.22835699 | V42: 92.85371058 | W42: 92.22835699 | X42: 92.43680818 | Y42: 92.50629192 | Z42: 92.3904857 | AA42: 92.4445286 | AB42: 92.44710207 | AC42: 92.42737212 | AD42: 92.4396676 | AE42: 92.43804726 | AF42: 92.43502899 | AG42: 92.43758128 | AH42: 92.43688585 | AI42: 92.43649871 | AJ42: 92.43698861 | AK42: 92.43679106 | AL42: 92.43675946 | AM42: 92.43684638 | AN42: 92.43679896 | AO42: 92.4368016 | AP42: 92.43681565 | AQ42: 92.4368054 | AR42: 92.43680755
A43: 1600000US4006200 | B43: Binger town, Oklahoma | C43: 83.8 | D43: 80.3 | E43: 77 | F43: 79.8 | G43: 79.8 | H43: 83.5 | I43: 87.5 | J43: 85.49323017 | K43: 85.19924099 | L43: 86.09958506 | M43: 86.99110907 | N43: 87.74418242 | O43: 88.49725577 | P43: 89.25032913 | Q43: 90.00340248 | R43: 90.75647583 | S43: 91.50954919 | T43: 92.26262254 | U43: 93.01569589 | V43: 93.76876925 | W43: 93.01569589 | X43: 93.26672034 | Y43: 93.35039516 | Z43: 93.21093713 | AA43: 93.27601755 | AB43: 93.27911661 | AC43: 93.2553571 | AD43: 93.27016375 | AE43: 93.26821249 | AF43: 93.26457778 | AG43: 93.26765134 | AH43: 93.26681387 | AI43: 93.26634766 | AJ43: 93.26693762 | AK43: 93.26669972 | AL43: 93.26666167 | AM43: 93.26676634 | AN43: 93.26670924 | AO43: 93.26671242 | AP43: 93.26672933 | AQ43: 93.266717 | AR43: 93.26671958
A44: 1600000US4006400 | B44: Bixby city, Oklahoma | C44: 93.7 | D44: 94.2 | E44: 93.5 | F44: 93.9 | G44: 94.6 | H44: 94.9 | I44: 95 | J44: 94.12002775 | K44: 93.93239901 | L44: 94.36522294 | M44: 94.58222958 | N44: 94.6477686 | O44: 94.71330762 | P44: 94.77884664 | Q44: 94.84438566 | R44: 94.90992468 | S44: 94.9754637 | T44: 95.04100272 | U44: 95.10654174 | V44: 95.17208076 | W44: 95.10654174 | X44: 95.12838808 | Y44: 95.13567019 | Z44: 95.12353334 | AA44: 95.1291972 | AB44: 95.12946691 | AC44: 95.12739915 | AD44: 95.12868775 | AE44: 95.12851794 | AF44: 95.12820161 | AG44: 95.1284691 | AH44: 95.12839622 | AI44: 95.12835564 | AJ44: 95.12840699 | AK44: 95.12838628 | AL44: 95.12838297 | AM44: 95.12839208 | AN44: 95.12838711 | AO44: 95.12838739 | AP44: 95.12838886 | AQ44: 95.12838779 | AR44: 95.12838801
A45: 1600000US4006450 | B45: Blackburn town, Oklahoma | C45: 75.9 | D45: 79.2 | E45: 75.4 | F45: 80 | G45: 88.1 | H45: 82 | I45: 91.7 | J45: 90.76923077 | K45: 83.05084746 | L45: 94.64285714 | M45: 94.12588688 | N45: 95.95308567 | O45: 97.78028446 | P45: 99.60748325 | Q45: 100 | R45: 100 | S45: 100 | T45: 100 | U45: 100 | V45: 100 | W45: 100 | X45: 100 | Y45: 100 | Z45: 100 | AA45: 100 | AB45: 100 | AC45: 100 | AD45: 100 | AE45: 100 | AF45: 100 | AG45: 100 | AH45: 100 | AI45: 100 | AJ45: 100 | AK45: 100 | AL45: 100 | AM45: 100 | AN45: 100 | AO45: 100 | AP45: 100 | AQ45: 100 | AR45: 100
A46: 1600000US4006600 | B46: Blackwell city, Oklahoma | C46: 82.8 | D46: 82 | E46: 79 | F46: 80.7 | G46: 83.1 | H46: 82.7 | I46: 84.8 | J46: 83.15533071 | K46: 84.76973056 | L46: 86.13645379 | M46: 85.65257989 | N46: 86.15011233 | O46: 86.64764476 | P46: 87.14517719 | Q46: 87.64270963 | R46: 88.14024206 | S46: 88.63777449 | T46: 89.13530693 | U46: 89.63283936 | V46: 90.1303718 | W46: 89.63283936 | X46: 89.79868351 | Y46: 89.85396489 | Z46: 89.76182925 | AA46: 89.80482588 | AB46: 89.80687334 | AC46: 89.79117616 | AD46: 89.80095846 | AE46: 89.79966932 | AF46: 89.79726798 | AG46: 89.79929859 | AH46: 89.7987453 | AI46: 89.79843729 | AJ46: 89.79882706 | AK46: 89.79866988 | AL46: 89.79864474 | AM46: 89.79871389 | AN46: 89.79867617 | AO46: 89.79867827 | AP46: 89.79868944 | AQ46: 89.7986813 | AR46: 89.798683
A47: 1600000US4006650 | B47: Blair town, Oklahoma | C47: 86.3 | D47: 85.2 | E47: 86.6 | F47: 85.5 | G47: 87 | H47: 85.8 | I47: 82.7 | J47: 84.98098859 | K47: 83.00884956 | L47: 85.50185874 | M47: 83.91862364 | N47: 83.67488799 | O47: 83.43115235 | P47: 83.1874167 | Q47: 82.94368106 | R47: 82.69994541 | S47: 82.45620977 | T47: 82.21247412 | U47: 81.96873848 | V47: 81.72500283 | W47: 81.96873848 | X47: 81.88749326 | Y47: 81.86041152 | Z47: 81.90554775 | AA47: 81.88448418 | AB47: 81.88348115 | AC47: 81.89117103 | AD47: 81.88637879 | AE47: 81.88701032 | AF47: 81.88818671 | AG47: 81.88719194 | AH47: 81.88746299 | AI47: 81.88761388 | AJ47: 81.88742294 | AK47: 81.88749994 | AL47: 81.88751225 | AM47: 81.88747838 | AN47: 81.88749686 | AO47: 81.88749583 | AP47: 81.88749035 | AQ47: 81.88749435 | AR47: 81.88749351
A48: 1600000US4006700 | B48: Blanchard city, Oklahoma | C48: 93.7 | D48: 95 | E48: 94.4 | F48: 93.8 | G48: 92.9 | H48: 94.8 | I48: 94.2 | J48: 92.36517219 | K48: 93.99432535 | L48: 93.46618752 | M48: 93.32196271 | N48: 93.22367075 | O48: 93.12537878 | P48: 93.02708682 | Q48: 92.92879486 | R48: 92.83050289 | S48: 92.73221093 | T48: 92.63391897 | U48: 92.535627 | V48: 92.43733504 | W48: 92.535627 | X48: 92.50286302 | Y48: 92.49194169 | Z48: 92.5101439 | AA48: 92.50164953 | AB48: 92.50124504 | AC48: 92.50434616 | AD48: 92.50241358 | AE48: 92.50266826 | AF48: 92.50314267 | AG48: 92.5027415 | AH48: 92.50285081 | AI48: 92.50291166 | AJ48: 92.50283466 | AK48: 92.50286571 | AL48: 92.50287067 | AM48: 92.50285701 | AN48: 92.50286446 | AO48: 92.50286405 | AP48: 92.50286184 | AQ48: 92.50286345 | AR48: 92.50286312
A49: 1600000US4006950 | B49: Bluejacket town, Oklahoma | C49: 91.8 | D49: 91.9 | E49: 92.4 | F49: 85.9 | G49: 83.7 | H49: 81.2 | I49: 77.9 | J49: 62.27106227 | K49: 70.49180328 | L49: 69.51219512 | M49: 63.12109575 | N49: 59.9235666 | O49: 56.72603745 | P49: 53.5285083 | Q49: 50.33097915 | R49: 47.13345 | S49: 43.93592085 | T49: 40.7383917 | U49: 37.54086255 | V49: 34.3433334 | W49: 37.54086255 | X49: 36.4750195 | Y49: 36.11973849 | Z49: 36.71187351 | AA49: 36.43554384 | AB49: 36.42238528 | AC49: 36.52326754 | AD49: 36.46039889 | AE49: 36.4686839 | AF49: 36.48411678 | AG49: 36.47106652 | AH49: 36.4746224 | AI49: 36.4766019 | AJ49: 36.47409694 | AK49: 36.47510708 | AL49: 36.47526864 | AM49: 36.47482422 | AN49: 36.47506665 | AO49: 36.47505317 | AP49: 36.47498135 | AQ49: 36.47503372 | AR49: 36.47502275
A50: 1600000US4007300 | B50: Boise City city, Oklahoma | C50: 78.7 | D50: 78.2 | E50: 76.4 | F50: 80.3 | G50: 81.7 | H50: 82.9 | I50: 83 | J50: 82.50591017 | K50: 81.65829146 | L50: 81.08747045 | M50: 83.49599471 | N50: 84.01432699 | O50: 84.53265926 | P50: 85.05099153 | Q50: 85.56932381 | R50: 86.08765608 | S50: 86.60598835 | T50: 87.12432063 | U50: 87.6426529 | V50: 88.16098517 | W50: 87.6426529 | X50: 87.81543032 | Y50: 87.8730228 | Z50: 87.77703534 | AA50: 87.82182949 | AB50: 87.82396254 | AC50: 87.80760912 | AD50: 87.81780038 | AE50: 87.81645735 | AF50: 87.81395562 | AG50: 87.81607112 | AH50: 87.8154947 | AI50: 87.81517381 | AJ50: 87.81557988 | AK50: 87.81541613 | AL50: 87.81538994 | AM50: 87.81546198 | AN50: 87.81542268 | AO50: 87.81542487 | AP50: 87.81543651 | AQ50: 87.81542802 | AR50: 87.8154298
A51: 1600000US4007350 | B51: Bokchito town, Oklahoma | C51: 77.5 | D51: 73.2 | E51: 76.5 | F51: 76.6 | G51: 77.9 | H51: 79.9 | I51: 84.1 | J51: 81.45833333 | K51: 81.72888016 | L51: 77.41273101 | M51: 82.23694135 | N51: 82.89274987 | O51: 83.5485584 | P51: 84.20436692 | Q51: 84.86017545 | R51: 85.51598398 | S51: 86.1717925 | T51: 86.82760103 | U51: 87.48340956 | V51: 88.13921808 | W51: 87.48340956 | X51: 87.7020124 | Y51: 87.77488001 | Z51: 87.65343399 | AA51: 87.7101088 | AB51: 87.7128076 | AC51: 87.6921168 | AD51: 87.70501107 | AE51: 87.70331182 | AF51: 87.70014656 | AG51: 87.70282315 | AH51: 87.70209384 | AI51: 87.70168785 | AJ51: 87.70220162 | AK51: 87.70199444 | AL51: 87.7019613 | AM51: 87.70205245 | AN51: 87.70200273 | AO51: 87.70200549 | AP51: 87.70202023 | AQ51: 87.70200948 | AR51: 87.70201173
A52: 1600000US4007450 | B52: Bokoshe town, Oklahoma | C52: 77.9 | D52: 78.5 | E52: 74.2 | F52: 74.3 | G52: 77.3 | H52: 72.9 | I52: 73.1 | J52: 77.17717718 | K52: 76.24633431 | L52: 77.68115942 | M52: 75.56848912 | N52: 75.50267494 | O52: 75.43686077 | P52: 75.37104659 | Q52: 75.30523241 | R52: 75.23941824 | S52: 75.17360406 | T52: 75.10778988 | U52: 75.04197571 | V52: 74.97616153 | W52: 75.04197571 | X52: 75.02003765 | Y52: 75.01272496 | Z52: 75.02491277 | AA52: 75.01922513 | AB52: 75.01895429 | AC52: 75.02103073 | AD52: 75.01973671 | AE52: 75.01990724 | AF52: 75.02022489 | AG52: 75.01995628 | AH52: 75.02002947 | AI52: 75.02007022 | AJ52: 75.02001866 | AK52: 75.02003945 | AL52: 75.02004278 | AM52: 75.02003363 | AN52: 75.02003862 | AO52: 75.02003834 | AP52: 75.02003686 | AQ52: 75.02003794 | AR52: 75.02003771
A53: 1600000US4007500 | B53: Boley town, Oklahoma | C53: 71.1 | D53: 75.3 | E53: 73.5 | F53: 71.5 | G53: 65.7 | H53: 65.4 | I53: 64 | J53: 62.89473684 | K53: 67.32929991 | L53: 68.35970025 | M53: 63.29890989 | N53: 62.35173466 | O53: 61.40455942 | P53: 60.45738418 | Q53: 59.51020894 | R53: 58.56303371 | S53: 57.61585847 | T53: 56.66868323 | U53: 55.72150799 | V53: 54.77433276 | W53: 55.72150799 | X53: 55.40578292 | Y53: 55.30054122 | Z53: 55.47594404 | AA53: 55.39408939 | AB53: 55.39019155 | AC53: 55.420075 | AD53: 55.40145198 | AE53: 55.40390618 | AF53: 55.40847772 | AG53: 55.40461196 | AH53: 55.40566528 | AI53: 55.40625165 | AJ53: 55.40550963 | AK53: 55.40580886 | AL53: 55.40585671 | AM53: 55.40572507 | AN53: 55.40579688 | AO53: 55.40579289 | AP53: 55.40577161 | AQ53: 55.40578713 | AR53: 55.40578388
A54: 1600000US4007750 | B54: Boswell town, Oklahoma | C54: 60.9 | D54: 67.3 | E54: 70.8 | F54: 70.3 | G54: 72.6 | H54: 79.9 | I54: 78.8 | J54: 78.90466531 | K54: 78.25112108 | L54: 77.92494481 | M54: 83.67492903 | N54: 85.5125392 | O54: 87.35014937 | P54: 89.18775953 | Q54: 91.0253697 | R54: 92.86297986 | S54: 94.70059003 | T54: 96.5382002 | U54: 98.37581036 | V54: 100 | W54: 98.30467019 | X54: 98.89349352 | Y54: 99.06605457 | Z54: 98.75473942 | AA54: 98.9047625 | AB54: 98.90851883 | AC54: 98.85600692 | AD54: 98.88976275 | AE54: 98.88476283 | AF54: 98.87684417 | AG54: 98.88378992 | AH54: 98.88179897 | AI54: 98.88081102 | AJ54: 98.8821333 | AK54: 98.8815811 | AL54: 98.88150847 | AM54: 98.88174096 | AN54: 98.88161018 | AO54: 98.88161987 | AP54: 98.881657 | AQ54: 98.88162902 | AR54: 98.8816353
A55: 1600000US4007950 | B55: Bowlegs town, Oklahoma | C55: 88.2 | D55: 85.2 | E55: 85.7 | F55: 81.7 | G55: 78.2 | H55: 77.6 | I55: 76.6 | J55: 79.47882736 | K55: 83.8028169 | L55: 76.37540453 | M55: 75.84545474 | N55: 74.85631835 | O55: 73.86718196 | P55: 72.87804558 | Q55: 71.88890919 | R55: 70.8997728 | S55: 69.91063641 | T55: 68.92150002 | U55: 67.93236363 | V55: 66.94322724 | W55: 67.93236363 | X55: 67.6026515 | Y55: 67.49274746 | Z55: 67.67592086 | AA55: 67.59043994 | AB55: 67.58636942 | AC55: 67.61757674 | AD55: 67.5981287 | AE55: 67.60069162 | AF55: 67.60546569 | AG55: 67.60142867 | AH55: 67.60252866 | AI55: 67.60314101 | AJ55: 67.60236611 | AK55: 67.60267859 | AL55: 67.60272857 | AM55: 67.60259109 | AN55: 67.60266609 | AO55: 67.60266192 | AP55: 67.6026397 | AQ55: 67.6026559 | AR55: 67.60265251
A56: 1600000US4008150 | B56: Boynton town, Oklahoma | C56: 88.8 | D56: 78.9 | E56: 73.8 | F56: 75.7 | G56: 70.8 | H56: 77.2 | I56: 80.4 | J56: 77.68595041 | K56: 80.8 | L56: 74.80314961 | M56: 75.46417995 | N56: 75.02331994 | O56: 74.58245994 | P56: 74.14159993 | Q56: 73.70073992 | R56: 73.25987991 | S56: 72.8190199 | T56: 72.37815989 | U56: 71.93729988 | V56: 71.49643987 | W56: 71.93729988 | X56: 71.79034655 | Y56: 71.7413621 | Z56: 71.82300284 | AA56: 71.78490383 | AB56: 71.78308959 | AC56: 71.79699875 | AD56: 71.78833073 | AE56: 71.78947302 | AF56: 71.79160083 | AG56: 71.78980153 | AH56: 71.7902918 | AI56: 71.79056472 | AJ56: 71.79021935 | AK56: 71.79035862 | AL56: 71.7903809 | AM56: 71.79031962 | AN56: 71.79035305 | AO56: 71.79035119 | AP56: 71.79034129 | AQ56: 71.79034851 | AR56: 71.79034699
A57: 1600000US4008300 | B57: Bradley town, Oklahoma | C57: 76.5 | D57: 81.6 | E57: 81.5 | F57: 86.3 | G57: 82.6 | H57: 91.8 | I57: 86.3 | J57: 76 | K57: 75 | L57: 71.11111111 | M57: 77.10444444 | N57: 76.41959596 | O57: 75.73474747 | P57: 75.04989899 | Q57: 74.3650505 | R57: 73.68020202 | S57: 72.99535353 | T57: 72.31050505 | U57: 71.62565656 | V57: 70.94080808 | W57: 71.62565656 | X57: 71.39737374 | Y57: 71.32127946 | Z57: 71.44810325 | AA57: 71.38891882 | AB57: 71.38610051 | AC57: 71.40770753 | AD57: 71.39424228 | AE57: 71.39601677 | AF57: 71.3993222 | AG57: 71.39652708 | AH57: 71.39728868 | AI57: 71.39771265 | AJ57: 71.39717614 | AK57: 71.39739249 | AL57: 71.3974271 | AM57: 71.39733191 | AN57: 71.39738383 | AO57: 71.39738095 | AP57: 71.39736556 | AQ57: 71.39737678 | AR57: 71.39737443
A58: 1600000US4008400 | B58: Braggs town, Oklahoma | C58: 90.6 | D58: 88.6 | E58: 89.9 | F58: 94.6 | G58: 94.4 | H58: 93.5 | I58: 91.1 | J58: 90.86021505 | K58: 90.4494382 | L58: 87.87878788 | M58: 90.5840519 | N58: 90.47408968 | O58: 90.36412746 | P58: 90.25416524 | Q58: 90.14420302 | R58: 90.03424079 | S58: 89.92427857 | T58: 89.81431635 | U58: 89.70435413 | V58: 89.59439191 | W58: 89.70435413 | X58: 89.66770006 | Y58: 89.65548203 | Z58: 89.67584541 | AA58: 89.6663425 | AB58: 89.66588998 | AC58: 89.6693593 | AD58: 89.66719726 | AE58: 89.66748218 | AF58: 89.66801291 | AG58: 89.66756412 | AH58: 89.6676864 | AI58: 89.66775448 | AJ58: 89.66766833 | AK58: 89.66770307 | AL58: 89.66770863 | AM58: 89.66769334 | AN58: 89.66770168 | AO58: 89.66770122 | AP58: 89.66769875 | AQ58: 89.66770055 | AR58: 89.66770017
A59: 1600000US4008450 | B59: Braman town, Oklahoma | C59: 90.7 | D59: 85.6 | E59: 86.6 | F59: 90.5 | G59: 94.5 | H59: 92.9 | I59: 90.6 | J59: 84.13793103 | K59: 85.31468531 | L59: 81.29496403 | M59: 84.87299566 | N59: 84.2654025 | O59: 83.65780934 | P59: 83.05021618 | Q59: 82.44262302 | R59: 81.83502986 | S59: 81.2274367 | T59: 80.61984354 | U59: 80.01225038 | V59: 79.40465722 | W59: 80.01225038 | X59: 79.80971932 | Y59: 79.74220897 | Z59: 79.85472622 | AA59: 79.80221817 | AB59: 79.79971779 | AC59: 79.8188874 | AD59: 79.80694112 | AE59: 79.80851543 | AF59: 79.81144798 | AG59: 79.80896818 | AH59: 79.80964387 | AI59: 79.81002001 | AJ59: 79.80954402 | AK59: 79.80973596 | AL59: 79.80976666 | AM59: 79.80968222 | AN59: 79.80972828 | AO59: 79.80972572 | AP59: 79.80971207 | AQ59: 79.80972202 | AR59: 79.80971994
A60: 1600000US4008550 | B60: Bray town, Oklahoma | C60: 76.6 | D60: 80.9 | E60: 83.3 | F60: 85.2 | G60: 89.3 | H60: 90.3 | I60: 89.8 | J60: 84.1995842 | K60: 89.24972004 | L60: 87.48538012 | M60: 91.49061451 | N60: 92.55555017 | O60: 93.62048582 | P60: 94.68542147 | Q60: 95.75035712 | R60: 96.81529277 | S60: 97.88022842 | T60: 98.94516407 | U60: 100 | V60: 100 | W60: 99.64838802 | X60: 99.88279601 | Y60: 99.84372801 | Z60: 99.79163735 | AA60: 99.83938712 | AB60: 99.82491749 | AC60: 99.81864732 | AD60: 99.82765065 | AE60: 99.82373849 | AF60: 99.82334548 | AG60: 99.82491154 | AH60: 99.8239985 | AI60: 99.82408518 | AJ60: 99.82433174 | AK60: 99.82413847 | AL60: 99.82418513 | AM60: 99.82421845 | AN60: 99.82418068 | AO60: 99.82419475 | AP60: 99.82419796 | AQ60: 99.82419113 | AR60: 99.82419462
A61: 1600000US4008600 | B61: Breckenridge town, Oklahoma | C61: 97.8 | D61: 97.4 | E61: 95.8 | F61: 97.1 | G61: 95.4 | H61: 95.8 | I61: 84.3 | J61: 90.65420561 | K61: 89.3081761 | L61: 86.36363636 | M61: 85.54930141 | N61: 84.19597406 | O61: 82.84264672 | P61: 81.48931937 | Q61: 80.13599202 | R61: 78.78266468 | S61: 77.42933733 | T61: 76.07600999 | U61: 74.72268264 | V61: 73.3693553 | W61: 74.72268264 | X61: 74.27157353 | Y61: 74.12120382 | Z61: 74.37182 | AA61: 74.25486578 | AB61: 74.24929653 | AC61: 74.2919941 | AD61: 74.26538547 | AE61: 74.26889204 | AF61: 74.27542387 | AG61: 74.26990046 | AH61: 74.27140546 | AI61: 74.27224326 | AJ61: 74.27118306 | AK61: 74.27161059 | AL61: 74.27167897 | AM61: 74.27149088 | AN61: 74.27159348 | AO61: 74.27158778 | AP61: 74.27155738 | AQ61: 74.27157954 | AR61: 74.2715749
A62: 1600000US4008725 | B62: Bridge Creek town, Oklahoma | C62: 92.2 | D62: 85 | E62: 85.4 | F62: 85 | G62: 78.5 | H62: 93.1 | I62: 89.9 | J62: 92.21311475 | K62: 93.11740891 | L62: 94.35483871 | M62: 93.53123572 | N62: 94.37718108 | O62: 95.22312644 | P62: 96.0690718 | Q62: 96.91501716 | R62: 97.76096252 | S62: 98.60690788 | T62: 99.45285325 | U62: 100 | V62: 100 | W62: 99.81761775 | X62: 99.93920592 | Y62: 99.91894122 | Z62: 99.89192163 | AA62: 99.91668959 | AB62: 99.90918415 | AC62: 99.90593179 | AD62: 99.91060184 | AE62: 99.90857259 | AF62: 99.90836874 | AG62: 99.90918106 | AH62: 99.90870746 | AI62: 99.90875242 | AJ62: 99.90888031 | AK62: 99.90878007 | AL62: 99.90880427 | AM62: 99.90882155 | AN62: 99.90880196 | AO62: 99.90880926 | AP62: 99.90881092 | AQ62: 99.90880738 | AR62: 99.90880919
A63: 1600000US4008750 | B63: Bridgeport city, Oklahoma | C63: 76.6 | D63: 76.4 | E63: 77.8 | F63: 76 | G63: 76.7 | H63: 63.9 | I63: 63.9 | J63: 70.66666667 | K63: 73.23943662 | L63: 67.6056338 | M63: 66.01984351 | N63: 64.88141983 | O63: 63.74299616 | P63: 62.60457249 | Q63: 61.46614881 | R63: 60.32772514 | S63: 59.18930146 | T63: 58.05087779 | U63: 56.91245412 | V63: 55.77403044 | W63: 56.91245412 | X63: 56.53297956 | Y63: 56.40648804 | Z63: 56.61730724 | AA63: 56.51892495 | AB63: 56.51424008 | AC63: 56.55015742 | AD63: 56.52777415 | AE63: 56.53072388 | AF63: 56.53621848 | AG63: 56.53157217 | AH63: 56.53283818 | AI63: 56.53354294 | AJ63: 56.5326511 | AK63: 56.53301074 | AL63: 56.53306826 | AM63: 56.53291003 | AN63: 56.53299634 | AO63: 56.53299155 | AP63: 56.53296597 | AQ63: 56.53298462 | AR63: 56.53298071
A64: 1600000US4008900 | B64: Bristow city, Oklahoma | C64: 80.1 | D64: 85.2 | E64: 83.8 | F64: 86 | G64: 85.4 | H64: 84 | I64: 84.7 | J64: 83.68657675 | K64: 82.95417079 | L64: 84.61538462 | M64: 84.68063124 | N64: 84.79608907 | O64: 84.91154689 | P64: 85.02700471 | Q64: 85.14246254 | R64: 85.25792036 | S64: 85.37337819 | T64: 85.48883601 | U64: 85.60429383 | V64: 85.71975166 | W64: 85.60429383 | X64: 85.64277977 | Y64: 85.65560842 | Z64: 85.63422734 | AA64: 85.64420518 | AB64: 85.64468031 | AC64: 85.64103761 | AD64: 85.6433077 | AE64: 85.64300854 | AF64: 85.64245128 | AG64: 85.64292251 | AH64: 85.64279411 | AI64: 85.64272264 | AJ64: 85.64281309 | AK64: 85.64277661 | AL64: 85.64277078 | AM64: 85.64278682 | AN64: 85.64277807 | AO64: 85.64277856 | AP64: 85.64278115 | AQ64: 85.64277926 | AR64: 85.64277966
A65: 1600000US4009050 | B65: Broken Arrow city, Oklahoma | C65: 93 | D65: 93.4 | E65: 93.6 | F65: 93.4 | G65: 93.5 | H65: 93.7 | I65: 93.5 | J65: 92.55700743 | K65: 92.75882174 | L65: 93.01874837 | M65: 92.94230858 | N65: 92.88755418 | O65: 92.83279978 | P65: 92.77804539 | Q65: 92.72329099 | R65: 92.6685366 | S65: 92.6137822 | T65: 92.5590278 | U65: 92.50427341 | V65: 92.44951901 | W65: 92.50427341 | X65: 92.48602194 | Y65: 92.47993812 | Z65: 92.49007782 | AA65: 92.48534596 | AB65: 92.48512064 | AC65: 92.48684814 | AD65: 92.48577158 | AE65: 92.48591345 | AF65: 92.48617772 | AG65: 92.48595425 | AH65: 92.48601514 | AI65: 92.48604904 | AJ65: 92.48600614 | AK65: 92.48602344 | AL65: 92.48602621 | AM65: 92.4860186 | AN65: 92.48602275 | AO65: 92.48602252 | AP65: 92.48602129 | AQ65: 92.48602219 | AR65: 92.486022
A66: 1600000US4009100 | B66: Broken Bow city, Oklahoma | C66: 74.2 | D66: 76.6 | E66: 82.6 | F66: 86.4 | G66: 85.9 | H66: 81.7 | I66: 82.1 | J66: 77.20561757 | K66: 74.89346591 | L66: 75.25447525 | M66: 78.13444342 | N66: 77.85245934 | O66: 77.57047526 | P66: 77.28849118 | Q66: 77.00650709 | R66: 76.72452301 | S66: 76.44253893 | T66: 76.16055485 | U66: 75.87857077 | V66: 75.59658668 | W66: 75.87857077 | X66: 75.78457607 | Y66: 75.75324451 | Z66: 75.80546378 | AA66: 75.78109479 | AB66: 75.77993436 | AC66: 75.78883098 | AD66: 75.78328671 | AE66: 75.78401735 | AF66: 75.78537834 | AG66: 75.78422747 | AH66: 75.78454105 | AI66: 75.78471562 | AJ66: 75.78449471 | AK66: 75.7845838 | AL66: 75.78459804 | AM66: 75.78455885 | AN66: 75.78458023 | AO66: 75.78457904 | AP66: 75.78457271 | AQ66: 75.78457733 | AR66: 75.78457636
A67: 1600000US4009150 | B67: Bromide town, Oklahoma | C67: 67.2 | D67: 71.7 | E67: 70.7 | F67: 66.7 | G67: 60.8 | H67: 70.8 | I67: 67.3 | J67: 71.05263158 | K67: 67.32673267 | L67: 68.96551724 | M67: 68.21581954 | N67: 68.20878888 | O67: 68.20175823 | P67: 68.19472757 | Q67: 68.18769692 | R67: 68.18066626 | S67: 68.1736356 | T67: 68.16660495 | U67: 68.15957429 | V67: 68.15254364 | W67: 68.15957429 | X67: 68.15723074 | Y67: 68.15644956 | Z67: 68.15775153 | AA67: 68.15714394 | AB67: 68.15711501 | AC67: 68.15733683 | AD67: 68.15719859 | AE67: 68.15721681 | AF67: 68.15725074 | AG67: 68.15722205 | AH67: 68.15722987 | AI67: 68.15723422 | AJ67: 68.15722871 | AK67: 68.15723093 | AL67: 68.15723129 | AM67: 68.15723031 | AN67: 68.15723084 | AO67: 68.15723081 | AP67: 68.15723066 | AQ67: 68.15723077 | AR67: 68.15723075
A68: 1600000US4009400 | B68: Brooksville town, Oklahoma | C68: 91.7 | D68: 89.8 | E68: 81.3 | F68: 76.5 | G68: 79.5 | H68: 68.6 | I68: 77.8 | J68: 92.5 | K68: 85 | L68: 87.17948718 | M68: 82.14512821 | N68: 81.99188811 | O68: 81.83864802 | P68: 81.68540793 | Q68: 81.53216783 | R68: 81.37892774 | S68: 81.22568765 | T68: 81.07244755 | U68: 80.91920746 | V68: 80.76596737 | W68: 80.91920746 | X68: 80.86812743 | Y68: 80.85110075 | Z68: 80.87947855 | AA68: 80.86623558 | AB68: 80.86560496 | AC68: 80.87043969 | AD68: 80.86742674 | AE68: 80.8678238 | AF68: 80.86856341 | AG68: 80.86793798 | AH68: 80.8681084 | AI68: 80.86820326 | AJ68: 80.86808322 | AK68: 80.86813163 | AL68: 80.86813937 | AM68: 80.86811807 | AN68: 80.86812969 | AO68: 80.86812904 | AP68: 80.8681256 | AQ68: 80.86812811 | AR68: 80.86812758
A69: 1600000US4009850 | B69: Buffalo town, Oklahoma | C69: 81 | D69: 79.6 | E69: 80.8 | F69: 82.3 | G69: 83.5 | H69: 81.8 | I69: 87 | J69: 85.31390135 | K69: 80.96385542 | L69: 79.02023429 | M69: 83.01975255 | N69: 83.18156227 | O69: 83.34337198 | P69: 83.5051817 | Q69: 83.66699142 | R69: 83.82880113 | S69: 83.99061085 | T69: 84.15242057 | U69: 84.31423029 | V69: 84.47604 | W69: 84.31423029 | X69: 84.36816686 | Y69: 84.38614571 | Z69: 84.35618095 | AA69: 84.37016451 | AB69: 84.37083039 | AC69: 84.36572528 | AD69: 84.36890673 | AE69: 84.36848747 | AF69: 84.36770649 | AG69: 84.3683669 | AH69: 84.36818695 | AI69: 84.36808678 | AJ69: 84.36821354 | AK69: 84.36816243 | AL69: 84.36815425 | AM69: 84.36817674 | AN69: 84.36816447 | AO69: 84.36816515 | AP69: 84.36816879 | AQ69: 84.36816614 | AR69: 84.36816669
A70: 1600000US4009950 | B70: Burbank town, Oklahoma | C70: 69.2 | D70: 68.8 | E70: 65.9 | F70: 71.8 | G70: 72.5 | H70: 71.8 | I70: 83.7 | J70: 74.28571429 | K70: 71.23287671 | L70: 72.94117647 | M70: 76.47028664 | N70: 77.24379752 | O70: 78.01730841 | P70: 78.7908193 | Q70: 79.56433019 | R70: 80.33784108 | S70: 81.11135197 | T70: 81.88486286 | U70: 82.65837375 | V70: 83.43188463 | W70: 82.65837375 | X70: 82.91621071 | Y70: 83.00215636 | Z70: 82.85891361 | AA70: 82.92576023 | AB70: 82.9289434 | AC70: 82.90453908 | AD70: 82.91974757 | AE70: 82.91774335 | AF70: 82.91401 | AG70: 82.91716697 | AH70: 82.91630677 | AI70: 82.91582791 | AJ70: 82.91643388 | AK70: 82.91618952 | AL70: 82.91615044 | AM70: 82.91625795 | AN70: 82.9161993 | AO70: 82.91620256 | AP70: 82.91621994 | AQ70: 82.91620727 | AR70: 82.91620992
A71: 1600000US4010050 | B71: Burlington town, Oklahoma | C71: 98.2 | D71: 95.2 | E71: 93.4 | F71: 94.4 | G71: 95.9 | H71: 94.3 | I71: 94.5 | J71: 92.30769231 | K71: 89.24731183 | L71: 88.0952381 | M71: 88.90925047 | N71: 88.06456433 | O71: 87.21987819 | P71: 86.37519205 | Q71: 85.53050591 | R71: 84.68581978 | S71: 83.84113364 | T71: 82.9964475 | U71: 82.15176136 | V71: 81.30707523 | W71: 82.15176136 | X71: 81.87019932 | Y71: 81.7763453 | Z71: 81.93276866 | AA71: 81.85977109 | AB71: 81.85629502 | AC71: 81.88294492 | AD71: 81.86633701 | AE71: 81.86852565 | AF71: 81.87260253 | AG71: 81.86915506 | AH71: 81.87009442 | AI71: 81.87061734 | AJ71: 81.86995561 | AK71: 81.87022245 | AL71: 81.87026513 | AM71: 81.87014773 | AN71: 81.87021177 | AO71: 81.87020821 | AP71: 81.87018924 | AQ71: 81.87020307 | AR71: 81.87020017
A72: 1600000US4010250 | B72: Burns Flat town, Oklahoma | C72: 83 | D72: 84.1 | E72: 84.2 | F72: 81.2 | G72: 85 | H72: 87 | I72: 88.7 | J72: 84.75016223 | K72: 85.89298124 | L72: 86.07512953 | M72: 87.24108882 | N72: 87.65004546 | O72: 88.0590021 | P72: 88.46795874 | Q72: 88.87691538 | R72: 89.28587202 | S72: 89.69482866 | T72: 90.1037853 | U72: 90.51274194 | V72: 90.92169858 | W72: 90.51274194 | X72: 90.64906082 | Y72: 90.69450045 | Z72: 90.61876774 | AA72: 90.65410967 | AB72: 90.65579262 | AC72: 90.64289001 | AD72: 90.65093076 | AE72: 90.64987113 | AF72: 90.6478973 | AG72: 90.6495664 | AH72: 90.64911161 | AI72: 90.64885844 | AJ72: 90.64917881 | AK72: 90.64904962 | AL72: 90.64902896 | AM72: 90.6490858 | AN72: 90.64905479 | AO72: 90.64905651 | AP72: 90.6490657 | AQ72: 90.649059 | AR72: 90.64906041
A73: 1600000US4010450 | B73: Butler town, Oklahoma | C73: 77.8 | D73: 83.6 | E73: 81.1 | F73: 78.8 | G73: 82.4 | H73: 82.3 | I73: 83 | J73: 77.83018868 | K73: 85.20408163 | L73: 86.51685393 | M73: 84.71615243 | N73: 85.23634152 | O73: 85.75653061 | P73: 86.27671971 | Q73: 86.7969088 | R73: 87.31709789 | S73: 87.83728698 | T73: 88.35747607 | U73: 88.87766517 | V73: 89.39785426 | W73: 88.87766517 | X73: 89.05106153 | Y73: 89.10886032 | Z73: 89.012529 | AA73: 89.05748362 | AB73: 89.05962431 | AC73: 89.04321231 | AD73: 89.05344008 | AE73: 89.05209224 | AF73: 89.04958154 | AG73: 89.05170462 | AH73: 89.05112613 | AI73: 89.0508041 | AJ73: 89.05121162 | AK73: 89.05104728 | AL73: 89.051021 | AM73: 89.0510933 | AN73: 89.05105386 | AO73: 89.05105605 | AP73: 89.05106774 | AQ73: 89.05105922 | AR73: 89.051061
A74: 1600000US4010550 | B74: Byars town, Oklahoma | C74: 99.2 | D74: 95.1 | E74: 78.4 | F74: 72.1 | G74: 72.8 | H74: 70.3 | I74: 70.9 | J74: 76.97841727 | K74: 78.35820896 | L74: 83.33333333 | M74: 70.64031426 | N74: 68.98455395 | O74: 67.32879364 | P74: 65.67303333 | Q74: 64.01727302 | R74: 62.36151271 | S74: 60.7057524 | T74: 59.0499921 | U74: 57.39423179 | V74: 55.73847148 | W74: 57.39423179 | X74: 56.84231168 | Y74: 56.65833832 | Z74: 56.9649606 | AA74: 56.8218702 | AB74: 56.81505637 | AC74: 56.86729572 | AD74: 56.83474076 | AE74: 56.83903095 | AF74: 56.84702248 | AG74: 56.84026473 | AH74: 56.84210605 | AI74: 56.84313109 | AJ74: 56.84183396 | AK74: 56.84235703 | AL74: 56.84244069 | AM74: 56.84221056 | AN74: 56.8423361 | AO74: 56.84232912 | AP74: 56.84229192 | AQ74: 56.84231905 | AR74: 56.84231336
A75: 1600000US4010600 | B75: Byng town, Oklahoma | C75: 87.7 | D75: 86 | E75: 87.4 | F75: 85.8 | G75: 84.8 | H75: 87 | I75: 90.6 | J75: 90.03285871 | K75: 92.70386266 | L75: 93.11064718 | M75: 92.69430875 | N75: 93.45423091 | O75: 94.21415307 | P75: 94.97407524 | Q75: 95.7339974 | R75: 96.49391956 | S75: 97.25384172 | T75: 98.01376388 | U75: 98.77368605 | V75: 99.53360821 | W75: 98.77368605 | X75: 99.02699343 | Y75: 99.11142923 | Z75: 98.9707029 | AA75: 99.03637519 | AB75: 99.03950244 | AC75: 99.01552684 | AD75: 99.03046816 | AE75: 99.02849915 | AF75: 99.02483138 | AG75: 99.0279329 | AH75: 99.02708781 | AI75: 99.02661736 | AJ75: 99.02721269 | AK75: 99.02697262 | AL75: 99.02693422 | AM75: 99.02703985 | AN75: 99.02698223 | AO75: 99.02698543 | AP75: 99.0270025 | AQ75: 99.02699006 | AR75: 99.02699266
A76: 1600000US4010700 | B76: Cache city, Oklahoma | C76: 92.6 | D76: 89.8 | E76: 88.8 | F76: 92.2 | G76: 90.2 | H76: 90.2 | I76: 91.2 | J76: 93.62176628 | K76: 92.45977011 | L76: 93.04713019 | M76: 92.87124645 | N76: 93.13640642 | O76: 93.40156638 | P76: 93.66672634 | Q76: 93.93188631 | R76: 94.19704627 | S76: 94.46220623 | T76: 94.72736619 | U76: 94.99252616 | V76: 95.25768612 | W76: 94.99252616 | X76: 95.08091281 | Y76: 95.11037503 | Z76: 95.06127133 | AA76: 95.08418639 | AB76: 95.08527758 | AC76: 95.07691177 | AD76: 95.08212525 | AE76: 95.0814382 | AF76: 95.08015841 | AG76: 95.08124062 | AH76: 95.08094574 | AI76: 95.08078159 | AJ76: 95.08098932 | AK76: 95.08090555 | AL76: 95.08089215 | AM76: 95.08092901 | AN76: 95.0809089 | AO76: 95.08091002 | AP76: 95.08091598 | AQ76: 95.08091163 | AR76: 95.08091254
A77: 1600000US4010800 | B77: Caddo town, Oklahoma | C77: 90 | D77: 87.4 | E77: 87.1 | F77: 86.9 | G77: 87.3 | H77: 87.3 | I77: 90.1 | J77: 87.0669746 | K77: 85.58091286 | L77: 85.39915966 | M77: 85.92449471 | N77: 85.65354744 | O77: 85.38260016 | P77: 85.11165289 | Q77: 84.84070562 | R77: 84.56975835 | S77: 84.29881107 | T77: 84.0278638 | U77: 83.75691653 | V77: 83.48596925 | W77: 83.75691653 | X77: 83.66660077 | Y77: 83.63649552 | Z77: 83.68667094 | AA77: 83.66325574 | AB77: 83.66214073 | AC77: 83.67068914 | AD77: 83.66536187 | AE77: 83.66606391 | AF77: 83.66737164 | AG77: 83.66626581 | AH77: 83.66656712 | AI77: 83.66673486 | AJ77: 83.66652259 | AK77: 83.66660819 | AL77: 83.66662188 | AM77: 83.66658422 | AN77: 83.66660476 | AO77: 83.66660362 | AP77: 83.66659754 | AQ77: 83.66660197 | AR77: 83.66660104
A78: 1600000US4010950 | B78: Calera town, Oklahoma | C78: 85 | D78: 81.6 | E78: 83.4 | F78: 85.2 | G78: 87.3 | H78: 89.7 | I78: 90.1 | J78: 87.10675606 | K78: 84.54157783 | L78: 86.38190955 | M78: 88.32175805 | N78: 88.73789145 | O78: 89.15402485 | P78: 89.57015825 | Q78: 89.98629165 | R78: 90.40242505 | S78: 90.81855845 | T78: 91.23469185 | U78: 91.65082525 | V78: 92.06695865 | W78: 91.65082525 | X78: 91.78953638 | Y78: 91.83577343 | Z78: 91.75871169 | AA78: 91.79467383 | AB78: 91.79638631 | AC78: 91.78325728 | AD78: 91.79143914 | AE78: 91.79036091 | AF78: 91.78835244 | AG78: 91.79005083 | AH78: 91.78958806 | AI78: 91.78933045 | AJ78: 91.78965645 | AK78: 91.78952498 | AL78: 91.78950396 | AM78: 91.7895618 | AN78: 91.78953025 | AO78: 91.789532 | AP78: 91.78954135 | AQ78: 91.78953453 | AR78: 91.78953596
A79: 1600000US4011050 | B79: Calumet town, Oklahoma | C79: 85 | D79: 90 | E79: 84.5 | F79: 82.9 | G79: 85.5 | H79: 85.7 | I79: 89.3 | J79: 94.87179487 | K79: 96.62162162 | L79: 95.52238806 | M79: 96.06864106 | N79: 97.35537935 | O79: 98.64211765 | P79: 99.92885594 | Q79: 100 | R79: 100 | S79: 100 | T79: 100 | U79: 100 | V79: 100 | W79: 100 | X79: 100 | Y79: 100 | Z79: 100 | AA79: 100 | AB79: 100 | AC79: 100 | AD79: 100 | AE79: 100 | AF79: 100 | AG79: 100 | AH79: 100 | AI79: 100 | AJ79: 100 | AK79: 100 | AL79: 100 | AM79: 100 | AN79: 100 | AO79: 100 | AP79: 100 | AQ79: 100 | AR79: 100
A80: 1600000US4011100 | B80: Calvin town, Oklahoma | C80: 62.8 | D80: 78.7 | E80: 77 | F80: 70.5 | G80: 74.3 | H80: 77.8 | I80: 80.5 | J80: 80.7486631 | K80: 78.57142857 | L80: 80.88235294 | M80: 83.31639419 | N80: 84.61387596 | O80: 85.91135773 | P80: 87.2088395 | Q80: 88.50632127 | R80: 89.80380304 | S80: 91.10128481 | T80: 92.39876658 | U80: 93.69624835 | V80: 94.99373012 | W80: 93.69624835 | X80: 94.12874227 | Y80: 94.27290691 | Z80: 94.03263251 | AA80: 94.14476056 | AB80: 94.1501 | AC80: 94.10916436 | AD80: 94.13467497 | AE80: 94.13131311 | AF80: 94.12505081 | AG80: 94.1303463 | AH80: 94.12890341 | AI80: 94.12810017 | AJ80: 94.12911663 | AK80: 94.12870673 | AL80: 94.12864118 | AM80: 94.12882151 | AN80: 94.12872314 | AO80: 94.12872861 | AP80: 94.12875775 | AQ80: 94.1287365 | AR80: 94.12874096
A81: 1600000US4011150 | B81: Camargo town, Oklahoma | C81: 75 | D81: 69.2 | E81: 67.8 | F81: 69.5 | G81: 74.8 | H81: 75.2 | I81: 80.8 | J81: 89.18918919 | K81: 90.8045977 | L81: 93.10344828 | M81: 93.720029 | N81: 96.48008454 | O81: 99.24014008 | P81: 100 | Q81: 100 | R81: 100 | S81: 100 | T81: 100 | U81: 100 | V81: 100 | W81: 100 | X81: 100 | Y81: 100 | Z81: 100 | AA81: 100 | AB81: 100 | AC81: 100 | AD81: 100 | AE81: 100 | AF81: 100 | AG81: 100 | AH81: 100 | AI81: 100 | AJ81: 100 | AK81: 100 | AL81: 100 | AM81: 100 | AN81: 100 | AO81: 100 | AP81: 100 | AQ81: 100 | AR81: 100
A82: 1600000US4011300 | B82: Cameron town, Oklahoma | C82: 79.5 | D82: 84.2 | E82: 77.9 | F82: 76.5 | G82: 77.4 | H82: 72.4 | I82: 76.6 | J82: 81.38528139 | K82: 77.5 | L82: 82.83261803 | M82: 78.48245558 | N82: 78.45712206 | O82: 78.43178854 | P82: 78.40645502 | Q82: 78.3811215 | R82: 78.35578798 | S82: 78.33045446 | T82: 78.30512094 | U82: 78.27978742 | V82: 78.2544539 | W82: 78.27978742 | X82: 78.27134292 | Y82: 78.26852808 | Z82: 78.27321947 | AA82: 78.27103016 | AB82: 78.2709259 | AC82: 78.27172518 | AD82: 78.27122708 | AE82: 78.27129272 | AF82: 78.27141499 | AG82: 78.2713116 | AH82: 78.27133977 | AI82: 78.27135545 | AJ82: 78.27133561 | AK82: 78.27134361 | AL82: 78.27134489 | AM82: 78.27134137 | AN82: 78.27134329 | AO82: 78.27134318 | AP82: 78.27134261 | AQ82: 78.27134303 | AR82: 78.27134294
A83: 1600000US4011450 | B83: Canadian town, Oklahoma | C83: 86.2 | D83: 87.9 | E83: 86.3 | F83: 83.1 | G83: 86.3 | H83: 86.7 | I83: 85.8 | J83: 82.46753247 | K83: 85.6 | L83: 81.89655172 | M83: 83.04329601 | N83: 82.64636649 | O83: 82.24943696 | P83: 81.85250743 | Q83: 81.4555779 | R83: 81.05864837 | S83: 80.66171884 | T83: 80.26478932 | U83: 79.86785979 | V83: 79.47093026 | W83: 79.86785979 | X83: 79.73554994 | Y83: 79.69144666 | Z83: 79.76495213 | AA83: 79.73064958 | AB83: 79.72901612 | AC83: 79.74153928 | AD83: 79.73373499 | AE83: 79.73476347 | AF83: 79.73667925 | AG83: 79.73505924 | AH83: 79.73550065 | AI83: 79.73574638 | AJ83: 79.73543542 | AK83: 79.73556082 | AL83: 79.73558087 | AM83: 79.7355257 | AN83: 79.7355558 | AO83: 79.73555412 | AP83: 79.73554521 | AQ83: 79.73555171 | AR83: 79.73555035
A84: 1600000US4011550 | B84: Caney town, Oklahoma | C84: 75.6 | D84: 77.2 | E84: 75.3 | F84: 82.3 | G84: 78.8 | H84: 81.4 | I84: 85.8 | J84: 88.15789474 | K84: 85.81081081 | L84: 81.75182482 | M84: 87.6464388 | N84: 88.81632712 | O84: 89.98621543 | P84: 91.15610375 | Q84: 92.32599207 | R84: 93.49588039 | S84: 94.66576871 | T84: 95.83565703 | U84: 97.00554535 | V84: 98.17543367 | W84: 97.00554535 | X84: 97.39550813 | Y84: 97.52549572 | Z84: 97.30884973 | AA84: 97.40995119 | AB84: 97.41476555 | AC84: 97.37785549 | AD84: 97.40085741 | AE84: 97.39782615 | AF84: 97.39217968 | AG84: 97.39695441 | AH84: 97.39565342 | AI84: 97.39492917 | AJ84: 97.39584567 | AK84: 97.39547608 | AL84: 97.39541697 | AM84: 97.39557957 | AN84: 97.39549088 | AO84: 97.39549581 | AP84: 97.39552209 | AQ84: 97.39550292 | AR84: 97.39550694
A85: 1600000US4011600 | B85: Canton town, Oklahoma | C85: 83.7 | D85: 77.8 | E85: 79.4 | F85: 82.4 | G85: 81.3 | H85: 86.7 | I85: 91.4 | J85: 89.58990536 | K85: 89.97214485 | L85: 90 | M85: 92.73468971 | N85: 94.09986875 | O85: 95.46504778 | P85: 96.83022682 | Q85: 98.19540585 | R85: 99.56058489 | S85: 100 | T85: 100 | U85: 100 | V85: 100 | W85: 100 | X85: 100 | Y85: 100 | Z85: 100 | AA85: 100 | AB85: 100 | AC85: 100 | AD85: 100 | AE85: 100 | AF85: 100 | AG85: 100 | AH85: 100 | AI85: 100 | AJ85: 100 | AK85: 100 | AL85: 100 | AM85: 100 | AN85: 100 | AO85: 100 | AP85: 100 | AQ85: 100 | AR85: 100
A86: 1600000US4011650 | B86: Canute town, Oklahoma | C86: 88.6 | D86: 89.5 | E86: 90.9 | F86: 80.9 | G86: 80.7 | H86: 86.9 | I86: 87.9 | J86: 82.46073298 | K86: 88.38526912 | L86: 90.56122449 | M86: 86.5091083 | N86: 86.47790569 | O86: 86.44670307 | P86: 86.41550046 | Q86: 86.38429785 | R86: 86.35309524 | S86: 86.32189263 | T86: 86.29069002 | U86: 86.25948741 | V86: 86.2282848 | W86: 86.25948741 | X86: 86.24908654 | Y86: 86.24561958 | Z86: 86.25139784 | AA86: 86.24870132 | AB86: 86.24857291 | AC86: 86.24955736 | AD86: 86.24894386 | AE86: 86.24902471 | AF86: 86.24917531 | AG86: 86.24904796 | AH86: 86.24908266 | AI86: 86.24910198 | AJ86: 86.24907753 | AK86: 86.24908739 | AL86: 86.24908897 | AM86: 86.24908463 | AN86: 86.249087 | AO86: 86.24908687 | AP86: 86.24908616 | AQ86: 86.24908668 | AR86: 86.24908657
A87: 1600000US4012000 | B87: Carmen town, Oklahoma | C87: 85.7 | D87: 85.9 | E87: 87.9 | F87: 88.1 | G87: 89 | H87: 92.5 | I87: 94.1 | J87: 90.38461538 | K87: 86.37681159 | L87: 83.89057751 | M87: 89.08439897 | N87: 89.21152597 | O87: 89.33865298 | P87: 89.46577998 | Q87: 89.59290698 | R87: 89.72003399 | S87: 89.84716099 | T87: 89.97428799 | U87: 90.101415 | V87: 90.228542 | W87: 90.101415 | X87: 90.14379067 | Y87: 90.15791589 | Z87: 90.13437385 | AA87: 90.14536014 | AB87: 90.14588329 | AC87: 90.14187243 | AD87: 90.14437195 | AE87: 90.14404256 | AF87: 90.14342898 | AG87: 90.14394783 | AH87: 90.14380645 | AI87: 90.14372775 | AJ87: 90.14382735 | AK87: 90.14378718 | AL87: 90.14378076 | AM87: 90.14379843 | AN87: 90.14378879 | AO87: 90.14378933 | AP87: 90.14379218 | AQ87: 90.1437901 | AR87: 90.14379054
A88: 1600000US4012050 | B88: Carnegie town, Oklahoma | C88: 76.1 | D88: 79.5 | E88: 80.1 | F88: 79.7 | G88: 81.3 | H88: 81.7 | I88: 79.4 | J88: 82.4238129 | K88: 82.47800587 | L88: 83.2326284 | M88: 83.79873676 | N88: 84.38151713 | O88: 84.9642975 | P88: 85.54707787 | Q88: 86.12985824 | R88: 86.71263861 | S88: 87.29541898 | T88: 87.87819935 | U88: 88.46097972 | V88: 89.04376009 | W88: 88.46097972 | X88: 88.65523985 | Y88: 88.71999322 | Z88: 88.61207093 | AA88: 88.66243467 | AB88: 88.66483294 | AC88: 88.64644618 | AD88: 88.65790459 | AE88: 88.65639457 | AF88: 88.65358178 | AG88: 88.65596032 | AH88: 88.65531222 | AI88: 88.65495144 | AJ88: 88.65540799 | AK88: 88.65522389 | AL88: 88.65519444 | AM88: 88.65527544 | AN88: 88.65523125 | AO88: 88.65523371 | AP88: 88.6552468 | AQ88: 88.65523726 | AR88: 88.65523926
A89: 1600000US4012100 | B89: Carney town, Oklahoma | C89: 80.5 | D89: 80.2 | E89: 74.8 | F89: 81.7 | G89: 82.8 | H89: 82.2 | I89: 82.7 | J89: 83.22440087 | K89: 86.08349901 | L89: 85.05050505 | M89: 86.14787526 | N89: 86.91551794 | O89: 87.68316062 | P89: 88.45080331 | Q89: 89.21844599 | R89: 89.98608868 | S89: 90.75373136 | T89: 91.52137404 | U89: 92.28901673 | V89: 93.05665941 | W89: 92.28901673 | X89: 92.54489762 | Y89: 92.63019125 | Z89: 92.4880352 | AA89: 92.55437469 | AB89: 92.55753372 | AC89: 92.53331454 | AD89: 92.54840765 | AE89: 92.54641863 | AF89: 92.54271361 | AG89: 92.54584663 | AH89: 92.54499296 | AI89: 92.54451773 | AJ89: 92.54511911 | AK89: 92.5448766 | AL89: 92.54483781 | AM89: 92.5449445 | AN89: 92.5448863 | AO89: 92.54488954 | AP89: 92.54490678 | AQ89: 92.54489421 | AR89: 92.54489684
A90: 1600000US4012200 | B90: Carrier town, Oklahoma | C90: 97.1 | D90: 90.9 | E90: 91.9 | F90: 95.2 | G90: 95.6 | H90: 97.7 | I90: 100 | J90: 86.04651163 | K90: 90 | L90: 92.30769231 | M90: 91.60214669 | N90: 91.22518784 | O90: 90.84822898 | P90: 90.47127013 | Q90: 90.09431127 | R90: 89.71735242 | S90: 89.34039356 | T90: 88.96343471 | U90: 88.58647585 | V90: 88.209517 | W90: 88.58647585 | X90: 88.4608229 | Y90: 88.41893858 | Z90: 88.48874578 | AA90: 88.45616909 | AB90: 88.45461782 | AC90: 88.46651089 | AD90: 88.45909927 | AE90: 88.46007599 | AF90: 88.46189538 | AG90: 88.46035688 | AH90: 88.46077609 | AI90: 88.46100945 | AJ90: 88.46071414 | AK90: 88.46083323 | AL90: 88.46085227 | AM90: 88.46079988 | AN90: 88.46082846 | AO90: 88.46082687 | AP90: 88.4608184 | AQ90: 88.46082458 | AR90: 88.46082328
A91: 1600000US4012300 | B91: Carter town, Oklahoma | C91: 83.3 | D91: 78.3 | E91: 82.9 | F91: 83.2 | G91: 77.4 | H91: 79.8 | I91: 79.7 | J91: 81.72043011 | K91: 76.5 | L91: 77.48691099 | M91: 77.40021243 | N91: 76.92193576 | O91: 76.44365909 | P91: 75.96538242 | Q91: 75.48710575 | R91: 75.00882908 | S91: 74.53055241 | T91: 74.05227574 | U91: 73.57399907 | V91: 73.0957224 | W91: 73.57399907 | X91: 73.41457351 | Y91: 73.36143166 | Z91: 73.45000141 | AA91: 73.40866886 | AB91: 73.40670064 | AC91: 73.4217903 | AD91: 73.4123866 | AE91: 73.41362585 | AF91: 73.41593425 | AG91: 73.41398223 | AH91: 73.41451411 | AI91: 73.4148102 | AJ91: 73.41443552 | AK91: 73.41458661 | AL91: 73.41461077 | AM91: 73.4145443 | AN91: 73.41458056 | AO91: 73.41457854 | AP91: 73.4145678 | AQ91: 73.41457564 | AR91: 73.41457399
A92: 1600000US4012650 | B92: Cashion town, Oklahoma | C92: 95.5 | D92: 94.5 | E92: 93.6 | F92: 93.9 | G92: 93.3 | H92: 92.9 | I92: 92.3 | J92: 88.80733945 | K92: 90.57301294 | L92: 88.83415435 | M92: 88.53328991 | N92: 87.82635159 | O92: 87.11941326 | P92: 86.41247494 | Q92: 85.70553662 | R92: 84.9985983 | S92: 84.29165998 | T92: 83.58472166 | U92: 82.87778334 | V92: 82.17084501 | W92: 82.87778334 | X92: 82.64213723 | Y92: 82.56358853 | Z92: 82.69450303 | AA92: 82.6334096 | AB92: 82.63050038 | AC92: 82.65280434 | AD92: 82.63890477 | AE92: 82.6407365 | AF92: 82.64414854 | AG92: 82.64126327 | AH92: 82.64204943 | AI92: 82.64248708 | AJ92: 82.64193326 | AK92: 82.64215659 | AL92: 82.64219231 | AM92: 82.64209405 | AN92: 82.64214765 | AO92: 82.64214467 | AP92: 82.64212879 | AQ92: 82.64214037 | AR92: 82.64213795
A93: 1600000US4012750 | B93: Castle town, Oklahoma | C93: 100 | D93: 87.8 | E93: 82.8 | F93: 68.8 | G93: 65.7 | H93: 62.5 | I93: 70 | J93: 70.37037037 | K93: 76.40449438 | L93: 72.82608696 | M93: 62.85069834 | N93: 60.51080801 | O93: 58.17091768 | P93: 55.83102735 | Q93: 53.49113701 | R93: 51.15124668 | S93: 48.81135635 | T93: 46.47146602 | U93: 44.13157568 | V93: 41.79168535 | W93: 44.13157568 | X93: 43.35161224 | Y93: 43.09162442 | Z93: 43.52493745 | AA93: 43.3227247 | AB93: 43.31309553 | AC93: 43.38691923 | AD93: 43.34091315 | AE93: 43.34697597 | AF93: 43.35826945 | AG93: 43.34871952 | AH93: 43.35132165 | AI93: 43.35277021 | AJ93: 43.35093713 | AK93: 43.35167633 | AL93: 43.35179455 | AM93: 43.35146933 | AN93: 43.35164674 | AO93: 43.35163687 | AP93: 43.35158432 | AQ93: 43.35162264 | AR93: 43.35161461
A94: 1600000US4012900 | B94: Catoosa city, Oklahoma | C94: 91 | D94: 91.6 | E94: 90.2 | F94: 87.4 | G94: 87.2 | H94: 87.6 | I94: 86.1 | J94: 84.31708991 | K94: 84.41992645 | L94: 84.19927655 | M94: 82.59091008 | N94: 81.71587022 | O94: 80.84083037 | P94: 79.96579051 | Q94: 79.09075065 | R94: 78.2157108 | S94: 77.34067094 | T94: 76.46563108 | U94: 75.59059123 | V94: 74.71555137 | W94: 75.59059123 | X94: 75.29891127 | Y94: 75.20168462 | Z94: 75.36372904 | AA94: 75.28810831 | AB94: 75.28450733 | AC94: 75.31211489 | AD94: 75.29491018 | AE94: 75.29717747 | AF94: 75.30140085 | AG94: 75.2978295 | AH94: 75.2988026 | AI94: 75.29934431 | AJ94: 75.2986588 | AK94: 75.29893524 | AL94: 75.29897945 | AM94: 75.29885783 | AN94: 75.29892418 | AO94: 75.29892049 | AP94: 75.29890083 | AQ94: 75.29891516 | AR94: 75.29891216
A95: 1600000US4012960 | B95: Cedar Valley city, Oklahoma | C95: 98.5 | D95: 97.9 | E95: 97.2 | F95: 96.8 | G95: 96.1 | H95: 96.4 | I95: 96.6 | J95: 90.90909091 | K95: 91.64677804 | L95: 94.48441247 | M95: 91.93178191 | N95: 91.25500987 | O95: 90.57823783 | P95: 89.90146578 | Q95: 89.22469374 | R95: 88.5479217 | S95: 87.87114966 | T95: 87.19437762 | U95: 86.51760557 | V95: 85.84083353 | W95: 86.51760557 | X95: 86.29201489 | Y95: 86.216818 | Z95: 86.34214616 | AA95: 86.28365968 | AB95: 86.28087461 | AC95: 86.30222682 | AD95: 86.28892037 | AE95: 86.29067393 | AF95: 86.29394037 | AG95: 86.29117823 | AH95: 86.29193084 | AI95: 86.29234982 | AJ95: 86.29181963 | AK95: 86.29203343 | AL95: 86.29206762 | AM95: 86.29197356 | AN95: 86.29202487 | AO95: 86.29202202 | AP95: 86.29200682 | AQ95: 86.2920179 | AR95: 86.29201558
A96: 1600000US4013000 | B96: Cement town, Oklahoma | C96: 71.3 | D96: 72.5 | E96: 74.5 | F96: 72.8 | G96: 74.1 | H96: 73.8 | I96: 77.7 | J96: 75.98784195 | K96: 72.8358209 | L96: 80.90614887 | M96: 78.3311577 | N96: 79.00173525 | O96: 79.6723128 | P96: 80.34289035 | Q96: 81.0134679 | R96: 81.68404546 | S96: 82.35462301 | T96: 83.02520056 | U96: 83.69577811 | V96: 84.36635566 | W96: 83.69577811 | X96: 83.91930396 | Y96: 83.99381257 | Z96: 83.86963155 | AA96: 83.92758269 | AB96: 83.93034227 | AC96: 83.9091855 | AD96: 83.92237016 | AE96: 83.92063264 | AF96: 83.9173961 | AG96: 83.92013297 | AH96: 83.91938724 | AI96: 83.9189721 | AJ96: 83.91949744 | AK96: 83.91928559 | AL96: 83.91925171 | AM96: 83.91934491 | AN96: 83.91929407 | AO96: 83.9192969 | AP96: 83.91931196 | AQ96: 83.91930098 | AR96: 83.91930328
A97: 1600000US4013100 | B97: Centrahoma city, Oklahoma | C97: 78.8 | D97: 57.9 | E97: 57.1 | F97: 87.9 | G97: 88.3 | H97: 89.8 | I97: 81.3 | J97: 75 | K97: 68.18181818 | L97: 73.91304348 | M97: 79.12582345 | N97: 79.72697569 | O97: 80.32812792 | P97: 80.92928015 | Q97: 81.53043239 | R97: 82.13158462 | S97: 82.73273685 | T97: 83.33388909 | U97: 83.93504132 | V97: 84.53619356 | W97: 83.93504132 | X97: 84.1354254 | Y97: 84.20222009 | Z97: 84.09089561 | AA97: 84.14284703 | AB97: 84.14532091 | AC97: 84.12635452 | AD97: 84.13817415 | AE97: 84.13661653 | AF97: 84.13371507 | AG97: 84.13616858 | AH97: 84.13550006 | AI97: 84.1351279 | AJ97: 84.13559885 | AK97: 84.13540894 | AL97: 84.13537856 | AM97: 84.13546211 | AN97: 84.13541654 | AO97: 84.13541907 | AP97: 84.13543257 | AQ97: 84.13542273 | AR97: 84.13542479
A98: 1600000US4013135 | B98: Central High town, Oklahoma | C98: 87.1 | D98: 89.7 | E98: 91.7 | F98: 90.9 | G98: 92.6 | H98: 92.7 | I98: 92.2 | J98: 90.79445145 | K98: 91.28959276 | L98: 89.68335036 | M98: 91.99505812 | N98: 92.20020696 | O98: 92.40535581 | P98: 92.61050466 | Q98: 92.81565351 | R98: 93.02080235 | S98: 93.2259512 | T98: 93.43110005 | U98: 93.6362489 | V98: 93.84139774 | W98: 93.6362489 | X98: 93.70463185 | Y98: 93.72742616 | Z98: 93.68943563 | AA98: 93.70716455 | AB98: 93.70800878 | AC98: 93.70153632 | AD98: 93.70556988 | AE98: 93.70503833 | AF98: 93.70404818 | AG98: 93.70488546 | AH98: 93.70465732 | AI98: 93.70453032 | AJ98: 93.70469104 | AK98: 93.70462623 | AL98: 93.70461586 | AM98: 93.70464437 | AN98: 93.70462882 | AO98: 93.70462969 | AP98: 93.70463429 | AQ98: 93.70463093 | AR98: 93.70463164
A99: 1600000US4013500 | B99: Chandler city, Oklahoma | C99: 79.6 | D99: 85.2 | E99: 80.2 | F99: 83.1 | G99: 80.7 | H99: 83.2 | I99: 83.5 | J99: 84.95846087 | K99: 84.16592328 | L99: 86.73240699 | M99: 85.95052679 | N99: 86.46231727 | O99: 86.97410776 | P99: 87.48589825 | Q99: 87.99768873 | R99: 88.50947922 | S99: 89.02126971 | T99: 89.53306019 | U99: 90.04485068 | V99: 90.55664116 | W99: 90.04485068 | X99: 90.21544751 | Y99: 90.27231312 | Z99: 90.1775371 | AA99: 90.22176591 | AB99: 90.22387204 | AC99: 90.20772502 | AD99: 90.21778765 | AE99: 90.21646157 | AF99: 90.21399141 | AG99: 90.21608021 | AH99: 90.21551107 | AI99: 90.21519423 | AJ99: 90.21559517 | AK99: 90.21543349 | AL99: 90.21540763 | AM99: 90.21547876 | AN99: 90.21543996 | AO99: 90.21544212 | AP99: 90.21545361 | AQ99: 90.21544523 | AR99: 90.21544699
A100: 1600000US4013600 | B100: Chattanooga town, Oklahoma | C100: 93.3 | D100: 91.7 | E100: 91.7 | F100: 93.8 | G100: 91.2 | H100: 91.1 | I100: 92.7 | J100: 90.9375 | K100: 90.76923077 | L100: 91.42857143 | M100: 90.8445055 | N100: 90.65922827 | O100: 90.47395105 | P100: 90.28867383 | Q100: 90.1033966 | R100: 89.91811938 | S100: 89.73284216 | T100: 89.54756494 | U100: 89.36228771 | V100: 89.17701049 | W100: 89.36228771 | X100: 89.30052864 | Y100: 89.27994228 | Z100: 89.31425288 | AA100: 89.29824127 | AB100: 89.29747881 | AC100: 89.30332432 | AD100: 89.29968146 | AE100: 89.30016153 | AF100: 89.30105577 | AG100: 89.30029959 | AH100: 89.30050563 | AI100: 89.30062033 | AJ100: 89.30047518 | AK100: 89.30053371 | AL100: 89.30054308 | AM100: 89.30051732 | AN100: 89.30053137 | AO100: 89.30053059 | AP100: 89.30052643 | AQ100: 89.30052946 | AR100: 89.30052883
A101: 1600000US4013650 | B101: Checotah city, Oklahoma | C101: 70.6 | D101: 75.2 | E101: 74.2 | F101: 73 | G101: 75.6 | H101: 80.3 | I101: 81.8 | J101: 83.00950806 | K101: 81.3810111 | L101: 81.24491456 | M101: 84.77417167 | N101: 86.07246773 | O101: 87.37076378 | P101: 88.66905984 | Q101: 89.96735589 | R101: 91.26565195 | S101: 92.563948 | T101: 93.86224406 | U101: 95.16054011 | V101: 96.45883617 | W101: 95.16054011 | X101: 95.59330546 | Y101: 95.73756058 | Z101: 95.49713539 | AA101: 95.60933381 | AB101: 95.61467659 | AC101: 95.57371526 | AD101: 95.59924189 | AE101: 95.59587791 | AF101: 95.58961169 | AG101: 95.5949105 | AH101: 95.5934667 | AI101: 95.59266296 | AJ101: 95.59368005 | AK101: 95.5932699 | AL101: 95.59320431 | AM101: 95.59338475 | AN101: 95.59328632 | AO101: 95.59329179 | AP101: 95.59332096 | AQ101: 95.59329969 | AR101: 95.59330415
A102: 1600000US4013700 | B102: Chelsea town, Oklahoma | C102: 77.3 | D102: 77.3 | E102: 78.2 | F102: 74.4 | G102: 79 | H102: 81.1 | I102: 81.7 | J102: 81.23306233 | K102: 83.32194122 | L102: 83.9309429 | M102: 84.44850752 | N102: 85.30303714 | O102: 86.15756675 | P102: 87.01209636 | Q102: 87.86662598 | R102: 88.72115559 | S102: 89.5756852 | T102: 90.43021482 | U102: 91.28474443 | V102: 92.13927405 | W102: 91.28474443 | X102: 91.56958764 | Y102: 91.66453537 | Z102: 91.50628915 | AA102: 91.58013739 | AB102: 91.58365397 | AC102: 91.5566935 | AD102: 91.57349495 | AE102: 91.57128081 | AF102: 91.56715642 | AG102: 91.57064406 | AH102: 91.56969376 | AI102: 91.56916475 | AJ102: 91.56983419 | AK102: 91.56956423 | AL102: 91.56952106 | AM102: 91.56963983 | AN102: 91.56957504 | AO102: 91.56957864 | AP102: 91.56959783 | AQ102: 91.56958384 | AR102: 91.56958677
A103: 1600000US4013750 | B103: Cherokee city, Oklahoma | C103: 90.3 | D103: 87.5 | E103: 87.7 | F103: 88.6 | G103: 88.4 | H103: 86.5 | I103: 87.9 | J103: 87.59183673 | K103: 88.08373591 | L103: 85.41157294 | M103: 86.31703094 | N103: 86.04763392 | O103: 85.7782369 | P103: 85.50883988 | Q103: 85.23944286 | R103: 84.97004583 | S103: 84.70064881 | T103: 84.43125179 | U103: 84.16185477 | V103: 83.89245775 | W103: 84.16185477 | X103: 84.07205576 | Y103: 84.04212276 | Z103: 84.0920111 | AA103: 84.06872987 | AB103: 84.06762124 | AC103: 84.07612074 | AD103: 84.07082395 | AE103: 84.07152198 | AF103: 84.07282222 | AG103: 84.07172272 | AH103: 84.07202231 | AI103: 84.07218908 | AJ103: 84.07197804 | AK103: 84.07206314 | AL103: 84.07207675 | AM103: 84.07203931 | AN103: 84.07205973 | AO103: 84.0720586 | AP103: 84.07205255 | AQ103: 84.07205696 | AR103: 84.07205604
A104: 1600000US4013900 | B104: Cheyenne town, Oklahoma | C104: 86.7 | D104: 83.6 | E104: 87.7 | F104: 90.9 | G104: 88.7 | H104: 92.8 | I104: 92.1 | J104: 87.38738739 | K104: 86.121673 | L104: 85.03937008 | M104: 88.399609 | N104: 88.45320281 | O104: 88.50679662 | P104: 88.56039043 | Q104: 88.61398424 | R104: 88.66757805 | S104: 88.72117186 | T104: 88.77476567 | U104: 88.82835948 | V104: 88.88195329 | W104: 88.82835948 | X104: 88.84622409 | Y104: 88.85217895 | Z104: 88.84225418 | AA104: 88.84688574 | AB104: 88.84710629 | AC104: 88.8454154 | AD104: 88.84646914 | AE104: 88.84633028 | AF104: 88.84607161 | AG104: 88.84629034 | AH104: 88.84623074 | AI104: 88.84619756 | AJ104: 88.84623955 | AK104: 88.84622262 | AL104: 88.84621991 | AM104: 88.84622736 | AN104: 88.8462233 | AO104: 88.84622352 | AP104: 88.84622473 | AQ104: 88.84622385 | AR104: 88.84622403
A105: 1600000US4013950 | B105: Chickasha city, Oklahoma | C105: 84.8 | D105: 84 | E105: 83.9 | F105: 83.5 | G105: 83.1 | H105: 83.4 | I105: 85 | J105: 85.5235475 | K105: 87.0288791 | L105: 87.92540049 | M105: 86.89273256 | N105: 87.26999617 | O105: 87.64725978 | P105: 88.02452339 | Q105: 88.401787 | R105: 88.77905061 | S105: 89.15631422 | T105: 89.53357783 | U105: 89.91084144 | V105: 90.28810505 | W105: 89.91084144 | X105: 90.03659598 | Y105: 90.07851416 | Z105: 90.00865052 | AA105: 90.04125355 | AB105: 90.04280608 | AC105: 90.03090339 | AD105: 90.03832101 | AE105: 90.03734349 | AF105: 90.03552263 | AG105: 90.03706237 | AH105: 90.03664283 | AI105: 90.03640928 | AJ105: 90.03670483 | AK105: 90.03658564 | AL105: 90.03656658 | AM105: 90.03661902 | AN105: 90.03659042 | AO105: 90.03659201 | AP105: 90.03660048 | AQ105: 90.0365943 | AR105: 90.03659559
A106: 1600000US4014200 | B106: Choctaw city, Oklahoma | C106: 90.9 | D106: 91.3 | E106: 91 | F106: 90.8 | G106: 91.5 | H106: 91.8 | I106: 91.3 | J106: 92.36261359 | K106: 92.56599789 | L106: 92.86019667 | M106: 92.80944159 | N106: 93.02227082 | O106: 93.23510005 | P106: 93.44792928 | Q106: 93.66075851 | R106: 93.87358775 | S106: 94.08641698 | T106: 94.29924621 | U106: 94.51207544 | V106: 94.72490467 | W106: 94.51207544 | X106: 94.58301852 | Y106: 94.60666621 | Z106: 94.56725339 | AA106: 94.58564604 | AB106: 94.58652188 | AC106: 94.5798071 | AD106: 94.58399167 | AE106: 94.58344022 | AF106: 94.582413 | AG106: 94.58328163 | AH106: 94.58304495 | AI106: 94.58291319 | AJ106: 94.58307992 | AK106: 94.58301269 | AL106: 94.58300194 | AM106: 94.58303152 | AN106: 94.58301538 | AO106: 94.58301628 | AP106: 94.58302106 | AQ106: 94.58301757 | AR106: 94.5830183
A107: 1600000US4014300 | B107: Chouteau town, Oklahoma | C107: 84.1 | D107: 85.6 | E107: 83.6 | F107: 84.6 | G107: 82.4 | H107: 85.3 | I107: 86.9 | J107: 86.58764816 | K107: 90.15974441 | L107: 89.89569752 | M107: 89.54156665 | N107: 90.20106804 | O107: 90.86056943 | P107: 91.52007082 | Q107: 92.17957221 | R107: 92.8390736 | S107: 93.49857499 | T107: 94.15807638 | U107: 94.81757777 | V107: 95.47707916 | W107: 94.81757777 | X107: 95.03741157 | Y107: 95.1106895 | Z107: 94.98855962 | AA107: 95.04555356 | AB107: 95.04826756 | AC107: 95.02746025 | AD107: 95.04042712 | AE107: 95.03871831 | AF107: 95.03553523 | AG107: 95.03822689 | AH107: 95.03749347 | AI107: 95.0370852 | AJ107: 95.03760185 | AK107: 95.03739351 | AL107: 95.03736019 | AM107: 95.03745185 | AN107: 95.03740185 | AO107: 95.03740463 | AP107: 95.03741944 | AQ107: 95.03740864 | AR107: 95.0374109
A108: 1600000US4014500 | B108: Cimarron City town, Oklahoma | C108: 97.7 | D108: 98.4 | E108: 100 | F108: 96.2 | G108: 95.7 | H108: 89.7 | I108: 89.9 | J108: 92.14285714 | K108: 96.2406015 | L108: 97.20670391 | M108: 92.52764397 | N108: 92.02012173 | O108: 91.5125995 | P108: 91.00507727 | Q108: 90.49755503 | R108: 89.9900328 | S108: 89.48251056 | T108: 88.97498833 | U108: 88.4674661 | V108: 87.95994386 | W108: 88.4674661 | X108: 88.29829202 | Y108: 88.24190066 | Z108: 88.33588626 | AA108: 88.29202631 | AB108: 88.28993774 | AC108: 88.3059501 | AD108: 88.29597139 | AE108: 88.29728641 | AF108: 88.29973597 | AG108: 88.29766459 | AH108: 88.29822899 | AI108: 88.29854318 | AJ108: 88.29814559 | AK108: 88.29830592 | AL108: 88.29833156 | AM108: 88.29826102 | AN108: 88.2982995 | AO108: 88.29829736 | AP108: 88.29828596 | AQ108: 88.29829427 | AR108: 88.29829253
A109: 1600000US4014700 | B109: Claremore city, Oklahoma | C109: 86 | D109: 87.2 | E109: 87.9 | F109: 88.2 | G109: 89.1 | H109: 89.9 | I109: 89.6 | J109: 90.37385115 | K109: 91.15251898 | L109: 90.88342629 | M109: 91.99723715 | N109: 92.5365567 | O109: 93.07587624 | P109: 93.61519579 | Q109: 94.15451534 | R109: 94.69383488 | S109: 95.23315443 | T109: 95.77247398 | U109: 96.31179352 | V109: 96.85111307 | W109: 96.31179352 | X109: 96.49156671 | Y109: 96.5514911 | Z109: 96.45161711 | AA109: 96.49822497 | AB109: 96.50044439 | AC109: 96.48342883 | AD109: 96.49403273 | AE109: 96.49263532 | AF109: 96.49003229 | AG109: 96.49223345 | AH109: 96.49163368 | AI109: 96.49129981 | AJ109: 96.49172231 | AK109: 96.49155193 | AL109: 96.49152468 | AM109: 96.49159964 | AN109: 96.49155875 | AO109: 96.49156103 | AP109: 96.49157314 | AQ109: 96.49156431 | AR109: 96.49156616
A110: 1600000US4014900 | B110: Clayton town, Oklahoma | C110: 78.8 | D110: 83.1 | E110: 82.2 | F110: 81.1 | G110: 77.9 | H110: 78.5 | I110: 76.8 | J110: 76.20041754 | K110: 78.65612648 | L110: 79.18367347 | M110: 76.91228956 | N110: 76.48833825 | O110: 76.06438694 | P110: 75.64043564 | Q110: 75.21648433 | R110: 74.79253302 | S110: 74.36858171 | T110: 73.94463041 | U110: 73.5206791 | V110: 73.09672779 | W110: 73.5206791 | X110: 73.379362 | Y110: 73.3322563 | Z110: 73.4107658 | AA110: 73.37412803 | AB110: 73.37238338 | AC110: 73.38575907 | AD110: 73.37742349 | AE110: 73.37852198 | AF110: 73.38056818 | AG110: 73.37883788 | AH110: 73.37930935 | AI110: 73.3795718 | AJ110: 73.37923968 | AK110: 73.37937361 | AL110: 73.37939503 | AM110: 73.37933611 | AN110: 73.37936825 | AO110: 73.37936646 | AP110: 73.37935694 | AQ110: 73.37936388 | AR110: 73.37936243
A111: 1600000US4015300 | B111: Cleo Springs town, Oklahoma | C111: 87.5 | D111: 84 | E111: 86.6 | F111: 87.5 | G111: 90.2 | H111: 88.6 | I111: 93.4 | J111: 91.015625 | K111: 93.52226721 | L111: 92.88888889 | M111: 94.63381129 | N111: 95.56310823 | O111: 96.49240518 | P111: 97.42170212 | Q111: 98.35099906 | R111: 99.280296 | S111: 100 | T111: 100 | U111: 100 | V111: 100 | W111: 100 | X111: 100 | Y111: 100 | Z111: 100 | AA111: 100 | AB111: 100 | AC111: 100 | AD111: 100 | AE111: 100 | AF111: 100 | AG111: 100 | AH111: 100 | AI111: 100 | AJ111: 100 | AK111: 100 | AL111: 100 | AM111: 100 | AN111: 100 | AO111: 100 | AP111: 100 | AQ111: 100 | AR111: 100
A112: 1600000US4015350 | B112: Cleveland city, Oklahoma | C112: 84.4 | D112: 82.3 | E112: 82 | F112: 81.9 | G112: 85.3 | H112: 83.5 | I112: 86.4 | J112: 86.71357616 | K112: 87.17525773 | L112: 88.5286783 | M112: 88.37351087 | N112: 89.01928536 | O112: 89.66505984 | P112: 90.31083432 | Q112: 90.9566088 | R112: 91.60238329 | S112: 92.24815777 | T112: 92.89393225 | U112: 93.53970673 | V112: 94.18548122 | W112: 93.53970673 | X112: 93.75496489 | Y112: 93.82671761 | Z112: 93.70712975 | AA112: 93.76293742 | AB112: 93.76559493 | AC112: 93.7452207 | AD112: 93.75791768 | AE112: 93.75624443 | AF112: 93.7531276 | AG112: 93.75576324 | AH112: 93.75504509 | AI112: 93.75464531 | AJ112: 93.75515121 | AK112: 93.75494721 | AL112: 93.75491458 | AM112: 93.75500433 | AN112: 93.75495537 | AO112: 93.75495809 | AP112: 93.7549726 | AQ112: 93.75496202 | AR112: 93.75496424
A113: 1600000US4015400 | B113: Clinton city, Oklahoma | C113: 78.8 | D113: 75.7 | E113: 73.8 | F113: 75 | G113: 78 | H113: 78.5 | I113: 81.3 | J113: 79.19029616 | K113: 79.55555556 | L113: 80.90030116 | M113: 81.14938463 | N113: 81.7084336 | O113: 82.26748257 | P113: 82.82653154 | Q113: 83.38558051 | R113: 83.94462948 | S113: 84.50367845 | T113: 85.06272742 | U113: 85.62177639 | V113: 86.18082536 | W113: 85.62177639 | X113: 85.80812605 | Y113: 85.8702426 | Z113: 85.76671501 | AA113: 85.81502789 | AB113: 85.8173285 | AC113: 85.79969047 | AD113: 85.81068229 | AE113: 85.80923375 | AF113: 85.8065355 | AG113: 85.80881718 | AH113: 85.80819548 | AI113: 85.80784939 | AJ113: 85.80828735 | AK113: 85.80811074 | AL113: 85.80808249 | AM113: 85.80816019 | AN113: 85.80811781 | AO113: 85.80812016 | AP113: 85.80813272 | AQ113: 85.80812356 | AR113: 85.80812548
A114: 1600000US4015800 | B114: Coalgate city, Oklahoma | C114: 74.7 | D114: 76.3 | E114: 76.9 | F114: 79 | G114: 80.8 | H114: 81 | I114: 80.9 | J114: 80.50397878 | K114: 80.89214381 | L114: 81.06828938 | M114: 82.98575803 | N114: 83.67290655 | O114: 84.36005506 | P114: 85.04720358 | Q114: 85.73435209 | R114: 86.42150061 | S114: 87.10864912 | T114: 87.79579764 | U114: 88.48294615 | V114: 89.17009467 | W114: 88.48294615 | X114: 88.71199566 | Y114: 88.78834549 | Z114: 88.66109577 | AA114: 88.72047897 | AB114: 88.72330674 | AC114: 88.70162716 | AD114: 88.71513762 | AE114: 88.71335718 | AF114: 88.71004065 | AG114: 88.71284515 | AH114: 88.71208099 | AI114: 88.7116556 | AJ114: 88.71219391 | AK114: 88.71197684 | AL114: 88.71194212 | AM114: 88.71203762 | AN114: 88.71198552 | AO114: 88.71198842 | AP114: 88.71200386 | AQ114: 88.7119926 | AR114: 88.71199496
A115: 1600000US4016050 | B115: Colbert town, Oklahoma | C115: 83.2 | D115: 87.4 | E115: 85.2 | F115: 87.4 | G115: 85 | H115: 86.8 | I115: 85.9 | J115: 87.96680498 | K115: 84.51492537 | L115: 88.7962963 | M115: 87.59464164 | N115: 87.844976 | O115: 88.09531036 | P115: 88.34564471 | Q115: 88.59597907 | R115: 88.84631343 | S115: 89.09664779 | T115: 89.34698215 | U115: 89.59731651 | V115: 89.84765087 | W115: 89.59731651 | X115: 89.68076129 | Y115: 89.70857622 | Z115: 89.66221801 | AA115: 89.68385184 | AB115: 89.68488202 | AC115: 89.67698396 | AD115: 89.68190594 | AE115: 89.68125731 | AF115: 89.68004907 | AG115: 89.68107077 | AH115: 89.68079238 | AI115: 89.68063741 | AJ115: 89.68083352 | AK115: 89.68075444 | AL115: 89.68074179 | AM115: 89.68077658 | AN115: 89.6807576 | AO115: 89.68075866 | AP115: 89.68076428 | AQ115: 89.68076018 | AR115: 89.68076104
A116: 1600000US4016100 | B116: Colcord town, Oklahoma | C116: 72.1 | D116: 71.1 | E116: 82.7 | F116: 81.8 | G116: 83.9 | H116: 80.7 | I116: 77.6 | J116: 76.85714286 | K116: 75.48746518 | L116: 71.82662539 | M116: 76.84837665 | N116: 76.74678634 | O116: 76.64519603 | P116: 76.54360572 | Q116: 76.44201541 | R116: 76.3404251 | S116: 76.23883479 | T116: 76.13724448 | U116: 76.03565418 | V116: 75.93406387 | W116: 76.03565418 | X116: 76.00179074 | Y116: 75.99050293 | Z116: 76.00931595 | AA116: 76.00053654 | AB116: 76.00011847 | AC116: 76.00332365 | AD116: 76.00132622 | AE116: 76.00158945 | AF116: 76.00207977 | AG116: 76.00166515 | AH116: 76.00177812 | AI116: 76.00184101 | AJ116: 76.00176143 | AK116: 76.00179352 | AL116: 76.00179866 | AM116: 76.00178454 | AN116: 76.00179224 | AO116: 76.00179181 | AP116: 76.00178953 | AQ116: 76.00179119 | AR116: 76.00179084
A117: 1600000US4016200 | B117: Cole town, Oklahoma | C117: 87.2 | D117: 84.6 | E117: 84.7 | F117: 87.9 | G117: 86.4 | H117: 86.3 | I117: 86.9 | J117: 88.46918489 | K117: 89.19413919 | L117: 88.76404494 | M117: 89.10878034 | N117: 89.48442461 | O117: 89.86006887 | P117: 90.23571313 | Q117: 90.61135739 | R117: 90.98700165 | S117: 91.36264592 | T117: 91.73829018 | U117: 92.11393444 | V117: 92.4895787 | W117: 92.11393444 | X117: 92.23914919 | Y117: 92.28088745 | Z117: 92.21132369 | AA117: 92.24378678 | AB117: 92.24533264 | AC117: 92.23348104 | AD117: 92.24086682 | AE117: 92.2398935 | AF117: 92.23808045 | AG117: 92.23961359 | AH117: 92.23919585 | AI117: 92.23896329 | AJ117: 92.23925758 | AK117: 92.23913891 | AL117: 92.23911993 | AM117: 92.23917214 | AN117: 92.23914366 | AO117: 92.23914524 | AP117: 92.23915368 | AQ117: 92.23914752 | AR117: 92.23914881
A118: 1600000US4016350 | B118: Collinsville city, Oklahoma | C118: 88.6 | D118: 88.7 | E118: 90.8 | F118: 90.5 | G118: 90.3 | H118: 90.9 | I118: 91.5 | J118: 92.45694354 | K118: 92.04309988 | L118: 91.6851218 | M118: 92.85026696 | N118: 93.2324034 | O118: 93.61453984 | P118: 93.99667629 | Q118: 94.37881273 | R118: 94.76094917 | S118: 95.14308561 | T118: 95.52522206 | U118: 95.9073585 | V118: 96.28949494 | W118: 95.9073585 | X118: 96.03473731 | Y118: 96.07719692 | Z118: 96.00643091 | AA118: 96.03945505 | AB118: 96.04102763 | AC118: 96.02897119 | AD118: 96.03648462 | AE118: 96.03549448 | AF118: 96.0336501 | AG118: 96.03520973 | AH118: 96.03478477 | AI118: 96.0345482 | AJ118: 96.03484757 | AK118: 96.03472685 | AL118: 96.03470754 | AM118: 96.03476065 | AN118: 96.03473168 | AO118: 96.03473329 | AP118: 96.03474187 | AQ118: 96.03473561 | AR118: 96.03473693
A119: 1600000US4016400 | B119: Colony town, Oklahoma | C119: 79 | D119: 82 | E119: 85 | F119: 84.3 | G119: 86.9 | H119: 80.4 | I119: 87.5 | J119: 85.88235294 | K119: 87 | L119: 89.47368421 | M119: 89.3047678 | N119: 90.13370673 | O119: 90.96264565 | P119: 91.79158458 | Q119: 92.6205235 | R119: 93.44946243 | S119: 94.27840135 | T119: 95.10734027 | U119: 95.9362792 | V119: 96.76521812 | W119: 95.9362792 | X119: 96.21259217 | Y119: 96.3046965 | Z119: 96.15118929 | AA119: 96.22282599 | AB119: 96.22623726 | AC119: 96.20008418 | AD119: 96.21638248 | AE119: 96.21423464 | AF119: 96.21023376 | AG119: 96.21361696 | AH119: 96.21269512 | AI119: 96.21218195 | AJ119: 96.21283134 | AK119: 96.21256947 | AL119: 96.21252759 | AM119: 96.2126428 | AN119: 96.21257995 | AO119: 96.21258345 | AP119: 96.21260207 | AQ119: 96.21258849 | AR119: 96.21259133
A120: 1600000US4016450 | B120: Comanche city, Oklahoma | C120: 78.9 | D120: 81.1 | E120: 81.6 | F120: 80.2 | G120: 83.6 | H120: 83.7 | I120: 82.9 | J120: 85.03584229 | K120: 87.52122241 | L120: 86.81493249 | M120: 87.85593841 | N120: 88.7138909 | O120: 89.57184339 | P120: 90.42979588 | Q120: 91.28774837 | R120: 92.14570086 | S120: 93.00365335 | T120: 93.86160583 | U120: 94.71955832 | V120: 95.57751081 | W120: 94.71955832 | X120: 95.00554249 | Y120: 95.10087054 | Z120: 94.94199045 | AA120: 95.01613449 | AB120: 95.01966516 | AC120: 94.9925967 | AD120: 95.00946545 | AE120: 95.00724244 | AF120: 95.00310153 | AG120: 95.00660314 | AH120: 95.00564904 | AI120: 95.0051179 | AJ120: 95.00579003 | AK120: 95.00551899 | AL120: 95.00547564 | AM120: 95.00559489 | AN120: 95.00552984 | AO120: 95.00553345 | AP120: 95.00555273 | AQ120: 95.00553867 | AR120: 95.00554162
A121: 1600000US4016500 | B121: Commerce city, Oklahoma | C121: 66.1 | D121: 67.2 | E121: 69.5 | F121: 68.3 | G121: 70.2 | H121: 71.4 | I121: 70.2 | J121: 71.82516243 | K121: 75.93360996 | L121: 76.33297062 | M121: 76.42443488 | N121: 77.46539135 | O121: 78.50634782 | P121: 79.54730429 | Q121: 80.58826076 | R121: 81.62921723 | S121: 82.6701737 | T121: 83.71113017 | U121: 84.75208664 | V121: 85.79304311 | W121: 84.75208664 | X121: 85.09907213 | Y121: 85.21473396 | Z121: 85.02196424 | AA121: 85.11192344 | AB121: 85.11620721 | AC121: 85.08336497 | AD121: 85.10383187 | AE121: 85.10113468 | AF121: 85.09611051 | AG121: 85.10035902 | AH121: 85.0992014 | AI121: 85.09855698 | AJ121: 85.09937247 | AK121: 85.09904362 | AL121: 85.09899102 | AM121: 85.0991357 | AN121: 85.09905678 | AO121: 85.09906117 | AP121: 85.09908455 | AQ121: 85.0990675 | AR121: 85.09907107
A122: 1600000US4017100 | B122: Copan town, Oklahoma | C122: 86.5 | D122: 82.9 | E122: 84 | F122: 83.8 | G122: 78.3 | H122: 80.7 | I122: 84.8 | J122: 87.54512635 | K122: 89.19803601 | L122: 89.09657321 | M122: 87.70334165 | N122: 88.25231766 | O122: 88.80129368 | P122: 89.3502697 | Q122: 89.89924571 | R122: 90.44822173 | S122: 90.99719775 | T122: 91.54617376 | U122: 92.09514978 | V122: 92.6441258 | W122: 92.09514978 | X122: 92.27814178 | Y122: 92.33913912 | Z122: 92.23747689 | AA122: 92.28491927 | AB122: 92.28717843 | AC122: 92.2698582 | AD122: 92.28065196 | AE122: 92.27922953 | AF122: 92.2765799 | AG122: 92.27882046 | AH122: 92.27820996 | AI122: 92.27787011 | AJ122: 92.27830018 | AK122: 92.27812675 | AL122: 92.27809901 | AM122: 92.27817531 | AN122: 92.27813369 | AO122: 92.278136 | AP122: 92.27814834 | AQ122: 92.27813934 | AR122: 92.27814123
A123: 1600000US4017300 | B123: Corn town, Oklahoma | C123: 81.5 | D123: 77.2 | E123: 82.4 | F123: 85.8 | G123: 84.9 | H123: 80.3 | I123: 83.4 | J123: 83.39694656 | K123: 83.26848249 | L123: 88 | M123: 86.15534658 | N123: 86.72603816 | O123: 87.29672973 | P123: 87.86742131 | Q123: 88.43811289 | R123: 89.00880447 | S123: 89.57949604 | T123: 90.15018762 | U123: 90.7208792 | V123: 91.29157077 | W123: 90.7208792 | X123: 90.91110972 | Y123: 90.9745199 | Z123: 90.86883627 | AA123: 90.9181553 | AB123: 90.92050382 | AC123: 90.90249846 | AD123: 90.91371919 | AE123: 90.91224049 | AF123: 90.90948605 | AG123: 90.91181525 | AH123: 90.9111806 | AI123: 90.9108273 | AJ123: 90.91127438 | AK123: 90.91109409 | AL123: 90.91106526 | AM123: 90.91114458 | AN123: 90.91110131 | AO123: 90.91110371 | AP123: 90.91111653 | AQ123: 90.91110718 | AR123: 90.91110914
A124: 1600000US4017350 | B124: Cornish town, Oklahoma | C124: 82.9 | D124: 80.6 | E124: 79.6 | F124: 76.2 | G124: 79 | H124: 75.7 | I124: 74.8 | J124: 74.61538462 | K124: 79.83193277 | L124: 86.72566372 | M124: 78.88501231 | N124: 78.86459671 | O124: 78.84418111 | P124: 78.82376551 | Q124: 78.80334991 | R124: 78.78293431 | S124: 78.76251871 | T124: 78.74210311 | U124: 78.72168751 | V124: 78.70127191 | W124: 78.72168751 | X124: 78.71488231 | Y124: 78.71261391 | Z124: 78.71639458 | AA124: 78.71463026 | AB124: 78.71454625 | AC124: 78.71519036 | AD124: 78.71478896 | AE124: 78.71484186 | AF124: 78.71494039 | AG124: 78.71485707 | AH124: 78.71487977 | AI124: 78.71489241 | AJ124: 78.71487642 | AK124: 78.71488287 | AL124: 78.7148839 | AM124: 78.71488106 | AN124: 78.71488261 | AO124: 78.71488252 | AP124: 78.71488206 | AQ124: 78.7148824 | AR124: 78.71488233
A125: 1600000US4017550 | B125: Council Hill town, Oklahoma | C125: 75.8 | D125: 75 | E125: 76.5 | F125: 75.9 | G125: 78.1 | H125: 72.9 | I125: 80.5 | J125: 80.21978022 | K125: 85.26315789 | L125: 87.80487805 | M125: 85.70161191 | N125: 86.95667196 | O125: 88.21173202 | P125: 89.46679207 | Q125: 90.72185212 | R125: 91.97691217 | S125: 93.23197223 | T125: 94.48703228 | U125: 95.74209233 | V125: 96.99715239 | W125: 95.74209233 | X125: 96.16044569 | Y125: 96.2998968 | Z125: 96.06747827 | AA125: 96.17594025 | AB125: 96.18110511 | AC125: 96.14150788 | AD125: 96.16618441 | AE125: 96.16293247 | AF125: 96.15687492 | AG125: 96.16199727 | AH125: 96.16060155 | AI125: 96.15982458 | AJ125: 96.1608078 | AK125: 96.16041131 | AL125: 96.1603479 | AM125: 96.16052234 | AN125: 96.16042718 | AO125: 96.16043247 | AP125: 96.16046066 | AQ125: 96.16044011 | AR125: 96.16044441
A126: 1600000US4017700 | B126: Covington town, Oklahoma | C126: 86.8 | D126: 84.2 | E126: 80.3 | F126: 78.2 | G126: 79.3 | H126: 79.9 | I126: 82.7 | J126: 88.99371069 | K126: 90.625 | L126: 92.81767956 | M126: 89.60706134 | N126: 90.55677449 | O126: 91.50648764 | P126: 92.45620079 | Q126: 93.40591394 | R126: 94.35562708 | S126: 95.30534023 | T126: 96.25505338 | U126: 97.20476653 | V126: 98.15447968 | W126: 97.20476653 | X126: 97.52133758 | Y126: 97.62686126 | Z126: 97.45098846 | AA126: 97.53306243 | AB126: 97.53697072 | AC126: 97.5070072 | AD126: 97.52568012 | AE126: 97.52321934 | AF126: 97.51863555 | AG126: 97.52251167 | AH126: 97.52145552 | AI126: 97.52086758 | AJ126: 97.52161159 | AK126: 97.52131157 | AL126: 97.52126358 | AM126: 97.52139558 | AN126: 97.52132358 | AO126: 97.52132758 | AP126: 97.52134891 | AQ126: 97.52133336 | AR126: 97.52133662
A127: 1600000US4017800 | B127: Coweta city, Oklahoma | C127: 80.4 | D127: 82.8 | E127: 81.6 | F127: 84.2 | G127: 87.8 | H127: 88.1 | I127: 88.2 | J127: 87.6183432 | K127: 88.44797178 | L127: 88.540167 | M127: 90.94361558 | N127: 91.8841551 | O127: 92.82469463 | P127: 93.76523415 | Q127: 94.70577368 | R127: 95.6463132 | S127: 96.58685272 | T127: 97.52739225 | U127: 98.46793177 | V127: 99.4084713 | W127: 98.46793177 | X127: 98.78144495 | Y127: 98.88594934 | Z127: 98.71177535 | AA127: 98.79305655 | AB127: 98.79692708 | AC127: 98.76725299 | AD127: 98.78574554 | AE127: 98.78330854 | AF127: 98.77876902 | AG127: 98.7826077 | AH127: 98.78156175 | AI127: 98.78097949 | AJ127: 98.78171631 | AK127: 98.78141919 | AL127: 98.78137166 | AM127: 98.78150239 | AN127: 98.78143108 | AO127: 98.78143504 | AP127: 98.78145617 | AQ127: 98.78144076 | AR127: 98.78144399
A128: 1600000US4017850 | B128: Cowlington town, Oklahoma | C128: 90.1 | D128: 82.6 | E128: 85.4 | F128: 83.6 | G128: 78.9 | H128: 76.3 | I128: 80.3 | J128: 86.58536585 | K128: 91.04477612 | L128: 82.08955224 | M128: 83.04017716 | N128: 82.92166948 | O128: 82.8031618 | P128: 82.68465411 | Q128: 82.56614643 | R128: 82.44763875 | S128: 82.32913106 | T128: 82.21062338 | U128: 82.0921157 | V128: 81.97360801 | W128: 82.0921157 | X128: 82.05261313 | Y128: 82.03944561 | Z128: 82.06139148 | AA128: 82.05115008 | AB128: 82.05066239 | AC128: 82.05440132 | AD128: 82.05207126 | AE128: 82.05237832 | AF128: 82.0529503 | AG128: 82.05246663 | AH128: 82.05259842 | AI128: 82.05267178 | AJ128: 82.05257894 | AK128: 82.05261638 | AL128: 82.05262237 | AM128: 82.0526059 | AN128: 82.05261488 | AO128: 82.05261438 | AP128: 82.05261172 | AQ128: 82.05261366 | AR128: 82.05261326
A129: 1600000US4017950 | B129: Coyle town, Oklahoma | C129: 78.1 | D129: 81.4 | E129: 78.9 | F129: 85.5 | G129: 83.4 | H129: 89.5 | I129: 86.3 | J129: 85.77075099 | K129: 84.87394958 | L129: 85.84337349 | M129: 88.52086619 | N129: 89.35033142 | O129: 90.17979665 | P129: 91.00926189 | Q129: 91.83872712 | R129: 92.66819235 | S129: 93.49765758 | T129: 94.32712282 | U129: 95.15658805 | V129: 95.98605328 | W129: 95.15658805 | X129: 95.43307646 | Y129: 95.52523926 | Z129: 95.37163459 | AA129: 95.44331677 | AB129: 95.44673021 | AC129: 95.42056052 | AD129: 95.43686917 | AE129: 95.43471997 | AF129: 95.43071655 | AG129: 95.4341019 | AH129: 95.43317947 | AI129: 95.43266597 | AJ129: 95.43331578 | AK129: 95.43305374 | AL129: 95.43301183 | AM129: 95.43312712 | AN129: 95.43306423 | AO129: 95.43306773 | AP129: 95.43308636 | AQ129: 95.43307277 | AR129: 95.43307562
A130: 1600000US4018250 | B130: Crescent city, Oklahoma | C130: 82.9 | D130: 83.3 | E130: 82.9 | F130: 86.2 | G130: 87.1 | H130: 88.1 | I130: 88.4 | J130: 89.30232558 | K130: 89.98144712 | L130: 90.50228311 | M130: 92.02868244 | N130: 92.96687823 | O130: 93.90507402 | P130: 94.84326982 | Q130: 95.78146561 | R130: 96.7196614 | S130: 97.65785719 | T130: 98.59605298 | U130: 99.53424878 | V130: 100 | W130: 99.37676725 | X130: 99.63700534 | Y130: 99.67125753 | Z130: 99.56167671 | AA130: 99.6233132 | AB130: 99.61874915 | AC130: 99.60124635 | AD130: 99.61443623 | AE130: 99.61147724 | AF130: 99.60905327 | AG130: 99.61165558 | AH130: 99.6107287 | AI130: 99.61047919 | AJ130: 99.61095449 | AK130: 99.61072079 | AL130: 99.61071816 | AM130: 99.61079781 | AN130: 99.61074559 | AO130: 99.61075385 | AP130: 99.61076575 | AQ130: 99.61075506 | AR130: 99.61075822
A131: 1600000US4018450 | B131: Cromwell town, Oklahoma | C131: 77.1 | D131: 76.9 | E131: 78 | F131: 80.7 | G131: 78.1 | H131: 75.7 | I131: 74.5 | J131: 77.54010695 | K131: 74.41860465 | L131: 79.16666667 | M131: 76.47689674 | N131: 76.34314381 | O131: 76.20939089 | P131: 76.07563796 | Q131: 75.94188504 | R131: 75.80813211 | S131: 75.67437919 | T131: 75.54062626 | U131: 75.40687334 | V131: 75.27312041 | W131: 75.40687334 | X131: 75.36228903 | Y131: 75.34742759 | Z131: 75.37219665 | AA131: 75.36063776 | AB131: 75.36008733 | AC131: 75.36430725 | AD131: 75.36167745 | AE131: 75.36202401 | AF131: 75.36266957 | AG131: 75.36212367 | AH131: 75.36227242 | AI131: 75.36235522 | AJ131: 75.36225044 | AK131: 75.36229269 | AL131: 75.36229945 | AM131: 75.36228086 | AN131: 75.362291 | AO131: 75.36229044 | AP131: 75.36228743 | AQ131: 75.36228962 | AR131: 75.36228916
A132: 1600000US4018550 | B132: Crowder town, Oklahoma | C132: 75.1 | D132: 74.2 | E132: 80.9 | F132: 78.4 | G132: 79.8 | H132: 84.3 | I132: 86.3 | J132: 81.98757764 | K132: 81.11455108 | L132: 83.38108883 | M132: 85.7673066 | N132: 86.71621293 | O132: 87.66511927 | P132: 88.6140256 | Q132: 89.56293193 | R132: 90.51183827 | S132: 91.4607446 | T132: 92.40965094 | U132: 93.35855727 | V132: 94.30746361 | W132: 93.35855727 | X132: 93.67485939 | Y132: 93.78029342 | Z132: 93.60457003 | AA132: 93.68657428 | AB132: 93.69047924 | AC132: 93.66054118 | AD132: 93.67919823 | AE132: 93.67673955 | AF132: 93.67215966 | AG132: 93.67603248 | AH132: 93.67497723 | AI132: 93.67438979 | AJ132: 93.67513317 | AK132: 93.6748334 | AL132: 93.67478545 | AM132: 93.67491734 | AN132: 93.6748454 | AO132: 93.67484939 | AP132: 93.67487071 | AQ132: 93.67485517 | AR132: 93.67485842
A133: 1600000US4018850 | B133: Cushing city, Oklahoma | C133: 77 | D133: 75.4 | E133: 76 | F133: 77.2 | G133: 77.3 | H133: 78.4 | I133: 78 | J133: 79.24302107 | K133: 82.73538824 | L133: 84.32147563 | M133: 83.12519195 | N133: 83.95522894 | O133: 84.78526593 | P133: 85.61530293 | Q133: 86.44533992 | R133: 87.27537691 | S133: 88.1054139 | T133: 88.9354509 | U133: 89.76548789 | V133: 90.59552488 | W133: 89.76548789 | X133: 90.04216689 | Y133: 90.13439322 | Z133: 89.98068266 | AA133: 90.05241426 | AB133: 90.05583005 | AC133: 90.02964232 | AD133: 90.04596221 | AE133: 90.04381152 | AF133: 90.03980535 | AG133: 90.04319303 | AH133: 90.04226997 | AI133: 90.04175612 | AJ133: 90.04240637 | AK133: 90.04214415 | AL133: 90.04210221 | AM133: 90.04221758 | AN133: 90.04215465 | AO133: 90.04215815 | AP133: 90.04217679 | AQ133: 90.04216319 | AR133: 90.04216604
A134: 1600000US4018950 | B134: Custer City town, Oklahoma | C134: 79 | D134: 77.8 | E134: 73.4 | F134: 79.3 | G134: 75.1 | H134: 82.6 | I134: 84.5 | J134: 87.5 | K134: 83.125 | L134: 86.36363636 | M134: 87.44045454 | N134: 88.63528925 | O134: 89.83012397 | P134: 91.02495868 | Q134: 92.21979339 | R134: 93.4146281 | S134: 94.60946281 | T134: 95.80429752 | U134: 96.99913223 | V134: 98.19396694 | W134: 96.99913223 | X134: 97.39741047 | Y134: 97.53016988 | Z134: 97.30890419 | AA134: 97.41216151 | AB134: 97.41707853 | AC134: 97.37938141 | AD134: 97.40287382 | AE134: 97.39977792 | AF134: 97.39401105 | AG134: 97.39888759 | AH134: 97.39755885 | AI134: 97.39681916 | AJ134: 97.3977552 | AK134: 97.39737774 | AL134: 97.39731737 | AM134: 97.39748344 | AN134: 97.39739285 | AO134: 97.39739789 | AP134: 97.39742472 | AQ134: 97.39740515 | AR134: 97.39740925
A135: 1600000US4019000 | B135: Cyril town, Oklahoma | C135: 85.3 | D135: 86.5 | E135: 91.6 | F135: 90.6 | G135: 91.6 | H135: 92.2 | I135: 90.1 | J135: 88.09201624 | K135: 88.92261002 | L135: 90.70464768 | M135: 91.13393341 | N135: 91.41975268 | O135: 91.70557196 | P135: 91.99139124 | Q135: 92.27721051 | R135: 92.56302979 | S135: 92.84884906 | T135: 93.13466834 | U135: 93.42048761 | V135: 93.70630689 | W135: 93.42048761 | X135: 93.51576071 | Y135: 93.5475184 | Z135: 93.49458891 | AA135: 93.51928934 | AB135: 93.52046555 | AC135: 93.51144793 | AD135: 93.51706761 | AE135: 93.51632703 | AF135: 93.51494752 | AG135: 93.51611405 | AH135: 93.5157962 | AI135: 93.51561926 | AJ135: 93.51584317 | AK135: 93.51575288 | AL135: 93.51573844 | AM135: 93.51577816 | AN135: 93.51575649 | AO135: 93.5157577 | AP135: 93.51576412 | AQ135: 93.51575943 | AR135: 93.51576042
A136: 1600000US4019050 | B136: Dacoma town, Oklahoma | C136: 90.2 | D136: 95.6 | E136: 99.1 | F136: 96.5 | G136: 90 | H136: 87.7 | I136: 85.1 | J136: 88.15789474 | K136: 88 | L136: 94.02985075 | M136: 87.77404556 | N136: 87.1077312 | O136: 86.44141684 | P136: 85.77510248 | Q136: 85.10878812 | R136: 84.44247376 | S136: 83.7761594 | T136: 83.10984504 | U136: 82.44353068 | V136: 81.77721632 | W136: 82.44353068 | X136: 82.22142589 | Y136: 82.14739096 | Z136: 82.27078251 | AA136: 82.21319979 | AB136: 82.21045775 | AC136: 82.23148002 | AD136: 82.21837918 | AE136: 82.22010565 | AF136: 82.22332162 | AG136: 82.22060215 | AH136: 82.22134314 | AI136: 82.22175564 | AJ136: 82.22123364 | AK136: 82.22144414 | AL136: 82.22147781 | AM136: 82.2213852 | AN136: 82.22143571 | AO136: 82.22143291 | AP136: 82.22141794 | AQ136: 82.22142885 | AR136: 82.22142657
A137: 1600000US4019350 | B137: Davenport town, Oklahoma | C137: 79.2 | D137: 80.8 | E137: 81.9 | F137: 78.7 | G137: 78.9 | H137: 80.1 | I137: 77.3 | J137: 76.3322884 | K137: 79.23211169 | L137: 80.68181818 | M137: 78.36537474 | N137: 78.19278436 | O137: 78.02019398 | P137: 77.8476036 | Q137: 77.67501323 | R137: 77.50242285 | S137: 77.32983247 | T137: 77.15724209 | U137: 76.98465171 | V137: 76.81206133 | W137: 76.98465171 | X137: 76.92712158 | Y137: 76.90794487 | Z137: 76.93990606 | AA137: 76.92499084 | AB137: 76.92428059 | AC137: 76.92972583 | AD137: 76.92633242 | AE137: 76.92677961 | AF137: 76.92761262 | AG137: 76.92690822 | AH137: 76.92710015 | AI137: 76.92720699 | AJ137: 76.92707179 | AK137: 76.92712631 | AL137: 76.92713503 | AM137: 76.92711104 | AN137: 76.92712413 | AO137: 76.9271234 | AP137: 76.92711952 | AQ137: 76.92712235 | AR137: 76.92712176
A138: 1600000US4019400 | B138: Davidson town, Oklahoma | C138: 71.7 | D138: 69.7 | E138: 66.1 | F138: 59.6 | G138: 61.1 | H138: 66.4 | I138: 63.1 | J138: 64.70588235 | K138: 72.27722772 | L138: 64.83516484 | M138: 64.7880438 | N138: 64.57644677 | O138: 64.36484973 | P138: 64.1532527 | Q138: 63.94165567 | R138: 63.73005863 | S138: 63.5184616 | T138: 63.30686456 | U138: 63.09526753 | V138: 62.88367049 | W138: 63.09526753 | X138: 63.02473518 | Y138: 63.0012244 | Z138: 63.04040904 | AA138: 63.02212287 | AB138: 63.02125211 | AC138: 63.02792801 | AD138: 63.02376766 | AE138: 63.02431592 | AF138: 63.0253372 | AG138: 63.02447359 | AH138: 63.02470891 | AI138: 63.0248399 | AJ138: 63.02467413 | AK138: 63.02474098 | AL138: 63.02475167 | AM138: 63.02472226 | AN138: 63.0247383 | AO138: 63.02473741 | AP138: 63.02473266 | AQ138: 63.02473612 | AR138: 63.0247354
A139: 1600000US4019450 | B139: Davis city, Oklahoma | C139: 81.4 | D139: 83.5 | E139: 85.1 | F139: 88.5 | G139: 86.2 | H139: 80.8 | I139: 80.6 | J139: 80.08298755 | K139: 79.13989125 | L139: 81.51302605 | M139: 79.89397085 | N139: 79.38676728 | O139: 78.87956371 | P139: 78.37236014 | Q139: 77.86515657 | R139: 77.357953 | S139: 76.85074943 | T139: 76.34354586 | U139: 75.83634229 | V139: 75.32913872 | W139: 75.83634229 | X139: 75.66727443 | Y139: 75.61091848 | Z139: 75.70484507 | AA139: 75.66101266 | AB139: 75.6589254 | AC139: 75.67492771 | AD139: 75.66495526 | AE139: 75.66626946 | AF139: 75.66871748 | AG139: 75.6666474 | AH139: 75.66721144 | AI139: 75.66752544 | AJ139: 75.66712809 | AK139: 75.66728833 | AL139: 75.66731395 | AM139: 75.66724346 | AN139: 75.66728191 | AO139: 75.66727977 | AP139: 75.66726838 | AQ139: 75.66727669 | AR139: 75.66727495
A140: 1600000US4019650 | B140: Deer Creek town, Oklahoma | C140: 68.3 | D140: 77.2 | E140: 77.6 | F140: 80.8 | G140: 91.4 | H140: 90.5 | I140: 86.8 | J140: 80.85106383 | K140: 78.07017544 | L140: 79.16666667 | M140: 85.6436755 | N140: 86.47547276 | O140: 87.30727001 | P140: 88.13906727 | Q140: 88.97086453 | R140: 89.80266178 | S140: 90.63445904 | T140: 91.4662563 | U140: 92.29805355 | V140: 93.12985081 | W140: 92.29805355 | X140: 92.5753193 | Y140: 92.66774122 | Z140: 92.51370469 | AA140: 92.58558841 | AB140: 92.58901144 | AC140: 92.56276818 | AD140: 92.57912267 | AE140: 92.57696743 | AF140: 92.57295276 | AG140: 92.57634762 | AH140: 92.57542261 | AI140: 92.57490766 | AJ140: 92.5755593 | AK140: 92.57529652 | AL140: 92.57525449 | AM140: 92.5753701 | AN140: 92.57530704 | AO140: 92.57531055 | AP140: 92.57532923 | AQ140: 92.57531561 | AR140: 92.57531846
A141: 1600000US4019900 | B141: Del City city, Oklahoma | C141: 87.2 | D141: 86 | E141: 86.8 | F141: 86.7 | G141: 87.3 | H141: 86.5 | I141: 86.8 | J141: 86.07208308 | K141: 85.59155621 | L141: 86.60583048 | M141: 86.14540642 | N141: 86.07058086 | O141: 85.9957553 | P141: 85.92092975 | Q141: 85.84610419 | R141: 85.77127863 | S141: 85.69645308 | T141: 85.62162752 | U141: 85.54680197 | V141: 85.47197641 | W141: 85.54680197 | X141: 85.52186011 | Y141: 85.51354616 | Z141: 85.52740275 | AA141: 85.52093634 | AB141: 85.52062842 | AC141: 85.52298917 | AD141: 85.52151798 | AE141: 85.52171185 | AF141: 85.522073 | AG141: 85.52176761 | AH141: 85.52185082 | AI141: 85.52189714 | AJ141: 85.52183852 | AK141: 85.52186216 | AL141: 85.52186594 | AM141: 85.52185554 | AN141: 85.52186122 | AO141: 85.5218609 | AP141: 85.52185922 | AQ141: 85.52186045 | AR141: 85.52186019
A142: 1600000US4019850 | B142: Delaware town, Oklahoma | C142: 82.3 | D142: 66.7 | E142: 75.3 | F142: 79.8 | G142: 76.7 | H142: 77.1 | I142: 80.1 | J142: 79.26829268 | K142: 81.76470588 | L142: 82.01892744 | M142: 82.24068432 | N142: 82.9925919 | O142: 83.74449949 | P142: 84.49640707 | Q142: 85.24831466 | R142: 86.00022224 | S142: 86.75212983 | T142: 87.50403741 | U142: 88.255945 | V142: 89.00785258 | W142: 88.255945 | X142: 88.50658086 | Y142: 88.59012615 | Z142: 88.450884 | AA142: 88.51586367 | AB142: 88.51895794 | AC142: 88.4952352 | AD142: 88.51001894 | AE142: 88.50807069 | AF142: 88.50444161 | AG142: 88.50751041 | AH142: 88.50667424 | AI142: 88.50620875 | AJ142: 88.5067978 | AK142: 88.50656026 | AL142: 88.50652227 | AM142: 88.50662678 | AN142: 88.50656977 | AO142: 88.50657294 | AP142: 88.50658983 | AQ142: 88.50657752 | AR142: 88.5065801
A143: 1600000US4020300 | B143: Depew town, Oklahoma | C143: 81.5 | D143: 81.9 | E143: 85.8 | F143: 83.7 | G143: 80.3 | H143: 77.5 | I143: 78.4 | J143: 77 | K143: 76.82539683 | L143: 77.66323024 | M143: 75.63375771 | N143: 74.82919316 | O143: 74.02462861 | P143: 73.22006407 | Q143: 72.41549952 | R143: 71.61093498 | S143: 70.80637043 | T143: 70.00180589 | U143: 69.19724134 | V143: 68.3926768 | W143: 69.19724134 | X143: 68.92905316 | Y143: 68.8396571 | Z143: 68.98865053 | AA143: 68.91912026 | AB143: 68.9158093 | AC143: 68.94119336 | AD143: 68.92537431 | AE143: 68.92745899 | AF143: 68.93134222 | AG143: 68.92805851 | AH143: 68.92895324 | AI143: 68.92945132 | AJ143: 68.92882102 | AK143: 68.9290752 | AL143: 68.92911585 | AM143: 68.92900402 | AN143: 68.92906502 | AO143: 68.92906163 | AP143: 68.92904356 | AQ143: 68.92905674 | AR143: 68.92905397
A144: 1600000US4020450 | B144: Devol town, Oklahoma | C144: 86.1 | D144: 76.5 | E144: 83.3 | F144: 84.2 | G144: 88.8 | H144: 92.9 | I144: 100 | J144: 100 | K144: 97 | L144: 95 | M144: 100 | N144: 100 | O144: 100 | P144: 100 | Q144: 100 | R144: 100 | S144: 100 | T144: 100 | U144: 100 | V144: 100 | W144: 100 | X144: 100 | Y144: 100 | Z144: 100 | AA144: 100 | AB144: 100 | AC144: 100 | AD144: 100 | AE144: 100 | AF144: 100 | AG144: 100 | AH144: 100 | AI144: 100 | AJ144: 100 | AK144: 100 | AL144: 100 | AM144: 100 | AN144: 100 | AO144: 100 | AP144: 100 | AQ144: 100 | AR144: 100
A145: 1600000US4020500 | B145: Dewar town, Oklahoma | C145: 88.3 | D145: 85.4 | E145: 81.2 | F145: 77.4 | G145: 78.5 | H145: 85.7 | I145: 85.7 | J145: 86.37820513 | K145: 87.10743802 | L145: 87.08133971 | M145: 86.24253659 | N145: 86.59996174 | O145: 86.95738689 | P145: 87.31481203 | Q145: 87.67223718 | R145: 88.02966232 | S145: 88.38708747 | T145: 88.74451262 | U145: 89.10193776 | V145: 89.45936291 | W145: 89.10193776 | X145: 89.22107948 | Y145: 89.26079339 | Z145: 89.19460354 | AA145: 89.22549214 | AB145: 89.22696302 | AC145: 89.21568623 | AD145: 89.2227138 | AE145: 89.22178768 | AF145: 89.22006257 | AG145: 89.22152135 | AH145: 89.22112387 | AI145: 89.2209026 | AJ145: 89.22118261 | AK145: 89.22106969 | AL145: 89.22105163 | AM145: 89.22110131 | AN145: 89.22107421 | AO145: 89.22107572 | AP145: 89.22108375 | AQ145: 89.22107789 | AR145: 89.22107912
A146: 1600000US4020550 | B146: Dewey city, Oklahoma | C146: 84.3 | D146: 85.8 | E146: 88.2 | F146: 90.3 | G146: 89.8 | H146: 88.1 | I146: 87.3 | J146: 85.8379229 | K146: 85.80294802 | L146: 80.06158584 | M146: 84.52906312 | N146: 84.16157538 | O146: 83.79408764 | P146: 83.4265999 | Q146: 83.05911216 | R146: 82.69162443 | S146: 82.32413669 | T146: 81.95664895 | U146: 81.58916121 | V146: 81.22167347 | W146: 81.58916121 | X146: 81.4666653 | Y146: 81.42583333 | Z146: 81.49388661 | AA146: 81.46212841 | AB146: 81.46061612 | AC146: 81.47221038 | AD146: 81.46498497 | AE146: 81.46593716 | AF146: 81.46771084 | AG146: 81.46621099 | AH146: 81.46661966 | AI146: 81.46684716 | AJ146: 81.46655927 | AK146: 81.46667536 | AL146: 81.46669393 | AM146: 81.46664285 | AN146: 81.46667072 | AO146: 81.46666917 | AP146: 81.46666091 | AQ146: 81.46666693 | AR146: 81.46666567
A147: 1600000US4020650 | B147: Dibble town, Oklahoma | C147: 79.4 | D147: 81 | E147: 87.4 | F147: 86.6 | G147: 81.6 | H147: 76.5 | I147: 81.6 | J147: 85.79795022 | K147: 86.67601683 | L147: 86.54592497 | M147: 85.84316232 | N147: 86.30337562 | O147: 86.76358891 | P147: 87.22380221 | Q147: 87.6840155 | R147: 88.1442288 | S147: 88.60444209 | T147: 89.06465539 | U147: 89.52486868 | V147: 89.98508198 | W147: 89.52486868 | X147: 89.67827311 | Y147: 89.72940792 | Z147: 89.64418324 | AA147: 89.68395476 | AB147: 89.68584864 | AC147: 89.67132888 | AD147: 89.68037743 | AE147: 89.67918498 | AF147: 89.67696376 | AG147: 89.67884206 | AH147: 89.67833027 | AI147: 89.67804536 | AJ147: 89.6784059 | AK147: 89.67826051 | AL147: 89.67823726 | AM147: 89.67830122 | AN147: 89.67826633 | AO147: 89.67826827 | AP147: 89.67827861 | AQ147: 89.67827107 | AR147: 89.67827265
A148: 1600000US4020700 | B148: Dickson town, Oklahoma | C148: 85.1 | D148: 83.8 | E148: 84.1 | F148: 84.1 | G148: 84.2 | H148: 82.9 | I148: 84.9 | J148: 84.12371134 | K148: 86.58008658 | L148: 86.15984405 | M148: 85.60362284 | N148: 85.78676077 | O148: 85.96989871 | P148: 86.15303664 | Q148: 86.33617458 | R148: 86.51931251 | S148: 86.70245044 | T148: 86.88558838 | U148: 87.06872631 | V148: 87.25186425 | W148: 87.06872631 | X148: 87.12977229 | Y148: 87.15012095 | Z148: 87.11620652 | AA148: 87.13203325 | AB148: 87.13278691 | AC148: 87.12700889 | AD148: 87.13060969 | AE148: 87.13013516 | AF148: 87.12925125 | AG148: 87.1299987 | AH148: 87.12979504 | AI148: 87.12968166 | AJ148: 87.12982513 | AK148: 87.12976728 | AL148: 87.12975802 | AM148: 87.12978348 | AN148: 87.12976959 | AO148: 87.12977036 | AP148: 87.12977448 | AQ148: 87.12977148 | AR148: 87.12977211
A149: 1600000US4020850 | B149: Dill City town, Oklahoma | C149: 71.2 | D149: 73.7 | E149: 66.5 | F149: 69 | G149: 80.2 | H149: 79.4 | I149: 83.7 | J149: 89.03061224 | K149: 86.37681159 | L149: 84.94983278 | M149: 90.68703357 | N149: 92.91999865 | O149: 95.15296372 | P149: 97.3859288 | Q149: 99.61889387 | R149: 100 | S149: 100 | T149: 100 | U149: 100 | V149: 100 | W149: 100 | X149: 100 | Y149: 100 | Z149: 100 | AA149: 100 | AB149: 100 | AC149: 100 | AD149: 100 | AE149: 100 | AF149: 100 | AG149: 100 | AH149: 100 | AI149: 100 | AJ149: 100 | AK149: 100 | AL149: 100 | AM149: 100 | AN149: 100 | AO149: 100 | AP149: 100 | AQ149: 100 | AR149: 100
A150: 1600000US4020900 | B150: Disney town, Oklahoma | C150: 74.6 | D150: 76.8 | E150: 76.2 | F150: 85.2 | G150: 85.6 | H150: 81.5 | I150: 83.7 | J150: 83.05084746 | K150: 85.86956522 | L150: 84.69945355 | M150: 87.72319582 | N150: 88.81432476 | O150: 89.9054537 | P150: 90.99658265 | Q150: 92.08771159 | R150: 93.17884054 | S150: 94.26996948 | T150: 95.36109843 | U150: 96.45222737 | V150: 97.54335631 | W150: 96.45222737 | X150: 96.81593702 | Y150: 96.93717357 | Z150: 96.73511265 | AA150: 96.82940775 | AB150: 96.83389799 | AC150: 96.79947279 | AD150: 96.82092618 | AE150: 96.81809899 | AF150: 96.81283265 | AG150: 96.81728594 | AH150: 96.81607253 | AI150: 96.81539704 | AJ150: 96.81625183 | AK150: 96.81590713 | AL150: 96.815852 | AM150: 96.81600366 | AN150: 96.81592093 | AO150: 96.81592553 | AP150: 96.81595004 | AQ150: 96.81593217 | AR150: 96.81593591
A151: 1600000US4021200 | B151: Dougherty town, Oklahoma | C151: 91.3 | D151: 89.3 | E151: 85.5 | F151: 83.1 | G151: 79.8 | H151: 83.8 | I151: 89.2 | J151: 87.83068783 | K151: 90.12345679 | L151: 89.47368421 | M151: 87.71880937 | N151: 87.85990509 | O151: 88.00100082 | P151: 88.14209654 | Q151: 88.28319227 | R151: 88.42428799 | S151: 88.56538372 | T151: 88.70647944 | U151: 88.84757517 | V151: 88.98867089 | W151: 88.84757517 | X151: 88.89460707 | Y151: 88.91028438 | Z151: 88.88415554 | AA151: 88.896349 | AB151: 88.89692964 | AC151: 88.89247806 | AD151: 88.89525223 | AE151: 88.89488664 | AF151: 88.89420564 | AG151: 88.89478151 | AH151: 88.8946246 | AI151: 88.89453725 | AJ151: 88.89464778 | AK151: 88.89460321 | AL151: 88.89459608 | AM151: 88.89461569 | AN151: 88.89460499 | AO151: 88.89460559 | AP151: 88.89460876 | AQ151: 88.89460645 | AR151: 88.89460693
A152: 1600000US4021350 | B152: Dover town, Oklahoma | C152: 68.7 | D152: 75 | E152: 73.2 | F152: 73.6 | G152: 72 | H152: 78.9 | I152: 80.5 | J152: 78.74015748 | K152: 82.5203252 | L152: 81.97879859 | M152: 84.09566983 | N152: 85.47416832 | O152: 86.85266681 | P152: 88.23116531 | Q152: 89.6096638 | R152: 90.98816229 | S152: 92.36666078 | T152: 93.74515927 | U152: 95.12365776 | V152: 96.50215625 | W152: 95.12365776 | X152: 95.58315726 | Y152: 95.73632376 | Z152: 95.48104626 | AA152: 95.60017576 | AB152: 95.60584859 | AC152: 95.56235687 | AD152: 95.58946041 | AE152: 95.58588862 | AF152: 95.5792353 | AG152: 95.58486144 | AH152: 95.58332846 | AI152: 95.58247507 | AJ152: 95.58355499 | AK152: 95.5831195 | AL152: 95.58304985 | AM152: 95.58324145 | AN152: 95.58313694 | AO152: 95.58314275 | AP152: 95.58317371 | AQ152: 95.58315113 | AR152: 95.58315586
A153: 1600000US4021700 | B153: Drummond town, Oklahoma | C153: 83.6 | D153: 76.9 | E153: 72.4 | F153: 65 | G153: 65.4 | H153: 67.9 | I153: 77.3 | J153: 76.92307692 | K153: 82.03389831 | L153: 82.46268657 | M153: 77.91586124 | N153: 78.44747853 | O153: 78.97909581 | P153: 79.5107131 | Q153: 80.04233038 | R153: 80.57394766 | S153: 81.10556495 | T153: 81.63718223 | U153: 82.16879952 | V153: 82.7004168 | W153: 82.16879952 | X153: 82.34600528 | Y153: 82.40507387 | Z153: 82.30662622 | AA153: 82.35256846 | AB153: 82.35475618 | AC153: 82.33798362 | AD153: 82.34843608 | AE153: 82.34705863 | AF153: 82.34449278 | AG153: 82.3466625 | AH153: 82.3460713 | AI153: 82.34574219 | AJ153: 82.34615866 | AK153: 82.34599072 | AL153: 82.34596386 | AM153: 82.34603775 | AN153: 82.34599744 | AO153: 82.34599968 | AP153: 82.34601162 | AQ153: 82.34600292 | AR153: 82.34600474
A154: 1600000US4021750 | B154: Drumright city, Oklahoma | C154: 79.3 | D154: 81.4 | E154: 82.2 | F154: 82.5 | G154: 82.5 | H154: 84.9 | I154: 83.3 | J154: 82.01304753 | K154: 80.96789204 | L154: 83.01036503 | M154: 83.35025603 | N154: 83.55773341 | O154: 83.76521079 | P154: 83.97268816 | Q154: 84.18016554 | R154: 84.38764292 | S154: 84.5951203 | T154: 84.80259767 | U154: 85.01007505 | V154: 85.21755243 | W154: 85.01007505 | X154: 85.07923417 | Y154: 85.10228722 | Z154: 85.06386548 | AA154: 85.08179562 | AB154: 85.08264944 | AC154: 85.07610351 | AD154: 85.08018286 | AE154: 85.07964527 | AF154: 85.07864388 | AG154: 85.07949067 | AH154: 85.07925994 | AI154: 85.0791315 | AJ154: 85.07929404 | AK154: 85.07922849 | AL154: 85.07921801 | AM154: 85.07924685 | AN154: 85.07923112 | AO154: 85.07923199 | AP154: 85.07923665 | AQ154: 85.07923325 | AR154: 85.07923396
A155: 1600000US4021900 | B155: Duncan city, Oklahoma | C155: 85.3 | D155: 84.4 | E155: 84.9 | F155: 84.6 | G155: 85.4 | H155: 84.7 | I155: 86.3 | J155: 86.13428456 | K155: 86.68494109 | L155: 86.6627566 | M155: 86.80255889 | N155: 87.03789719 | O155: 87.27323549 | P155: 87.50857379 | Q155: 87.74391209 | R155: 87.9792504 | S155: 88.2145887 | T155: 88.449927 | U155: 88.6852653 | V155: 88.9206036 | W155: 88.6852653 | X155: 88.7637114 | Y155: 88.7898601 | Z155: 88.74627894 | AA155: 88.76661681 | AB155: 88.76758528 | AC155: 88.76016034 | AD155: 88.76478748 | AE155: 88.7641777 | AF155: 88.76304184 | AG155: 88.76400234 | AH155: 88.76374063 | AI155: 88.76359494 | AJ155: 88.7637793 | AK155: 88.76370496 | AL155: 88.76369307 | AM155: 88.76372578 | AN155: 88.76370793 | AO155: 88.76370892 | AP155: 88.76371421 | AQ155: 88.76371036 | AR155: 88.76371116
A156: 1600000US4022050 | B156: Durant city, Oklahoma | C156: 82.5 | D156: 81.8 | E156: 81 | F156: 81.4 | G156: 81.3 | H156: 81.8 | I156: 82.6 | J156: 85.31077657 | K156: 85.30582167 | L156: 84.90579606 | M156: 85.18713273 | N156: 85.62256788 | O156: 86.05800302 | P156: 86.49343817 | Q156: 86.92887332 | R156: 87.36430846 | S156: 87.79974361 | T156: 88.23517875 | U156: 88.6706139 | V156: 89.10604905 | W156: 88.6706139 | X156: 88.81575895 | Y156: 88.86414063 | Z156: 88.78350449 | AA156: 88.82113469 | AB156: 88.82292661 | AC156: 88.8091886 | AD156: 88.81774996 | AE156: 88.81662172 | AF156: 88.81452009 | AG156: 88.81629726 | AH156: 88.81581303 | AI156: 88.81554346 | AJ156: 88.81588458 | AK156: 88.81574702 | AL156: 88.81572502 | AM156: 88.81578554 | AN156: 88.81575253 | AO156: 88.81575436 | AP156: 88.81576415 | AQ156: 88.81575701 | AR156: 88.81575851
A157: 1600000US4022200 | B157: Dustin town, Oklahoma | C157: 64.3 | D157: 70.4 | E157: 65.9 | F157: 72.6 | G157: 78.7 | H157: 83.5 | I157: 79.4 | J157: 80.11869436 | K157: 82.06521739 | L157: 81.74807198 | M157: 87.03928642 | N157: 89.06948424 | O157: 91.09968207 | P157: 93.1298799 | Q157: 95.16007772 | R157: 97.19027555 | S157: 99.22047338 | T157: 100 | U157: 100 | V157: 100 | W157: 100 | X157: 100 | Y157: 100 | Z157: 100 | AA157: 100 | AB157: 100 | AC157: 100 | AD157: 100 | AE157: 100 | AF157: 100 | AG157: 100 | AH157: 100 | AI157: 100 | AJ157: 100 | AK157: 100 | AL157: 100 | AM157: 100 | AN157: 100 | AO157: 100 | AP157: 100 | AQ157: 100 | AR157: 100
A158: 1600000US4022400 | B158: Eakly town, Oklahoma | C158: 63 | D158: 61.7 | E158: 56 | F158: 57.9 | G158: 70.6 | H158: 75.6 | I158: 74 | J158: 73.94957983 | K158: 63.63636364 | L158: 64.44444444 | M158: 71.73645361 | N158: 72.76434721 | O158: 73.79224082 | P158: 74.82013442 | Q158: 75.84802802 | R158: 76.87592163 | S158: 77.90381523 | T158: 78.93170884 | U158: 79.95960244 | V158: 80.98749604 | W158: 79.95960244 | X158: 80.30223364 | Y158: 80.41644404 | Z158: 80.22609337 | AA158: 80.31492368 | AB158: 80.3191537 | AC158: 80.28672359 | AD158: 80.30693366 | AE158: 80.30427031 | AF158: 80.29930919 | AG158: 80.30350439 | AH158: 80.3023613 | AI158: 80.30172496 | AJ158: 80.30253021 | AK158: 80.30220549 | AL158: 80.30215355 | AM158: 80.30229642 | AN158: 80.30221849 | AO158: 80.30222282 | AP158: 80.30224591 | AQ158: 80.30222907 | AR158: 80.3022326
A159: 1600000US4022500 | B159: Earlsboro town, Oklahoma | C159: 83.2 | D159: 85.9 | E159: 85 | F159: 87.1 | G159: 84.7 | H159: 81.8 | I159: 83.1 | J159: 78.30687831 | K159: 83.68794326 | L159: 82.98969072 | M159: 81.38702492 | N159: 80.98858378 | O159: 80.59014263 | P159: 80.19170148 | Q159: 79.79326034 | R159: 79.39481919 | S159: 78.99637805 | T159: 78.5979369 | U159: 78.19949575 | V159: 77.80105461 | W159: 78.19949575 | X159: 78.06668204 | Y159: 78.0224108 | Z159: 78.0961962 | AA159: 78.06176301 | AB159: 78.06012334 | AC159: 78.07269418 | AD159: 78.06486018 | AE159: 78.06589256 | AF159: 78.06781564 | AG159: 78.06618946 | AH159: 78.06663255 | AI159: 78.06687922 | AJ159: 78.06656708 | AK159: 78.06669295 | AL159: 78.06671308 | AM159: 78.0666577 | AN159: 78.06668791 | AO159: 78.06668623 | AP159: 78.06667728 | AQ159: 78.06668381 | AR159: 78.06668244
A160: 1600000US4022550 | B160: East Duke town, Oklahoma | C160: 84.3 | D160: 86 | E160: 85.8 | F160: 83.6 | G160: 89.2 | H160: 90.3 | I160: 89 | J160: 91.35338346 | K160: 92.94117647 | L160: 90.94488189 | M160: 93.45924717 | N160: 94.38930226 | O160: 95.31935735 | P160: 96.24941243 | Q160: 97.17946752 | R160: 98.10952261 | S160: 99.0395777 | T160: 99.96963279 | U160: 100 | V160: 100 | W160: 99.9898776 | X160: 99.99662587 | Y160: 99.99550115 | Z160: 99.99400154 | AA160: 99.99537619 | AB160: 99.99495963 | AC160: 99.99477912 | AD160: 99.99503831 | AE160: 99.99492568 | AF160: 99.99491437 | AG160: 99.99495945 | AH160: 99.99493317 | AI160: 99.99493566 | AJ160: 99.99494276 | AK160: 99.9949372 | AL160: 99.99493854 | AM160: 99.9949395 | AN160: 99.99493841 | AO160: 99.99493882 | AP160: 99.99493891 | AQ160: 99.99493872 | AR160: 99.99493882
A161: 1600000US4023200 | B161: Edmond city, Oklahoma | C161: 95.4 | D161: 96 | E161: 95.7 | F161: 95.6 | G161: 95.9 | H161: 95.9 | I161: 96.1 | J161: 96.01317464 | K161: 96.28571429 | L161: 95.7834841 | M161: 96.15214497 | N161: 96.20376455 | O161: 96.25538413 | P161: 96.3070037 | Q161: 96.35862328 | R161: 96.41024286 | S161: 96.46186243 | T161: 96.51348201 | U161: 96.56510159 | V161: 96.61672116 | W161: 96.56510159 | X161: 96.58230811 | Y161: 96.58804362 | Z161: 96.57848444 | AA161: 96.58294539 | AB161: 96.58315782 | AC161: 96.58152922 | AD161: 96.58254414 | AE161: 96.58241039 | AF161: 96.58216125 | AG161: 96.58237193 | AH161: 96.58231452 | AI161: 96.58228257 | AJ161: 96.58232301 | AK161: 96.5823067 | AL161: 96.58230409 | AM161: 96.58231126 | AN161: 96.58230735 | AO161: 96.58230757 | AP161: 96.58230873 | AQ161: 96.58230788 | AR161: 96.58230806
A162: 1600000US4023700 | B162: El Reno city, Oklahoma | C162: 80.8 | D162: 82 | E162: 82.2 | F162: 83.4 | G162: 84.6 | H162: 84.7 | I162: 85.3 | J162: 85.84398605 | K162: 85.58501237 | L162: 82.76733857 | M162: 85.9470025 | N162: 86.35197864 | O162: 86.75695479 | P162: 87.16193093 | Q162: 87.56690708 | R162: 87.97188322 | S162: 88.37685937 | T162: 88.78183551 | U162: 89.18681166 | V162: 89.59178781 | W162: 89.18681166 | X162: 89.32180371 | Y162: 89.36680106 | Z162: 89.29180548 | AA162: 89.32680341 | AB162: 89.32846998 | AC162: 89.31569296 | AD162: 89.32365545 | AE162: 89.32260613 | AF162: 89.32065151 | AG162: 89.32230436 | AH162: 89.321854 | AI162: 89.32160329 | AJ162: 89.32192055 | AK162: 89.32179262 | AL162: 89.32177215 | AM162: 89.32182844 | AN162: 89.32179774 | AO162: 89.32179944 | AP162: 89.32180854 | AQ162: 89.32180191 | AR162: 89.3218033
A163: 1600000US4023350 | B163: Eldorado town, Oklahoma | C163: 61.1 | D163: 69.8 | E163: 69 | F163: 76.3 | G163: 80.4 | H163: 84.5 | I163: 86.3 | J163: 80.41543027 | K163: 76.52733119 | L163: 78.94736842 | M163: 86.2921725 | N163: 88.10365605 | O163: 89.9151396 | P163: 91.72662315 | Q163: 93.5381067 | R163: 95.34959024 | S163: 97.16107379 | T163: 98.97255734 | U163: 100 | V163: 100 | W163: 99.65751911 | X163: 99.8858397 | Y163: 99.84778627 | Z163: 99.79704836 | AA163: 99.84355811 | AB163: 99.82946425 | AC163: 99.82335691 | AD163: 99.83212642 | AE163: 99.82831586 | AF163: 99.82793306 | AG163: 99.82945845 | AH163: 99.82856913 | AI163: 99.82865355 | AJ163: 99.82889371 | AK163: 99.82870546 | AL163: 99.8287509 | AM163: 99.82878336 | AN163: 99.82874657 | AO163: 99.82876028 | AP163: 99.8287634 | AQ163: 99.82875675 | AR163: 99.82876014
A164: 1600000US4023450 | B164: Elgin city, Oklahoma | C164: 91.3 | D164: 91.8 | E164: 92.5 | F164: 93.4 | G164: 93.9 | H164: 93.1 | I164: 92.6 | J164: 89.7743639 | K164: 89.67679691 | L164: 89.20145191 | M164: 90.03934344 | N164: 89.73281293 | O164: 89.42628241 | P164: 89.1197519 | Q164: 88.81322138 | R164: 88.50669087 | S164: 88.20016035 | T164: 87.89362984 | U164: 87.58709932 | V164: 87.28056881 | W164: 87.58709932 | X164: 87.48492248 | Y164: 87.45086354 | Z164: 87.50762845 | AA164: 87.48113816 | AB164: 87.47987671 | AC164: 87.48954777 | AD164: 87.48352088 | AE164: 87.48431512 | AF164: 87.48579459 | AG164: 87.48454353 | AH164: 87.48488442 | AI164: 87.48507418 | AJ164: 87.48483404 | AK164: 87.48493088 | AL164: 87.48494637 | AM164: 87.48490376 | AN164: 87.484927 | AO164: 87.48492571 | AP164: 87.48491883 | AQ164: 87.48492385 | AR164: 87.48492279
A165: 1600000US4023500 | B165: Elk City city, Oklahoma | C165: 78.1 | D165: 81.8 | E165: 83.2 | F165: 82.4 | G165: 83.8 | H165: 84.1 | I165: 84.8 | J165: 84.70365419 | K165: 88.27306522 | L165: 87.76312746 | M165: 88.80391384 | N165: 89.69662823 | O165: 90.58934262 | P165: 91.48205702 | Q165: 92.37477141 | R165: 93.2674858 | S165: 94.16020019 | T165: 95.05291458 | U165: 95.94562897 | V165: 96.83834337 | W165: 95.94562897 | X165: 96.24320044 | Y165: 96.34239093 | Z165: 96.17707345 | AA165: 96.2542216 | AB165: 96.25789533 | AC165: 96.22973013 | AD165: 96.24728235 | AE165: 96.24496927 | AF165: 96.24066058 | AG165: 96.24430407 | AH165: 96.24331131 | AI165: 96.24275865 | AJ165: 96.24345801 | AK165: 96.24317599 | AL165: 96.24313088 | AM165: 96.24325496 | AN165: 96.24318728 | AO165: 96.24319104 | AP165: 96.24321109 | AQ165: 96.24319647 | AR165: 96.24319953
A166: 1600000US4023550 | B166: Elmer town, Oklahoma | C166: 74.7 | D166: 80.3 | E166: 89.2 | F166: 88.2 | G166: 88.4 | H166: 79.2 | I166: 77.5 | J166: 78.57142857 | K166: 82.55813953 | L166: 79.56989247 | M166: 80.65971778 | N166: 80.44876719 | O166: 80.23781659 | P166: 80.026866 | Q166: 79.8159154 | R166: 79.60496481 | S166: 79.39401421 | T166: 79.18306362 | U166: 78.97211302 | V166: 78.76116243 | W166: 78.97211302 | X166: 78.90179616 | Y166: 78.8783572 | Z166: 78.91742213 | AA166: 78.89919183 | AB166: 78.89832372 | AC166: 78.90497922 | AD166: 78.90083159 | AE166: 78.90137818 | AF166: 78.90239633 | AG166: 78.90153537 | AH166: 78.90176996 | AI166: 78.90190055 | AJ166: 78.90173529 | AK166: 78.90180193 | AL166: 78.90181259 | AM166: 78.90178327 | AN166: 78.90179927 | AO166: 78.90179838 | AP166: 78.90179364 | AQ166: 78.90179709 | AR166: 78.90179637
A167: 1600000US4023600 | B167: Elmore City town, Oklahoma | C167: 84.7 | D167: 83.4 | E167: 81.7 | F167: 82.8 | G167: 83.6 | H167: 81 | I167: 83.6 | J167: 79.96323529 | K167: 86.83001531 | L167: 85.54216867 | M167: 84.07040198 | N167: 84.2080129 | O167: 84.34562382 | P167: 84.48323474 | Q167: 84.62084566 | R167: 84.75845658 | S167: 84.8960675 | T167: 85.03367842 | U167: 85.17128933 | V167: 85.30890025 | W167: 85.17128933 | X167: 85.21715964 | Y167: 85.23244974 | Z167: 85.20696624 | AA167: 85.21885854 | AB167: 85.21942484 | AC167: 85.21508321 | AD167: 85.21778886 | AE167: 85.2174323 | AF167: 85.21676812 | AG167: 85.21732976 | AH167: 85.21717673 | AI167: 85.21709154 | AJ167: 85.21719935 | AK167: 85.21715587 | AL167: 85.21714892 | AM167: 85.21716805 | AN167: 85.21715761 | AO167: 85.21715819 | AP167: 85.21716128 | AQ167: 85.21715903 | AR167: 85.2171595
A168: 1600000US4023900 | B168: Empire City town, Oklahoma | C168: 92 | D168: 89.7 | E168: 89.6 | F168: 90 | G168: 91.1 | H168: 91.5 | I168: 90.4 | J168: 90.35812672 | K168: 91.52086137 | L168: 91.96787149 | M168: 91.40960284 | N168: 91.51776955 | O168: 91.62593626 | P168: 91.73410296 | Q168: 91.84226967 | R168: 91.95043638 | S168: 92.05860308 | T168: 92.16676979 | U168: 92.2749365 | V168: 92.3831032 | W168: 92.2749365 | X168: 92.31099207 | Y168: 92.32301059 | Z168: 92.30297972 | AA168: 92.31232746 | AB168: 92.31277259 | AC168: 92.30935992 | AD168: 92.31148666 | AE168: 92.31120639 | AF168: 92.31068432 | AG168: 92.31112579 | AH168: 92.3110055 | AI168: 92.31093854 | AJ168: 92.31102328 | AK168: 92.3109891 | AL168: 92.31098364 | AM168: 92.31099867 | AN168: 92.31099047 | AO168: 92.31099093 | AP168: 92.31099336 | AQ168: 92.31099159 | AR168: 92.31099196
A169: 1600000US4023950 | B169: Enid city, Oklahoma | C169: 84.2 | D169: 85.2 | E169: 85.4 | F169: 84.8 | G169: 85.1 | H169: 85.5 | I169: 86.3 | J169: 86.71529738 | K169: 86.94474249 | L169: 86.97115003 | M169: 87.33412014 | N169: 87.62884763 | O169: 87.92357511 | P169: 88.21830259 | Q169: 88.51303007 | R169: 88.80775756 | S169: 89.10248504 | T169: 89.39721252 | U169: 89.69194 | V169: 89.98666749 | W169: 89.69194 | X169: 89.7901825 | Y169: 89.82292999 | Z169: 89.76835083 | AA169: 89.79382111 | AB169: 89.79503398 | AC169: 89.78573531 | AD169: 89.79153013 | AE169: 89.79076647 | AF169: 89.78934397 | AG169: 89.79054686 | AH169: 89.7902191 | AI169: 89.79003664 | AJ169: 89.79026753 | AK169: 89.79017442 | AL169: 89.79015953 | AM169: 89.7902005 | AN169: 89.79017815 | AO169: 89.79017939 | AP169: 89.79018601 | AQ169: 89.79018119 | AR169: 89.7901822
A170: 1600000US4024200 | B170: Erick city, Oklahoma | C170: 76.2 | D170: 72.3 | E170: 72.6 | F170: 78 | G170: 77.4 | H170: 75.8 | I170: 80.9 | J170: 79.01234568 | K170: 72.2002635 | L170: 81.92771084 | M170: 79.63446435 | N170: 80.1799975 | O170: 80.72553066 | P170: 81.27106381 | Q170: 81.81659697 | R170: 82.36213012 | S170: 82.90766328 | T170: 83.45319643 | U170: 83.99872959 | V170: 84.54426274 | W170: 83.99872959 | X170: 84.18057397 | Y170: 84.24118876 | Z170: 84.14016411 | AA170: 84.18730895 | AB170: 84.18955394 | AC170: 84.17234233 | AD170: 84.18306841 | AE170: 84.18165489 | AF170: 84.17902188 | AG170: 84.18124839 | AH170: 84.18064172 | AI170: 84.180304 | AJ170: 84.18073137 | AK170: 84.18055903 | AL170: 84.18053146 | AM170: 84.18060729 | AN170: 84.18056593 | AO170: 84.18056823 | AP170: 84.18058048 | AQ170: 84.18057154 | AR170: 84.18057342
A171: 1600000US4024460 | B171: Etowah town, Oklahoma | C171: 65.4 | D171: 65.7 | E171: 74 | F171: 82.1 | G171: 83.3 | H171: 85.9 | I171: 84.2 | J171: 77.11864407 | K171: 74.77477477 | L171: 73.52941176 | M171: 81.97499471 | N171: 82.95185138 | O171: 83.92870804 | P171: 84.90556471 | Q171: 85.88242137 | R171: 86.85927803 | S171: 87.8361347 | T171: 88.81299136 | U171: 89.78984803 | V171: 90.76670469 | W171: 89.78984803 | X171: 90.11546691 | Y171: 90.22400654 | Z171: 90.04310716 | AA171: 90.12752687 | AB171: 90.13154686 | AC171: 90.10072696 | AD171: 90.11993357 | AE171: 90.11740246 | AF171: 90.11268766 | AG171: 90.11667456 | AH171: 90.11558823 | AI171: 90.11498349 | AJ171: 90.11574876 | AK171: 90.11544016 | AL171: 90.1153908 | AM171: 90.11552657 | AN171: 90.11545251 | AO171: 90.11545663 | AP171: 90.11547857 | AQ171: 90.11546257 | AR171: 90.11546592
A172: 1600000US4024650 | B172: Eufaula city, Oklahoma | C172: 81.7 | D172: 82.4 | E172: 83.3 | F172: 85.7 | G172: 85.1 | H172: 83.2 | I172: 83.5 | J172: 84.11536806 | K172: 84.60895023 | L172: 85.81928232 | M172: 85.54812782 | N172: 85.83972196 | O172: 86.1313161 | P172: 86.42291024 | Q172: 86.71450437 | R172: 87.00609851 | S172: 87.29769265 | T172: 87.58928679 | U172: 87.88088093 | V172: 88.17247506 | W172: 87.88088093 | X172: 87.97807897 | Y172: 88.01047832 | Z172: 87.95647941 | AA172: 87.9816789 | AB172: 87.98287888 | AC172: 87.97367906 | AD172: 87.97941228 | AE172: 87.97865674 | AF172: 87.97724936 | AG172: 87.97843946 | AH172: 87.97811518 | AI172: 87.97793467 | AJ172: 87.9781631 | AK172: 87.97807099 | AL172: 87.97805625 | AM172: 87.97809678 | AN172: 87.97807467 | AO172: 87.9780759 | AP172: 87.97808245 | AQ172: 87.97807768 | AR172: 87.97807868
A173: 1600000US4025000 | B173: Fair Oaks town, Oklahoma | C173: 90 | D173: 89.6 | E173: 100 | F173: 100 | G173: 100 | H173: 93.6 | I173: 90.3 | J173: 90 | K173: 90.4109589 | L173: 84.3373494 | M173: 88.46525939 | N173: 87.67261004 | O173: 86.87996069 | P173: 86.08731134 | Q173: 85.29466198 | R173: 84.50201263 | S173: 83.70936328 | T173: 82.91671393 | U173: 82.12406458 | V173: 81.33141522 | W173: 82.12406458 | X173: 81.85984813 | Y173: 81.77177598 | Z173: 81.91856289 | AA173: 81.85006233 | AB173: 81.8468004 | AC173: 81.87180854 | AD173: 81.85622376 | AE173: 81.85827757 | AF173: 81.86210329 | AG173: 81.8588682 | AH173: 81.85974969 | AI173: 81.86024039 | AJ173: 81.85961943 | AK173: 81.85986984 | AL173: 81.85990989 | AM173: 81.85979972 | AN173: 81.85985981 | AO173: 81.85985647 | AP173: 81.85983867 | AQ173: 81.85985165 | AR173: 81.85984893
A174: 1600000US4024850 | B174: Fairfax town, Oklahoma | C174: 77.5 | D174: 76.8 | E174: 79.1 | F174: 82 | G174: 83.9 | H174: 83.8 | I174: 82.9 | J174: 84.13729128 | K174: 82.61287224 | L174: 83.49420849 | M174: 85.70525182 | N174: 86.44721811 | O174: 87.18918441 | P174: 87.9311507 | Q174: 88.67311699 | R174: 89.41508329 | S174: 90.15704958 | T174: 90.89901587 | U174: 91.64098217 | V174: 92.38294846 | W174: 91.64098217 | X174: 91.88830427 | Y174: 91.97074497 | Z174: 91.8333438 | AA174: 91.89746434 | AB174: 91.9005177 | AC174: 91.87710862 | AD174: 91.89169689 | AE174: 91.8897744 | AF174: 91.8861933 | AG174: 91.88922153 | AH174: 91.88839641 | AI174: 91.88793708 | AJ174: 91.88851834 | AK174: 91.88828394 | AL174: 91.88824646 | AM174: 91.88834958 | AN174: 91.88829333 | AO174: 91.88829645 | AP174: 91.88831312 | AQ174: 91.88830097 | AR174: 91.88830351
A175: 1600000US4024900 | B175: Fairland town, Oklahoma | C175: 86.5 | D175: 84.1 | E175: 82.6 | F175: 85.2 | G175: 86.5 | H175: 86.6 | I175: 87.1 | J175: 87.40740741 | K175: 86.16891065 | L175: 85.88374852 | M175: 87.09844493 | N175: 87.33343371 | O175: 87.56842249 | P175: 87.80341127 | Q175: 88.03840004 | R175: 88.27338882 | S175: 88.5083776 | T175: 88.74336638 | U175: 88.97835515 | V175: 89.21334393 | W175: 88.97835515 | X175: 89.05668475 | Y175: 89.08279461 | Z175: 89.03927817 | AA175: 89.05958584 | AB175: 89.06055287 | AC175: 89.05313896 | AD175: 89.05775923 | AE175: 89.05715035 | AF175: 89.05601618 | AG175: 89.05697525 | AH175: 89.05671393 | AI175: 89.05656845 | AJ175: 89.05675255 | AK175: 89.05667831 | AL175: 89.05666644 | AM175: 89.0566991 | AN175: 89.05668128 | AO175: 89.05668227 | AP175: 89.05668755 | AQ175: 89.0566837 | AR175: 89.05668451
A176: 1600000US4024950 | B176: Fairmont town, Oklahoma | C176: 90.2 | D176: 91.4 | E176: 87.2 | F176: 87.5 | G176: 88.1 | H176: 89.8 | I176: 88.1 | J176: 91.19170984 | K176: 90.90909091 | L176: 90.06622517 | M176: 90.07397633 | N176: 90.1880261 | O176: 90.30207587 | P176: 90.41612564 | Q176: 90.53017541 | R176: 90.64422518 | S176: 90.75827495 | T176: 90.87232472 | U176: 90.98637449 | V176: 91.10042426 | W176: 90.98637449 | X176: 91.02439108 | Y176: 91.03706328 | Z176: 91.01594295 | AA176: 91.0257991 | AB176: 91.02626844 | AC176: 91.02267017 | AD176: 91.02491257 | AE176: 91.02461706 | AF176: 91.0240666 | AG176: 91.02453208 | AH176: 91.02440525 | AI176: 91.02433464 | AJ176: 91.02442399 | AK176: 91.02438796 | AL176: 91.02438219 | AM176: 91.02439805 | AN176: 91.0243894 | AO176: 91.02438988 | AP176: 91.02439244 | AQ176: 91.02439057 | AR176: 91.02439097
A177: 1600000US4025100 | B177: Fairview city, Oklahoma | C177: 88.3 | D177: 87.7 | E177: 87 | F177: 85.1 | G177: 84.5 | H177: 85.7 | I177: 88.3 | J177: 87.98783578 | K177: 90.3707518 | L177: 90.84582441 | M177: 89.49200324 | N177: 89.83955997 | O177: 90.18711671 | P177: 90.53467344 | Q177: 90.88223018 | R177: 91.22978691 | S177: 91.57734365 | T177: 91.92490038 | U177: 92.27245711 | V177: 92.62001385 | W177: 92.27245711 | X177: 92.38830936 | Y177: 92.42692677 | Z177: 92.36256442 | AA177: 92.39260018 | AB177: 92.39403046 | AC177: 92.38306502 | AD177: 92.38989855 | AE177: 92.38899801 | AF177: 92.38732053 | AG177: 92.38873903 | AH177: 92.38835252 | AI177: 92.38813736 | AJ177: 92.38840964 | AK177: 92.38829984 | AL177: 92.38828228 | AM177: 92.38833059 | AN177: 92.38830424 | AO177: 92.3883057 | AP177: 92.38831351 | AQ177: 92.38830781 | AR177: 92.38830901
A178: 1600000US4025400 | B178: Fanshawe town, Oklahoma | C178: 80.3 | D178: 79.7 | E178: 83.9 | F178: 84.3 | G178: 87.9 | H178: 84.3 | I178: 80.8 | J178: 82.15384615 | K178: 79.10958904 | L178: 81.11888112 | M178: 81.70510777 | N178: 81.58635797 | O178: 81.46760818 | P178: 81.34885839 | Q178: 81.23010859 | R178: 81.1113588 | S178: 80.99260901 | T178: 80.87385922 | U178: 80.75510942 | V178: 80.63635963 | W178: 80.75510942 | X178: 80.71552616 | Y178: 80.70233174 | Z178: 80.72432244 | AA178: 80.71406011 | AB178: 80.71357143 | AC178: 80.71731799 | AD178: 80.71498318 | AE178: 80.71529087 | AF178: 80.71586401 | AG178: 80.71537935 | AH178: 80.71551141 | AI178: 80.71558492 | AJ178: 80.7154919 | AK178: 80.71552941 | AL178: 80.71553541 | AM178: 80.7155189 | AN178: 80.71552791 | AO178: 80.71552741 | AP178: 80.71552474 | AQ178: 80.71552669 | AR178: 80.71552628
A179: 1600000US4025450 | B179: Fargo town, Oklahoma | C179: 74 | D179: 75.5 | E179: 78.4 | F179: 79 | G179: 81.7 | H179: 79.9 | I179: 80.8 | J179: 79.19708029 | K179: 85.81560284 | L179: 87.90322581 | M179: 87.05237935 | N179: 88.29434089 | O179: 89.53630242 | P179: 90.77826396 | Q179: 92.0202255 | R179: 93.26218703 | S179: 94.50414857 | T179: 95.74611011 | U179: 96.98807164 | V179: 98.23003318 | W179: 96.98807164 | X179: 97.40205882 | Y179: 97.54005455 | Z179: 97.31006167 | AA179: 97.41739168 | AB179: 97.42250264 | AC179: 97.38331866 | AD179: 97.40773766 | AE179: 97.40451965 | AF179: 97.39852533 | AG179: 97.40359421 | AH179: 97.40221306 | AI179: 97.4014442 | AJ179: 97.40241716 | AK179: 97.40202481 | AL179: 97.40196206 | AM179: 97.40213467 | AN179: 97.40204051 | AO179: 97.40204575 | AP179: 97.40207364 | AQ179: 97.4020533 | AR179: 97.40205756
A180: 1600000US4025650 | B180: Faxon town, Oklahoma | C180: 86.6 | D180: 83.2 | E180: 80.6 | F180: 74.7 | G180: 77.8 | H180: 82.5 | I180: 73.6 | J180: 77.27272727 | K180: 96.36363636 | L180: 93.87755102 | M180: 87.39829313 | N180: 88.26136616 | O180: 89.12443919 | P180: 89.98751223 | Q180: 90.85058526 | R180: 91.71365829 | S180: 92.57673132 | T180: 93.43980435 | U180: 94.30287738 | V180: 95.16595041 | W180: 94.30287738 | X180: 94.59056839 | Y180: 94.68646539 | Z180: 94.52663705 | AA180: 94.60122361 | AB180: 94.60477535 | AC180: 94.57754534 | AD180: 94.59451477 | AE180: 94.59227849 | AF180: 94.58811286 | AG180: 94.59163537 | AH180: 94.59067557 | AI180: 94.59014127 | AJ180: 94.59081741 | AK180: 94.59054475 | AL180: 94.59050114 | AM180: 94.5906211 | AN180: 94.59055566 | AO180: 94.5905593 | AP180: 94.59057869 | AQ180: 94.59056455 | AR180: 94.59056751
A181: 1600000US4026250 | B181: Fitzhugh town, Oklahoma | C181: 85.1 | D181: 86.9 | E181: 90.3 | F181: 90.6 | G181: 96 | H181: 94.7 | I181: 87.2 | J181: 90.76086957 | K181: 93.04812834 | L181: 93.7007874 | M181: 94.53925629 | N181: 95.21348861 | O181: 95.88772093 | P181: 96.56195325 | Q181: 97.23618557 | R181: 97.91041789 | S181: 98.58465021 | T181: 99.25888253 | U181: 99.93311485 | V181: 100 | W181: 99.7306658 | X181: 99.88792688 | Y181: 99.87286423 | Z181: 99.83048563 | AA181: 99.86375891 | AB181: 99.85570293 | AC181: 99.84998249 | AD181: 99.85648144 | AE181: 99.85405562 | AF181: 99.85350652 | AG181: 99.85468119 | AH181: 99.85408111 | AI181: 99.85408961 | AJ181: 99.85428397 | AK181: 99.85415156 | AL181: 99.85417505 | AM181: 99.85420353 | AN181: 99.85417671 | AO181: 99.8541851 | AP181: 99.85418845 | AQ181: 99.85418342 | AR181: 99.85418565
A182: 1600000US4026350 | B182: Fletcher town, Oklahoma | C182: 81.5 | D182: 83.8 | E182: 87.7 | F182: 90.8 | G182: 90 | H182: 93.7 | I182: 93.3 | J182: 91.94312796 | K182: 91.74690509 | L182: 92.00581395 | M182: 95.73612807 | N182: 96.84277231 | O182: 97.94941656 | P182: 99.05606081 | Q182: 100 | R182: 100 | S182: 100 | T182: 100 | U182: 100 | V182: 100 | W182: 100 | X182: 100 | Y182: 100 | Z182: 100 | AA182: 100 | AB182: 100 | AC182: 100 | AD182: 100 | AE182: 100 | AF182: 100 | AG182: 100 | AH182: 100 | AI182: 100 | AJ182: 100 | AK182: 100 | AL182: 100 | AM182: 100 | AN182: 100 | AO182: 100 | AP182: 100 | AQ182: 100 | AR182: 100
A183: 1600000US4026850 | B183: Forest Park town, Oklahoma | C183: 96.7 | D183: 96.3 | E183: 96.6 | F183: 96.8 | G183: 98.4 | H183: 95 | I183: 94.1 | J183: 93.34085779 | K183: 92.1286031 | L183: 89.49320148 | M183: 90.82437704 | N183: 90.08585173 | O183: 89.34732642 | P183: 88.60880111 | Q183: 87.8702758 | R183: 87.13175049 | S183: 86.39322518 | T183: 85.65469987 | U183: 84.91617456 | V183: 84.17764925 | W183: 84.91617456 | X183: 84.66999946 | Y183: 84.58794109 | Z183: 84.72470504 | AA183: 84.66088186 | AB183: 84.65784266 | AC183: 84.68114319 | AD183: 84.66662257 | AE183: 84.66853614 | AF183: 84.67210063 | AG183: 84.66908645 | AH183: 84.66990774 | AI183: 84.67036494 | AJ183: 84.66978638 | AK183: 84.67001969 | AL183: 84.670057 | AM183: 84.66995435 | AN183: 84.67001035 | AO183: 84.67000723 | AP183: 84.66999065 | AQ183: 84.67000274 | AR183: 84.67000021
A184: 1600000US4026900 | B184: Forgan town, Oklahoma | C184: 68.6 | D184: 65.2 | E184: 69 | F184: 78.3 | G184: 80.6 | H184: 88.5 | I184: 87.8 | J184: 76.23529412 | K184: 78.26086957 | L184: 74.87046632 | M184: 84.08455482 | N184: 85.42053515 | O184: 86.75651548 | P184: 88.09249581 | Q184: 89.42847614 | R184: 90.76445647 | S184: 92.1004368 | T184: 93.43641713 | U184: 94.77239746 | V184: 96.10837779 | W184: 94.77239746 | X184: 95.21772423 | Y184: 95.36616649 | Z184: 95.11876273 | AA184: 95.23421782 | AB184: 95.23971568 | AC184: 95.19756541 | AD184: 95.22383297 | AE184: 95.22037135 | AF184: 95.21392324 | AG184: 95.21937586 | AH184: 95.21789015 | AI184: 95.21706308 | AJ184: 95.2181097 | AK184: 95.21768764 | AL184: 95.21762014 | AM184: 95.21780583 | AN184: 95.21770454 | AO184: 95.21771017 | AP184: 95.21774018 | AQ184: 95.21771829 | AR184: 95.21772288
A185: 1600000US4027100 | B185: Fort Cobb town, Oklahoma | C185: 78.7 | D185: 84.5 | E185: 81.8 | F185: 83.1 | G185: 87.3 | H185: 87.6 | I185: 86 | J185: 84.8812095 | K185: 83.19327731 | L185: 84.61538462 | M185: 86.45223548 | N185: 86.86737155 | O185: 87.28250761 | P185: 87.69764367 | Q185: 88.11277973 | R185: 88.5279158 | S185: 88.94305186 | T185: 89.35818792 | U185: 89.77332398 | V185: 90.18846004 | W185: 89.77332398 | X185: 89.91170267 | Y185: 89.9578289 | Z185: 89.88095185 | AA185: 89.91682781 | AB185: 89.91853618 | AC185: 89.90543861 | AD185: 89.91360087 | AE185: 89.91252522 | AF185: 89.91052157 | AG185: 89.91221589 | AH185: 89.91175423 | AI185: 89.91149723 | AJ185: 89.91182245 | AK185: 89.9116913 | AL185: 89.91167032 | AM185: 89.91172802 | AN185: 89.91169655 | AO185: 89.9116983 | AP185: 89.91170762 | AQ185: 89.91170082 | AR185: 89.91170225
A186: 1600000US4027150 | B186: Fort Coffee town, Oklahoma | C186: 78.3 | D186: 76.5 | E186: 73.8 | F186: 75.3 | G186: 76.1 | H186: 76.3 | I186: 82.1 | J186: 87.89346247 | K186: 82.01219512 | L186: 80.66666667 | M186: 83.92898837 | N186: 84.84385308 | O186: 85.7587178 | P186: 86.67358252 | Q186: 87.58844723 | R186: 88.50331195 | S186: 89.41817667 | T186: 90.33304138 | U186: 91.2479061 | V186: 92.16277082 | W186: 91.2479061 | X186: 91.552861 | Y186: 91.65451264 | Z186: 91.48509325 | AA186: 91.56415563 | AB186: 91.56792051 | AC186: 91.53905646 | AD186: 91.5570442 | AE186: 91.55467372 | AF186: 91.55025813 | AG186: 91.55399202 | AH186: 91.55297462 | AI186: 91.55240825 | AJ186: 91.55312496 | AK186: 91.55283595 | AL186: 91.55278972 | AM186: 91.55291688 | AN186: 91.55284752 | AO186: 91.55285137 | AP186: 91.55287192 | AQ186: 91.55285694 | AR186: 91.55286008
A187: 1600000US4027200 | B187: Fort Gibson town, Oklahoma | C187: 85.5 | D187: 87.1 | E187: 88.3 | F187: 91.6 | G187: 94.2 | H187: 94.7 | I187: 94.1 | J187: 89.87300554 | K187: 90.57801537 | L187: 90.98333878 | M187: 93.67880878 | N187: 94.22160384 | O187: 94.76439889 | P187: 95.30719395 | Q187: 95.84998901 | R187: 96.39278406 | S187: 96.93557912 | T187: 97.47837417 | U187: 98.02116923 | V187: 98.56396429 | W187: 98.02116923 | X187: 98.20210092 | Y187: 98.26241148 | Z187: 98.16189387 | AA187: 98.20880209 | AB187: 98.21103581 | AC187: 98.19391059 | AD187: 98.20458283 | AE187: 98.20317641 | AF187: 98.20055661 | AG187: 98.20277195 | AH187: 98.20216833 | AI187: 98.2018323 | AJ187: 98.20225753 | AK187: 98.20208605 | AL187: 98.20205862 | AM187: 98.20213407 | AN187: 98.20209291 | AO187: 98.2020952 | AP187: 98.20210739 | AQ187: 98.2020985 | AR187: 98.20210037
A188: 1600000US4027350 | B188: Fort Supply town, Oklahoma | C188: 82.4 | D188: 80 | E188: 83.8 | F188: 91.1 | G188: 93.2 | H188: 92.9 | I188: 91.4 | J188: 91.19496855 | K188: 86.64596273 | L188: 88.84892086 | M188: 92.88688087 | N188: 93.74831644 | O188: 94.60975201 | P188: 95.47118759 | Q188: 96.33262316 | R188: 97.19405873 | S188: 98.05549431 | T188: 98.91692988 | U188: 99.77836545 | V188: 100 | W188: 99.56509844 | X188: 99.78115463 | Y188: 99.78208436 | Z188: 99.70944581 | AA188: 99.7575616 | AB188: 99.74969726 | AC188: 99.73890156 | AD188: 99.74872014 | AE188: 99.74577298 | AF188: 99.74446489 | AG188: 99.74631934 | AH188: 99.74551907 | AI188: 99.74543443 | AJ188: 99.74575762 | AK188: 99.74557037 | AL188: 99.74558747 | AM188: 99.74563849 | AN188: 99.74559878 | AO188: 99.74560825 | AP188: 99.74561517 | AQ188: 99.7456074 | AR188: 99.74561027
A189: 1600000US4027400 | B189: Fort Towson town, Oklahoma | C189: 79.4 | D189: 77.1 | E189: 74.7 | F189: 73.5 | G189: 77.4 | H189: 78.3 | I189: 74.4 | J189: 75.61521253 | K189: 81.19266055 | L189: 83.22147651 | M189: 79.85686746 | N189: 80.28849155 | O189: 80.72011564 | P189: 81.15173974 | Q189: 81.58336383 | R189: 82.01498792 | S189: 82.44661201 | T189: 82.8782361 | U189: 83.30986019 | V189: 83.74148429 | W189: 83.30986019 | X189: 83.45373489 | Y189: 83.50169312 | Z189: 83.42176274 | AA189: 83.45906358 | AB189: 83.46083981 | AC189: 83.44722204 | AD189: 83.45570848 | AE189: 83.45459011 | AF189: 83.45250688 | AG189: 83.45426849 | AH189: 83.45378849 | AI189: 83.45352129 | AJ189: 83.45385942 | AK189: 83.45372307 | AL189: 83.45370126 | AM189: 83.45376125 | AN189: 83.45372853 | AO189: 83.45373035 | AP189: 83.45374004 | AQ189: 83.45373297 | AR189: 83.45373445
A190: 1600000US4027450 | B190: Foss town, Oklahoma | C190: 71.1 | D190: 69.1 | E190: 75.7 | F190: 78.3 | G190: 78.6 | H190: 79.9 | I190: 82.5 | J190: 83.33333333 | K190: 85.82089552 | L190: 82.11382114 | M190: 87.58804918 | N190: 89.21372994 | O190: 90.83941071 | P190: 92.46509147 | Q190: 94.09077223 | R190: 95.71645299 | S190: 97.34213375 | T190: 98.96781451 | U190: 100 | V190: 100 | W190: 99.65593817 | X190: 99.88531272 | Y190: 99.84708363 | Z190: 99.79611151 | AA190: 99.84283595 | AB190: 99.82867703 | AC190: 99.8225415 | AD190: 99.83135149 | AE190: 99.82752334 | AF190: 99.82713878 | AG190: 99.8286712 | AH190: 99.82777777 | AI190: 99.82786259 | AJ190: 99.82810385 | AK190: 99.82791474 | AL190: 99.82796039 | AM190: 99.827993 | AN190: 99.82795604 | AO190: 99.82796981 | AP190: 99.82797295 | AQ190: 99.82796627 | AR190: 99.82796968
A191: 1600000US4027500 | B191: Foster town, Oklahoma | C191: 83.8 | D191: 81.7 | E191: 93.6 | F191: 93.4 | G191: 89.2 | H191: 88.2 | I191: 90.3 | J191: 83.03571429 | K191: 89.56521739 | L191: 89.56521739 | M191: 89.6973499 | N191: 89.96293808 | O191: 90.22852626 | P191: 90.49411444 | Q191: 90.75970262 | R191: 91.0252908 | S191: 91.29087898 | T191: 91.55646716 | U191: 91.82205534 | V191: 92.08764352 | W191: 91.82205534 | X191: 91.91058473 | Y191: 91.94009453 | Z191: 91.89091153 | AA191: 91.9138636 | AB191: 91.91495655 | AC191: 91.90657723 | AD191: 91.91179912 | AE191: 91.91111097 | AF191: 91.90982911 | AG191: 91.91091307 | AH191: 91.91061771 | AI191: 91.91045329 | AJ191: 91.91066136 | AK191: 91.91057746 | AL191: 91.91056404 | AM191: 91.91060095 | AN191: 91.91058081 | AO191: 91.91058193 | AP191: 91.9105879 | AQ191: 91.91058355 | AR191: 91.91058446
A192: 1600000US4027600 | B192: Foyil town, Oklahoma | C192: 77.6 | D192: 75.3 | E192: 79.6 | F192: 75.9 | G192: 83.3 | H192: 78.8 | I192: 78.4 | J192: 82.60869565 | K192: 83.70044053 | L192: 81.3229572 | M192: 83.33164856 | N192: 84.0004557 | O192: 84.66926283 | P192: 85.33806996 | Q192: 86.00687709 | R192: 86.67568422 | S192: 87.34449135 | T192: 88.01329849 | U192: 88.68210562 | V192: 89.35091275 | W192: 88.68210562 | X192: 88.90504133 | Y192: 88.97935323 | Z192: 88.85550006 | AA192: 88.91329821 | AB192: 88.9160505 | AC192: 88.89494959 | AD192: 88.90809943 | AE192: 88.90636651 | AF192: 88.90313851 | AG192: 88.90586815 | AH192: 88.90512439 | AI192: 88.90471035 | AJ192: 88.9052343 | AK192: 88.90502301 | AL192: 88.90498922 | AM192: 88.90508218 | AN192: 88.90503147 | AO192: 88.90503429 | AP192: 88.90504931 | AQ192: 88.90503836 | AR192: 88.90504065
A193: 1600000US4027650 | B193: Francis town, Oklahoma | C193: 76.1 | D193: 80.8 | E193: 84.6 | F193: 81.8 | G193: 80.2 | H193: 81.5 | I193: 77.3 | J193: 77.43589744 | K193: 74.63414634 | L193: 77.57847534 | M193: 76.59901157 | N193: 76.12704059 | O193: 75.65506962 | P193: 75.18309865 | Q193: 74.71112768 | R193: 74.23915671 | S193: 73.76718574 | T193: 73.29521476 | U193: 72.82324379 | V193: 72.35127282 | W193: 72.82324379 | X193: 72.66592013 | Y193: 72.61347892 | Z193: 72.70088095 | AA193: 72.66009333 | AB193: 72.65815106 | AC193: 72.67304178 | AD193: 72.66376206 | AE193: 72.66498497 | AF193: 72.66726294 | AG193: 72.66533665 | AH193: 72.66586152 | AI193: 72.6661537 | AJ193: 72.66578396 | AK193: 72.66593306 | AL193: 72.66595691 | AM193: 72.66589131 | AN193: 72.66592709 | AO193: 72.6659251 | AP193: 72.6659145 | AQ193: 72.66592223 | AR193: 72.66592061
A194: 1600000US4027800 | B194: Frederick city, Oklahoma | C194: 70.5 | D194: 70.7 | E194: 71 | F194: 74.6 | G194: 71.6 | H194: 72.8 | I194: 73.9 | J194: 73.16802369 | K194: 75.45353573 | L194: 76.63656885 | M194: 76.3172791 | N194: 76.91390933 | O194: 77.51053956 | P194: 78.1071698 | Q194: 78.70380003 | R194: 79.30043026 | S194: 79.89706049 | T194: 80.49369072 | U194: 81.09032095 | V194: 81.68695118 | W194: 81.09032095 | X194: 81.2891977 | Y194: 81.35548995 | Z194: 81.24500287 | AA194: 81.2965635 | AB194: 81.29901877 | AC194: 81.28019505 | AD194: 81.29192577 | AE194: 81.29037986 | AF194: 81.28750023 | AG194: 81.28993529 | AH194: 81.28927179 | AI194: 81.28890244 | AJ194: 81.28936984 | AK194: 81.28918136 | AL194: 81.28915121 | AM194: 81.28923414 | AN194: 81.2891889 | AO194: 81.28919142 | AP194: 81.28920482 | AQ194: 81.28919504 | AR194: 81.28919709
A195: 1600000US4027850 | B195: Freedom town, Oklahoma | C195: 80 | D195: 91.4 | E195: 92.6 | F195: 85.1 | G195: 89.3 | H195: 89.5 | I195: 87.6 | J195: 91.32420091 | K195: 91.07142857 | L195: 88.7966805 | M195: 91.27560197 | N195: 91.7494876 | O195: 92.22337323 | P195: 92.69725886 | Q195: 93.17114449 | R195: 93.64503012 | S195: 94.11891575 | T195: 94.59280138 | U195: 95.06668701 | V195: 95.54057264 | W195: 95.06668701 | X195: 95.22464889 | Y195: 95.27730285 | Z195: 95.18954625 | AA195: 95.23049933 | AB195: 95.23244947 | AC195: 95.21749835 | AD195: 95.22681572 | AE195: 95.22558785 | AF195: 95.22330064 | AG195: 95.22523473 | AH195: 95.22470774 | AI195: 95.22441437 | AJ195: 95.22478561 | AK195: 95.22463591 | AL195: 95.22461196 | AM195: 95.22467783 | AN195: 95.2246419 | AO195: 95.2246439 | AP195: 95.22465454 | AQ195: 95.22464678 | AR195: 95.22464841
A196: 1600000US4028250 | B196: Gage town, Oklahoma | C196: 84.3 | D196: 83.5 | E196: 81.7 | F196: 78.1 | G196: 82 | H196: 80.6 | I196: 85.7 | J196: 87.5 | K196: 87.04663212 | L196: 83.7628866 | M196: 85.76736535 | N196: 86.19398598 | O196: 86.62060661 | P196: 87.04722724 | Q196: 87.47384787 | R196: 87.90046851 | S196: 88.32708914 | T196: 88.75370977 | U196: 89.1803304 | V196: 89.60695103 | W196: 89.1803304 | X196: 89.32253728 | Y196: 89.36993957 | Z196: 89.29093575 | AA196: 89.3278042 | AB196: 89.32955984 | AC196: 89.31609993 | AD196: 89.32448799 | AE196: 89.32338259 | AF196: 89.3213235 | AG196: 89.32306469 | AH196: 89.32259026 | AI196: 89.32232615 | AJ196: 89.32266037 | AK196: 89.32252559 | AL196: 89.32250404 | AM196: 89.32256333 | AN196: 89.32253099 | AO196: 89.32253279 | AP196: 89.32254237 | AQ196: 89.32253538 | AR196: 89.32253685
A197: 1600000US4028350 | B197: Gans town, Oklahoma | C197: 79.3 | D197: 81.3 | E197: 75.4 | F197: 74 | G197: 77.8 | H197: 76.5 | I197: 79.5 | J197: 80.40201005 | K197: 83.16326531 | L197: 79.24528302 | M197: 80.41973766 | N197: 80.73949799 | O197: 81.05925832 | P197: 81.37901865 | Q197: 81.69877898 | R197: 82.01853931 | S197: 82.33829964 | T197: 82.65805997 | U197: 82.97782031 | V197: 83.29758064 | W197: 82.97782031 | X197: 83.08440708 | Y197: 83.11993601 | Z197: 83.06072113 | AA197: 83.08835474 | AB197: 83.08967063 | AC197: 83.07958217 | AD197: 83.08586918 | AE197: 83.08504066 | AF197: 83.08349733 | AG197: 83.08480239 | AH197: 83.08444679 | AI197: 83.08424884 | AJ197: 83.08449934 | AK197: 83.08439832 | AL197: 83.08438217 | AM197: 83.08442661 | AN197: 83.08440237 | AO197: 83.08440372 | AP197: 83.0844109 | AQ197: 83.08440566 | AR197: 83.08440676
A198: 1600000US4028500 | B198: Garber city, Oklahoma | C198: 93.2 | D198: 93.9 | E198: 95.3 | F198: 90.8 | G198: 88.7 | H198: 87.9 | I198: 89 | J198: 88.12199037 | K198: 90.81632653 | L198: 92.84164859 | M198: 88.82796571 | N198: 88.42250556 | O198: 88.01704541 | P198: 87.61158525 | Q198: 87.2061251 | R198: 86.80066495 | S198: 86.3952048 | T198: 85.98974465 | U198: 85.58428449 | V198: 85.17882434 | W198: 85.58428449 | X198: 85.44913111 | Y198: 85.40407998 | Z198: 85.47916519 | AA198: 85.44412543 | AB198: 85.44245687 | AC198: 85.45524916 | AD198: 85.44727715 | AE198: 85.44832773 | AF198: 85.45028468 | AG198: 85.44862985 | AH198: 85.44908075 | AI198: 85.44933176 | AJ198: 85.44901412 | AK198: 85.44914221 | AL198: 85.4491627 | AM198: 85.44910635 | AN198: 85.44913709 | AO198: 85.44913538 | AP198: 85.44912627 | AQ198: 85.44913291 | AR198: 85.44913152
A199: 1600000US4028700 | B199: Garvin town, Oklahoma | C199: 86.9 | D199: 86.8 | E199: 82.1 | F199: 79.8 | G199: 83.8 | H199: 78.6 | I199: 83.5 | J199: 83.33333333 | K199: 87.5 | L199: 85.16483516 | M199: 83.79482295 | N199: 83.80300588 | O199: 83.81118881 | P199: 83.81937174 | Q199: 83.82755466 | R199: 83.83573759 | S199: 83.84392052 | T199: 83.85210345 | U199: 83.86028637 | V199: 83.8684693 | W199: 83.86028637 | X199: 83.86301402 | Y199: 83.86392323 | Z199: 83.86240787 | AA199: 83.86311504 | AB199: 83.86314872 | AC199: 83.86289054 | AD199: 83.86305143 | AE199: 83.86303023 | AF199: 83.86299074 | AG199: 83.86302413 | AH199: 83.86301503 | AI199: 83.86300997 | AJ199: 83.86301638 | AK199: 83.86301379 | AL199: 83.86301338 | AM199: 83.86301452 | AN199: 83.8630139 | AO199: 83.86301393 | AP199: 83.86301411 | AQ199: 83.86301398 | AR199: 83.86301401
A200: 1600000US4028800 | B200: Gate town, Oklahoma | C200: 94.7 | D200: 86.8 | E200: 89.1 | F200: 68.4 | G200: 68.4 | H200: 77 | I200: 75 | J200: 73.68421053 | K200: 83.56164384 | L200: 82.8125 | M200: 74.00133742 | N200: 72.9205196 | O200: 71.83970178 | P200: 70.75888396 | Q200: 69.67806614 | R200: 68.59724832 | S200: 67.5164305 | T200: 66.43561267 | U200: 65.35479485 | V200: 64.27397703 | W200: 65.35479485 | X200: 64.99452225 | Y200: 64.87443138 | Z200: 65.07458283 | AA200: 64.98117882 | AB200: 64.97673101 | AC200: 65.01083088 | AD200: 64.98958024 | AE200: 64.99238071 | AF200: 64.99759728 | AG200: 64.99318607 | AH200: 64.99438802 | AI200: 64.99505712 | AJ200: 64.9942104 | AK200: 64.99455185 | AL200: 64.99460646 | AM200: 64.99445624 | AN200: 64.99453818 | AO200: 64.99453363 | AP200: 64.99450935 | AQ200: 64.99452705 | AR200: 64.99452334
... 360 more rows

Sheet Bachelors (hidden)
A1: City | B1: ED_BACH_10 | C1: ED_BACH_11 | D1: ED_BACH_12 | E1: ED_BACH_13 | F1: ED_BACH_14 | G1: ED_BACH_15 | H1: ED_BACH_16 | I1: ED_BACH_17 | J1: ED_BACH_18 | K1: ED_BACH_19 | L1: ED_BACH_20 | M1: ED_BACH_21 | N1: ED_BACH_22 | O1: ED_BACH_23 | P1: ED_BACH_24 | Q1: ED_BACH_25 | R1: ED_BACH_26 | S1: ED_BACH_27 | T1: ED_BACH_28 | U1: ED_BACH_29 | V1: ED_BACH_30 | W1: ED_BACH_31 | X1: ED_BACH_32 | Y1: ED_BACH_33 | Z1: ED_BACH_34 | AA1: ED_BACH_35 | AB1: ED_BACH_36 | AC1: ED_BACH_37 | AD1: ED_BACH_38 | AE1: ED_BACH_39 | AF1: ED_BACH_40 | AG1: ED_BACH_41 | AH1: ED_BACH_42 | AI1: ED_BACH_43 | AJ1: ED_BACH_44 | AK1: ED_BACH_45 | AL1: ED_BACH_46 | AM1: ED_BACH_47 | AN1: ED_BACH_48 | AO1: ED_BACH_49 | AP1: ED_BACH_50 | AQ1: ED_BACH_51
A2: Achille town, Oklahoma | B2: 7.7 | C2: 5.9 | D2: 5.5 | E2: 7 | F2: 9.5 | G2: 9 | H2: 8.9 | I2: 9.459459459 | J2: 10.63829787 | K2: 12.80276817 | L2: 10.96684183 | M2: 11.46930262 | N2: 11.74630421 | O2: 11.39414956 | P2: 11.53658546 | Q2: 11.55901308 | R2: 11.4965827 | S2: 11.53072708 | T2: 11.52877428 | U2: 11.51869469 | V2: 11.52606535 | W2: 11.52451144 | X2: 11.52309049 | Y2: 11.52455576 | Z2: 11.52405256 | AA2: 11.52389961 | AB2: 11.52416931 | AC2: 11.52404049 | AD2: 11.52403647 | AE2: 11.52408209 | AF2: 11.52405302 | AG2: 11.52405719 | AH2: 11.5240641 | AI2: 11.5240581 | AJ2: 11.5240598 | AK2: 11.52406067 | AL2: 11.52405952 | AM2: 11.52406 | AN2: 11.52406006 | AO2: 11.52405986 | AP2: 11.52405997 | AQ2: 11.52405997
A3: Ada city, Oklahoma | B3: 30.8 | C3: 32.8 | D3: 30.8 | E3: 31.1 | F3: 30.9 | G3: 30.6 | H3: 29.6 | I3: 25.28246515 | J3: 25.24143015 | K3: 25.13329384 | L3: 25.21906305 | M3: 25.19792901 | N3: 25.18342863 | O3: 25.20014023 | P3: 25.19383263 | Q3: 25.19246716 | R3: 25.19548001 | S3: 25.1939266 | T3: 25.19395792 | U3: 25.19445484 | V3: 25.19411312 | W3: 25.1941753 | X3: 25.19424775 | Y3: 25.19417872 | Z3: 25.19420059 | AA3: 25.19420902 | AB3: 25.19419611 | AC3: 25.19420191 | AD3: 25.19420235 | AE3: 25.19420012 | AF3: 25.19420146 | AG3: 25.19420131 | AH3: 25.19420096 | AI3: 25.19420124 | AJ3: 25.19420117 | AK3: 25.19420113 | AL3: 25.19420118 | AM3: 25.19420116 | AN3: 25.19420116 | AO3: 25.19420117 | AP3: 25.19420116 | AQ3: 25.19420116
A4: Adair town, Oklahoma | B4: 15.1 | C4: 11.9 | D4: 12.2 | E4: 8.9 | F4: 10.8 | G4: 9.3 | H4: 10.9 | I4: 8.873720137 | J4: 13.98963731 | K4: 13.90977444 | L4: 12.25771063 | M4: 13.38570746 | N4: 13.18439751 | O4: 12.9426052 | P4: 13.17090339 | Q4: 13.09930203 | R4: 13.07093687 | S4: 13.1137141 | T4: 13.094651 | U4: 13.09310066 | V4: 13.10048859 | W4: 13.09608008 | X4: 13.09655644 | Y4: 13.09770837 | Z4: 13.09678163 | AA4: 13.09701548 | AB4: 13.09716849 | AC4: 13.09698854 | AD4: 13.0970575 | AE4: 13.09707151 | AF4: 13.09703918 | AG4: 13.09705607 | AH4: 13.09705559 | AI4: 13.09705028 | AJ4: 13.09705398 | AK4: 13.09705328 | AL4: 13.09705251 | AM4: 13.09705326 | AN4: 13.09705302 | AO4: 13.09705293 | AP4: 13.09705307 | AQ4: 13.097053
A5: Addington town, Oklahoma | B5: 0 | C5: 0 | D5: 2 | E5: 6.3 | F5: 8.5 | G5: 16.4 | H5: 16 | I5: 16.86746988 | J5: 14.67889908 | K5: 10.30927835 | L5: 13.95188244 | M5: 12.98001996 | N5: 12.41372691 | O5: 13.11520977 | P5: 12.83631888 | Q5: 12.78841852 | R5: 12.91331572 | S5: 12.84601771 | T5: 12.84925065 | U5: 12.86952803 | V5: 12.85493213 | W5: 12.8579036 | X5: 12.86078792 | Y5: 12.85787455 | Z5: 12.85885536 | AA5: 12.85917261 | AB5: 12.85863417 | AC5: 12.85888738 | AD5: 12.85889805 | AE5: 12.85880653 | AF5: 12.85886399 | AG5: 12.85885619 | AH5: 12.85884224 | AI5: 12.85885414 | AJ5: 12.85885086 | AK5: 12.85884908 | AL5: 12.85885136 | AM5: 12.85885043 | AN5: 12.85885029 | AO5: 12.85885069 | AP5: 12.85885047 | AQ5: 12.85885048
A6: Afton town, Oklahoma | B6: 13.2 | C6: 14.5 | D6: 10.7 | E6: 10.3 | F6: 11.6 | G6: 12.1 | H6: 12.4 | I6: 6.937172775 | J6: 6.31443299 | K6: 6.405228758 | L6: 6.552278174 | M6: 6.423979974 | N6: 6.460495635 | O6: 6.478917928 | P6: 6.454464513 | Q6: 6.464626025 | R6: 6.466002822 | S6: 6.461697787 | T6: 6.464108878 | U6: 6.463936495 | V6: 6.46324772 | W6: 6.463764364 | X6: 6.463649527 | Y6: 6.46355387 | Z6: 6.463655921 | AA6: 6.463619773 | AB6: 6.463609854 | AC6: 6.463628516 | AD6: 6.463619381 | AE6: 6.46361925 | AF6: 6.463622382 | AG6: 6.463620338 | AH6: 6.463620657 | AI6: 6.463621126 | AJ6: 6.463620707 | AK6: 6.46362083 | AL6: 6.463620887 | AM6: 6.463620808 | AN6: 6.463620842 | AO6: 6.463620846 | AP6: 6.463620832 | AQ6: 6.46362084
A7: Agra town, Oklahoma | B7: 12.4 | C7: 17.8 | D7: 12 | E7: 9.8 | F7: 11 | G7: 9.9 | H7: 6.6 | I7: 7.142857143 | J7: 6.41025641 | K7: 7.258064516 | L7: 6.937059356 | M7: 6.868460094 | N7: 7.021194655 | O7: 6.942238035 | P7: 6.943964262 | Q7: 6.969132317 | R7: 6.951778205 | S7: 6.954958261 | T7: 6.958622928 | U7: 6.955119798 | V7: 6.956233662 | W7: 6.956658796 | X7: 6.956004085 | Y7: 6.956298848 | Z7: 6.956320577 | AA7: 6.956207837 | AB7: 6.956275754 | AC7: 6.956268056 | AD7: 6.956250549 | AE7: 6.956264786 | AF7: 6.95626113 | AG7: 6.956258822 | AH7: 6.956261579 | AI7: 6.95626051 | AJ7: 6.956260304 | AK7: 6.956260798 | AL7: 6.956260537 | AM7: 6.956260546 | AN7: 6.956260627 | AO7: 6.95626057 | AP7: 6.956260581 | AQ7: 6.956260593
A8: Albion town, Oklahoma | B8: 3.5 | C8: 2.3 | D8: 6 | E8: 5.9 | F8: 6.3 | G8: 2.6 | H8: 4 | I8: 7.042253521 | J8: 5.633802817 | K8: 4.938271605 | L8: 5.871442648 | M8: 5.481172357 | N8: 5.430295536 | O8: 5.594303514 | P8: 5.501923802 | Q8: 5.508840951 | R8: 5.535022755 | S8: 5.515262503 | T8: 5.519708736 | U8: 5.523331332 | V8: 5.51943419 | W8: 5.520824753 | X8: 5.521196758 | Y8: 5.520485234 | Z8: 5.520835582 | AA8: 5.520839191 | AB8: 5.520720002 | AC8: 5.520798258 | AD8: 5.520785817 | AE8: 5.520768026 | AF8: 5.520784034 | AG8: 5.520779292 | AH8: 5.520777117 | AI8: 5.520780148 | AJ8: 5.520778852 | AK8: 5.520778706 | AL8: 5.520779235 | AM8: 5.520778931 | AN8: 5.520778957 | AO8: 5.520779041 | AP8: 5.520778977 | AQ8: 5.520778992
A9: Alderson town, Oklahoma | B9: 3.2 | C9: 6.5 | D9: 12.2 | E9: 14.4 | F9: 13.7 | G9: 17.5 | H9: 7.7 | I9: 6.626506024 | J9: 1.923076923 | K9: 1.290322581 | L9: 3.279968509 | M9: 2.164456004 | N9: 2.244915698 | O9: 2.563113404 | P9: 2.324161702 | Q9: 2.377396935 | R9: 2.421557347 | S9: 2.374371995 | T9: 2.391108759 | U9: 2.395679367 | V9: 2.387053373 | W9: 2.3912805 | X9: 2.391337747 | Y9: 2.38989054 | Z9: 2.390836262 | AA9: 2.390688183 | AB9: 2.390471662 | AC9: 2.390665369 | AD9: 2.390608405 | AE9: 2.390581812 | AF9: 2.390618528 | AG9: 2.390602915 | AH9: 2.390601085 | AI9: 2.390607509 | AJ9: 2.390603836 | AK9: 2.390604144 | AL9: 2.390605163 | AM9: 2.390604381 | AN9: 2.390604563 | AO9: 2.390604702 | AP9: 2.390604549 | AQ9: 2.390604604
A10: Alex town, Oklahoma | B10: 8.2 | C10: 13.7 | D10: 15.2 | E10: 13.3 | F10: 12 | G10: 13.2 | H10: 9.9 | I10: 9.62962963 | J10: 9.352517986 | K10: 10.76555024 | L10: 9.915899285 | M10: 10.0113225 | N10: 10.23092401 | O10: 10.05271527 | P10: 10.09832059 | Q10: 10.12731996 | R10: 10.09278527 | S10: 10.10614194 | T10: 10.10874906 | U10: 10.10255876 | V10: 10.10581658 | W10: 10.10570813 | X10: 10.10469449 | Y10: 10.1054064 | Z10: 10.10526968 | AA10: 10.10512352 | AB10: 10.10526653 | AC10: 10.10521991 | AD10: 10.10520332 | AE10: 10.10522992 | AF10: 10.10521772 | AG10: 10.10521699 | AH10: 10.10522154 | AI10: 10.10521875 | AJ10: 10.10521909 | AK10: 10.1052198 | AL10: 10.10521921 | AM10: 10.10521937 | AN10: 10.10521946 | AO10: 10.10521935 | AP10: 10.10521939 | AQ10: 10.1052194
A11: Aline town, Oklahoma | B11: 4 | C11: 12.3 | D11: 10.5 | E11: 15.8 | F11: 14.8 | G11: 15.1 | H11: 9.2 | I11: 14.03508772 | J11: 7.96460177 | K11: 8.653846154 | L11: 10.21784521 | M11: 8.945431046 | N11: 9.272374138 | O11: 9.478550133 | P11: 9.232118439 | Q11: 9.327680904 | R11: 9.346116492 | S11: 9.301971945 | T11: 9.325256447 | U11: 9.324448295 | V11: 9.317225562 | W11: 9.322310101 | X11: 9.321327986 | Y11: 9.320287883 | Z11: 9.321308657 | AA11: 9.320974842 | AB11: 9.320857127 | AC11: 9.321046875 | AD11: 9.320959615 | AE11: 9.320954539 | AF11: 9.32098701 | AG11: 9.320967055 | AH11: 9.320969534 | AI11: 9.320974533 | AJ11: 9.320970374 | AK11: 9.32097148 | AL11: 9.320972129 | AM11: 9.320971328 | AN11: 9.320971646 | AO11: 9.320971701 | AP11: 9.320971558 | AQ11: 9.320971635
A12: Allen town, Oklahoma | B12: 12.4 | C12: 10.9 | D12: 11.7 | E12: 13.2 | F12: 10.8 | G12: 12.9 | H12: 13.9 | I12: 12.46334311 | J12: 12.64705882 | K12: 15.31791908 | L12: 13.476107 | M12: 13.81369497 | N12: 14.20257368 | O12: 13.83079188 | P12: 13.94902018 | Q12: 13.99412858 | R12: 13.92464688 | S12: 13.95593188 | T12: 13.95823578 | U12: 13.94627152 | V12: 13.95347973 | W12: 13.95266234 | X12: 13.95080453 | Y12: 13.95231553 | Z12: 13.95192747 | AA12: 13.95168251 | AB12: 13.95197517 | AC12: 13.95186171 | AD12: 13.9518398 | AE12: 13.95189223 | AF12: 13.95186458 | AG12: 13.95186553 | AH12: 13.95187411 | AI12: 13.95186808 | AJ12: 13.95186924 | AK12: 13.95187048 | AL12: 13.95186926 | AM12: 13.95186966 | AN12: 13.9518698 | AO12: 13.95186958 | AP12: 13.95186968 | AQ12: 13.95186969
A13: Altus city, Oklahoma | B13: 21.3 | C13: 20.5 | D13: 20 | E13: 18.4 | F13: 17.9 | G13: 18.1 | H13: 20.8 | I13: 19.68828627 | J13: 19.47743468 | K13: 22.58064516 | L13: 20.58212204 | M13: 20.88006729 | N13: 21.3476115 | O13: 20.93660028 | P13: 21.05475969 | Q13: 21.11299049 | R13: 21.03478348 | S13: 21.06751122 | T13: 21.07176173 | U13: 21.05801881 | V13: 21.06576392 | W13: 21.06518149 | X13: 21.06298807 | Y13: 21.06464449 | Z13: 21.06427135 | AA13: 21.06396797 | AB13: 21.06429461 | AC13: 21.06417798 | AD13: 21.06414685 | AE13: 21.06420648 | AF13: 21.0641771 | AG13: 21.06417681 | AH13: 21.0641868 | AI13: 21.06418024 | AJ13: 21.06418128 | AK13: 21.06418277 | AL13: 21.06418143 | AM13: 21.06418183 | AN13: 21.06418201 | AO13: 21.06418176 | AP13: 21.06418186 | AQ13: 21.06418188
A14: Alva city, Oklahoma | B14: 30.9 | C14: 27.3 | D14: 28.4 | E14: 28.4 | F14: 25.7 | G14: 27.6 | H14: 27.3 | I14: 27.30705688 | J14: 27.50298686 | K14: 27.44433688 | L14: 27.41812687 | M14: 27.4551502 | N14: 27.43920465 | O14: 27.43749391 | P14: 27.44394959 | Q14: 27.44021605 | R14: 27.44055318 | S14: 27.44157294 | T14: 27.44078072 | U14: 27.44096895 | V14: 27.44110754 | W14: 27.4409524 | X14: 27.44100963 | Y14: 27.44102319 | Z14: 27.44099508 | AA14: 27.4410093 | AB14: 27.44100919 | AC14: 27.44100452 | AD14: 27.44100767 | AE14: 27.44100713 | AF14: 27.44100644 | AG14: 27.44100708 | AH14: 27.44100688 | AI14: 27.4410068 | AJ14: 27.44100692 | AK14: 27.44100687 | AL14: 27.44100686 | AM14: 27.44100688 | AN14: 27.44100687 | AO14: 27.44100687 | AP14: 27.44100688 | AQ14: 27.44100687
A15: Amber town, Oklahoma | B15: 7.4 | C15: 10.2 | D15: 10.3 | E15: 9.9 | F15: 11.5 | G15: 12.8 | H15: 10.2 | I15: 8.064516129 | J15: 8.783783784 | K15: 8.524590164 | L15: 8.457630026 | M15: 8.588667991 | N15: 8.523629394 | O15: 8.523309137 | P15: 8.545202174 | Q15: 8.530713568 | R15: 8.53307496 | S15: 8.536330234 | T15: 8.533372921 | U15: 8.534259371 | V15: 8.534654175 | W15: 8.534095489 | X15: 8.534336345 | Y15: 8.534362003 | Z15: 8.534264612 | AA15: 8.534320987 | AB15: 8.534315868 | AC15: 8.534300489 | AD15: 8.534312448 | AE15: 8.534309601 | AF15: 8.534307513 | AG15: 8.534309854 | AH15: 8.534308989 | AI15: 8.534308785 | AJ15: 8.53430921 | AK15: 8.534308995 | AL15: 8.534308997 | AM15: 8.534309067 | AN15: 8.534309019 | AO15: 8.534309028 | AP15: 8.534309038 | AQ15: 8.534309028
A16: Ames town, Oklahoma | B16: 11.9 | C16: 12.3 | D16: 16.9 | E16: 11.9 | F16: 11.1 | G16: 14.3 | H16: 10.7 | I16: 12.97297297 | J16: 6.382978723 | K16: 10.61452514 | L16: 9.990158944 | M16: 8.995887602 | N16: 9.866857229 | O16: 9.617634592 | P16: 9.493459808 | Q16: 9.65931721 | R16: 9.590137203 | S16: 9.580971407 | T16: 9.61014194 | U16: 9.593750183 | V16: 9.59495451 | W16: 9.599615544 | X16: 9.596106746 | Y16: 9.596892267 | Z16: 9.597538186 | AA16: 9.596845733 | AB16: 9.597092062 | AC16: 9.59715866 | AD16: 9.597032151 | AE16: 9.597094291 | AF16: 9.597095034 | AG16: 9.597073826 | AH16: 9.597087717 | AI16: 9.597085526 | AJ16: 9.597082356 | AK16: 9.597085199 | AL16: 9.59708436 | AM16: 9.597083972 | AN16: 9.597084511 | AO16: 9.597084281 | AP16: 9.597084254 | AQ16: 9.597084349
A17: Anadarko city, Oklahoma | B17: 12.6 | C17: 12.2 | D17: 13.9 | E17: 15.1 | F17: 17.1 | G17: 17.2 | H17: 18 | I17: 15.7212662 | J17: 13.99913719 | K17: 14.69634753 | L17: 14.80558364 | M17: 14.50035612 | N17: 14.6674291 | O17: 14.65778962 | P17: 14.60852495 | Q17: 14.64458122 | R17: 14.63696526 | S17: 14.63002381 | T17: 14.6371901 | U17: 14.63472639 | V17: 14.6339801 | W17: 14.63529886 | X17: 14.63466845 | Y17: 14.63464914 | Z17: 14.63487215 | AA17: 14.63472991 | AB17: 14.6347504 | AC17: 14.63478415 | AD17: 14.63475482 | AE17: 14.63476312 | AF17: 14.63476737 | AG17: 14.63476177 | AH17: 14.63476409 | AI17: 14.63476441 | AJ17: 14.63476342 | AK17: 14.63476397 | AL17: 14.63476393 | AM17: 14.63476378 | AN17: 14.63476389 | AO17: 14.63476387 | AP17: 14.63476385 | AQ17: 14.63476387
A18: Antlers city, Oklahoma | B18: 16.9 | C18: 16.7 | D18: 12.6 | E18: 14 | F18: 13.7 | G18: 13.8 | H18: 13 | I18: 11.37605564 | J18: 12.96296296 | K18: 13.39193382 | L18: 12.57698414 | M18: 12.97729364 | N18: 12.98207053 | O18: 12.84544944 | P18: 12.93493787 | Q18: 12.92081928 | R18: 12.9004022 | S18: 12.91871978 | T18: 12.91331375 | U18: 12.91081191 | V18: 12.91428182 | W18: 12.91280249 | X18: 12.91263207 | Y18: 12.91323879 | Z18: 12.91289112 | AA18: 12.91292066 | AB18: 12.91301686 | AC18: 12.91294288 | AD18: 12.91296013 | AE18: 12.91297329 | AF18: 12.91295877 | AG18: 12.91296406 | AH18: 12.91296537 | AI18: 12.91296274 | AJ18: 12.91296406 | AK18: 12.91296406 | AL18: 12.91296362 | AM18: 12.91296391 | AN18: 12.91296386 | AO18: 12.9129638 | AP18: 12.91296386 | AQ18: 12.91296384
A19: Apache town, Oklahoma | B19: 14.8 | C19: 17.5 | D19: 16.4 | E19: 15.9 | F19: 15.4 | G19: 18.7 | H19: 18.8 | I19: 20.10919017 | J19: 15.93806922 | K19: 13.53046595 | L19: 16.52590845 | M19: 15.33148121 | N19: 15.1292852 | O19: 15.66222495 | P19: 15.37433045 | Q19: 15.38861353 | R19: 15.47505631 | S19: 15.41266677 | T19: 15.42544554 | U19: 15.43772287 | V19: 15.42527839 | W19: 15.42948227 | X19: 15.43082784 | Y19: 15.4285295 | Z19: 15.4296132 | AA19: 15.42965685 | AB19: 15.42926652 | AC19: 15.42951219 | AD19: 15.42947852 | AE19: 15.42941908 | AF19: 15.42946993 | AG19: 15.42945584 | AH19: 15.42944828 | AI19: 15.42945802 | AJ19: 15.42945405 | AK19: 15.42945345 | AL19: 15.42945517 | AM19: 15.42945422 | AN19: 15.42945428 | AO19: 15.42945456 | AP19: 15.42945435 | AQ19: 15.4294544
A20: Arapaho town, Oklahoma | B20: 6.3 | C20: 6.7 | D20: 5.8 | E20: 9 | F20: 9.6 | G20: 8.5 | H20: 9.3 | I20: 10.45081967 | J20: 9.539473684 | K20: 10.26156942 | L20: 10.08395426 | M20: 9.961665787 | N20: 10.10239649 | O20: 10.04933884 | P20: 10.03780037 | Q20: 10.06317857 | R20: 10.05010593 | S20: 10.05036162 | T20: 10.05454871 | U20: 10.05167209 | V20: 10.05219414 | W20: 10.05280498 | X20: 10.05222373 | Y20: 10.05240762 | Z20: 10.05247878 | AA20: 10.05237004 | AB20: 10.05241881 | AC20: 10.05242254 | AD20: 10.0524038 | AE20: 10.05241505 | AF20: 10.0524138 | AG20: 10.05241088 | AH20: 10.05241324 | AI20: 10.05241264 | AJ20: 10.05241226 | AK20: 10.05241271 | AL20: 10.05241254 | AM20: 10.0524125 | AN20: 10.05241258 | AO20: 10.05241254 | AP20: 10.05241254 | AQ20: 10.05241256
A21: Arcadia town, Oklahoma | B21: 10.4 | C21: 11 | D21: 4.6 | E21: 4.3 | F21: 13.1 | G21: 11.6 | H21: 11.5 | I21: 10.20408163 | J21: 10.3286385 | K21: 15.08379888 | L21: 11.872173 | M21: 12.42820346 | N21: 13.12805845 | O21: 12.47614497 | P21: 12.67746896 | Q21: 12.76055746 | R21: 12.63805713 | S21: 12.69202785 | T21: 12.69688081 | U21: 12.67565526 | V21: 12.68818798 | W21: 12.68690802 | X21: 12.68358375 | Y21: 12.68622658 | Z21: 12.68557278 | AA21: 12.68512771 | AB21: 12.68564236 | AC21: 12.68544762 | AD21: 12.68540589 | AE21: 12.68549862 | AF21: 12.68545071 | AG21: 12.68545174 | AH21: 12.68546703 | AI21: 12.68545649 | AJ21: 12.68545842 | AK21: 12.68546065 | AL21: 12.68545852 | AM21: 12.6854592 | AN21: 12.68545945 | AO21: 12.68545906 | AP21: 12.68545923 | AQ21: 12.68545925
A22: Ardmore city, Oklahoma | B22: 19 | C22: 21.2 | D22: 20 | E22: 20 | F22: 20.8 | G22: 20.4 | H22: 20.4 | I22: 20.72827616 | J22: 20.89997289 | K22: 20.42673021 | L22: 20.68499309 | M22: 20.6705654 | N22: 20.59409623 | O22: 20.6498849 | P22: 20.63818218 | Q22: 20.62738777 | R22: 20.63848495 | S22: 20.63468497 | T22: 20.63351923 | U22: 20.63556305 | V22: 20.63458908 | W22: 20.63455712 | X22: 20.63490308 | Y22: 20.63468309 | Z22: 20.63471443 | AA22: 20.63476687 | AB22: 20.63472147 | AC22: 20.63473426 | AD22: 20.63474086 | AE22: 20.6347322 | AF22: 20.63473577 | AG22: 20.63473628 | AH22: 20.63473475 | AI22: 20.6347356 | AJ22: 20.63473554 | AK22: 20.6347353 | AL22: 20.63473548 | AM22: 20.63473544 | AN22: 20.6347354 | AO22: 20.63473544 | AP22: 20.63473543 | AQ22: 20.63473542
A23: Arkoma town, Oklahoma | B23: 9.2 | C23: 9.6 | D23: 10 | E23: 5.1 | F23: 7.6 | G23: 9.1 | H23: 9.5 | I23: 7.360226469 | J23: 9.510086455 | K23: 9.471365639 | L23: 8.780559521 | M23: 9.254003872 | N23: 9.168643011 | O23: 9.067735468 | P23: 9.163460783 | Q23: 9.133279754 | R23: 9.121492002 | S23: 9.139410846 | T23: 9.131394201 | U23: 9.130765683 | V23: 9.13385691 | W23: 9.132005598 | X23: 9.132209397 | Y23: 9.132690635 | Z23: 9.132301876 | AA23: 9.132400636 | AB23: 9.132464382 | AC23: 9.132388965 | AD23: 9.132417995 | AE23: 9.132423781 | AF23: 9.132410247 | AG23: 9.132417341 | AH23: 9.132417123 | AI23: 9.132414903 | AJ23: 9.132416456 | AK23: 9.132416161 | AL23: 9.13241584 | AM23: 9.132416152 | AN23: 9.132416051 | AO23: 9.132416014 | AP23: 9.132416072 | AQ23: 9.132416046
A24: Armstrong town, Oklahoma | B24: 3.9 | C24: 0 | D24: 0 | E24: 0 | F24: 4.3 | G24: 5.1 | H24: 4 | I24: 8.333333333 | J24: 13.04347826 | K24: 12.5 | L24: 11.29227053 | M24: 12.27858293 | N24: 12.02361782 | O24: 11.86482376 | P24: 12.05567484 | Q24: 11.98137214 | R24: 11.96729025 | S24: 12.00144574 | T24: 11.98336938 | U24: 11.98403512 | V24: 11.98961675 | W24: 11.98567375 | X24: 11.98644187 | Y24: 11.98724412 | Z24: 11.98645325 | AA24: 11.98671308 | AB24: 11.98680348 | AC24: 11.9866566 | AD24: 11.98672439 | AE24: 11.98672816 | AF24: 11.98670305 | AG24: 11.98671853 | AH24: 11.98671658 | AI24: 11.98671272 | AJ24: 11.98671594 | AK24: 11.98671508 | AL24: 11.98671458 | AM24: 11.9867152 | AN24: 11.98671496 | AO24: 11.98671491 | AP24: 11.98671502 | AQ24: 11.98671496
A25: Arnett town, Oklahoma | B25: 34.3 | C25: 34.8 | D25: 34.7 | E25: 30.7 | F25: 30 | G25: 20.9 | H25: 16.7 | I25: 20.60085837 | J25: 21.875 | K25: 21.71052632 | L25: 21.39546156 | M25: 21.66032929 | N25: 21.58877239 | O25: 21.54818775 | P25: 21.59909648 | Q25: 21.57868554 | R25: 21.57532326 | S25: 21.58436843 | T25: 21.57945907 | U25: 21.57971692 | V25: 21.58118147 | W25: 21.58011916 | X25: 21.58033918 | Y25: 21.5805466 | Z25: 21.58033498 | AA25: 21.58040692 | AB25: 21.5804295 | AC25: 21.58039047 | AD25: 21.58040896 | AE25: 21.58040964 | AF25: 21.58040303 | AG25: 21.58040721 | AH25: 21.58040663 | AI25: 21.58040562 | AJ25: 21.58040649 | AK25: 21.58040625 | AL25: 21.58040612 | AM25: 21.58040628 | AN25: 21.58040622 | AO25: 21.58040621 | AP25: 21.58040623 | AQ25: 21.58040622
A26: Asher town, Oklahoma | B26: 8.7 | C26: 12.5 | D26: 13.4 | E26: 9 | F26: 9.1 | G26: 8.3 | H26: 8.7 | I26: 7.666666667 | J26: 7.608695652 | K26: 8.910891089 | L26: 8.062084469 | M26: 8.193890403 | N26: 8.388955321 | O26: 8.214976731 | P26: 8.265940818 | Q26: 8.289957623 | R26: 8.256958391 | S26: 8.270952278 | T26: 8.272622764 | U26: 8.266844477 | V26: 8.27013984 | W26: 8.269869027 | X26: 8.268951115 | Y26: 8.269653327 | Z26: 8.269491156 | AA26: 8.269365199 | AB26: 8.269503228 | AC26: 8.269453194 | AD26: 8.26944054 | AE26: 8.269465654 | AF26: 8.26945313 | AG26: 8.269453108 | AH26: 8.269457297 | AI26: 8.269454512 | AJ26: 8.269454972 | AK26: 8.269455594 | AL26: 8.269455026 | AM26: 8.269455197 | AN26: 8.269455272 | AO26: 8.269455165 | AP26: 8.269455212 | AQ26: 8.269455216
A27: Ashland town, Oklahoma | B27: 9.4 | C27: 11.8 | D27: 14.3 | E27: 11.1 | F27: 4.3 | G27: 5.9 | H27: 8.6 | I27: 8.823529412 | J27: 21.42857143 | K27: 25.92592593 | L27: 18.72600892 | M27: 22.02683543 | N27: 22.22625676 | O27: 20.9930337 | P27: 21.74870863 | Q27: 21.6559997 | R27: 21.46591401 | S27: 21.62354078 | T27: 21.58181816 | U27: 21.55709098 | V27: 21.58748331 | W27: 21.57546415 | X27: 21.57334615 | Y27: 21.57876454 | Z27: 21.57585828 | AA27: 21.57598966 | AB27: 21.57687082 | AC27: 21.57623959 | AD27: 21.57636669 | AE27: 21.57649237 | AF27: 21.57636621 | AG27: 21.57640842 | AH27: 21.57642233 | AI27: 21.57639899 | AJ27: 21.57640992 | AK27: 21.57641041 | AL27: 21.57640644 | AM27: 21.57640892 | AN27: 21.57640859 | AO27: 21.57640798 | AP27: 21.5764085 | AQ27: 21.57640836
A28: Atoka city, Oklahoma | B28: 18.4 | C28: 16 | D28: 14.2 | E28: 12.2 | F28: 11 | G28: 12.8 | H28: 14.4 | I28: 13.45270891 | J28: 12.6092959 | K28: 11.58737635 | L28: 12.54979372 | M28: 12.24882199 | N28: 12.12866402 | O28: 12.30909324 | P28: 12.22885975 | Q28: 12.22220567 | R28: 12.25338622 | S28: 12.23481721 | T28: 12.23680304 | U28: 12.24166882 | V28: 12.23776303 | W28: 12.23874496 | X28: 12.23939227 | Y28: 12.23863342 | Z28: 12.23892355 | AA28: 12.23898308 | AB28: 12.23884668 | AC28: 12.23891777 | AD28: 12.23891584 | AE28: 12.23889343 | AF28: 12.23890902 | AG28: 12.2389061 | AH28: 12.23890285 | AI28: 12.23890599 | AJ28: 12.23890498 | AK28: 12.23890461 | AL28: 12.23890519 | AM28: 12.23890492 | AN28: 12.23890491 | AO28: 12.23890501 | AP28: 12.23890495 | AQ28: 12.23890495
A29: Atwood town, Oklahoma | B29: 6.3 | C29: 13 | D29: 19.4 | E29: 6.3 | F29: 7.3 | G29: 13.2 | H29: 14.3 | I29: 2.173913043 | J29: 5 | K29: 3.703703704 | L29: 3.625872249 | M29: 4.109858651 | N29: 3.813144868 | O29: 3.849625256 | P29: 3.924209592 | Q29: 3.862326572 | R29: 3.878720473 | S29: 3.888418879 | T29: 3.876488641 | U29: 3.881209331 | V29: 3.88203895 | W29: 3.879912308 | X29: 3.88105353 | Y29: 3.881001596 | Z29: 3.880655811 | AA29: 3.880903646 | AB29: 3.880853684 | AC29: 3.88080438 | AD29: 3.880853903 | AE29: 3.880837323 | AF29: 3.880831869 | AG29: 3.880841032 | AH29: 3.880836741 | AI29: 3.880836547 | AJ29: 3.880838107 | AK29: 3.880837132 | AL29: 3.880837262 | AM29: 3.8808375 | AN29: 3.880837298 | AO29: 3.880837353 | AP29: 3.880837384 | AQ29: 3.880837345
A30: Avant town, Oklahoma | B30: 10.3 | C30: 9.9 | D30: 10.2 | E30: 7.5 | F30: 3 | G30: 3.6 | H30: 3 | I30: 3.791469194 | J30: 3.317535545 | K30: 4.62962963 | L30: 3.912878123 | M30: 3.953347766 | N30: 4.165285173 | O30: 4.010503687 | P30: 4.043045542 | Q30: 4.072944801 | R30: 4.042164677 | S30: 4.05271834 | T30: 4.055942606 | U30: 4.050275207 | V30: 4.052978718 | W30: 4.05306551 | X30: 4.052106479 | Y30: 4.052716902 | Z30: 4.05262963 | AA30: 4.052484337 | AB30: 4.05261029 | AC30: 4.052574752 | AD30: 4.05255646 | AE30: 4.052580501 | AF30: 4.052570571 | AG30: 4.052569177 | AH30: 4.052573416 | AI30: 4.052571055 | AJ30: 4.052571216 | AK30: 4.052571896 | AL30: 4.052571389 | AM30: 4.0525715 | AN30: 4.052571595 | AO30: 4.052571495 | AP30: 4.05257153 | AQ30: 4.05257154
A31: Barnsdall city, Oklahoma | B31: 11.8 | C31: 13.5 | D31: 14.8 | E31: 14.1 | F31: 11.2 | G31: 13.6 | H31: 12 | I31: 9.838107098 | J31: 12.35154394 | K31: 17.56587202 | L31: 13.25184102 | M31: 14.38975233 | N31: 15.06915512 | O31: 14.23691616 | P31: 14.56527453 | Q31: 14.62378194 | R31: 14.47532421 | S31: 14.55479356 | T31: 14.5512999 | U31: 14.52713922 | V31: 14.5444109 | W31: 14.54095001 | X31: 14.53750004 | Y31: 14.54095365 | Z31: 14.53980123 | AA31: 14.53941831 | AB31: 14.54005773 | AC31: 14.53975909 | AD31: 14.53974504 | AE31: 14.53985395 | AF31: 14.53978603 | AG31: 14.53979501 | AH31: 14.53981166 | AI31: 14.53979757 | AJ31: 14.53980141 | AK31: 14.53980355 | AL31: 14.53980084 | AM31: 14.53980193 | AN31: 14.53980211 | AO31: 14.53980163 | AP31: 14.53980189 | AQ31: 14.53980188
A32: Bartlesville city, Oklahoma | B32: 29.9 | C32: 30.1 | D32: 29.8 | E32: 29.5 | F32: 30.4 | G32: 31.4 | H32: 30.8 | I32: 28.80778065 | J32: 29.86108618 | K32: 29.53777586 | L32: 29.40221423 | M32: 29.60035876 | N32: 29.51344962 | O32: 29.50534087 | P32: 29.53971641 | Q32: 29.5195023 | R32: 29.52151986 | S32: 29.52691286 | T32: 29.52264501 | U32: 29.52369257 | V32: 29.52441681 | W32: 29.5235848 | X32: 29.52389806 | Y32: 29.52396656 | Z32: 29.52381647 | AA32: 29.5238937 | AB32: 29.52389224 | AC32: 29.52386747 | AD32: 29.52388447 | AE32: 29.52388139 | AF32: 29.52387778 | AG32: 29.52388121 | AH32: 29.52388013 | AI32: 29.52387971 | AJ32: 29.52388035 | AK32: 29.52388006 | AL32: 29.52388004 | AM32: 29.52388015 | AN32: 29.52388008 | AO32: 29.52388009 | AP32: 29.52388011 | AQ32: 29.52388009
A33: Bearden town, Oklahoma | B33: 3.4 | C33: 8.4 | D33: 9.5 | E33: 7.7 | F33: 8.9 | G33: 16 | H33: 17.8 | I33: 16.30434783 | J33: 20.65217391 | K33: 28.20512821 | L33: 21.72054998 | M33: 23.5259507 | N33: 24.4838763 | O33: 23.24345899 | P33: 23.75109533 | Q33: 23.82614354 | R33: 23.60689929 | S33: 23.72804605 | T33: 23.72036296 | U33: 23.68510277 | V33: 23.71117059 | W33: 23.70554544 | X33: 23.70060627 | Y33: 23.7057741 | Z33: 23.70397527 | AA33: 23.70345188 | AB33: 23.70440042 | AC33: 23.70394252 | AD33: 23.70393161 | AE33: 23.70409152 | AF33: 23.70398855 | AG33: 23.70400389 | AH33: 23.70402798 | AI33: 23.70400681 | AJ33: 23.70401289 | AK33: 23.7040159 | AL33: 23.70401187 | AM33: 23.70401355 | AN33: 23.70401377 | AO33: 23.70401306 | AP33: 23.70401346 | AQ33: 23.70401343
A34: Beaver town, Oklahoma | B34: 13.8 | C34: 12.9 | D34: 13 | E34: 16 | F34: 15.9 | G34: 14.5 | H34: 19.1 | I34: 14.94845361 | J34: 11.49425287 | K34: 11.22740247 | L34: 12.55670298 | M34: 11.75945277 | N34: 11.84785274 | O34: 12.0546695 | P34: 11.88732501 | Q34: 11.92994908 | R34: 11.95731453 | S34: 11.92486287 | T34: 11.9373755 | U34: 11.93985097 | V34: 11.93402978 | W34: 11.93708541 | X34: 11.93698872 | Y34: 11.93603464 | Z34: 11.93670292 | AA34: 11.93657543 | AB34: 11.93643766 | AC34: 11.936572 | AD34: 11.93652836 | AE34: 11.93651268 | AF34: 11.93653768 | AG34: 11.93652624 | AH34: 11.93652553 | AI34: 11.93652982 | AJ34: 11.9365272 | AK34: 11.93652752 | AL34: 11.93652818 | AM34: 11.93652763 | AN34: 11.93652777 | AO34: 11.93652786 | AP34: 11.93652775 | AQ34: 11.9365278
A35: Beggs city, Oklahoma | B35: 5.8 | C35: 9 | D35: 7.8 | E35: 10.8 | F35: 9.7 | G35: 8.9 | H35: 10.5 | I35: 12.26611227 | J35: 10.52141527 | K35: 12.17312894 | L35: 11.65355216 | M35: 11.44936546 | N35: 11.75868219 | O35: 11.62053327 | P35: 11.60952697 | Q35: 11.66291414 | R35: 11.63099146 | S35: 11.63447752 | T35: 11.64279437 | U35: 11.63608779 | V35: 11.63778656 | W35: 11.63888957 | X35: 11.63758797 | Y35: 11.63808804 | Z35: 11.63818853 | AA35: 11.63795485 | AB35: 11.63807714 | AC35: 11.6380735 | AD35: 11.63803516 | AE35: 11.63806193 | AF35: 11.63805687 | AG35: 11.63805132 | AH35: 11.63805671 | AI35: 11.63805496 | AJ35: 11.63805433 | AK35: 11.63805533 | AL35: 11.63805488 | AM35: 11.63805485 | AN35: 11.63805502 | AO35: 11.63805491 | AP35: 11.63805493 | AQ35: 11.63805495
A36: Bennington town, Oklahoma | B36: 13.6 | C36: 16.4 | D36: 17.8 | E36: 16.4 | F36: 15.7 | G36: 22.1 | H36: 12.6 | I36: 11.5942029 | J36: 16.19047619 | K36: 15.31100478 | L36: 14.36522796 | M36: 15.28890298 | N36: 14.98837857 | O36: 14.8808365 | P36: 15.05270602 | Q36: 14.9739737 | R36: 14.96917207 | S36: 14.99861726 | T36: 14.98058768 | U36: 14.98279234 | V36: 14.98733242 | W36: 14.98357081 | X36: 14.98456519 | Y36: 14.98515614 | Z36: 14.98443071 | AA36: 14.98471735 | AB36: 14.98476807 | AC36: 14.98463871 | AD36: 14.98470804 | AE36: 14.98470494 | AF36: 14.9846839 | AG36: 14.98469896 | AH36: 14.98469593 | AI36: 14.98469293 | AJ36: 14.98469594 | AK36: 14.98469494 | AL36: 14.9846946 | AM36: 14.98469516 | AN36: 14.9846949 | AO36: 14.98469489 | AP36: 14.98469498 | AQ36: 14.98469492
A37: Bernice town, Oklahoma | B37: 12.4 | C37: 13.1 | D37: 10.8 | E37: 11.5 | F37: 11.7 | G37: 10.9 | H37: 12.2 | I37: 14.25438596 | J37: 9.339407745 | K37: 10.63218391 | L37: 11.40865921 | M37: 10.46008362 | N37: 10.83364225 | O37: 10.90079502 | P37: 10.73150696 | Q37: 10.82198141 | R37: 10.81809447 | S37: 10.79052761 | T37: 10.81020116 | U37: 10.80627441 | V37: 10.8023344 | W37: 10.80626999 | X37: 10.8049596 | Y37: 10.80452133 | Z37: 10.80525031 | AA37: 10.80491041 | AB37: 10.80489402 | AC37: 10.80501825 | AD37: 10.80494089 | AE37: 10.80495105 | AF37: 10.80497006 | AG37: 10.804954 | AH37: 10.80495837 | AI37: 10.80496081 | AJ37: 10.80495773 | AK37: 10.80495897 | AL37: 10.80495917 | AM37: 10.80495862 | AN37: 10.80495892 | AO37: 10.8049589 | AP37: 10.80495882 | AQ37: 10.80495888
A38: Bessie town, Oklahoma | B38: 23.1 | C38: 24.2 | D38: 21.1 | E38: 7.8 | F38: 11.8 | G38: 13.2 | H38: 15 | I38: 15.12605042 | J38: 17.42424242 | K38: 15.12605042 | L38: 15.89211442 | M38: 16.14746909 | N38: 15.72187798 | O38: 15.92048716 | P38: 15.92994474 | Q38: 15.85743663 | R38: 15.90262284 | S38: 15.89666807 | T38: 15.88557585 | U38: 15.89495559 | V38: 15.89239983 | W38: 15.89097709 | X38: 15.8927775 | Y38: 15.89205148 | Z38: 15.89193536 | AA38: 15.89225478 | AB38: 15.89208054 | AC38: 15.89209022 | AD38: 15.89214185 | AE38: 15.8921042 | AF38: 15.89211209 | AG38: 15.89211938 | AH38: 15.89211189 | AI38: 15.89211445 | AJ38: 15.89211524 | AK38: 15.89211386 | AL38: 15.89211452 | AM38: 15.89211454 | AN38: 15.89211431 | AO38: 15.89211446 | AP38: 15.89211443 | AQ38: 15.8921144
A39: Bethany city, Oklahoma | B39: 25.8 | C39: 24.9 | D39: 27.2 | E39: 26.2 | F39: 25.6 | G39: 24.4 | H39: 27.4 | I39: 22.47214056 | J39: 23.03792193 | K39: 22.84503716 | L39: 22.78503322 | M39: 22.88933077 | N39: 22.83980038 | O39: 22.83805479 | P39: 22.85572865 | Q39: 22.84452794 | R39: 22.84610379 | S39: 22.84878679 | T39: 22.84647284 | U39: 22.84712114 | V39: 22.84746026 | W39: 22.84701808 | X39: 22.84719983 | Y39: 22.84722606 | Z39: 22.84714799 | AA39: 22.84719129 | AB39: 22.84718844 | AC39: 22.84717591 | AD39: 22.84718521 | AE39: 22.84718319 | AF39: 22.84718144 | AG39: 22.84718328 | AH39: 22.84718263 | AI39: 22.84718245 | AJ39: 22.84718279 | AK39: 22.84718262 | AL39: 22.84718262 | AM39: 22.84718268 | AN39: 22.84718264 | AO39: 22.84718265 | AP39: 22.84718266 | AQ39: 22.84718265
A40: Bethel Acres town, Oklahoma | B40: 15.4 | C40: 15 | D40: 13.6 | E40: 13.6 | F40: 16.3 | G40: 15.5 | H40: 16.4 | I40: 17.07105719 | J40: 18.98734177 | K40: 17.14407867 | L40: 17.73415921 | M40: 17.95519322 | N40: 17.6111437 | O40: 17.76683204 | P40: 17.77772299 | Q40: 17.71856624 | R40: 17.75437376 | S40: 17.75022099 | T40: 17.74105366 | U40: 17.74854947 | V40: 17.74660804 | W40: 17.74540373 | X40: 17.74685375 | Y40: 17.74628851 | Z40: 17.74618199 | AA40: 17.74644142 | AB40: 17.74630397 | AC40: 17.74630913 | AD40: 17.7463515 | AE40: 17.74632153 | AF40: 17.74632739 | AG40: 17.74633348 | AH40: 17.74632747 | AI40: 17.74632944 | AJ40: 17.74633013 | AK40: 17.74632901 | AL40: 17.74632953 | AM40: 17.74632956 | AN40: 17.74632937 | AO40: 17.74632948 | AP40: 17.74632947 | AQ40: 17.74632944
A41: Big Cabin town, Oklahoma | B41: 6.4 | C41: 2.7 | D41: 4.6 | E41: 8.6 | F41: 8.3 | G41: 7.9 | H41: 9.3 | I41: 8.139534884 | J41: 6.358381503 | K41: 7.317073171 | L41: 7.271663186 | M41: 6.98237262 | N41: 7.190369659 | O41: 7.148135155 | P41: 7.106959145 | Q41: 7.148487986 | R41: 7.134527429 | S41: 7.12999152 | T41: 7.137668978 | U41: 7.134062642 | V41: 7.133907713 | W41: 7.135213111 | X41: 7.134394489 | Y41: 7.134505105 | Z41: 7.134704235 | AA41: 7.13453461 | AB41: 7.134581316 | AC41: 7.13460672 | AD41: 7.134574215 | AE41: 7.134587417 | AF41: 7.134589451 | AG41: 7.134583695 | AH41: 7.134586854 | AI41: 7.134586667 | AJ41: 7.134585738 | AK41: 7.13458642 | AL41: 7.134586275 | AM41: 7.134586144 | AN41: 7.13458628 | AO41: 7.134586233 | AP41: 7.134586219 | AQ41: 7.134586244
A42: Billings town, Oklahoma | B42: 10.3 | C42: 6.5 | D42: 5.8 | E42: 5.4 | F42: 4.8 | G42: 5.1 | H42: 6.9 | I42: 4.128440367 | J42: 3.711790393 | K42: 3.719912473 | L42: 3.853381078 | M42: 3.761694648 | N42: 3.7783294 | O42: 3.797801708 | P42: 3.779275252 | Q42: 3.785135453 | R42: 3.787404138 | S42: 3.783938281 | T42: 3.785492624 | U42: 3.785611681 | V42: 3.785014195 | W42: 3.785372833 | X42: 3.785332903 | Y42: 3.785239977 | Z42: 3.785315238 | AA42: 3.78529604 | AB42: 3.785283752 | AC42: 3.785298343 | AD42: 3.785292711 | AE42: 3.785291602 | AF42: 3.785294219 | AG42: 3.785292844 | AH42: 3.785292888 | AI42: 3.785293317 | AJ42: 3.785293017 | AK42: 3.785293074 | AL42: 3.785293136 | AM42: 3.785293075 | AN42: 3.785293095 | AO42: 3.785293102 | AP42: 3.785293091 | AQ42: 3.785293096
A43: Binger town, Oklahoma | B43: 10.9 | C43: 10.7 | D43: 10.2 | E43: 10.5 | F43: 8.4 | G43: 9.6 | H43: 11.5 | I43: 9.477756286 | J43: 10.43643264 | K43: 12.44813278 | L43: 10.78744057 | M43: 11.224002 | N43: 11.48652511 | O43: 11.16598923 | P43: 11.29217211 | Q43: 11.31489548 | R43: 11.25768561 | S43: 11.28825107 | T43: 11.28694405 | U43: 11.27762691 | V43: 11.28427401 | W43: 11.28294832 | X43: 11.28161642 | Y43: 11.28294625 | Z43: 11.28250366 | AA43: 11.28235544 | AB43: 11.28260179 | AC43: 11.28248696 | AD43: 11.2824814 | AE43: 11.28252338 | AF43: 11.28249725 | AG43: 11.28250068 | AH43: 11.2825071 | AI43: 11.28250168 | AJ43: 11.28250315 | AK43: 11.28250398 | AL43: 11.28250293 | AM43: 11.28250335 | AN43: 11.28250342 | AO43: 11.28250324 | AP43: 11.28250334 | AQ43: 11.28250333
A44: Bixby city, Oklahoma | B44: 36.3 | C44: 37.8 | D44: 37.1 | E44: 38.7 | F44: 40.2 | G44: 42.5 | H44: 41.9 | I44: 40.09019426 | J44: 40.15938445 | K44: 41.65691178 | L44: 40.63549683 | M44: 40.81726435 | N44: 41.03655765 | O44: 40.82977295 | P44: 40.89453165 | Q44: 40.92028742 | R44: 40.88153067 | S44: 40.89878325 | T44: 40.90020045 | U44: 40.89350479 | V44: 40.89749616 | W44: 40.89706713 | X44: 40.89602269 | Y44: 40.89686199 | Z44: 40.89665061 | AA44: 40.89651176 | AB44: 40.89667479 | AC44: 40.89661239 | AD44: 40.89659965 | AE44: 40.89662894 | AF44: 40.89661366 | AG44: 40.89661408 | AH44: 40.89661889 | AI44: 40.89661554 | AJ44: 40.89661617 | AK44: 40.89661687 | AL44: 40.8966162 | AM44: 40.89661641 | AN44: 40.89661649 | AO44: 40.89661637 | AP44: 40.89661642 | AQ44: 40.89661643
A45: Blackburn town, Oklahoma | B45: 13.8 | C45: 7.5 | D45: 11.5 | E45: 4.6 | F45: 10.2 | G45: 8.2 | H45: 8.3 | I45: 3.076923077 | J45: 13.55932203 | K45: 14.28571429 | L45: 10.3073198 | M45: 12.71745204 | N45: 12.43682871 | O45: 11.82053352 | P45: 12.32493809 | Q45: 12.1941001 | R45: 12.11319057 | S45: 12.21074292 | T45: 12.17267787 | U45: 12.16553712 | V45: 12.18298597 | W45: 12.17373365 | X45: 12.17408558 | Y45: 12.17693507 | Z45: 12.1749181 | AA45: 12.17531291 | AB45: 12.17572203 | AC45: 12.17531768 | AD45: 12.17545087 | AE45: 12.17549686 | AF45: 12.1754218 | AG45: 12.17545651 | AH45: 12.17545839 | AI45: 12.17544557 | AJ45: 12.17545349 | AK45: 12.17545248 | AL45: 12.17545052 | AM45: 12.17545216 | AN45: 12.17545172 | AO45: 12.17545147 | AP45: 12.17545178 | AQ45: 12.17545166
A46: Blackwell city, Oklahoma | B46: 16.8 | C46: 14.9 | D46: 14.3 | E46: 13.7 | F46: 15.1 | G46: 12.9 | H46: 13.3 | I46: 12.16038973 | J46: 11.69501242 | K46: 12.97104324 | L46: 12.2754818 | M46: 12.31384582 | N46: 12.52012362 | O46: 12.36981708 | P46: 12.40126217 | Q46: 12.43040096 | R46: 12.4004934 | S46: 12.41071884 | T46: 12.41387107 | U46: 12.4083611 | V46: 12.41098367 | W46: 12.41107195 | X46: 12.41013891 | Y46: 12.41073151 | Z46: 12.41064745 | AA46: 12.41050596 | AB46: 12.41062831 | AC46: 12.41059391 | AD46: 12.41057606 | AE46: 12.41059942 | AF46: 12.4105898 | AG46: 12.41058843 | AH46: 12.41059255 | AI46: 12.41059026 | AJ46: 12.41059041 | AK46: 12.41059107 | AL46: 12.41059058 | AM46: 12.41059069 | AN46: 12.41059078 | AO46: 12.41059068 | AP46: 12.41059072 | AQ46: 12.41059073
A47: Blair town, Oklahoma | B47: 13.4 | C47: 10.8 | D47: 10.5 | E47: 13.6 | F47: 13.2 | G47: 13.7 | H47: 12.1 | I47: 12.16730038 | J47: 12.03539823 | K47: 11.71003717 | L47: 11.97091193 | M47: 11.90544911 | N47: 11.86213274 | O47: 11.91283126 | P47: 11.89347103 | Q47: 11.88947834 | R47: 11.89859354 | S47: 11.89384764 | T47: 11.89397318 | U47: 11.89547145 | V47: 11.89443076 | W47: 11.89462513 | X47: 11.89484245 | Y47: 11.89463278 | Z47: 11.89470012 | AA47: 11.89472511 | AB47: 11.894686 | AC47: 11.89470374 | AD47: 11.89470495 | AE47: 11.89469823 | AF47: 11.89470231 | AG47: 11.89470183 | AH47: 11.89470079 | AI47: 11.89470164 | AJ47: 11.89470142 | AK47: 11.89470129 | AL47: 11.89470145 | AM47: 11.89470139 | AN47: 11.89470137 | AO47: 11.8947014 | AP47: 11.89470139 | AQ47: 11.89470139
A48: Blanchard city, Oklahoma | B48: 24.1 | C48: 23.6 | D48: 24 | E48: 26.3 | F48: 24.6 | G48: 24.9 | H48: 24.5 | I48: 24.30149448 | J48: 26.54476671 | K48: 29.04279647 | L48: 26.62968589 | M48: 27.40574969 | N48: 27.69274402 | O48: 27.24272653 | P48: 27.44707341 | Q48: 27.46084799 | R48: 27.38354931 | S48: 27.43049024 | T48: 27.42496251 | U48: 27.41300068 | V48: 27.42281781 | W48: 27.42026033 | X48: 27.41869294 | Y48: 27.42059036 | Z48: 27.41984788 | AA48: 27.4197104 | AB48: 27.42004955 | AC48: 27.41986927 | AD48: 27.41987641 | AE48: 27.41993174 | AF48: 27.41989247 | AG48: 27.41990021 | AH48: 27.41990814 | AI48: 27.41990027 | AJ48: 27.41990287 | AK48: 27.41990376 | AL48: 27.4199023 | AM48: 27.41990298 | AN48: 27.41990302 | AO48: 27.41990277 | AP48: 27.41990292 | AQ48: 27.4199029
A49: Bluejacket town, Oklahoma | B49: 9.3 | C49: 6.7 | D49: 5.2 | E49: 6.8 | F49: 6.5 | G49: 7 | H49: 9.7 | I49: 7.326007326 | J49: 6.557377049 | K49: 6.504065041 | L49: 6.795816472 | M49: 6.619086187 | N49: 6.6396559 | O49: 6.684852853 | P49: 6.64786498 | Q49: 6.657457911 | R49: 6.663391915 | S49: 6.656238269 | T49: 6.659029365 | U49: 6.659553183 | V49: 6.658273605 | W49: 6.658952051 | X49: 6.65892628 | Y49: 6.658717312 | Z49: 6.658865214 | AA49: 6.658836269 | AB49: 6.658806265 | AC49: 6.658835916 | AD49: 6.65882615 | AE49: 6.658822777 | AF49: 6.658828281 | AG49: 6.658825736 | AH49: 6.658825598 | AI49: 6.658826538 | AJ49: 6.658825957 | AK49: 6.658826031 | AL49: 6.658826176 | AM49: 6.658826055 | AN49: 6.658826087 | AO49: 6.658826106 | AP49: 6.658826083 | AQ49: 6.658826092
A50: Boise City city, Oklahoma | B50: 17 | C50: 19.6 | D50: 19.6 | E50: 20.1 | F50: 15.4 | G50: 18.7 | H50: 18.6 | I50: 19.62174941 | J50: 18.59296482 | K50: 20.33096927 | L50: 19.51522783 | M50: 19.47972064 | N50: 19.77530591 | O50: 19.5900848 | P50: 19.61503712 | Q50: 19.66014261 | R50: 19.62175484 | S50: 19.63231152 | T50: 19.63806966 | U50: 19.63071201 | V50: 19.63369773 | W50: 19.6341598 | X50: 19.63285651 | Y50: 19.63357135 | Z50: 19.63352922 | AA50: 19.63331903 | AB50: 19.6334732 | AC50: 19.63344048 | AD50: 19.6334109 | AE50: 19.63344153 | AF50: 19.63343097 | AG50: 19.6334278 | AH50: 19.63343343 | AI50: 19.63343073 | AJ50: 19.63343065 | AK50: 19.63343161 | AL50: 19.633431 | AM50: 19.63343109 | AN50: 19.63343123 | AO50: 19.6334311 | AP50: 19.63343114 | AQ50: 19.63343116
A51: Bokchito town, Oklahoma | B51: 10.5 | C51: 10.5 | D51: 8.2 | E51: 7.7 | F51: 10.4 | G51: 8.6 | H51: 7.5 | I51: 7.291666667 | J51: 7.465618861 | K51: 6.160164271 | L51: 6.972483266 | M51: 6.866088799 | N51: 6.666245446 | O51: 6.83493917 | P51: 6.789091138 | Q51: 6.763425252 | R51: 6.79581852 | S51: 6.782778303 | T51: 6.780674025 | U51: 6.786423616 | V51: 6.783291982 | W51: 6.783463208 | X51: 6.784392935 | Y51: 6.783716041 | Z51: 6.783857395 | AA51: 6.78398879 | AB51: 6.783854076 | AC51: 6.783900087 | AD51: 6.783914318 | AE51: 6.783889493 | AF51: 6.783901299 | AG51: 6.783901703 | AH51: 6.783897499 | AI51: 6.783900167 | AJ51: 6.78389979 | AK51: 6.783899152 | AL51: 6.783899703 | AM51: 6.783899548 | AN51: 6.783899468 | AO51: 6.783899573 | AP51: 6.78389953 | AQ51: 6.783899523
A52: Bokoshe town, Oklahoma | B52: 2.9 | C52: 2.2 | D52: 3.2 | E52: 3.8 | F52: 6.5 | G52: 5.5 | H52: 6.6 | I52: 6.906906907 | J52: 8.211143695 | K52: 7.536231884 | L52: 7.551427495 | M52: 7.766267691 | N52: 7.61797569 | O52: 7.645223626 | P52: 7.676489002 | Q52: 7.646562773 | R52: 7.6560918 | S52: 7.659714525 | T52: 7.654123033 | U52: 7.656643119 | V52: 7.656826892 | W52: 7.655864348 | X52: 7.656444787 | Y52: 7.656378676 | Z52: 7.65622927 | AA52: 7.656350911 | AB52: 7.656319619 | AC52: 7.656299933 | AD52: 7.656323488 | AE52: 7.656314347 | AF52: 7.656312589 | AG52: 7.656316808 | AH52: 7.656314581 | AI52: 7.656314659 | AJ52: 7.65631535 | AK52: 7.656314863 | AL52: 7.656314958 | AM52: 7.656315057 | AN52: 7.656314959 | AO52: 7.656314991 | AP52: 7.656315002 | AQ52: 7.656314984
A53: Boley town, Oklahoma | B53: 4.4 | C53: 4.3 | D53: 3.7 | E53: 4.3 | F53: 4.6 | G53: 6.1 | H53: 6.3 | I53: 5.350877193 | J53: 4.580812446 | K53: 3.247293922 | L53: 4.39299452 | M53: 4.073700296 | N53: 3.904662913 | O53: 4.12378591 | P53: 4.034049706 | Q53: 4.020832843 | R53: 4.059556153 | S53: 4.038146234 | T53: 4.039511743 | U53: 4.045738043 | V53: 4.041132007 | W53: 4.042127265 | X53: 4.042999105 | Y53: 4.042086125 | Z53: 4.042404165 | AA53: 4.042496465 | AB53: 4.042328919 | AC53: 4.04240985 | AD53: 4.042411744 | AE53: 4.042383504 | AF53: 4.042401699 | AG53: 4.042398983 | AH53: 4.042394729 | AI53: 4.04239847 | AJ53: 4.042397394 | AK53: 4.042396864 | AL53: 4.042397576 | AM53: 4.042397278 | AN53: 4.04239724 | AO53: 4.042397365 | AP53: 4.042397294 | AQ53: 4.042397299
A54: Boswell town, Oklahoma | B54: 3.6 | C54: 4.2 | D54: 5.8 | E54: 5.6 | F54: 6.7 | G54: 9 | H54: 7.8 | I54: 7.505070994 | J54: 6.502242152 | K54: 6.401766004 | L54: 6.803026383 | M54: 6.569011513 | N54: 6.591267967 | O54: 6.654435288 | P54: 6.604904923 | Q54: 6.616869392 | R54: 6.625403201 | S54: 6.615725839 | T54: 6.619332811 | U54: 6.62015395 | V54: 6.6184042 | W54: 6.619296987 | X54: 6.619285046 | Y54: 6.618995411 | Z54: 6.619192481 | AA54: 6.619157646 | AB54: 6.619115179 | AC54: 6.619155102 | AD54: 6.619142642 | AE54: 6.619137641 | AF54: 6.619145128 | AG54: 6.619141804 | AH54: 6.619141525 | AI54: 6.619142819 | AJ54: 6.619142049 | AK54: 6.619142131 | AL54: 6.619142333 | AM54: 6.619142171 | AN54: 6.619142212 | AO54: 6.619142239 | AP54: 6.619142207 | AQ54: 6.619142219
A55: Bowlegs town, Oklahoma | B55: 11 | C55: 9.2 | D55: 10.1 | E55: 9.9 | F55: 14 | G55: 10.5 | H55: 9.9 | I55: 6.51465798 | J55: 7.042253521 | K55: 5.501618123 | L55: 6.352843208 | M55: 6.298904951 | N55: 6.051122094 | O55: 6.234290084 | P55: 6.194772376 | Q55: 6.160061518 | R55: 6.19637466 | S55: 6.183736185 | T55: 6.180057454 | U55: 6.186722766 | V55: 6.183505468 | W55: 6.183428563 | X55: 6.184552266 | Y55: 6.183828766 | Z55: 6.183936531 | AA55: 6.184105854 | AB55: 6.18395705 | AC55: 6.183999812 | AD55: 6.184020906 | AE55: 6.183992589 | AF55: 6.184004436 | AG55: 6.184005977 | AH55: 6.184001001 | AI55: 6.184003804 | AJ55: 6.184003594 | AK55: 6.1840028 | AL55: 6.184003399 | AM55: 6.184003264 | AN55: 6.184003154 | AO55: 6.184003273 | AP55: 6.18400323 | AQ55: 6.184003219
A56: Boynton town, Oklahoma | B56: 7.5 | C56: 6.3 | D56: 7.8 | E56: 7.5 | F56: 6.6 | G56: 9.6 | H56: 10.8 | I56: 6.611570248 | J56: 5.6 | K56: 5.511811024 | L56: 5.907793757 | M56: 5.673201594 | N56: 5.697602125 | O56: 5.759532492 | P56: 5.71011207 | Q56: 5.722415562 | R56: 5.730686708 | S56: 5.721071447 | T56: 5.724724573 | U56: 5.725494243 | V56: 5.723763421 | W56: 5.724660745 | X56: 5.72463947 | Y56: 5.724354545 | Z56: 5.724551587 | AA56: 5.7245152 | AB56: 5.724473777 | AC56: 5.724513522 | AD56: 5.724500833 | AE56: 5.724496044 | AF56: 5.724503466 | AG56: 5.724500114 | AH56: 5.724499875 | AI56: 5.724501152 | AJ56: 5.72450038 | AK56: 5.724500469 | AL56: 5.724500667 | AM56: 5.724500506 | AN56: 5.724500547 | AO56: 5.724500573 | AP56: 5.724500542 | AQ56: 5.724500554
A57: Bradley town, Oklahoma | B57: 0 | C57: 1 | D57: 2.2 | E57: 1 | F57: 4.3 | G57: 4.1 | H57: 5 | I57: 3 | J57: 3.125 | K57: 3.333333333 | L57: 3.152777778 | M57: 3.203703704 | N57: 3.229938271 | O57: 3.195473251 | P57: 3.209705075 | Q57: 3.211705533 | R57: 3.205627953 | S57: 3.209012854 | T57: 3.208782113 | U57: 3.20780764 | V57: 3.208534202 | W57: 3.208374652 | X57: 3.208238831 | Y57: 3.208382562 | Z57: 3.208332015 | AA57: 3.208317803 | AB57: 3.208344126 | AC57: 3.208331315 | AD57: 3.208331081 | AE57: 3.208335507 | AF57: 3.208332634 | AG57: 3.208333074 | AH57: 3.208333739 | AI57: 3.208333149 | AJ57: 3.208333321 | AK57: 3.208333403 | AL57: 3.208333291 | AM57: 3.208333338 | AN57: 3.208333344 | AO57: 3.208333324 | AP57: 3.208333335 | AQ57: 3.208333335
A58: Braggs town, Oklahoma | B58: 8.5 | C58: 10.2 | D58: 12.3 | E58: 16.7 | F58: 15.9 | G58: 17.2 | H58: 14.6 | I58: 9.677419355 | J58: 8.426966292 | K58: 9.090909091 | L58: 9.065098246 | M58: 8.86099121 | N58: 9.005666182 | O58: 8.977251879 | P58: 8.947969757 | Q58: 8.976962606 | R58: 8.967394748 | S58: 8.964109037 | T58: 8.969488797 | U58: 8.966997527 | V58: 8.96686512 | W58: 8.967783815 | X58: 8.967215487 | Y58: 8.967288141 | Z58: 8.967429148 | AA58: 8.967310925 | AB58: 8.967342738 | AC58: 8.967360937 | AD58: 8.9673382 | AE58: 8.967347292 | AF58: 8.96734881 | AG58: 8.967344767 | AH58: 8.967346956 | AI58: 8.967346844 | AJ58: 8.967346189 | AK58: 8.967346663 | AL58: 8.967346566 | AM58: 8.967346473 | AN58: 8.967346567 | AO58: 8.967346535 | AP58: 8.967346525 | AQ58: 8.967346542
A59: Braman town, Oklahoma | B59: 6.6 | C59: 6.8 | D59: 11.2 | E59: 12.7 | F59: 20.5 | G59: 15.9 | H59: 12.9 | I59: 11.72413793 | J59: 9.090909091 | K59: 5.035971223 | L59: 8.617006081 | M59: 7.581295465 | N59: 7.078090923 | O59: 7.75879749 | P59: 7.472727959 | Q59: 7.436538791 | R59: 7.556021413 | S59: 7.488429388 | T59: 7.493663197 | U59: 7.512704666 | V59: 7.49826575 | W59: 7.501544538 | X59: 7.504171652 | Y59: 7.501327313 | Z59: 7.502347834 | AA59: 7.5026156 | AB59: 7.502096916 | AC59: 7.50235345 | AD59: 7.502355322 | AE59: 7.502268562 | AF59: 7.502325778 | AG59: 7.502316554 | AH59: 7.502303632 | AI59: 7.502315321 | AJ59: 7.502311836 | AK59: 7.502310263 | AL59: 7.502312473 | AM59: 7.502311524 | AN59: 7.50231142 | AO59: 7.502311806 | AP59: 7.502311583 | AQ59: 7.502311603
A60: Bray town, Oklahoma | B60: 5.5 | C60: 10.4 | D60: 10.7 | E60: 10.6 | F60: 12.6 | G60: 14.1 | H60: 17.6 | I60: 9.251559252 | J60: 13.21388578 | K60: 13.4502924 | L60: 11.97191248 | M60: 12.87869689 | N60: 12.76696725 | O60: 12.53919221 | P60: 12.72828545 | Q60: 12.6781483 | R60: 12.64854199 | S60: 12.68499191 | T60: 12.67056073 | U60: 12.66803154 | V60: 12.67452806 | W60: 12.67104011 | X60: 12.67119991 | Y60: 12.67225603 | Z60: 12.67149868 | AA60: 12.67165154 | AB60: 12.67180208 | AC60: 12.67165077 | AD60: 12.67170146 | AE60: 12.67171811 | AF60: 12.67169011 | AG60: 12.67170323 | AH60: 12.67170382 | AI60: 12.67169905 | AJ60: 12.67170203 | AK60: 12.67170163 | AL60: 12.67170091 | AM60: 12.67170152 | AN60: 12.67170135 | AO60: 12.67170126 | AP60: 12.67170138 | AQ60: 12.67170133
A61: Breckenridge town, Oklahoma | B61: 35.5 | C61: 18.5 | D61: 19.4 | E61: 21.8 | F61: 27.4 | G61: 21.2 | H61: 25.5 | I61: 30.8411215 | J61: 31.44654088 | K61: 23.37662338 | L61: 28.55476192 | M61: 27.79264206 | N61: 26.57467579 | O61: 27.64069326 | P61: 27.3360037 | Q61: 27.18379091 | R61: 27.38682929 | S61: 27.30220797 | T61: 27.29094272 | U61: 27.32665999 | V61: 27.30660356 | W61: 27.30806876 | X61: 27.31377744 | Y61: 27.30948325 | Z61: 27.31044315 | AA61: 27.31123461 | AB61: 27.31038701 | AC61: 27.31068826 | AD61: 27.31076996 | AE61: 27.31061507 | AF61: 27.3106911 | AG61: 27.31069204 | AH61: 27.31066607 | AI61: 27.31068307 | AJ61: 27.3106804 | AK61: 27.31067651 | AL61: 27.31067999 | AM61: 27.31067897 | AN61: 27.31067849 | AO61: 27.31067915 | AP61: 27.31067887 | AQ61: 27.31067884
A62: Bridge Creek town, Oklahoma | B62: 21.1 | C62: 5 | D62: 6.9 | E62: 9.5 | F62: 15.8 | G62: 17.2 | H62: 15.1 | I62: 14.75409836 | J62: 14.97975709 | K62: 12.90322581 | L62: 14.21236042 | M62: 14.03178111 | N62: 13.71578911 | O62: 13.98664355 | P62: 13.91140459 | Q62: 13.87127908 | R62: 13.92310907 | S62: 13.90193091 | T62: 13.89877302 | U62: 13.90793767 | V62: 13.90288054 | W62: 13.90319708 | X62: 13.90467176 | Y62: 13.90358312 | Z62: 13.90381732 | AA62: 13.90402407 | AB62: 13.90380817 | AC62: 13.90388319 | AD62: 13.90390514 | AE62: 13.9038655 | AF62: 13.90388461 | AG62: 13.90388508 | AH62: 13.9038784 | AI62: 13.9038827 | AJ62: 13.90388206 | AK62: 13.90388105 | AL62: 13.90388194 | AM62: 13.90388168 | AN62: 13.90388156 | AO62: 13.90388172 | AP62: 13.90388165 | AQ62: 13.90388165
A63: Bridgeport city, Oklahoma | B63: 0 | C63: 0 | D63: 2 | E63: 4 | F63: 1.7 | G63: 8.4 | H63: 8.3 | I63: 8 | J63: 7.042253521 | K63: 5.633802817 | L63: 6.892018779 | M63: 6.522691706 | N63: 6.349504434 | O63: 6.58807164 | P63: 6.486755927 | Q63: 6.474777333 | R63: 6.516534967 | S63: 6.492689409 | T63: 6.494667236 | U63: 6.501297204 | V63: 6.49621795 | W63: 6.49739413 | X63: 6.498303094 | Y63: 6.497305058 | Z63: 6.497667427 | AA63: 6.497758527 | AB63: 6.497577004 | AC63: 6.497667653 | AD63: 6.497667728 | AE63: 6.497637462 | AF63: 6.497657614 | AG63: 6.497654268 | AH63: 6.497649781 | AI63: 6.497653888 | AJ63: 6.497652646 | AK63: 6.497652105 | AL63: 6.497652879 | AM63: 6.497652543 | AN63: 6.497652509 | AO63: 6.497652644 | AP63: 6.497652565 | AQ63: 6.497652573
A64: Bristow city, Oklahoma | B64: 16.4 | C64: 14.2 | D64: 14.4 | E64: 13.9 | F64: 14.4 | G64: 11.6 | H64: 12.3 | I64: 11.20745022 | J64: 10.15496208 | K64: 9.0273363 | L64: 10.1299162 | M64: 9.770738193 | N64: 9.642663564 | O64: 9.847772653 | P64: 9.753724803 | Q64: 9.748053673 | R64: 9.78318371 | S64: 9.761654062 | T64: 9.764297149 | U64: 9.76971164 | V64: 9.76522095 | W64: 9.766409913 | X64: 9.767114168 | Y64: 9.766248344 | Z64: 9.766590808 | AA64: 9.766651107 | AB64: 9.766496753 | AC64: 9.766579556 | AD64: 9.766575805 | AE64: 9.766550705 | AF64: 9.766568689 | AG64: 9.766565066 | AH64: 9.766561486 | AI64: 9.76656508 | AJ64: 9.766563878 | AK64: 9.766563481 | AL64: 9.766564146 | AM64: 9.766563835 | AN64: 9.766563821 | AO64: 9.766563934 | AP64: 9.766563863 | AQ64: 9.766563873
A65: Broken Arrow city, Oklahoma | B65: 30.6 | C65: 30.3 | D65: 31.3 | E65: 31.1 | F65: 31.7 | G65: 31.7 | H65: 32.7 | I65: 30.83781706 | J65: 31.15620564 | K65: 30.65339744 | L65: 30.88247338 | M65: 30.89735882 | N65: 30.81107655 | O65: 30.86363625 | P65: 30.85735721 | Q65: 30.84402333 | R65: 30.8550056 | S65: 30.85212871 | T65: 30.85038588 | U65: 30.85250673 | V65: 30.85167377 | W65: 30.85152213 | X65: 30.85190088 | Y65: 30.85169893 | Z65: 30.85170731 | AA65: 30.85176904 | AB65: 30.85172509 | AC65: 30.85173381 | AD65: 30.85174265 | AE65: 30.85173385 | AF65: 30.85173677 | AG65: 30.85173776 | AH65: 30.85173613 | AI65: 30.85173688 | AJ65: 30.85173692 | AK65: 30.85173664 | AL65: 30.85173682 | AM65: 30.85173679 | AN65: 30.85173675 | AO65: 30.85173679 | AP65: 30.85173678 | AQ65: 30.85173677
A66: Broken Bow city, Oklahoma | B66: 12.6 | C66: 12.7 | D66: 11 | E66: 13.4 | F66: 13.5 | G66: 12.4 | H66: 9.5 | I66: 9.686712279 | J66: 9.090909091 | K66: 7.265707266 | L66: 8.681109545 | M66: 8.345908634 | N66: 8.097575148 | O66: 8.374864443 | P66: 8.272782742 | Q66: 8.248407444 | R66: 8.298684876 | S66: 8.273291687 | T66: 8.273461336 | U66: 8.281812633 | V66: 8.276188552 | W66: 8.277154174 | X66: 8.27838512 | Y66: 8.277242615 | Z66: 8.27759397 | AA66: 8.277740568 | AB66: 8.277525718 | AC66: 8.277620085 | AD66: 8.27762879 | AE66: 8.277591531 | AF66: 8.277613469 | AG66: 8.277611263 | AH66: 8.277605421 | AI66: 8.277610051 | AJ66: 8.277608912 | AK66: 8.277608128 | AL66: 8.27760903 | AM66: 8.27760869 | AN66: 8.277608616 | AO66: 8.277608779 | AP66: 8.277608695 | AQ66: 8.277608697
A67: Bromide town, Oklahoma | B67: 2.3 | C67: 0 | D67: 0.9 | E67: 6.3 | F67: 7.7 | G67: 11.2 | H67: 14.9 | I67: 14.9122807 | J67: 15.84158416 | K67: 16.09195402 | L67: 15.61527296 | M67: 15.84960371 | N67: 15.8522769 | O67: 15.77238452 | P67: 15.82475504 | Q67: 15.81647216 | R67: 15.80453724 | S67: 15.81525481 | T67: 15.81208807 | U67: 15.81062671 | V67: 15.81265653 | W67: 15.81179044 | X67: 15.81169123 | Y67: 15.81204606 | Z67: 15.81184258 | AA67: 15.81185995 | AB67: 15.8119162 | AC67: 15.81187291 | AD67: 15.81188302 | AE67: 15.81189071 | AF67: 15.81188221 | AG67: 15.81188531 | AH67: 15.81188608 | AI67: 15.81188454 | AJ67: 15.81188531 | AK67: 15.81188531 | AL67: 15.81188505 | AM67: 15.81188522 | AN67: 15.81188519 | AO67: 15.81188516 | AP67: 15.81188519 | AQ67: 15.81188518
A68: Brooksville town, Oklahoma | B68: 50 | C68: 57.1 | D68: 52.1 | E68: 17.6 | F68: 13.6 | G68: 8.6 | H68: 5.6 | I68: 10 | J68: 5 | K68: 2.564102564 | L68: 5.854700855 | M68: 4.472934473 | N68: 4.297245964 | O68: 4.87496043 | P68: 4.548380289 | Q68: 4.573528894 | R68: 4.665623205 | S68: 4.595844129 | T68: 4.61166541 | U68: 4.624377581 | V68: 4.61062904 | W68: 4.615557344 | X68: 4.616854655 | Y68: 4.614347013 | Z68: 4.615586337 | AA68: 4.615596002 | AB68: 4.615176451 | AC68: 4.61545293 | AD68: 4.615408461 | AE68: 4.615345947 | AF68: 4.615402446 | AG68: 4.615385618 | AH68: 4.615378004 | AI68: 4.615388689 | AJ68: 4.615384103 | AK68: 4.615383599 | AL68: 4.615385464 | AM68: 4.615384389 | AN68: 4.615384484 | AO68: 4.615384779 | AP68: 4.61538455 | AQ68: 4.615384604
A69: Buffalo town, Oklahoma | B69: 16.8 | C69: 14 | D69: 13.9 | E69: 15.7 | F69: 13.3 | G69: 17.2 | H69: 21.4 | I69: 19.05829596 | J69: 20.96385542 | K69: 18.31735889 | L69: 19.44650342 | M69: 19.57590591 | N69: 19.11325607 | O69: 19.37855514 | P69: 19.35590571 | Q69: 19.28257231 | R69: 19.33901105 | S69: 19.32582969 | T69: 19.31580435 | U69: 19.3268817 | V69: 19.32283858 | W69: 19.32184154 | X69: 19.32385394 | Y69: 19.32284468 | Z69: 19.32284672 | AA69: 19.32318178 | AB69: 19.32295773 | AC69: 19.32299541 | AD69: 19.32304497 | AE69: 19.32299937 | AF69: 19.32301325 | AG69: 19.3230192 | AH69: 19.32301061 | AI69: 19.32301435 | AJ69: 19.32301472 | AK69: 19.32301323 | AL69: 19.3230141 | AM69: 19.32301402 | AN69: 19.32301378 | AO69: 19.32301396 | AP69: 19.32301392 | AQ69: 19.32301389
A70: Burbank town, Oklahoma | B70: 23.1 | C70: 24.8 | D70: 16.3 | E70: 5.6 | F70: 4.6 | G70: 5.9 | H70: 16.3 | I70: 17.14285714 | J70: 16.43835616 | K70: 18.82352941 | L70: 17.46824757 | M70: 17.57671105 | N70: 17.95616268 | O70: 17.66704043 | P70: 17.73330472 | Q70: 17.78550261 | R70: 17.72861592 | S70: 17.74914108 | T70: 17.75441987 | U70: 17.74405896 | V70: 17.74920664 | W70: 17.74922849 | X70: 17.74749803 | Y70: 17.74864438 | Z70: 17.74845697 | AA70: 17.74819979 | AB70: 17.74843371 | AC70: 17.74836349 | AD70: 17.74833233 | AE70: 17.74837651 | AF70: 17.74835744 | AG70: 17.74835543 | AH70: 17.74836313 | AI70: 17.74835867 | AJ70: 17.74835908 | AK70: 17.74836029 | AL70: 17.74835934 | AM70: 17.74835957 | AN70: 17.74835974 | AO70: 17.74835955 | AP70: 17.74835962 | AQ70: 17.74835963
A71: Burlington town, Oklahoma | B71: 23.9 | C71: 14.4 | D71: 14 | E71: 18.4 | F71: 23.1 | G71: 25 | H71: 36.3 | I71: 32.69230769 | J71: 41.93548387 | K71: 35.71428571 | L71: 36.78069242 | M71: 38.14348733 | N71: 36.87948849 | O71: 37.26788942 | P71: 37.43028841 | Q71: 37.19255544 | R71: 37.29691109 | S71: 37.30658498 | T71: 37.2653505 | U71: 37.28961552 | V71: 37.28718367 | W71: 37.28071657 | X71: 37.28583859 | Y71: 37.28457961 | Z71: 37.28371159 | AA71: 37.28470993 | AB71: 37.28433371 | AC71: 37.28425174 | AD71: 37.28443179 | AE71: 37.28433908 | AF71: 37.28434087 | AG71: 37.28437058 | AH71: 37.28435018 | AI71: 37.28435388 | AJ71: 37.28435821 | AK71: 37.28435409 | AL71: 37.28435539 | AM71: 37.2843559 | AN71: 37.28435513 | AO71: 37.28435547 | AP71: 37.2843555 | AQ71: 37.28435536
A72: Burns Flat town, Oklahoma | B72: 6.7 | C72: 6.3 | D72: 7.2 | E72: 10.8 | F72: 11.6 | G72: 15.4 | H72: 18.7 | I72: 14.01687216 | J72: 11.11883252 | K72: 12.88860104 | L72: 12.67476857 | M72: 12.22740071 | N72: 12.59692344 | O72: 12.49969758 | P72: 12.44134058 | Q72: 12.51265386 | R72: 12.48456401 | S72: 12.47951948 | T72: 12.49224578 | U72: 12.48544309 | V72: 12.48573612 | W72: 12.48780833 | X72: 12.48632918 | Y72: 12.48662454 | Z72: 12.48692068 | AA72: 12.4866248 | AB72: 12.48672334 | AC72: 12.48675628 | AD72: 12.48670147 | AE72: 12.48672703 | AF72: 12.48672826 | AG72: 12.48671892 | AH72: 12.48672474 | AI72: 12.48672397 | AJ72: 12.48672254 | AK72: 12.48672375 | AL72: 12.48672342 | AM72: 12.48672324 | AN72: 12.48672347 | AO72: 12.48672338 | AP72: 12.48672336 | AQ72: 12.4867234
A73: Butler town, Oklahoma | B73: 4.5 | C73: 9.2 | D73: 7.4 | E73: 10.8 | F73: 8.3 | G73: 7.6 | H73: 8 | I73: 7.547169811 | J73: 11.2244898 | K73: 10.6741573 | L73: 9.815272304 | M73: 10.57130647 | N73: 10.35357869 | O73: 10.24671915 | P73: 10.39053477 | Q73: 10.33027754 | R73: 10.32251049 | S73: 10.34777427 | T73: 10.33352076 | U73: 10.33460184 | V73: 10.33863229 | W73: 10.33558496 | X73: 10.33627303 | Y73: 10.33683009 | Z73: 10.33622936 | AA73: 10.33644416 | AB73: 10.33650121 | AC73: 10.33639158 | AD73: 10.33644565 | AE73: 10.33644614 | AF73: 10.33642779 | AG73: 10.33643986 | AH73: 10.33643793 | AI73: 10.33643519 | AJ73: 10.33643766 | AK73: 10.33643693 | AL73: 10.3364366 | AM73: 10.33643706 | AN73: 10.33643686 | AO73: 10.33643684 | AP73: 10.33643692 | AQ73: 10.33643688
A74: Byars town, Oklahoma | B74: 20.3 | C74: 18.7 | D74: 16 | E74: 14.7 | F74: 12.5 | G74: 11 | H74: 9 | I74: 10.07194245 | J74: 8.208955224 | K74: 8.333333333 | L74: 8.871410336 | M74: 8.471232964 | N74: 8.558658878 | O74: 8.633767393 | P74: 8.554553078 | Q74: 8.582326449 | R74: 8.59021564 | S74: 8.575698389 | T74: 8.582746826 | U74: 8.582886952 | V74: 8.580444056 | W74: 8.582025945 | X74: 8.581785651 | Y74: 8.58141855 | Z74: 8.581743382 | AA74: 8.581649194 | AB74: 8.581603709 | AC74: 8.581665428 | AD74: 8.581639444 | AE74: 8.581636194 | AF74: 8.581647022 | AG74: 8.581640886 | AH74: 8.581641367 | AI74: 8.581643092 | AJ74: 8.581641782 | AK74: 8.58164208 | AL74: 8.581642318 | AM74: 8.58164206 | AN74: 8.581642153 | AO74: 8.581642177 | AP74: 8.58164213 | AQ74: 8.581642153
A75: Byng town, Oklahoma | B75: 21.4 | C75: 19.2 | D75: 15.2 | E75: 19.2 | F75: 21.7 | G75: 20.8 | H75: 24.8 | I75: 28.58707558 | J75: 28.11158798 | K75: 27.45302714 | L75: 28.05056357 | M75: 27.87172623 | N75: 27.79177231 | O75: 27.90468737 | P75: 27.85606197 | Q75: 27.85084055 | R75: 27.87052996 | S75: 27.85914416 | T75: 27.86017156 | U75: 27.86328189 | V75: 27.86086587 | W75: 27.86143977 | X75: 27.86186251 | Y75: 27.86138939 | Z75: 27.86156389 | AA75: 27.86160526 | AB75: 27.86151951 | AC75: 27.86156289 | AD75: 27.86156256 | AE75: 27.86154832 | AF75: 27.86155792 | AG75: 27.86155627 | AH75: 27.86155417 | AI75: 27.86155612 | AJ75: 27.86155552 | AK75: 27.86155527 | AL75: 27.86155564 | AM75: 27.86155547 | AN75: 27.86155546 | AO75: 27.86155552 | AP75: 27.86155549 | AQ75: 27.86155549
A76: Cache city, Oklahoma | B76: 17.8 | C76: 15.2 | D76: 14.5 | E76: 19.2 | F76: 18.5 | G76: 18.1 | H76: 16.9 | I76: 16.50312221 | J76: 16.96551724 | K76: 17.07886141 | L76: 16.84916695 | M76: 16.9645152 | N76: 16.96418119 | O76: 16.92595445 | P76: 16.95155028 | Q76: 16.94722864 | R76: 16.94157779 | S76: 16.94678557 | T76: 16.94519733 | U76: 16.94452023 | V76: 16.94550104 | W76: 16.94507287 | X76: 16.94503138 | Y76: 16.94520176 | Z76: 16.945102 | AA76: 16.94511172 | AB76: 16.94513849 | AC76: 16.9451174 | AD76: 16.94512254 | AE76: 16.94512615 | AF76: 16.94512203 | AG76: 16.94512357 | AH76: 16.94512392 | AI76: 16.94512317 | AJ76: 16.94512355 | AK76: 16.94512355 | AL76: 16.94512342 | AM76: 16.94512351 | AN76: 16.94512349 | AO76: 16.94512348 | AP76: 16.94512349 | AQ76: 16.94512349
A77: Caddo town, Oklahoma | B77: 18.1 | C77: 19.3 | D77: 19 | E77: 18.5 | F77: 19.3 | G77: 18.2 | H77: 20.5 | I77: 19.86143187 | J77: 22.09543568 | K77: 22.79411765 | L77: 21.58366173 | M77: 22.15773835 | N77: 22.17850591 | O77: 21.973302 | P77: 22.10318209 | Q77: 22.08499667 | R77: 22.05382692 | S77: 22.08066856 | T77: 22.07316405 | U77: 22.06921984 | V77: 22.07435082 | W77: 22.0722449 | X77: 22.07193852 | Y77: 22.07284475 | Z77: 22.07234272 | AA77: 22.07237533 | AB77: 22.07252093 | AC77: 22.07241299 | AD77: 22.07243642 | AE77: 22.07245678 | AF77: 22.0724354 | AG77: 22.07244287 | AH77: 22.07244502 | AI77: 22.07244109 | AJ77: 22.07244299 | AK77: 22.07244303 | AL77: 22.07244237 | AM77: 22.0724428 | AN77: 22.07244274 | AO77: 22.07244264 | AP77: 22.07244272 | AQ77: 22.0724427
A78: Calera town, Oklahoma | B78: 16.4 | C78: 16.4 | D78: 15.7 | E78: 14.9 | F78: 14.8 | G78: 15.7 | H78: 17.1 | I78: 14.90458999 | J78: 14.81876333 | K78: 13.51758794 | L78: 14.41364709 | M78: 14.24999945 | N78: 14.06041149 | O78: 14.24135268 | P78: 14.18392121 | Q78: 14.16189513 | R78: 14.195723 | S78: 14.18051311 | T78: 14.17937708 | U78: 14.1852044 | V78: 14.1816982 | W78: 14.18209323 | X78: 14.18299861 | Y78: 14.18226334 | Z78: 14.18245173 | AA78: 14.18257123 | AB78: 14.18242876 | AC78: 14.18248391 | AD78: 14.18249463 | AE78: 14.1824691 | AF78: 14.18248255 | AG78: 14.18248209 | AH78: 14.18247791 | AI78: 14.18248085 | AJ78: 14.18248029 | AK78: 14.18247968 | AL78: 14.18248027 | AM78: 14.18248008 | AN78: 14.18248001 | AO78: 14.18248012 | AP78: 14.18248007 | AQ78: 14.18248007
A79: Calumet town, Oklahoma | B79: 19.7 | C79: 19.6 | D79: 19.6 | E79: 16.2 | F79: 19.5 | G79: 14.7 | H79: 15 | I79: 11.83431953 | J79: 15.54054054 | K79: 11.64179104 | L79: 13.00555037 | M79: 13.39596065 | N79: 12.68110069 | O79: 13.02753724 | P79: 13.03486619 | Q79: 12.91450137 | R79: 12.9923016 | S79: 12.98055639 | T79: 12.96245312 | U79: 12.97843704 | V79: 12.97381551 | W79: 12.97156856 | X79: 12.97460703 | Y79: 12.97333037 | Z79: 12.97316865 | AA79: 12.97370202 | AB79: 12.97340035 | AC79: 12.97342367 | AD79: 12.97350868 | AE79: 12.97344423 | AF79: 12.97345886 | AG79: 12.97347059 | AH79: 12.9734579 | AI79: 12.97346245 | AJ79: 12.97346365 | AK79: 12.97346133 | AL79: 12.97346247 | AM79: 12.97346248 | AN79: 12.9734621 | AO79: 12.97346235 | AP79: 12.97346231 | AQ79: 12.97346225
A80: Calvin town, Oklahoma | B80: 8.1 | C80: 16.4 | D80: 17.8 | E80: 7 | F80: 9 | G80: 10.6 | H80: 13.8 | I80: 12.8342246 | J80: 16.83673469 | K80: 21.07843137 | L80: 16.91646355 | M80: 18.27720987 | N80: 18.75736826 | O80: 17.98368056 | P80: 18.33941957 | Q80: 18.36015613 | R80: 18.22775209 | S80: 18.30910926 | T80: 18.29900583 | U80: 18.27862239 | V80: 18.29557916 | W80: 18.29106913 | X80: 18.28842356 | Y80: 18.29169062 | Z80: 18.29039443 | AA80: 18.29016954 | AB80: 18.29075153 | AC80: 18.2904385 | AD80: 18.29045319 | AE80: 18.29054774 | AF80: 18.29047981 | AG80: 18.29049358 | AH80: 18.29050704 | AI80: 18.29049348 | AJ80: 18.29049803 | AK80: 18.29049952 | AL80: 18.29049701 | AM80: 18.29049819 | AN80: 18.29049824 | AO80: 18.29049781 | AP80: 18.29049808 | AQ80: 18.29049804
A81: Camargo town, Oklahoma | B81: 19 | C81: 18.8 | D81: 10.5 | E81: 13 | F81: 18.7 | G81: 19.3 | H81: 12.8 | I81: 18.91891892 | J81: 36.7816092 | K81: 37.93103448 | L81: 31.21052087 | M81: 35.30772152 | N81: 34.81642562 | O81: 33.77822267 | P81: 34.63412327 | Q81: 34.40959052 | R81: 34.27397882 | S81: 34.43923087 | T81: 34.37426674 | U81: 34.36249214 | V81: 34.39199658 | W81: 34.37625182 | X81: 34.37691351 | Y81: 34.38172064 | Z81: 34.37829532 | AA81: 34.37897649 | AB81: 34.37966415 | AC81: 34.37897866 | AD81: 34.37920643 | AE81: 34.37928308 | AF81: 34.37915606 | AG81: 34.37921519 | AH81: 34.37921811 | AI81: 34.37919645 | AJ81: 34.37920992 | AK81: 34.37920816 | AL81: 34.37920484 | AM81: 34.37920764 | AN81: 34.37920688 | AO81: 34.37920645 | AP81: 34.37920699 | AQ81: 34.37920677
A82: Cameron town, Oklahoma | B82: 2.4 | C82: 4.1 | D82: 5.3 | E82: 3.4 | F82: 8.6 | G82: 8 | H82: 5.4 | I82: 6.493506494 | J82: 6.5 | K82: 3.004291845 | L82: 5.332599446 | M82: 4.94563043 | N82: 4.427507241 | O82: 4.901912372 | P82: 4.758350014 | Q82: 4.695923209 | R82: 4.785395199 | S82: 4.746556141 | T82: 4.74262485 | U82: 4.758192063 | V82: 4.749124351 | W82: 4.749980421 | X82: 4.752432278 | Y82: 4.75051235 | Z82: 4.750975017 | AA82: 4.751306548 | AB82: 4.750931305 | AC82: 4.751070957 | AD82: 4.751102937 | AE82: 4.751035066 | AF82: 4.751069653 | AG82: 4.751069219 | AH82: 4.751057979 | AI82: 4.751065617 | AJ82: 4.751064272 | AK82: 4.751062623 | AL82: 4.751064171 | AM82: 4.751063688 | AN82: 4.751063494 | AO82: 4.751063784 | AP82: 4.751063656 | AQ82: 4.751063645
A83: Canadian town, Oklahoma | B83: 7.2 | C83: 7.1 | D83: 4.8 | E83: 6.1 | F83: 9.6 | G83: 10.6 | H83: 14.2 | I83: 7.792207792 | J83: 8.8 | K83: 7.75862069 | L83: 8.116942827 | M83: 8.225187839 | N83: 8.033583785 | O83: 8.125238151 | P83: 8.128003258 | Q83: 8.095608398 | R83: 8.116283269 | S83: 8.113298309 | T83: 8.108396659 | U83: 8.112659412 | V83: 8.11145146 | W83: 8.110835843 | X83: 8.111648905 | Y83: 8.111312069 | Z83: 8.111265606 | AA83: 8.11140886 | AB83: 8.111328845 | AC83: 8.111334437 | AD83: 8.111357381 | AE83: 8.111340221 | AF83: 8.111344013 | AG83: 8.111347205 | AH83: 8.111343813 | AI83: 8.11134501 | AJ83: 8.111345343 | AK83: 8.111344722 | AL83: 8.111345025 | AM83: 8.11134503 | AN83: 8.111344926 | AO83: 8.111344994 | AP83: 8.111344983 | AQ83: 8.111344967
A84: Caney town, Oklahoma | B84: 9.2 | C84: 9 | D84: 13.3 | E84: 10.6 | F84: 5.3 | G84: 7.8 | H84: 9.7 | I84: 9.210526316 | J84: 12.16216216 | K84: 13.13868613 | L84: 11.50379154 | M84: 12.26821328 | N84: 12.30356365 | O84: 12.02518949 | P84: 12.1989888 | Q84: 12.17591398 | R84: 12.13336409 | S84: 12.16942229 | T84: 12.15956679 | U84: 12.15411772 | V84: 12.1610356 | W84: 12.15824004 | X84: 12.15779779 | Y84: 12.15902447 | Z84: 12.1583541 | AA84: 12.15839212 | AB84: 12.15859023 | AC84: 12.15844548 | AD84: 12.15847594 | AE84: 12.15850389 | AF84: 12.1584751 | AG84: 12.15848498 | AH84: 12.15848799 | AI84: 12.15848269 | AJ84: 12.15848522 | AK84: 12.1584853 | AL84: 12.1584844 | AM84: 12.15848497 | AN84: 12.15848489 | AO84: 12.15848476 | AP84: 12.15848487 | AQ84: 12.15848484
A85: Canton town, Oklahoma | B85: 10.3 | C85: 13.2 | D85: 19.1 | E85: 16.8 | F85: 16.5 | G85: 18.1 | H85: 21.9 | I85: 18.29652997 | J85: 21.16991643 | K85: 23.03030303 | L85: 20.83224981 | M85: 21.67748976 | N85: 21.84668087 | O85: 21.45214014 | P85: 21.65877026 | Q85: 21.65253042 | R85: 21.58781361 | S85: 21.63303809 | T85: 21.62446071 | U85: 21.61510414 | V85: 21.62420098 | W85: 21.62125527 | X85: 21.6201868 | Y85: 21.62188102 | Z85: 21.6211077 | AA85: 21.6210585 | AB85: 21.62134907 | AC85: 21.62117176 | AD85: 21.62119311 | AE85: 21.62123798 | AF85: 21.62120095 | AG85: 21.62121068 | AH85: 21.62121654 | AI85: 21.62120939 | AJ85: 21.6212122 | AK85: 21.62121271 | AL85: 21.62121143 | AM85: 21.62121211 | AN85: 21.62121209 | AO85: 21.62121188 | AP85: 21.62121203 | AQ85: 21.621212
A86: Canute town, Oklahoma | B86: 10.8 | C86: 15.7 | D86: 17.6 | E86: 12.5 | F86: 14.1 | G86: 19.3 | H86: 15.2 | I86: 12.04188482 | J86: 12.18130312 | K86: 11.47959184 | L86: 11.90092659 | M86: 11.85394052 | N86: 11.74481965 | O86: 11.83322892 | P86: 11.81066303 | Q86: 11.7962372 | R86: 11.81337638 | S86: 11.80675887 | T86: 11.80545748 | U86: 11.80853091 | V86: 11.80691576 | W86: 11.80696805 | X86: 11.80747157 | Y86: 11.80711846 | Z86: 11.80718603 | AA86: 11.80725869 | AB86: 11.80718773 | AC86: 11.80721081 | AD86: 11.80721908 | AE86: 11.80720587 | AF86: 11.80721192 | AG86: 11.80721229 | AH86: 11.80721003 | AI86: 11.80721141 | AJ86: 11.80721124 | AK86: 11.80721089 | AL86: 11.80721118 | AM86: 11.80721111 | AN86: 11.80721106 | AO86: 11.80721112 | AP86: 11.80721109 | AQ86: 11.80721109
A87: Carmen town, Oklahoma | B87: 12.9 | C87: 15.2 | D87: 18.3 | E87: 17.5 | F87: 22.3 | G87: 22.5 | H87: 20.6 | I87: 18.40659341 | J87: 20.28985507 | K87: 17.32522796 | L87: 18.67389215 | M87: 18.76299173 | N87: 18.25403728 | O87: 18.56364038 | P87: 18.5268898 | Q87: 18.44818915 | R87: 18.51290644 | S87: 18.49599513 | T87: 18.48569691 | U87: 18.49819949 | V87: 18.49329718 | W87: 18.49239786 | X87: 18.49463151 | Y87: 18.49344218 | Z87: 18.49349052 | AA87: 18.49385474 | AB87: 18.49359581 | AC87: 18.49364702 | AD87: 18.49369919 | AE87: 18.49364734 | AF87: 18.49366452 | AG87: 18.49367035 | AH87: 18.49366074 | AI87: 18.4936652 | AJ87: 18.49366543 | AK87: 18.49366379 | AL87: 18.49366481 | AM87: 18.49366468 | AN87: 18.49366442 | AO87: 18.49366464 | AP87: 18.49366458 | AQ87: 18.49366455
A88: Carnegie town, Oklahoma | B88: 14.3 | C88: 13.3 | D88: 13.7 | E88: 11.3 | F88: 10.6 | G88: 11.8 | H88: 11 | I88: 9.992912828 | J88: 9.970674487 | K88: 9.592145015 | L88: 9.851910777 | M88: 9.804910093 | N88: 9.749655295 | O88: 9.802158721 | P88: 9.785574703 | Q88: 9.779129573 | R88: 9.788954333 | S88: 9.78455287 | T88: 9.784212258 | U88: 9.785906487 | V88: 9.784890538 | W88: 9.785003095 | X88: 9.785266707 | Y88: 9.785053446 | Z88: 9.785107749 | AA88: 9.785142634 | AB88: 9.785101277 | AC88: 9.78511722 | AD88: 9.785120377 | AE88: 9.785112958 | AF88: 9.785116852 | AG88: 9.785116729 | AH88: 9.785115513 | AI88: 9.785116364 | AJ88: 9.785116202 | AK88: 9.785116026 | AL88: 9.785116198 | AM88: 9.785116142 | AN88: 9.785116122 | AO88: 9.785116154 | AP88: 9.785116139 | AQ88: 9.785116138
A89: Carney town, Oklahoma | B89: 16.4 | C89: 15.4 | D89: 11.1 | E89: 6.1 | F89: 6.1 | G89: 9.4 | H89: 8.8 | I89: 8.278867102 | J89: 8.349900596 | K89: 7.676767677 | L89: 8.101845125 | M89: 8.042837799 | N89: 7.940483534 | O89: 8.028388819 | P89: 8.003903384 | Q89: 7.990925246 | R89: 8.00773915 | S89: 8.000855927 | T89: 7.999840107 | U89: 8.002811728 | V89: 8.001169254 | W89: 8.001273696 | X89: 8.001751559 | Y89: 8.00139817 | Z89: 8.001474475 | AA89: 8.001541402 | AB89: 8.001471349 | AC89: 8.001495742 | AD89: 8.001502831 | AE89: 8.001489974 | AF89: 8.001496182 | AG89: 8.001496329 | AH89: 8.001494162 | AI89: 8.001495558 | AJ89: 8.001495349 | AK89: 8.001495023 | AL89: 8.00149531 | AM89: 8.001495227 | AN89: 8.001495187 | AO89: 8.001495241 | AP89: 8.001495219 | AQ89: 8.001495216
A90: Carrier town, Oklahoma | B90: 28.6 | C90: 22.7 | D90: 10.8 | E90: 26.2 | F90: 37.8 | G90: 30.2 | H90: 41.3 | I90: 41.86046512 | J90: 43.33333333 | K90: 28.20512821 | L90: 37.79964222 | M90: 36.44603459 | N90: 34.15026834 | O90: 36.13198172 | P90: 35.57609488 | Q90: 35.28611498 | R90: 35.66473052 | S90: 35.50898013 | T90: 35.48660854 | U90: 35.55343973 | V90: 35.5163428 | W90: 35.51879703 | X90: 35.52952652 | Y90: 35.52155545 | Z90: 35.523293 | AA90: 35.52479166 | AB90: 35.52321337 | AC90: 35.52376601 | AD90: 35.52392368 | AE90: 35.52363435 | AF90: 35.52377468 | AG90: 35.52377757 | AH90: 35.52372887 | AI90: 35.52376037 | AJ90: 35.5237556 | AK90: 35.52374828 | AL90: 35.52375475 | AM90: 35.52375288 | AN90: 35.52375197 | AO90: 35.5237532 | AP90: 35.52375268 | AQ90: 35.52375262
A91: Carter town, Oklahoma | B91: 9.3 | C91: 12.1 | D91: 9.3 | E91: 13 | F91: 10.3 | G91: 5.8 | H91: 7.9 | I91: 6.451612903 | J91: 4.5 | K91: 4.188481675 | L91: 5.046698193 | M91: 4.578393289 | N91: 4.604524386 | O91: 4.743205289 | P91: 4.642040988 | Q91: 4.663256888 | R91: 4.682834388 | S91: 4.662710755 | T91: 4.669600677 | U91: 4.671715273 | V91: 4.668008902 | W91: 4.669774951 | X91: 4.669833042 | Y91: 4.669205631 | Z91: 4.669604541 | AA91: 4.669547738 | AB91: 4.669452637 | AC91: 4.669534972 | AD91: 4.669511782 | AE91: 4.669499797 | AF91: 4.669515517 | AG91: 4.669509032 | AH91: 4.669508115 | AI91: 4.669510888 | AJ91: 4.669509345 | AK91: 4.66950945 | AL91: 4.669509894 | AM91: 4.669509563 | AN91: 4.669509636 | AO91: 4.669509698 | AP91: 4.669509632 | AQ91: 4.669509655
A92: Cashion town, Oklahoma | B92: 23.2 | C92: 19.4 | D92: 23.5 | E92: 20.3 | F92: 21.5 | G92: 21.8 | H92: 23.1 | I92: 15.96330275 | J92: 21.25693161 | K92: 18.55500821 | L92: 18.59174752 | M92: 19.46789578 | N92: 18.8715505 | O92: 18.9770646 | P92: 19.10550363 | Q92: 18.98470625 | R92: 19.02242483 | S92: 19.0375449 | T92: 19.01489199 | U92: 19.02495391 | V92: 19.02579693 | W92: 19.02188094 | X92: 19.02421059 | Y92: 19.02396282 | Z92: 19.02335145 | AA92: 19.02384162 | AB92: 19.02371863 | AC92: 19.02363724 | AD92: 19.0237325 | AE92: 19.02369612 | AF92: 19.02368862 | AG92: 19.02370575 | AH92: 19.02369683 | AI92: 19.02369706 | AJ92: 19.02369988 | AK92: 19.02369792 | AL92: 19.02369829 | AM92: 19.0236987 | AN92: 19.0236983 | AO92: 19.02369843 | AP92: 19.02369848 | AQ92: 19.0236984
A93: Castle town, Oklahoma | B93: 0 | C93: 0 | D93: 0 | E93: 0 | F93: 0 | G93: 0 | H93: 0 | I93: 0.925925926 | J93: 2.247191011 | K93: 1.086956522 | L93: 1.420024486 | M93: 1.584724006 | N93: 1.363901672 | O93: 1.456216721 | P93: 1.4682808 | Q93: 1.429466398 | R93: 1.451321306 | S93: 1.449689501 | T93: 1.443492402 | U93: 1.448167736 | V93: 1.447116546 | W93: 1.446258895 | X93: 1.447181059 | Y93: 1.446852167 | Z93: 1.44676404 | AA93: 1.446932422 | AB93: 1.446849543 | AC93: 1.446848669 | AD93: 1.446876878 | AE93: 1.446858363 | AF93: 1.446861303 | AG93: 1.446865515 | AH93: 1.446861727 | AI93: 1.446862848 | AJ93: 1.446863363 | AK93: 1.446862646 | AL93: 1.446862953 | AM93: 1.446862987 | AN93: 1.446862862 | AO93: 1.446862934 | AP93: 1.446862928 | AQ93: 1.446862908
A94: Catoosa city, Oklahoma | B94: 17.2 | C94: 16.8 | D94: 15.1 | E94: 16.4 | F94: 18.5 | G94: 17 | H94: 16 | I94: 14.58476321 | J94: 13.72450685 | K94: 13.15356791 | L94: 13.82094599 | M94: 13.56634025 | N94: 13.51361805 | O94: 13.63363476 | P94: 13.57119769 | Q94: 13.57281683 | R94: 13.59254976 | S94: 13.57885476 | T94: 13.58140712 | U94: 13.58427055 | V94: 13.58151081 | W94: 13.58239616 | X94: 13.58272584 | Y94: 13.58221094 | Z94: 13.58244431 | AA94: 13.58246036 | AB94: 13.58237187 | AC94: 13.58242551 | AD94: 13.58241925 | AE94: 13.58240554 | AF94: 13.58241677 | AG94: 13.58241385 | AH94: 13.58241206 | AI94: 13.58241423 | AJ94: 13.58241338 | AK94: 13.58241322 | AL94: 13.58241361 | AM94: 13.5824134 | AN94: 13.58241341 | AO94: 13.58241347 | AP94: 13.58241343 | AQ94: 13.58241344
A95: Cedar Valley city, Oklahoma | B95: 34.3 | C95: 30.1 | D95: 32 | E95: 30.6 | F95: 32.5 | G95: 42.1 | H95: 43.9 | I95: 34.54545455 | J95: 38.18615752 | K95: 39.08872902 | L95: 37.27344703 | M95: 38.18277786 | N95: 38.1816513 | O95: 37.87929206 | P95: 38.08124041 | Q95: 38.04739459 | R95: 38.00264235 | S95: 38.04375912 | T95: 38.03126535 | U95: 38.02588894 | V95: 38.0336378 | W95: 38.03026403 | X95: 38.02993026 | Y95: 38.03127737 | Z95: 38.03049055 | AA95: 38.03056606 | AB95: 38.03077799 | AC95: 38.03061154 | AD95: 38.03065186 | AE95: 38.03068046 | AF95: 38.03064795 | AG95: 38.03066009 | AH95: 38.03066284 | AI95: 38.03065696 | AJ95: 38.03065996 | AK95: 38.03065992 | AL95: 38.03065895 | AM95: 38.03065961 | AN95: 38.03065949 | AO95: 38.03065935 | AP95: 38.03065949 | AQ95: 38.03065944
A96: Cement town, Oklahoma | B96: 2.6 | C96: 3.9 | D96: 7.1 | E96: 4.6 | F96: 3.9 | G96: 5.6 | H96: 3.2 | I96: 0.607902736 | J96: 0.298507463 | K96: 0.647249191 | L96: 0.5178864633 | M96: 0.4878810391 | N96: 0.5510055645 | O96: 0.5189243556 | P96: 0.5192703197 | Q96: 0.5297334133 | R96: 0.5226426962 | S96: 0.5238821431 | T96: 0.5254194175 | U96: 0.5239814189 | V96: 0.5244276599 | W96: 0.5246094988 | X96: 0.5243395259 | Y96: 0.5244588948 | Z96: 0.5244693065 | AA96: 0.5244225757 | AB96: 0.524450259 | AC96: 0.5244473804 | AD96: 0.5244400717 | AE96: 0.5244459037 | AF96: 0.5244444519 | AG96: 0.5244434758 | AH96: 0.5244446105 | AI96: 0.5244441794 | AJ96: 0.5244440886 | AK96: 0.5244442928 | AL96: 0.5244441869 | AM96: 0.5244441894 | AN96: 0.5244442231 | AO96: 0.5244441998 | AP96: 0.5244442041 | AQ96: 0.524444209
A97: Centrahoma city, Oklahoma | B97: 0 | C97: 0 | D97: 0 | E97: 3.4 | F97: 3.3 | G97: 4.1 | H97: 4.2 | I97: 3.846153846 | J97: 0 | K97: 0 | L97: 1.282051282 | M97: 0.4273504273 | N97: 0.5698005698 | O97: 0.759734093 | P97: 0.5856283634 | Q97: 0.6383876754 | R97: 0.6612500439 | S97: 0.6284220276 | T97: 0.6426865823 | U97: 0.6441195513 | V97: 0.6384093871 | W97: 0.6417385069 | X97: 0.6414224817 | Y97: 0.6405234586 | Z97: 0.6412281491 | AA97: 0.6410580298 | AB97: 0.6409365458 | AC97: 0.6410742415 | AD97: 0.641022939 | AE97: 0.6410112421 | AF97: 0.6410361409 | AG97: 0.6410234407 | AH97: 0.6410236079 | AI97: 0.6410277298 | AJ97: 0.6410249261 | AK97: 0.6410254213 | AL97: 0.6410260258 | AM97: 0.6410254577 | AN97: 0.6410256349 | AO97: 0.6410257061 | AP97: 0.6410255996 | AQ97: 0.6410256469
A98: Central High town, Oklahoma | B98: 7.3 | C98: 11.7 | D98: 15.5 | E98: 14.2 | F98: 19.6 | G98: 24.7 | H98: 23.7 | I98: 25.34678436 | J98: 28.84615385 | K98: 27.88559755 | L98: 27.35951192 | M98: 28.03042111 | N98: 27.75851019 | O98: 27.71614774 | P98: 27.83502635 | Q98: 27.76989476 | R98: 27.77368962 | S98: 27.79287024 | T98: 27.7788182 | U98: 27.78179269 | V98: 27.78449371 | W98: 27.78170153 | X98: 27.78266264 | Y98: 27.78295263 | Z98: 27.78243894 | AA98: 27.78268474 | AB98: 27.7826921 | AC98: 27.78260526 | AD98: 27.7826607 | AE98: 27.78265269 | AF98: 27.78263955 | AG98: 27.78265098 | AH98: 27.78264774 | AI98: 27.78264609 | AJ98: 27.78264827 | AK98: 27.78264736 | AL98: 27.78264724 | AM98: 27.78264762 | AN98: 27.78264741 | AO98: 27.78264742 | AP98: 27.78264748 | AQ98: 27.78264744
A99: Chandler city, Oklahoma | B99: 14.1 | C99: 12.8 | D99: 10 | E99: 11.5 | F99: 11.1 | G99: 11.7 | H99: 12.7 | I99: 10.49409707 | J99: 12.84567351 | K99: 16.40519946 | L99: 13.24832335 | M99: 14.16639877 | N99: 14.60664053 | O99: 14.00712088 | P99: 14.26005339 | Q99: 14.2912716 | R99: 14.18614863 | S99: 14.24582454 | T99: 14.24108159 | U99: 14.22435158 | V99: 14.2370859 | W99: 14.23417303 | X99: 14.23187017 | Y99: 14.23437637 | Z99: 14.23347319 | AA99: 14.23323991 | AB99: 14.23369649 | AC99: 14.23346986 | AD99: 14.23346875 | AE99: 14.23354503 | AF99: 14.23349455 | AG99: 14.23350278 | AH99: 14.23351412 | AI99: 14.23350382 | AJ99: 14.23350691 | AK99: 14.23350828 | AL99: 14.23350633 | AM99: 14.23350717 | AN99: 14.23350726 | AO99: 14.23350692 | AP99: 14.23350712 | AQ99: 14.2335071
A100: Chattanooga town, Oklahoma | B100: 20.2 | C100: 23.2 | D100: 22.6 | E100: 13.4 | F100: 14.2 | G100: 17.4 | H100: 15.6 | I100: 15 | J100: 19.07692308 | K100: 16.82539683 | L100: 16.96743997 | M100: 17.62325329 | N100: 17.1386967 | O100: 17.24312999 | P100: 17.33502666 | Q100: 17.23895111 | R100: 17.27236925 | S100: 17.28211568 | T100: 17.26447868 | U100: 17.27298787 | V100: 17.27319408 | W100: 17.27022021 | X100: 17.27213405 | Y100: 17.27184945 | Z100: 17.27140124 | AA100: 17.27179491 | AB100: 17.27168186 | AC100: 17.271626 | AD100: 17.27170093 | AE100: 17.2716696 | AF100: 17.27166551 | AG100: 17.27167868 | AH100: 17.27167126 | AI100: 17.27167182 | AJ100: 17.27167392 | AK100: 17.27167233 | AL100: 17.27167269 | AM100: 17.27167298 | AN100: 17.27167267 | AO100: 17.27167278 | AP100: 17.27167281 | AQ100: 17.27167275
A101: Checotah city, Oklahoma | B101: 9.1 | C101: 9 | D101: 8.5 | E101: 8.7 | F101: 8.7 | G101: 9.4 | H101: 12.8 | I101: 11.98842497 | J101: 12.12494862 | K101: 9.479251424 | L101: 11.19754167 | M101: 10.93391391 | N101: 10.53690233 | O101: 10.88945264 | P101: 10.78675629 | Q101: 10.73770375 | R101: 10.80463756 | S101: 10.77636587 | T101: 10.77290239 | U101: 10.78463527 | V101: 10.77796785 | W101: 10.77850184 | X101: 10.78036832 | Y101: 10.778946 | Z101: 10.77927205 | AA101: 10.77952879 | AB101: 10.77924895 | AC101: 10.77934993 | AD101: 10.77937589 | AE101: 10.77932492 | AF101: 10.77935025 | AG101: 10.77935035 | AH101: 10.77934184 | AI101: 10.77934748 | AJ101: 10.77934656 | AK101: 10.77934529 | AL101: 10.77934644 | AM101: 10.7793461 | AN101: 10.77934595 | AO101: 10.77934616 | AP101: 10.77934607 | AQ101: 10.77934606
A102: Chelsea town, Oklahoma | B102: 11.1 | C102: 11.3 | D102: 8.5 | E102: 5.4 | F102: 4.3 | G102: 6.9 | H102: 8.1 | I102: 8.604336043 | J102: 10.11619959 | K102: 11.4873838 | L102: 10.06930648 | M102: 10.55762996 | N102: 10.70477341 | O102: 10.44390328 | P102: 10.56876888 | Q102: 10.57248186 | R102: 10.52838467 | S102: 10.55654514 | T102: 10.55247056 | U102: 10.54580012 | V102: 10.55160527 | W102: 10.54995865 | X102: 10.54912135 | Y102: 10.55022842 | Z102: 10.54976947 | AA102: 10.54970642 | AB102: 10.54990144 | AC102: 10.54979244 | AD102: 10.5498001 | AE102: 10.54983133 | AF102: 10.54980796 | AG102: 10.54981313 | AH102: 10.54981747 | AI102: 10.54981285 | AJ102: 10.54981448 | AK102: 10.54981494 | AL102: 10.54981409 | AM102: 10.5498145 | AN102: 10.54981451 | AO102: 10.54981437 | AP102: 10.54981446 | AQ102: 10.54981445
A103: Cherokee city, Oklahoma | B103: 17.7 | C103: 20.8 | D103: 20.9 | E103: 21.1 | F103: 22.3 | G103: 20.5 | H103: 18.7 | I103: 19.51020408 | J103: 19.64573269 | K103: 17.52241239 | L103: 18.89278305 | M103: 18.68697604 | N103: 18.3673905 | O103: 18.64904986 | P103: 18.56780547 | Q103: 18.52808194 | R103: 18.58164576 | S103: 18.55917772 | T103: 18.55630181 | U103: 18.56570843 | V103: 18.56039599 | W103: 18.56080208 | X103: 18.56230216 | Y103: 18.56116674 | Z103: 18.56142366 | AA103: 18.56163086 | AB103: 18.56140709 | AC103: 18.5614872 | AD103: 18.56150838 | AE103: 18.56146756 | AF103: 18.56148771 | AG103: 18.56148788 | AH103: 18.56148105 | AI103: 18.56148555 | AJ103: 18.56148483 | AK103: 18.56148381 | AL103: 18.56148473 | AM103: 18.56148445 | AN103: 18.56148433 | AO103: 18.5614845 | AP103: 18.56148443 | AQ103: 18.56148442
A104: Cheyenne town, Oklahoma | B104: 18.3 | C104: 20.6 | D104: 18.6 | E104: 20 | F104: 17.2 | G104: 15.5 | H104: 13.1 | I104: 11.71171171 | J104: 12.54752852 | K104: 13.38582677 | L104: 12.54835567 | M104: 12.82723699 | N104: 12.92047314 | O104: 12.76535526 | P104: 12.83768846 | Q104: 12.84117229 | R104: 12.81473867 | S104: 12.83119981 | T104: 12.82903692 | U104: 12.8249918 | V104: 12.82840951 | W104: 12.82747941 | X104: 12.82696024 | Y104: 12.82761639 | Z104: 12.82735201 | AA104: 12.82730955 | AB104: 12.82742598 | AC104: 12.82736252 | AD104: 12.82736602 | AE104: 12.82738484 | AF104: 12.82737112 | AG104: 12.82737399 | AH104: 12.82737665 | AI104: 12.82737392 | AJ104: 12.82737486 | AK104: 12.82737514 | AL104: 12.82737464 | AM104: 12.82737488 | AN104: 12.82737489 | AO104: 12.8273748 | AP104: 12.82737486 | AQ104: 12.82737485
A105: Chickasha city, Oklahoma | B105: 17.7 | C105: 18.4 | D105: 18.3 | E105: 18.9 | F105: 19.1 | G105: 18.7 | H105: 17.6 | I105: 16.53180126 | J105: 17.22140643 | K105: 17.64565235 | L105: 17.13295335 | M105: 17.33333738 | N105: 17.37064769 | O105: 17.27897947 | P105: 17.32765485 | Q105: 17.32576067 | R105: 17.31079833 | S105: 17.32140461 | T105: 17.3193212 | U105: 17.31717472 | V105: 17.31930018 | W105: 17.3185987 | X105: 17.31835786 | Y105: 17.31875225 | Z105: 17.3185696 | AA105: 17.31855991 | AB105: 17.31862725 | AC105: 17.31858559 | AD105: 17.31859091 | AE105: 17.31860125 | AF105: 17.31859258 | AG105: 17.31859492 | AH105: 17.31859625 | AI105: 17.31859458 | AJ105: 17.31859525 | AK105: 17.31859536 | AL105: 17.31859507 | AM105: 17.31859523 | AN105: 17.31859522 | AO105: 17.31859517 | AP105: 17.3185952 | AQ105: 17.3185952
A106: Choctaw city, Oklahoma | B106: 21.3 | C106: 22.9 | D106: 22.8 | E106: 23.9 | F106: 27.3 | G106: 27.7 | H106: 28.6 | I106: 25.25962787 | J106: 26.00844773 | K106: 26.95596409 | L106: 26.0746799 | M106: 26.34636391 | N106: 26.45900263 | O106: 26.29334881 | P106: 26.36623845 | Q106: 26.3728633 | R106: 26.34415019 | S106: 26.36108398 | T106: 26.35936582 | U106: 26.35486666 | V106: 26.35843882 | W106: 26.3575571 | X106: 26.35695419 | Y106: 26.35765004 | Z106: 26.35738711 | AA106: 26.35733045 | AB106: 26.35745587 | AC106: 26.35739114 | AD106: 26.35739248 | AE106: 26.35741316 | AF106: 26.35739893 | AG106: 26.35740153 | AH106: 26.35740454 | AI106: 26.35740166 | AJ106: 26.35740258 | AK106: 26.35740293 | AL106: 26.35740239 | AM106: 26.35740263 | AN106: 26.35740265 | AO106: 26.35740256 | AP106: 26.35740261 | AQ106: 26.35740261
A107: Chouteau town, Oklahoma | B107: 13.6 | C107: 13.8 | D107: 14.4 | E107: 17.8 | F107: 17.8 | G107: 17 | H107: 19.2 | I107: 18.65252651 | J107: 17.31629393 | K107: 15.90612777 | L107: 17.2916494 | M107: 16.8380237 | N107: 16.67860029 | O107: 16.93609113 | P107: 16.81757171 | Q107: 16.81075438 | R107: 16.85480574 | S107: 16.82771061 | T107: 16.83109024 | U107: 16.83786886 | V107: 16.83222324 | W107: 16.83372745 | X107: 16.83460652 | Y107: 16.83351907 | Z107: 16.83395101 | AA107: 16.83402553 | AB107: 16.83383187 | AC107: 16.83393614 | AD107: 16.83393118 | AE107: 16.83389973 | AF107: 16.83392235 | AG107: 16.83391775 | AH107: 16.83391328 | AI107: 16.83391779 | AJ107: 16.83391627 | AK107: 16.83391578 | AL107: 16.83391662 | AM107: 16.83391622 | AN107: 16.83391621 | AO107: 16.83391635 | AP107: 16.83391626 | AQ107: 16.83391627
A108: Cimarron City town, Oklahoma | B108: 49.6 | C108: 42.6 | D108: 44.6 | E108: 32.3 | F108: 30.2 | G108: 32.8 | H108: 31.2 | I108: 22.85714286 | J108: 20.30075188 | K108: 24.58100559 | L108: 22.57963344 | M108: 22.4871303 | N108: 23.21592311 | O108: 22.76089562 | P108: 22.82131635 | Q108: 22.93271169 | R108: 22.83830789 | S108: 22.86411197 | T108: 22.87837718 | U108: 22.86026568 | V108: 22.86758495 | W108: 22.8687426 | X108: 22.86553108 | Y108: 22.86728621 | Z108: 22.86718663 | AA108: 22.86666797 | AB108: 22.86704694 | AC108: 22.86696718 | AD108: 22.86689403 | AE108: 22.86696938 | AF108: 22.86694353 | AG108: 22.86693565 | AH108: 22.86694952 | AI108: 22.8669429 | AJ108: 22.86694269 | AK108: 22.86694504 | AL108: 22.86694354 | AM108: 22.86694376 | AN108: 22.86694411 | AO108: 22.8669438 | AP108: 22.86694389 | AQ108: 22.86694394
A109: Claremore city, Oklahoma | B109: 21 | C109: 20.5 | D109: 22.5 | E109: 22.2 | F109: 20.5 | G109: 19.6 | H109: 19.5 | I109: 16.93732292 | J109: 17.3636991 | K109: 18.82531157 | L109: 17.70877786 | M109: 17.96592951 | N109: 18.16667298 | O109: 17.94712679 | P109: 18.02657643 | Q109: 18.04679206 | R109: 18.00683176 | S109: 18.02673342 | T109: 18.02678575 | U109: 18.02011697 | V109: 18.02454538 | W109: 18.02381603 | X109: 18.02282613 | Y109: 18.02372918 | Z109: 18.02345711 | AA109: 18.02333747 | AB109: 18.02350792 | AC109: 18.02343417 | AD109: 18.02342652 | AE109: 18.02345621 | AF109: 18.02343897 | AG109: 18.02344056 | AH109: 18.02344525 | AI109: 18.02344159 | AJ109: 18.02344247 | AK109: 18.0234431 | AL109: 18.02344239 | AM109: 18.02344265 | AN109: 18.02344271 | AO109: 18.02344258 | AP109: 18.02344265 | AQ109: 18.02344265
A110: Clayton town, Oklahoma | B110: 6.7 | C110: 8 | D110: 7 | E110: 7.4 | F110: 7.6 | G110: 8.3 | H110: 11.1 | I110: 8.768267223 | J110: 7.90513834 | K110: 6.530612245 | L110: 7.734672603 | M110: 7.390141063 | N110: 7.218475303 | O110: 7.44776299 | P110: 7.352126452 | Q110: 7.339454915 | R110: 7.379781452 | S110: 7.35712094 | T110: 7.358785769 | U110: 7.365229387 | V110: 7.360378698 | W110: 7.361464618 | X110: 7.362357568 | Y110: 7.361400295 | Z110: 7.361740827 | AA110: 7.361832896 | AB110: 7.361658006 | AC110: 7.36174391 | AD110: 7.361744937 | AE110: 7.361715618 | AF110: 7.361734822 | AG110: 7.361731792 | AH110: 7.361727411 | AI110: 7.361731342 | AJ110: 7.361730181 | AK110: 7.361729645 | AL110: 7.361730389 | AM110: 7.361730072 | AN110: 7.361730035 | AO110: 7.361730165 | AP110: 7.361730091 | AQ110: 7.361730097
A111: Cleo Springs town, Oklahoma | B111: 9 | C111: 6.5 | D111: 6.3 | E111: 5.4 | F111: 5.3 | G111: 6.5 | H111: 9.4 | I111: 11.71875 | J111: 15.78947368 | K111: 18.22222222 | L111: 15.24348197 | M111: 16.41839262 | N111: 16.62803227 | O111: 16.09663562 | P111: 16.38102017 | Q111: 16.36856269 | R111: 16.28207283 | S111: 16.34388523 | T111: 16.33150691 | U111: 16.31915499 | V111: 16.33151571 | W111: 16.32739254 | X111: 16.32602108 | Y111: 16.32830978 | Z111: 16.32724113 | AA111: 16.32719066 | AB111: 16.32758052 | AC111: 16.32733744 | AD111: 16.32736954 | AE111: 16.32742917 | AF111: 16.32737872 | AG111: 16.32739247 | AH111: 16.32740012 | AI111: 16.32739044 | AJ111: 16.32739434 | AK111: 16.32739497 | AL111: 16.32739325 | AM111: 16.32739419 | AN111: 16.32739413 | AO111: 16.32739386 | AP111: 16.32739406 | AQ111: 16.32739402
A112: Cleveland city, Oklahoma | B112: 15.7 | C112: 17 | D112: 15.4 | E112: 14.4 | F112: 15.4 | G112: 14.7 | H112: 16.4 | I112: 15.27317881 | J112: 14.51546392 | K112: 15.71072319 | L112: 15.16645531 | M112: 15.13088081 | N112: 15.33601977 | O112: 15.21111863 | P112: 15.2260064 | Q112: 15.25771493 | R112: 15.23161332 | S112: 15.23844488 | T112: 15.24259104 | U112: 15.23754975 | V112: 15.23952856 | W112: 15.23988978 | X112: 15.23898936 | Y112: 15.23946924 | Z112: 15.23944946 | AA112: 15.23930269 | AB112: 15.23940713 | AC112: 15.23938643 | AD112: 15.23936541 | AE112: 15.23938632 | AF112: 15.23937939 | AG112: 15.23937704 | AH112: 15.23938092 | AI112: 15.23937912 | AJ112: 15.23937902 | AK112: 15.23937969 | AL112: 15.23937927 | AM112: 15.23937933 | AN112: 15.23937943 | AO112: 15.23937934 | AP112: 15.23937937 | AQ112: 15.23937938
A113: Clinton city, Oklahoma | B113: 19.4 | C113: 19.4 | D113: 17.8 | E113: 20 | F113: 20.6 | G113: 19.3 | H113: 20.5 | I113: 17.17076244 | J113: 16.28571429 | K113: 16.62704074 | L113: 16.69450582 | M113: 16.53575362 | N113: 16.61910006 | O113: 16.61645317 | P113: 16.59043562 | Q113: 16.60866295 | R113: 16.60518391 | S113: 16.60142749 | T113: 16.60509145 | U113: 16.60390095 | V113: 16.6034733 | W113: 16.60415523 | X113: 16.60384316 | Y113: 16.6038239 | Z113: 16.60394076 | AA113: 16.60386927 | AB113: 16.60387798 | AC113: 16.603896 | AD113: 16.60388108 | AE113: 16.60388502 | AF113: 16.60388737 | AG113: 16.60388449 | AH113: 16.60388563 | AI113: 16.60388583 | AJ113: 16.60388532 | AK113: 16.60388559 | AL113: 16.60388558 | AM113: 16.6038855 | AN113: 16.60388556 | AO113: 16.60388554 | AP113: 16.60388553 | AQ113: 16.60388554
A114: Coalgate city, Oklahoma | B114: 9.5 | C114: 11.4 | D114: 13.2 | E114: 13.3 | F114: 12.3 | G114: 14.3 | H114: 12.9 | I114: 11.40583554 | J114: 11.71770972 | K114: 12.98174442 | L114: 12.03509656 | M114: 12.24485023 | N114: 12.42056374 | O114: 12.23350351 | P114: 12.29963916 | Q114: 12.31790214 | R114: 12.2836816 | S114: 12.30040763 | T114: 12.30066379 | U114: 12.29491768 | V114: 12.29866303 | W114: 12.2980815 | X114: 12.29722074 | Y114: 12.29798842 | Z114: 12.29776355 | AA114: 12.29765757 | AB114: 12.29780318 | AC114: 12.29774144 | AD114: 12.29773406 | AE114: 12.29775956 | AF114: 12.29774502 | AG114: 12.29774621 | AH114: 12.29775026 | AI114: 12.29774717 | AJ114: 12.29774788 | AK114: 12.29774844 | AL114: 12.29774783 | AM114: 12.29774805 | AN114: 12.2977481 | AO114: 12.29774799 | AP114: 12.29774805 | AQ114: 12.29774805
A115: Colbert town, Oklahoma | B115: 17.3 | C115: 18.2 | D115: 19 | E115: 16.4 | F115: 12.9 | G115: 12.4 | H115: 12 | I115: 11.82572614 | J115: 13.24626866 | K115: 12.22222222 | L115: 12.43140567 | M115: 12.63329885 | N115: 12.42897558 | O115: 12.49789337 | P115: 12.52005593 | Q115: 12.48230829 | R115: 12.50008587 | S115: 12.5008167 | T115: 12.49440362 | U115: 12.49843539 | V115: 12.49788524 | W115: 12.49690808 | X115: 12.49774291 | Y115: 12.49751208 | Z115: 12.49738769 | AA115: 12.49754756 | AB115: 12.49748244 | AC115: 12.49747256 | AD115: 12.49750085 | AE115: 12.49748528 | AF115: 12.49748623 | AG115: 12.49749079 | AH115: 12.49748744 | AI115: 12.49748815 | AJ115: 12.49748879 | AK115: 12.49748813 | AL115: 12.49748836 | AM115: 12.49748843 | AN115: 12.4974883 | AO115: 12.49748836 | AP115: 12.49748836 | AQ115: 12.49748834
A116: Colcord town, Oklahoma | B116: 14.1 | C116: 12.9 | D116: 14.9 | E116: 14.3 | F116: 12.3 | G116: 7.5 | H116: 8.3 | I116: 7.428571429 | J116: 7.799442897 | K116: 7.120743034 | L116: 7.449585787 | M116: 7.456590573 | N116: 7.342306464 | O116: 7.416160941 | P116: 7.405019326 | Q116: 7.387828911 | R116: 7.403003059 | S116: 7.398617099 | T116: 7.396483023 | U116: 7.399367727 | V116: 7.398155949 | W116: 7.398002233 | X116: 7.398508636 | Y116: 7.398222273 | Z116: 7.398244381 | AA116: 7.398325097 | AB116: 7.398263917 | AC116: 7.398277798 | AD116: 7.398288937 | AE116: 7.398276884 | AF116: 7.398281207 | AG116: 7.398282343 | AH116: 7.398280144 | AI116: 7.398281231 | AJ116: 7.398281239 | AK116: 7.398280872 | AL116: 7.398281114 | AM116: 7.398281075 | AN116: 7.39828102 | AO116: 7.39828107 | AP116: 7.398281055 | AQ116: 7.398281048
A117: Cole town, Oklahoma | B117: 14.5 | C117: 12.8 | D117: 9.6 | E117: 13.5 | F117: 14.1 | G117: 13.7 | H117: 14.3 | I117: 10.53677932 | J117: 23.62637363 | K117: 20.78651685 | L117: 18.3165566 | M117: 20.90981569 | N117: 20.00429638 | O117: 19.74355622 | P117: 20.21922277 | Q117: 19.98902512 | R117: 19.98393471 | S117: 20.06406087 | T117: 20.01234023 | U117: 20.02011193 | V117: 20.03217101 | W117: 20.02154106 | X117: 20.024608 | Y117: 20.02610669 | Z117: 20.02408525 | AA117: 20.02493331 | AB117: 20.02504175 | AC117: 20.02468677 | AD117: 20.02488728 | AE117: 20.02487193 | AF117: 20.02481533 | AG117: 20.02485818 | AH117: 20.02484848 | AI117: 20.02484066 | AJ117: 20.02484911 | AK117: 20.02484608 | AL117: 20.02484528 | AM117: 20.02484683 | AN117: 20.02484606 | AO117: 20.02484606 | AP117: 20.02484632 | AQ117: 20.02484615
A118: Collinsville city, Oklahoma | B118: 21.4 | C118: 20.6 | D118: 21 | E118: 23.3 | F118: 28.8 | G118: 27.3 | H118: 24.4 | I118: 23.54480052 | J118: 25.65271446 | K118: 24.058788 | L118: 24.41876766 | M118: 24.71009004 | N118: 24.3958819 | O118: 24.50824653 | P118: 24.53807282 | Q118: 24.48073375 | R118: 24.5090177 | S118: 24.50927476 | T118: 24.49967541 | U118: 24.50598929 | V118: 24.50497982 | W118: 24.50354817 | X118: 24.50483909 | Y118: 24.50445569 | Z118: 24.50428099 | AA118: 24.50452526 | AB118: 24.50442065 | AC118: 24.50440896 | AD118: 24.50445162 | AE118: 24.50442708 | AF118: 24.50442922 | AG118: 24.50443597 | AH118: 24.50443076 | AI118: 24.50443198 | AJ118: 24.5044329 | AK118: 24.50443188 | AL118: 24.50443226 | AM118: 24.50443235 | AN118: 24.50443216 | AO118: 24.50443226 | AP118: 24.50443226 | AQ118: 24.50443222
A119: Colony town, Oklahoma | B119: 17.3 | C119: 14 | D119: 17.7 | E119: 15.7 | F119: 11.1 | G119: 12 | H119: 12.5 | I119: 17.64705882 | J119: 17 | K119: 26.31578947 | L119: 20.32094943 | M119: 21.2122463 | N119: 22.6163284 | O119: 21.38317471 | P119: 21.7372498 | Q119: 21.91225097 | R119: 21.67755849 | S119: 21.77568642 | T119: 21.78849863 | U119: 21.74724785 | V119: 21.77047763 | W119: 21.76874137 | X119: 21.76215562 | Y119: 21.76712487 | Z119: 21.76600729 | AA119: 21.76509593 | AB119: 21.76607603 | AC119: 21.76572641 | AD119: 21.76563279 | AE119: 21.76581174 | AF119: 21.76572365 | AG119: 21.76572273 | AH119: 21.76575271 | AI119: 21.76573303 | AJ119: 21.76573615 | AK119: 21.76574063 | AL119: 21.7657366 | AM119: 21.7657378 | AN119: 21.76573834 | AO119: 21.76573758 | AP119: 21.76573791 | AQ119: 21.76573794
